Workbook

Sheet Portada
D2: Modelo Empresa Eficiente Móvil
D3: Portada | J3: Modelo desarrollado por Dantzig Consultores (2016). www.dantzig.cl
C6: Diagrama de Modelo
C52: Contenidos
D54: Hoja | E54: Descripción
D55: Portada | E55: Presentación del Modelo
D56: Demanda | E56: Proyecciones de Demanda
D57: Parametros.Red | E57: Parámetros para el Diseño de Red
D58: Cobertura.Móvil | E58: Define la cobertura de la red móvil
D59: Tabla.Erlang | E59: Tabla Erlang B
D60: Demanda.Diseño | E60: Demanda para diseñar la red
D61: Factores.Utilización | E61: Factores de utilización de la red
D62: Diseño.Red.Acceso.2G.3G | E62: Diseño de la red de acceso
D63: Diseño.Red.Acceso.4G | E63: Diseño de la red de acceso
D64: Diseño.Red.Núcleo | E64: Diseño de la red núcleo
D65: Costos.Unitarios.Red | E65: Costos unitarios de la red
D66: Edificios.Red | E66: Diseño de los edificios de elementos de red
D67: Sistemas | E67: Diseño de tecnologías de información
D68: RRHH | E68: Detalle de los recursos humanos
D69: BBSS | E69: Detalle de los bienes y servicios
D70: Edificios.Adm | E70: Diseño de los edificios administrativos
D71: BD.Costos | E71: Base de datos de costos
D72: Evolución.Elementos | E72: Evolución de activos
D73: Inversión | E73: CAPEX
D74: Depreciación | E74: Depreciación
D75: Valor.Residual | E75: Valor Residual
D76: Gastos | E76: OPEX
D77: Asignación | E77: Criterios de asignación
D78: Capital.de.Trabajo | E78: Cálculo de capital de trabajo
D79: Cálculo.CTLP | E79: Costo total de largo plazo
D80: Cálculo.LRIC | E80: Costo incremental de largo plazo
D81: Panel de Control | E81: Panel de control del modelo
D82: Estilos | E82: Formatos utilizados en el modelo

Sheet Resumen
D2: Modelo Empresa Eficiente Móvil
D3: Resumen de Tarifas Reguladas
D10: Voz por Uso | E10: Voz por Capacidad | F10: SMS | G10: Datos
C11: EE | D11: col$/min | E11: col$/E1 | F11: col$/msg | G11: col$/GByte
B12: Empresa Eficiente Sin Contraprestaciones
C13: Medio | D13: =+Cálculo.CTLP!Q8138 -> 0 | E13: =D13/$D$26 -> 0 | F13: =Cálculo.CTLP!M8190*tc.dolar -> 0 | G13: =+Cálculo.CTLP!Q8178 -> 0
C14: Marginal | D14: =+LRIC!R70*INDEX(Asig.KT.TM,6,6) -> 0 | E14: =D14/$D$26 -> 0 | F14: =LRIC!R71*INDEX(Asig.KT.TM,9,6) -> 0 | G14: =+LRIC!R76*INDEX(Asig.KT.Datos,2,6) -> 0
B15: Roaming Automático Nacional Tramo Acceso
C16: Medio | D16: =Cálculo.CTLP!Q8150 -> 0 | E16: =D16/$D$26 -> 0 | F16: =Cálculo.CTLP!M8191*tc.dolar -> 0 | G16: =+Cálculo.CTLP!Q8179 -> 0
C17: Marginal | D17: =LRIC!R73*INDEX(Asig.KT.TM,6,6) -> 0 | E17: =D17/$D$26 -> 0 | F17: =(LRIC!R71-LRIC!X5101)*INDEX(Asig.KT.TM,9,6) -> 0 | G17: =+LRIC!R77*INDEX(Asig.KT.Datos,3,6) -> 0
B18: Operador Móvil Virtual Tramo Acceso
C19: Medio | D19: =Cálculo.CTLP!Q8162 -> 0 | E19: =D19/$D$26 -> 0 | F19: =Cálculo.CTLP!M8192*tc.dolar -> 0 | G19: =+Cálculo.CTLP!Q8180 -> 0
C20: Marginal | D20: =LRIC!R74*INDEX(Asig.KT.TM,6,6) -> 0 | E20: =D20/$D$26 -> 0 | F20: =(LRIC!R71-LRIC!X5101)*INDEX(Asig.KT.TM,9,6) -> 0 | G20: =+LRIC!R78*INDEX(Asig.KT.Datos,4,6) -> 0
B21: Tránsito
C22: Medio | D22: =+D13*$D$24 -> 0
C23: Marginal | D23: =+IF(D13=0,0,D22*D14/D13) -> 0
C24: % Tránsito | D24: =Cálculo.CTLP!S8138 -> 0
C26: Factor de conversión | D26: 2.571728816e-06
D28: item | E28: Valores
C29: Operación
D30: Red Acceso | E30: 0.4715805798
D31: Red Núcleo | E31: 0.1546144419
D32: Sistemas OSS | E32: 0.05499179698
D33: OPEX Red | E33: 0.01780281157
D34: RRHH Oper | E34: 0.07862144642
C35: Legal y Regulatorio
D36: Opex Juridico | E36: 0.00877801624
D37: RRHH Jur | E37: 0.05241429761
C38: Comercial
D39: Sistemas Comerciales | E39: 0.01821381627
D40: Opex Comercial | E40: 0.09056849564
D41: RRHH Comercial | E41: 0.05241429761
D43: Total | E43: 1
D44: % Descuento | E44: =SUM(E36:E41) -> 0.2223889234

Sheet Panel de Control
D2: Modelo Empresa Eficiente Móvil
D3: Panel de Control
B6: Parámetros financieros
D8: Tasa de Costo de Capital [%] | E8: [%] | F8: 0.1036 | G8: tcc
D10: Tasa de Tributación [%] | E10: [%] | F10: 0.35 | G10: tax
D12: Tipo de Cambio | E12: [$] | F12: 3175.52 | G12: tc.dolar
D14: Porcentaje de Contraprestaciones Mensuales | E14: [%] | F14: 0.05 | G14: porc.contraprestaciones
B17: Parámetros de Capital de Trabajo
D20: Días Año | E20: [días] | F20: 365
D21: Dias de Facuturación | E21: [días] | F21: 1 | H21: Nota: valor reemplazado por 1 día
D22: Valor Proporción Costo Capital | E22: [%] | F22: =F21/F20 -> 0.002739726027 | G22: r.trab

Sheet Demanda
K2: Modelo Empresa Eficiente Móvil
K3: Estimación de demanda
I5: año | K5: 1 | L5: =+K5+1 -> 2 | M5: =+L5+1 -> 3 | N5: =+M5+1 -> 4 | O5: =+N5+1 -> 5 | P5: =+O5+1 -> 6 | Q5: =+K5 -> 1 | R5: 2 | S5: 3 | T5: 4 | U5: 5 | V5: 6 | W5: 1 | X5: 2 | Y5: 3 | Z5: 4 | AA5: 5 | AB5: 6 | AC5: 1 | AD5: 2 | AE5: 3 | AF5: 4 | AG5: 5 | AH5: 6 | AI5: 1 | AJ5: 2 | AK5: 3 | AL5: 4 | AM5: 5 | AN5: 6 | AO5: 1 | AP5: 2 | AQ5: 3 | AR5: 4 | AS5: 5 | AT5: 6 | AU5: 1 | AV5: 2 | AW5: =+AQ5 -> 3 | AX5: 4 | AY5: 5 | AZ5: 6 | BA5: 1 | BB5: 2 | BC5: 3 | BD5: 4 | BE5: 5 | BF5: 6 | BG5: 1 | BH5: 2 | BI5: 3 | BJ5: 4 | BK5: 5 | BL5: 6 | BM5: 1 | BN5: 2 | BO5: 3 | BP5: 4 | BQ5: 5 | BR5: 6 | BS5: 1 | BT5: 2 | BU5: 3 | BV5: 4 | BW5: 5 | BX5: 6 | BY5: 1 | BZ5: 2 | CA5: 3 | CB5: 4 | CC5: =+BW5 -> 5 | CD5: 6 | CE5: 1 | CF5: 2 | CG5: 3 | CH5: 4 | CI5: 5 | CJ5: 6 | CK5: 1 | CL5: 2 | CM5: 3 | CN5: 4 | CO5: 5 | CP5: 6 | CQ5: 1 | CR5: 2 | CS5: 3 | CT5: 4 | CU5: 5 | CV5: 6
I6: empresa.dda | K6: 1 | L6: =+K6 -> 1 | M6: =+L6 -> 1 | N6: =+M6 -> 1 | O6: =+N6 -> 1 | P6: =+O6 -> 1 | Q6: =+K6+1 -> 2 | R6: 2 | S6: 2 | T6: 2 | U6: 2 | V6: 2 | W6: 3 | X6: 3 | Y6: 3 | Z6: 3 | AA6: 3 | AB6: 3 | AC6: 4 | AD6: 4 | AE6: 4 | AF6: 4 | AG6: 4 | AH6: 4 | AI6: 5 | AJ6: 5 | AK6: 5 | AL6: 5 | AM6: 5 | AN6: 5 | AO6: 6 | AP6: 6 | AQ6: 6 | AR6: 6 | AS6: 6 | AT6: 6 | AU6: 7 | AV6: 7 | AW6: =+AQ6+1 -> 7 | AX6: 7 | AY6: 7 | AZ6: 7 | BA6: 8 | BB6: 8 | BC6: 8 | BD6: 8 | BE6: 8 | BF6: 8 | BG6: 9 | BH6: 9 | BI6: 9 | BJ6: 9 | BK6: 9 | BL6: 9 | BM6: 10 | BN6: 10 | BO6: 10 | BP6: 10 | BQ6: 10 | BR6: 10 | BS6: 11 | BT6: 11 | BU6: 11 | BV6: 11 | BW6: 11 | BX6: 11 | BY6: 12 | BZ6: 12 | CA6: 12 | CB6: 12 | CC6: =+BW6+1 -> 12 | CD6: 12 | CE6: 13 | CF6: 13 | CG6: 13 | CH6: 13 | CI6: 13 | CJ6: 13 | CK6: 14 | CL6: 14 | CM6: 14 | CN6: 14 | CO6: 14 | CP6: 14 | CQ6: 15 | CR6: 15 | CS6: 15 | CT6: 15 | CU6: 15 | CV6: 15
I7: empresa.red | K7: =+K6 -> 1 | L7: 1 | M7: 1 | N7: 1 | O7: 1 | P7: 1 | Q7: 2 | R7: 2 | S7: 2 | T7: 2 | U7: 2 | V7: 2 | W7: 3 | X7: 3 | Y7: 3 | Z7: 3 | AA7: 3 | AB7: 3 | AC7: 4 | AD7: 4 | AE7: 4 | AF7: 4 | AG7: 4 | AH7: 4 | AI7: 5 | AJ7: 5 | AK7: 5 | AL7: 5 | AM7: 5 | AN7: 5 | AO7: 6 | AP7: 6 | AQ7: 6 | AR7: 6 | AS7: 6 | AT7: 6 | AU7: 7 | AV7: 7 | AW7: 7 | AX7: 7 | AY7: 7 | AZ7: 7 | BA7: 8 | BB7: 8 | BC7: 8 | BD7: 8 | BE7: 8 | BF7: 8
I8: empresa.ruteo.aux | K8: =+INDEX(dda.l.aux.ruteo.omv,K6) -> 1 | L8: 1 | M8: 1 | N8: 1 | O8: 1 | P8: 1 | Q8: 2 | R8: 2 | S8: 2 | T8: 2 | U8: 2 | V8: 2 | W8: 3 | X8: 3 | Y8: 3 | Z8: 3 | AA8: 3 | AB8: 3 | AC8: 3 | AD8: 3 | AE8: 3 | AF8: 3 | AG8: 3 | AH8: 3 | AI8: 3 | AJ8: 3 | AK8: 3 | AL8: 3 | AM8: 3 | AN8: 3 | AO8: 3 | AP8: 3 | AQ8: =+INDEX(dda.l.aux.ruteo.omv,AQ6) -> 3 | AR8: 3 | AS8: 3 | AT8: 3 | AU8: 5 | AV8: 5 | AW8: 5 | AX8: 5 | AY8: 5 | AZ8: 5 | BA8: 2 | BB8: 2 | BC8: 2 | BD8: 2 | BE8: 2 | BF8: 2 | BG8: 4 | BH8: 4 | BI8: 4 | BJ8: 4 | BK8: 4 | BL8: 4 | BM8: 6 | BN8: 6 | BO8: 6 | BP8: 6 | BQ8: 6 | BR8: 6 | BS8: 8 | BT8: 8 | BU8: 8 | BV8: 8 | BW8: =+INDEX(dda.l.aux.ruteo.omv,BW6) -> 8 | BX8: 8 | BY8: 8 | BZ8: 8 | CA8: 8 | CB8: 8 | CC8: 8 | CD8: 8 | CE8: 8 | CF8: 8 | CG8: 8 | CH8: 8 | CI8: 8 | CJ8: 8 | CK8: 8 | CL8: 8 | CM8: 8 | CN8: 8 | CO8: 8 | CP8: 8 | CQ8: 8 | CR8: 8 | CS8: 8 | CT8: 8 | CU8: 8 | CV8: 8
I9: correlativo | K9: 1 | L9: =+K9+1 -> 2 | M9: 3 | N9: 4 | O9: 5 | P9: 6 | Q9: 7 | R9: 8 | S9: 9 | T9: 10 | U9: 11 | V9: 12 | W9: 13 | X9: 14 | Y9: 15 | Z9: 16 | AA9: 17 | AB9: 18 | AC9: 19 | AD9: 20 | AE9: 21 | AF9: 22 | AG9: 23 | AH9: 24 | AI9: 25 | AJ9: 26 | AK9: 27 | AL9: 28 | AM9: 29 | AN9: 30 | AO9: 31 | AP9: 32 | AQ9: 33 | AR9: =+AQ9+1 -> 34 | AS9: 35 | AT9: 36 | AU9: 37 | AV9: 38 | AW9: 39 | AX9: 40 | AY9: 41 | AZ9: 42 | BA9: 43 | BB9: 44 | BC9: 45 | BD9: 46 | BE9: 47 | BF9: 48 | BG9: 49 | BH9: 50 | BI9: 51 | BJ9: 52 | BK9: 53 | BL9: 54 | BM9: 55 | BN9: 56 | BO9: 57 | BP9: 58 | BQ9: 59 | BR9: 60 | BS9: 61 | BT9: 62 | BU9: 63 | BV9: 64 | BW9: 65 | BX9: =+BW9+1 -> 66 | BY9: 67 | BZ9: 68 | CA9: 69 | CB9: 70 | CC9: 71 | CD9: 72 | CE9: 73 | CF9: 74 | CG9: 75 | CH9: 76 | CI9: 77 | CJ9: 78 | CK9: 79 | CL9: 80 | CM9: 81 | CN9: 82 | CO9: 83 | CP9: 84 | CQ9: 85 | CR9: 86 | CS9: 87 | CT9: 88 | CU9: 89 | CV9: 90
B11: Parámetros generales demanda
G13: 4
G14: ID | H14: DP | I14: dda.l.dpto | K14: ID.red | L14: lista.dpto.red
G15: 1 | H15: 05 | I15: Antioquia | K15: 1 | L15: Antioquia | M15: ok
G16: =+G15+1 -> 2 | H16: 08 | I16: Atlántico | K16: 2 | L16: Atlántico | M16: ok
G17: 3 | H17: 11 | I17: Bogotá | K17: 3 | L17: Bogotá, D.C. | M17: ok
G18: 4 | H18: 13 | I18: Bolívar | K18: 4 | L18: Bolívar | M18: ok
G19: 5 | H19: 15 | I19: Boyacá | K19: 5 | L19: Boyacá | M19: ok
G20: 6 | H20: 17 | I20: Caldas | K20: 6 | L20: Caldas | M20: ok
G21: 7 | H21: 18 | I21: Caquetá | K21: 7 | L21: Caquetá | M21: ok
G22: 8 | H22: 19 | I22: Cauca | K22: 8 | L22: Cauca | M22: ok
G23: 9 | H23: 20 | I23: Cesar | K23: 9 | L23: Cesar | M23: ok
G24: 10 | H24: 23 | I24: Córdoba | K24: 10 | L24: Córdoba | M24: ok
G25: 11 | H25: 25 | I25: Cundinamarca | K25: 11 | L25: Cundinamarca | M25: ok
G26: 12 | H26: 27 | I26: Chocó | K26: 12 | L26: Chocó | M26: ok
G27: 13 | H27: 41 | I27: Huila | K27: 13 | L27: Huila | M27: ok
G28: 14 | H28: 44 | I28: La Guajira | K28: 14 | L28: La Guajira | M28: ok
G29: 15 | H29: 47 | I29: Magdalena | K29: 15 | L29: Magdalena | M29: ok
G30: 16 | H30: 50 | I30: Meta | K30: 16 | L30: Meta | M30: ok
G31: 17 | H31: 52 | I31: Nariño | K31: 17 | L31: Nariño | M31: ok
G32: 18 | H32: 54 | I32: Norte de Santander | K32: 18 | L32: Norte de Santander | M32: ok
G33: 19 | H33: 63 | I33: Quindio | K33: 19 | L33: Quindio | M33: ok
G34: 20 | H34: 66 | I34: Risaralda | K34: 20 | L34: Risaralda | M34: ok
G35: 21 | H35: 68 | I35: Santander | K35: 21 | L35: Santander | M35: ok
G36: 22 | H36: 70 | I36: Sucre | K36: 22 | L36: Sucre | M36: ok
G37: 23 | H37: 73 | I37: Tolima | K37: 23 | L37: Tolima | M37: ok
G38: 24 | H38: 76 | I38: Valle del Cauca | K38: 24 | L38: Valle del Cauca | M38: ok
G39: 25 | H39: 81 | I39: Arauca | K39: 25 | L39: Arauca | M39: ok
G40: 26 | H40: 85 | I40: Casanare | K40: 26 | L40: Casanare | M40: ok
G41: 27 | H41: 86 | I41: Putumayo | K41: 27 | L41: Putumayo | M41: ok
G42: 28 | H42: 88 | I42: San Andrés | K42: 28 | L42: Archipiélago de San Andrés | M42: ok
G43: 29 | H43: 91 | I43: Amazonas | K43: 29 | L43: Amazonas | M43: ok
G44: 30 | H44: 94 | I44: Guainía | K44: 30 | L44: Guainía | M44: ok
G45: 31 | H45: 95 | I45: Guaviare | K45: 31 | L45: Guaviare | M45: ok
G46: 32 | H46: 97 | I46: Vaupés | K46: 32 | L46: Vaupés | M46: ok
G47: 33 | H47: 99 | I47: Vichada | K47: 33 | L47: Vichada | M47: ok
H49: ID | I49: dda.l.año | J49: dda.l.año.num
H50: 1 | I50: año 0 | J50: 2015
H51: =+H50+1 -> 2 | I51: año 1 | J51: =+J50+1 -> 2016
H52: =+H51+1 -> 3 | I52: año 2 | J52: =+J51+1 -> 2017
H53: =+H52+1 -> 4 | I53: año 3 | J53: =+J52+1 -> 2018
H54: =+H53+1 -> 5 | I54: año 4 | J54: =+J53+1 -> 2019
H55: =+H54+1 -> 6 | I55: año 5 | J55: =+J54+1 -> 2020
H56: Nota: esta tabla es variable en los valores azules, el usuario puede cambiar a voluntad. No necesariamente un valor real (y por ende confidencial) de alguna empresa
H57: ID | I57: dda.l.emp | J57: OMV | K57: Quien lo atiende | L57: dda.l.aux.ruteo.omv
H58: 1 | I58: Comcel | J58: No | K58: Comcel | L58: =MATCH(K58,dda.l.emp.red,0) -> 1
H59: =+H58+1 -> 2 | I59: Movistar | J59: No | K59: Movistar | L59: 2
H60: 3 | I60: Tigo | J60: No | K60: Tigo | L60: 3
H61: 4 | I61: Uff | J61: Sí | K61: Tigo | L61: 3
H62: 5 | I62: EPM | J62: Sí | K62: Tigo | L62: 3
H63: 6 | I63: Éxito | J63: Sí | K63: Tigo | L63: 3
H64: 7 | I64: Avantel | J64: No | K64: Avantel | L64: 5
H65: 8 | I65: Virgin | J65: Sí | K65: Movistar | L65: 2
H66: 9 | I66: ETB | J66: No | K66: ETB | L66: 4
H67: 10 | I67: EE | J67: No | K67: EE | L67: 6
H68: 11 | I68: libre | J68: No | K68: libre | L68: 8
H69: 12 | I69: libre | J69: No | K69: libre | L69: 8
H70: 13 | I70: libre | J70: No | K70: libre | L70: 8
H71: 14 | I71: libre | J71: No | K71: libre | L71: 8
H72: 15 | I72: libre | J72: No | K72: libre | L72: 8
H74: ID | I74: dda.l.emp.red
H75: 1 | I75: Comcel
H76: =+H75+1 -> 2 | I76: Movistar
H77: 3 | I77: Tigo
H78: 4 | I78: ETB
H79: 5 | I79: Avantel
H80: 6 | I80: EE | K80: RAN Dona | L80: RAN Recibe
H81: 7 | I81: Libre | K81: 0.01 | L81: 0.5
H82: 8 | I82: Libre
H83: Nota: esta tabla es variable en los valores azules, el usuario puede cambiar a voluntad. No necesariamente un valor real (y por ende confidencial) de alguna empresa
H84: ID | I84: dda.l.emp | J84: dda.recibe.ran.voz | K84: =+INDEX(dda.l.año.num,K$5) -> 2015 | L84: 2016 | M84: 2017 | N84: 2018 | O84: 2019 | P84: 2020
H85: 1 | I85: =+INDEX(dda.l.emp,H85) -> Comcel | J85: 0.3333333333 | K85: 0 | L85: 0 | M85: 0 | N85: 0 | O85: 0 | P85: 0
H86: =+H85+1 -> 2 | I86: Movistar | J86: 0.3333333333 | K86: 0 | L86: 0 | M86: 0 | N86: 0 | O86: 0 | P86: 0
H87: 3 | I87: Tigo | J87: 0.3333333333 | K87: 0 | L87: 0 | M87: 0 | N87: 0 | O87: 0 | P87: 0
H88: 4 | I88: Uff | J88: 0 | K88: 0 | L88: 0 | M88: 0 | N88: 0 | O88: 0 | P88: 0
H89: 5 | I89: EPM | J89: 0 | K89: 0 | L89: 0 | M89: 0 | N89: 0 | O89: 0 | P89: 0
H90: 6 | I90: Éxito | J90: 0 | K90: 0 | L90: 0 | M90: 0 | N90: 0 | O90: 0 | P90: 0
H91: 7 | I91: Avantel | J91: 0 | K91: 0.25 | L91: 0.25 | M91: 0.25 | N91: 0.25 | O91: 0.25 | P91: 0.25
H92: 8 | I92: Virgin | J92: 0 | K92: 0 | L92: 0 | M92: 0 | N92: 0 | O92: 0 | P92: 0
H93: 9 | I93: ETB | J93: 0 | K93: 0 | L93: 0 | M93: 0 | N93: 0 | O93: 0 | P93: 0
H94: 10 | I94: EE | J94: =+Demanda!L81 -> 0.5 | K94: =+Demanda!K81 -> 0.01 | L94: =+K94 -> 0.01 | M94: =+L94 -> 0.01 | N94: 0.01 | O94: 0.01 | P94: 0.01
H95: 11 | I95: libre | J95: 0 | K95: 0 | L95: 0 | M95: 0 | N95: 0 | O95: 0 | P95: 0
H96: 12 | I96: libre | J96: 0 | K96: 0 | L96: 0 | M96: 0 | N96: 0 | O96: 0 | P96: 0
H97: 13 | I97: libre | J97: 0 | K97: 0 | L97: 0 | M97: 0 | N97: 0 | O97: 0 | P97: 0
H98: 14 | I98: libre | J98: 0 | K98: 0 | L98: 0 | M98: 0 | N98: 0 | O98: 0 | P98: 0
H99: 15 | I99: libre | J99: 0 | K99: 0 | L99: 0 | M99: 0 | N99: 0 | O99: 0 | P99: 0 | Q99: dda.p.roam.voz2
H101: ID | I101: dda.l.emp | J101: dda.recibe.ran.datos | K101: =+INDEX(dda.l.año.num,K$5) -> 2015 | L101: 2016 | M101: 2017 | N101: 2018 | O101: 2019 | P101: 2020
H102: 1 | I102: =+INDEX(dda.l.emp,H102) -> Comcel | J102: =+J85 -> 0.3333333333 | K102: 0 | L102: 0 | M102: 0 | N102: 0 | O102: 0 | P102: 0
H103: =+H102+1 -> 2 | I103: Movistar | J103: 0.3333333333 | K103: 0 | L103: 0 | M103: 0 | N103: 0 | O103: 0 | P103: 0
H104: 3 | I104: Tigo | J104: 0.3333333333 | K104: 0 | L104: 0 | M104: 0 | N104: 0 | O104: 0 | P104: 0
H105: 4 | I105: Uff | J105: 0 | K105: 0 | L105: 0 | M105: 0 | N105: 0 | O105: 0 | P105: 0
H106: 5 | I106: EPM | J106: 0 | K106: 0 | L106: 0 | M106: 0 | N106: 0 | O106: 0 | P106: 0
H107: 6 | I107: Éxito | J107: 0 | K107: 0 | L107: 0 | M107: 0 | N107: 0 | O107: 0 | P107: 0
H108: 7 | I108: Avantel | J108: 0 | K108: 0.25 | L108: 0.25 | M108: 0.25 | N108: 0.25 | O108: 0.25 | P108: 0.25
H109: 8 | I109: Virgin | J109: 0 | K109: 0 | L109: 0 | M109: 0 | N109: 0 | O109: 0 | P109: 0
H110: 9 | I110: ETB | J110: 0 | K110: 0 | L110: 0 | M110: 0 | N110: 0 | O110: 0 | P110: 0
H111: 10 | I111: EE | J111: 0.5 | K111: 0.01 | L111: 0.01 | M111: 0.01 | N111: 0.01 | O111: 0.01 | P111: 0.01
H112: 11 | I112: libre
H113: 12 | I113: libre
H114: 13 | I114: libre
H115: 14 | I115: libre
H116: 15 | I116: libre | Q116: dda.p.roam.datos2
B118: Población
F120: Total por departamento
G122: ID | H122: DP | I122: Departamento | K122: 1985 | L122: 1986 | M122: 1987 | N122: 1988 | O122: 1989 | P122: 1990 | Q122: 1991 | R122: 1992 | S122: 1993 | T122: 1994 | U122: 1995 | V122: 1996 | W122: 1997 | X122: 1998 | Y122: 1999 | Z122: 2000 | AA122: 2001 | AB122: 2002 | AC122: 2003 | AD122: 2004 | AE122: 2005 | AF122: 2006 | AG122: 2007 | AH122: 2008 | AI122: 2009 | AJ122: 2010 | AK122: 2011 | AL122: 2012 | AM122: 2013 | AN122: 2014 | AO122: 2015 | AP122: 2016 | AQ122: 2017 | AR122: 2018 | AS122: 2019 | AT122: 2020 | AU122: =+AT122+1 -> 2021 | AV122: =+AU122+1 -> 2022 | AW122: =+AV122+1 -> 2023
G123: 1 | H123: 05 | I123: =+INDEX(dda.l.dpto,G123) -> Antioquia | J123: [persona] | K123: 1 | L123: 1 | M123: 1 | N123: 1 | O123: 1 | P123: 1 | Q123: 1 | R123: 1 | S123: 1 | T123: 1 | U123: 1 | V123: 1 | W123: 1 | X123: 1 | Y123: 1 | Z123: 1 | AA123: 1 | AB123: 1 | AC123: 1 | AD123: 1 | AE123: 1 | AF123: 1 | AG123: 1 | AH123: 1 | AI123: 1 | AJ123: 1 | AK123: 1 | AL123: 1 | AM123: 1 | AN123: 1 | AO123: 1 | AP123: 1 | AQ123: 1 | AR123: 1 | AS123: 1 | AT123: 1 | AU123: 1 | AV123: 1 | AW123: 1
G124: =+G123+1 -> 2 | H124: 08 | I124: Atlántico | J124: [persona] | K124: 1 | L124: 1 | M124: 1 | N124: 1 | O124: 1 | P124: 1 | Q124: 1 | R124: 1 | S124: 1 | T124: 1 | U124: 1 | V124: 1 | W124: 1 | X124: 1 | Y124: 1 | Z124: 1 | AA124: 1 | AB124: 1 | AC124: 1 | AD124: 1 | AE124: 1 | AF124: 1 | AG124: 1 | AH124: 1 | AI124: 1 | AJ124: 1 | AK124: 1 | AL124: 1 | AM124: 1 | AN124: 1 | AO124: 1 | AP124: 1 | AQ124: 1 | AR124: 1 | AS124: 1 | AT124: 1 | AU124: 1 | AV124: 1 | AW124: 1
G125: 3 | H125: 11 | I125: Bogotá | J125: [persona] | K125: 1 | L125: 1 | M125: 1 | N125: 1 | O125: 1 | P125: 1 | Q125: 1 | R125: 1 | S125: 1 | T125: 1 | U125: 1 | V125: 1 | W125: 1 | X125: 1 | Y125: 1 | Z125: 1 | AA125: 1 | AB125: 1 | AC125: 1 | AD125: 1 | AE125: 1 | AF125: 1 | AG125: 1 | AH125: 1 | AI125: 1 | AJ125: 1 | AK125: 1 | AL125: 1 | AM125: 1 | AN125: 1 | AO125: 1 | AP125: 1 | AQ125: 1 | AR125: 1 | AS125: 1 | AT125: 1 | AU125: 1 | AV125: 1 | AW125: 1
G126: 4 | H126: 13 | I126: Bolívar | J126: [persona] | K126: 1 | L126: 1 | M126: 1 | N126: 1 | O126: 1 | P126: 1 | Q126: 1 | R126: 1 | S126: 1 | T126: 1 | U126: 1 | V126: 1 | W126: 1 | X126: 1 | Y126: 1 | Z126: 1 | AA126: 1 | AB126: 1 | AC126: 1 | AD126: 1 | AE126: 1 | AF126: 1 | AG126: 1 | AH126: 1 | AI126: 1 | AJ126: 1 | AK126: 1 | AL126: 1 | AM126: 1 | AN126: 1 | AO126: 1 | AP126: 1 | AQ126: 1 | AR126: 1 | AS126: 1 | AT126: 1 | AU126: 1 | AV126: 1 | AW126: 1
G127: 5 | H127: 15 | I127: Boyacá | J127: [persona] | K127: 1 | L127: 1 | M127: 1 | N127: 1 | O127: 1 | P127: 1 | Q127: 1 | R127: 1 | S127: 1 | T127: 1 | U127: 1 | V127: 1 | W127: 1 | X127: 1 | Y127: 1 | Z127: 1 | AA127: 1 | AB127: 1 | AC127: 1 | AD127: 1 | AE127: 1 | AF127: 1 | AG127: 1 | AH127: 1 | AI127: 1 | AJ127: 1 | AK127: 1 | AL127: 1 | AM127: 1 | AN127: 1 | AO127: 1 | AP127: 1 | AQ127: 1 | AR127: 1 | AS127: 1 | AT127: 1 | AU127: 1 | AV127: 1 | AW127: 1
G128: 6 | H128: 17 | I128: Caldas | J128: [persona] | K128: 1 | L128: 1 | M128: 1 | N128: 1 | O128: 1 | P128: 1 | Q128: 1 | R128: 1 | S128: 1 | T128: 1 | U128: 1 | V128: 1 | W128: 1 | X128: 1 | Y128: 1 | Z128: 1 | AA128: 1 | AB128: 1 | AC128: 1 | AD128: 1 | AE128: 1 | AF128: 1 | AG128: 1 | AH128: 1 | AI128: 1 | AJ128: 1 | AK128: 1 | AL128: 1 | AM128: 1 | AN128: 1 | AO128: 1 | AP128: 1 | AQ128: 1 | AR128: 1 | AS128: 1 | AT128: 1 | AU128: 1 | AV128: 1 | AW128: 1
G129: 7 | H129: 18 | I129: Caquetá | J129: [persona] | K129: 1 | L129: 1 | M129: 1 | N129: 1 | O129: 1 | P129: 1 | Q129: 1 | R129: 1 | S129: 1 | T129: 1 | U129: 1 | V129: 1 | W129: 1 | X129: 1 | Y129: 1 | Z129: 1 | AA129: 1 | AB129: 1 | AC129: 1 | AD129: 1 | AE129: 1 | AF129: 1 | AG129: 1 | AH129: 1 | AI129: 1 | AJ129: 1 | AK129: 1 | AL129: 1 | AM129: 1 | AN129: 1 | AO129: 1 | AP129: 1 | AQ129: 1 | AR129: 1 | AS129: 1 | AT129: 1 | AU129: 1 | AV129: 1 | AW129: 1
G130: 8 | H130: 19 | I130: Cauca | J130: [persona] | K130: 1 | L130: 1 | M130: 1 | N130: 1 | O130: 1 | P130: 1 | Q130: 1 | R130: 1 | S130: 1 | T130: 1 | U130: 1 | V130: 1 | W130: 1 | X130: 1 | Y130: 1 | Z130: 1 | AA130: 1 | AB130: 1 | AC130: 1 | AD130: 1 | AE130: 1 | AF130: 1 | AG130: 1 | AH130: 1 | AI130: 1 | AJ130: 1 | AK130: 1 | AL130: 1 | AM130: 1 | AN130: 1 | AO130: 1 | AP130: 1 | AQ130: 1 | AR130: 1 | AS130: 1 | AT130: 1 | AU130: 1 | AV130: 1 | AW130: 1
G131: 9 | H131: 20 | I131: Cesar | J131: [persona] | K131: 1 | L131: 1 | M131: 1 | N131: 1 | O131: 1 | P131: 1 | Q131: 1 | R131: 1 | S131: 1 | T131: 1 | U131: 1 | V131: 1 | W131: 1 | X131: 1 | Y131: 1 | Z131: 1 | AA131: 1 | AB131: 1 | AC131: 1 | AD131: 1 | AE131: 1 | AF131: 1 | AG131: 1 | AH131: 1 | AI131: 1 | AJ131: 1 | AK131: 1 | AL131: 1 | AM131: 1 | AN131: 1 | AO131: 1 | AP131: 1 | AQ131: 1 | AR131: 1 | AS131: 1 | AT131: 1 | AU131: 1 | AV131: 1 | AW131: 1
G132: 10 | H132: 23 | I132: Córdoba | J132: [persona] | K132: 1 | L132: 1 | M132: 1 | N132: 1 | O132: 1 | P132: 1 | Q132: 1 | R132: 1 | S132: 1 | T132: 1 | U132: 1 | V132: 1 | W132: 1 | X132: 1 | Y132: 1 | Z132: 1 | AA132: 1 | AB132: 1 | AC132: 1 | AD132: 1 | AE132: 1 | AF132: 1 | AG132: 1 | AH132: 1 | AI132: 1 | AJ132: 1 | AK132: 1 | AL132: 1 | AM132: 1 | AN132: 1 | AO132: 1 | AP132: 1 | AQ132: 1 | AR132: 1 | AS132: 1 | AT132: 1 | AU132: 1 | AV132: 1 | AW132: 1
G133: 11 | H133: 25 | I133: Cundinamarca | J133: [persona] | K133: 1 | L133: 1 | M133: 1 | N133: 1 | O133: 1 | P133: 1 | Q133: 1 | R133: 1 | S133: 1 | T133: 1 | U133: 1 | V133: 1 | W133: 1 | X133: 1 | Y133: 1 | Z133: 1 | AA133: 1 | AB133: 1 | AC133: 1 | AD133: 1 | AE133: 1 | AF133: 1 | AG133: 1 | AH133: 1 | AI133: 1 | AJ133: 1 | AK133: 1 | AL133: 1 | AM133: 1 | AN133: 1 | AO133: 1 | AP133: 1 | AQ133: 1 | AR133: 1 | AS133: 1 | AT133: 1 | AU133: 1 | AV133: 1 | AW133: 1
G134: 12 | H134: 27 | I134: Chocó | J134: [persona] | K134: 1 | L134: 1 | M134: 1 | N134: 1 | O134: 1 | P134: 1 | Q134: 1 | R134: 1 | S134: 1 | T134: 1 | U134: 1 | V134: 1 | W134: 1 | X134: 1 | Y134: 1 | Z134: 1 | AA134: 1 | AB134: 1 | AC134: 1 | AD134: 1 | AE134: 1 | AF134: 1 | AG134: 1 | AH134: 1 | AI134: 1 | AJ134: 1 | AK134: 1 | AL134: 1 | AM134: 1 | AN134: 1 | AO134: 1 | AP134: 1 | AQ134: 1 | AR134: 1 | AS134: 1 | AT134: 1 | AU134: 1 | AV134: 1 | AW134: 1
G135: 13 | H135: 41 | I135: Huila | J135: [persona] | K135: 1 | L135: 1 | M135: 1 | N135: 1 | O135: 1 | P135: 1 | Q135: 1 | R135: 1 | S135: 1 | T135: 1 | U135: 1 | V135: 1 | W135: 1 | X135: 1 | Y135: 1 | Z135: 1 | AA135: 1 | AB135: 1 | AC135: 1 | AD135: 1 | AE135: 1 | AF135: 1 | AG135: 1 | AH135: 1 | AI135: 1 | AJ135: 1 | AK135: 1 | AL135: 1 | AM135: 1 | AN135: 1 | AO135: 1 | AP135: 1 | AQ135: 1 | AR135: 1 | AS135: 1 | AT135: 1 | AU135: 1 | AV135: 1 | AW135: 1
G136: 14 | H136: 44 | I136: La Guajira | J136: [persona] | K136: 1 | L136: 1 | M136: 1 | N136: 1 | O136: 1 | P136: 1 | Q136: 1 | R136: 1 | S136: 1 | T136: 1 | U136: 1 | V136: 1 | W136: 1 | X136: 1 | Y136: 1 | Z136: 1 | AA136: 1 | AB136: 1 | AC136: 1 | AD136: 1 | AE136: 1 | AF136: 1 | AG136: 1 | AH136: 1 | AI136: 1 | AJ136: 1 | AK136: 1 | AL136: 1 | AM136: 1 | AN136: 1 | AO136: 1 | AP136: 1 | AQ136: 1 | AR136: 1 | AS136: 1 | AT136: 1 | AU136: 1 | AV136: 1 | AW136: 1
G137: 15 | H137: 47 | I137: Magdalena | J137: [persona] | K137: 1 | L137: 1 | M137: 1 | N137: 1 | O137: 1 | P137: 1 | Q137: 1 | R137: 1 | S137: 1 | T137: 1 | U137: 1 | V137: 1 | W137: 1 | X137: 1 | Y137: 1 | Z137: 1 | AA137: 1 | AB137: 1 | AC137: 1 | AD137: 1 | AE137: 1 | AF137: 1 | AG137: 1 | AH137: 1 | AI137: 1 | AJ137: 1 | AK137: 1 | AL137: 1 | AM137: 1 | AN137: 1 | AO137: 1 | AP137: 1 | AQ137: 1 | AR137: 1 | AS137: 1 | AT137: 1 | AU137: 1 | AV137: 1 | AW137: 1
G138: 16 | H138: 50 | I138: Meta | J138: [persona] | K138: 1 | L138: 1 | M138: 1 | N138: 1 | O138: 1 | P138: 1 | Q138: 1 | R138: 1 | S138: 1 | T138: 1 | U138: 1 | V138: 1 | W138: 1 | X138: 1 | Y138: 1 | Z138: 1 | AA138: 1 | AB138: 1 | AC138: 1 | AD138: 1 | AE138: 1 | AF138: 1 | AG138: 1 | AH138: 1 | AI138: 1 | AJ138: 1 | AK138: 1 | AL138: 1 | AM138: 1 | AN138: 1 | AO138: 1 | AP138: 1 | AQ138: 1 | AR138: 1 | AS138: 1 | AT138: 1 | AU138: 1 | AV138: 1 | AW138: 1
G139: 17 | H139: 52 | I139: Nariño | J139: [persona] | K139: 1 | L139: 1 | M139: 1 | N139: 1 | O139: 1 | P139: 1 | Q139: 1 | R139: 1 | S139: 1 | T139: 1 | U139: 1 | V139: 1 | W139: 1 | X139: 1 | Y139: 1 | Z139: 1 | AA139: 1 | AB139: 1 | AC139: 1 | AD139: 1 | AE139: 1 | AF139: 1 | AG139: 1 | AH139: 1 | AI139: 1 | AJ139: 1 | AK139: 1 | AL139: 1 | AM139: 1 | AN139: 1 | AO139: 1 | AP139: 1 | AQ139: 1 | AR139: 1 | AS139: 1 | AT139: 1 | AU139: 1 | AV139: 1 | AW139: 1
G140: 18 | H140: 54 | I140: Norte de Santander | J140: [persona] | K140: 1 | L140: 1 | M140: 1 | N140: 1 | O140: 1 | P140: 1 | Q140: 1 | R140: 1 | S140: 1 | T140: 1 | U140: 1 | V140: 1 | W140: 1 | X140: 1 | Y140: 1 | Z140: 1 | AA140: 1 | AB140: 1 | AC140: 1 | AD140: 1 | AE140: 1 | AF140: 1 | AG140: 1 | AH140: 1 | AI140: 1 | AJ140: 1 | AK140: 1 | AL140: 1 | AM140: 1 | AN140: 1 | AO140: 1 | AP140: 1 | AQ140: 1 | AR140: 1 | AS140: 1 | AT140: 1 | AU140: 1 | AV140: 1 | AW140: 1
G141: 19 | H141: 63 | I141: Quindio | J141: [persona] | K141: 1 | L141: 1 | M141: 1 | N141: 1 | O141: 1 | P141: 1 | Q141: 1 | R141: 1 | S141: 1 | T141: 1 | U141: 1 | V141: 1 | W141: 1 | X141: 1 | Y141: 1 | Z141: 1 | AA141: 1 | AB141: 1 | AC141: 1 | AD141: 1 | AE141: 1 | AF141: 1 | AG141: 1 | AH141: 1 | AI141: 1 | AJ141: 1 | AK141: 1 | AL141: 1 | AM141: 1 | AN141: 1 | AO141: 1 | AP141: 1 | AQ141: 1 | AR141: 1 | AS141: 1 | AT141: 1 | AU141: 1 | AV141: 1 | AW141: 1
G142: 20 | H142: 66 | I142: Risaralda | J142: [persona] | K142: 1 | L142: 1 | M142: 1 | N142: 1 | O142: 1 | P142: 1 | Q142: 1 | R142: 1 | S142: 1 | T142: 1 | U142: 1 | V142: 1 | W142: 1 | X142: 1 | Y142: 1 | Z142: 1 | AA142: 1 | AB142: 1 | AC142: 1 | AD142: 1 | AE142: 1 | AF142: 1 | AG142: 1 | AH142: 1 | AI142: 1 | AJ142: 1 | AK142: 1 | AL142: 1 | AM142: 1 | AN142: 1 | AO142: 1 | AP142: 1 | AQ142: 1 | AR142: 1 | AS142: 1 | AT142: 1 | AU142: 1 | AV142: 1 | AW142: 1
G143: 21 | H143: 68 | I143: Santander | J143: [persona] | K143: 1 | L143: 1 | M143: 1 | N143: 1 | O143: 1 | P143: 1 | Q143: 1 | R143: 1 | S143: 1 | T143: 1 | U143: 1 | V143: 1 | W143: 1 | X143: 1 | Y143: 1 | Z143: 1 | AA143: 1 | AB143: 1 | AC143: 1 | AD143: 1 | AE143: 1 | AF143: 1 | AG143: 1 | AH143: 1 | AI143: 1 | AJ143: 1 | AK143: 1 | AL143: 1 | AM143: 1 | AN143: 1 | AO143: 1 | AP143: 1 | AQ143: 1 | AR143: 1 | AS143: 1 | AT143: 1 | AU143: 1 | AV143: 1 | AW143: 1
G144: 22 | H144: 70 | I144: Sucre | J144: [persona] | K144: 1 | L144: 1 | M144: 1 | N144: 1 | O144: 1 | P144: 1 | Q144: 1 | R144: 1 | S144: 1 | T144: 1 | U144: 1 | V144: 1 | W144: 1 | X144: 1 | Y144: 1 | Z144: 1 | AA144: 1 | AB144: 1 | AC144: 1 | AD144: 1 | AE144: 1 | AF144: 1 | AG144: 1 | AH144: 1 | AI144: 1 | AJ144: 1 | AK144: 1 | AL144: 1 | AM144: 1 | AN144: 1 | AO144: 1 | AP144: 1 | AQ144: 1 | AR144: 1 | AS144: 1 | AT144: 1 | AU144: 1 | AV144: 1 | AW144: 1
G145: 23 | H145: 73 | I145: Tolima | J145: [persona] | K145: 1 | L145: 1 | M145: 1 | N145: 1 | O145: 1 | P145: 1 | Q145: 1 | R145: 1 | S145: 1 | T145: 1 | U145: 1 | V145: 1 | W145: 1 | X145: 1 | Y145: 1 | Z145: 1 | AA145: 1 | AB145: 1 | AC145: 1 | AD145: 1 | AE145: 1 | AF145: 1 | AG145: 1 | AH145: 1 | AI145: 1 | AJ145: 1 | AK145: 1 | AL145: 1 | AM145: 1 | AN145: 1 | AO145: 1 | AP145: 1 | AQ145: 1 | AR145: 1 | AS145: 1 | AT145: 1 | AU145: 1 | AV145: 1 | AW145: 1
G146: 24 | H146: 76 | I146: Valle del Cauca | J146: [persona] | K146: 1 | L146: 1 | M146: 1 | N146: 1 | O146: 1 | P146: 1 | Q146: 1 | R146: 1 | S146: 1 | T146: 1 | U146: 1 | V146: 1 | W146: 1 | X146: 1 | Y146: 1 | Z146: 1 | AA146: 1 | AB146: 1 | AC146: 1 | AD146: 1 | AE146: 1 | AF146: 1 | AG146: 1 | AH146: 1 | AI146: 1 | AJ146: 1 | AK146: 1 | AL146: 1 | AM146: 1 | AN146: 1 | AO146: 1 | AP146: 1 | AQ146: 1 | AR146: 1 | AS146: 1 | AT146: 1 | AU146: 1 | AV146: 1 | AW146: 1
G147: 25 | H147: 81 | I147: Arauca | J147: [persona] | K147: 1 | L147: 1 | M147: 1 | N147: 1 | O147: 1 | P147: 1 | Q147: 1 | R147: 1 | S147: 1 | T147: 1 | U147: 1 | V147: 1 | W147: 1 | X147: 1 | Y147: 1 | Z147: 1 | AA147: 1 | AB147: 1 | AC147: 1 | AD147: 1 | AE147: 1 | AF147: 1 | AG147: 1 | AH147: 1 | AI147: 1 | AJ147: 1 | AK147: 1 | AL147: 1 | AM147: 1 | AN147: 1 | AO147: 1 | AP147: 1 | AQ147: 1 | AR147: 1 | AS147: 1 | AT147: 1 | AU147: 1 | AV147: 1 | AW147: 1
G148: 26 | H148: 85 | I148: Casanare | J148: [persona] | K148: 1 | L148: 1 | M148: 1 | N148: 1 | O148: 1 | P148: 1 | Q148: 1 | R148: 1 | S148: 1 | T148: 1 | U148: 1 | V148: 1 | W148: 1 | X148: 1 | Y148: 1 | Z148: 1 | AA148: 1 | AB148: 1 | AC148: 1 | AD148: 1 | AE148: 1 | AF148: 1 | AG148: 1 | AH148: 1 | AI148: 1 | AJ148: 1 | AK148: 1 | AL148: 1 | AM148: 1 | AN148: 1 | AO148: 1 | AP148: 1 | AQ148: 1 | AR148: 1 | AS148: 1 | AT148: 1 | AU148: 1 | AV148: 1 | AW148: 1
G149: 27 | H149: 86 | I149: Putumayo | J149: [persona] | K149: 1 | L149: 1 | M149: 1 | N149: 1 | O149: 1 | P149: 1 | Q149: 1 | R149: 1 | S149: 1 | T149: 1 | U149: 1 | V149: 1 | W149: 1 | X149: 1 | Y149: 1 | Z149: 1 | AA149: 1 | AB149: 1 | AC149: 1 | AD149: 1 | AE149: 1 | AF149: 1 | AG149: 1 | AH149: 1 | AI149: 1 | AJ149: 1 | AK149: 1 | AL149: 1 | AM149: 1 | AN149: 1 | AO149: 1 | AP149: 1 | AQ149: 1 | AR149: 1 | AS149: 1 | AT149: 1 | AU149: 1 | AV149: 1 | AW149: 1
G150: 28 | H150: 88 | I150: San Andrés | J150: [persona] | K150: 1 | L150: 1 | M150: 1 | N150: 1 | O150: 1 | P150: 1 | Q150: 1 | R150: 1 | S150: 1 | T150: 1 | U150: 1 | V150: 1 | W150: 1 | X150: 1 | Y150: 1 | Z150: 1 | AA150: 1 | AB150: 1 | AC150: 1 | AD150: 1 | AE150: 1 | AF150: 1 | AG150: 1 | AH150: 1 | AI150: 1 | AJ150: 1 | AK150: 1 | AL150: 1 | AM150: 1 | AN150: 1 | AO150: 1 | AP150: 1 | AQ150: 1 | AR150: 1 | AS150: 1 | AT150: 1 | AU150: 1 | AV150: 1 | AW150: 1
G151: 29 | H151: 91 | I151: Amazonas | J151: [persona] | K151: 1 | L151: 1 | M151: 1 | N151: 1 | O151: 1 | P151: 1 | Q151: 1 | R151: 1 | S151: 1 | T151: 1 | U151: 1 | V151: 1 | W151: 1 | X151: 1 | Y151: 1 | Z151: 1 | AA151: 1 | AB151: 1 | AC151: 1 | AD151: 1 | AE151: 1 | AF151: 1 | AG151: 1 | AH151: 1 | AI151: 1 | AJ151: 1 | AK151: 1 | AL151: 1 | AM151: 1 | AN151: 1 | AO151: 1 | AP151: 1 | AQ151: 1 | AR151: 1 | AS151: 1 | AT151: 1 | AU151: 1 | AV151: 1 | AW151: 1
G152: 30 | H152: 94 | I152: Guainía | J152: [persona] | K152: 1 | L152: 1 | M152: 1 | N152: 1 | O152: 1 | P152: 1 | Q152: 1 | R152: 1 | S152: 1 | T152: 1 | U152: 1 | V152: 1 | W152: 1 | X152: 1 | Y152: 1 | Z152: 1 | AA152: 1 | AB152: 1 | AC152: 1 | AD152: 1 | AE152: 1 | AF152: 1 | AG152: 1 | AH152: 1 | AI152: 1 | AJ152: 1 | AK152: 1 | AL152: 1 | AM152: 1 | AN152: 1 | AO152: 1 | AP152: 1 | AQ152: 1 | AR152: 1 | AS152: 1 | AT152: 1 | AU152: 1 | AV152: 1 | AW152: 1
G153: 31 | H153: 95 | I153: Guaviare | J153: [persona] | K153: 1 | L153: 1 | M153: 1 | N153: 1 | O153: 1 | P153: 1 | Q153: 1 | R153: 1 | S153: 1 | T153: 1 | U153: 1 | V153: 1 | W153: 1 | X153: 1 | Y153: 1 | Z153: 1 | AA153: 1 | AB153: 1 | AC153: 1 | AD153: 1 | AE153: 1 | AF153: 1 | AG153: 1 | AH153: 1 | AI153: 1 | AJ153: 1 | AK153: 1 | AL153: 1 | AM153: 1 | AN153: 1 | AO153: 1 | AP153: 1 | AQ153: 1 | AR153: 1 | AS153: 1 | AT153: 1 | AU153: 1 | AV153: 1 | AW153: 1
G154: 32 | H154: 97 | I154: Vaupés | J154: [persona] | K154: 1 | L154: 1 | M154: 1 | N154: 1 | O154: 1 | P154: 1 | Q154: 1 | R154: 1 | S154: 1 | T154: 1 | U154: 1 | V154: 1 | W154: 1 | X154: 1 | Y154: 1 | Z154: 1 | AA154: 1 | AB154: 1 | AC154: 1 | AD154: 1 | AE154: 1 | AF154: 1 | AG154: 1 | AH154: 1 | AI154: 1 | AJ154: 1 | AK154: 1 | AL154: 1 | AM154: 1 | AN154: 1 | AO154: 1 | AP154: 1 | AQ154: 1 | AR154: 1 | AS154: 1 | AT154: 1 | AU154: 1 | AV154: 1 | AW154: 1
G155: 33 | H155: 99 | I155: Vichada | J155: [persona] | K155: 1 | L155: 1 | M155: 1 | N155: 1 | O155: 1 | P155: 1 | Q155: 1 | R155: 1 | S155: 1 | T155: 1 | U155: 1 | V155: 1 | W155: 1 | X155: 1 | Y155: 1 | Z155: 1 | AA155: 1 | AB155: 1 | AC155: 1 | AD155: 1 | AE155: 1 | AF155: 1 | AG155: 1 | AH155: 1 | AI155: 1 | AJ155: 1 | AK155: 1 | AL155: 1 | AM155: 1 | AN155: 1 | AO155: 1 | AP155: 1 | AQ155: 1 | AR155: 1 | AS155: 1 | AT155: 1 | AU155: 1 | AV155: 1 | AW155: 1
I157: Total | K157: =+SUM(K123:K155) -> 33 | L157: 33 | M157: 33 | N157: 33 | O157: 33 | P157: 33 | Q157: 33 | R157: 33 | S157: 33 | T157: 33 | U157: 33 | V157: 33 | W157: 33 | X157: 33 | Y157: 33 | Z157: 33 | AA157: 33 | AB157: 33 | AC157: 33 | AD157: 33 | AE157: 33 | AF157: 33 | AG157: 33 | AH157: 33 | AI157: 33 | AJ157: 33 | AK157: 33 | AL157: 33 | AM157: 33 | AN157: 33 | AO157: 33 | AP157: 33 | AQ157: 33 | AR157: 33 | AS157: 33 | AT157: 33 | AU157: 33 | AV157: 33 | AW157: 33
I159: Aux. tot pob | J159: [persona] | K159: =INDEX($K$157:$AW$157,MATCH(K$164,$K$122:$AW$122,0)) -> 33 | L159: 33 | M159: 33 | N159: 33 | O159: 33 | P159: 33 | Q159: 33 | R159: 33 | S159: 33 | T159: 33 | U159: 33 | V159: 33 | W159: 33 | X159: 33 | Y159: 33 | Z159: 33 | AA159: 33 | AB159: 33 | AC159: 33 | AD159: 33 | AE159: 33 | AF159: 33 | AG159: 33 | AH159: 33 | AI159: 33 | AJ159: 33 | AK159: 33 | AL159: 33 | AM159: 33 | AN159: 33 | AO159: 33 | AP159: 33 | AQ159: =INDEX($K$157:$AW$157,MATCH(AQ$164,$K$122:$AW$122,0)) -> 33 | AR159: 33 | AS159: 33 | AT159: 33 | AU159: 33 | AV159: 33 | AW159: 33 | AX159: 33 | AY159: 33 | AZ159: 33 | BA159: 33 | BB159: 33 | BC159: 33 | BD159: 33 | BE159: 33 | BF159: 33 | BG159: 33 | BH159: 33 | BI159: 33 | BJ159: 33 | BK159: 33 | BL159: 33 | BM159: 33 | BN159: 33 | BO159: 33 | BP159: 33 | BQ159: 33 | BR159: 33 | BS159: 33 | BT159: 33 | BU159: 33 | BV159: 33 | BW159: =INDEX($K$157:$AW$157,MATCH(BW$164,$K$122:$AW$122,0)) -> 33 | BX159: 33 | BY159: 33 | BZ159: 33 | CA159: 33 | CB159: 33 | CC159: 33 | CD159: 33 | CE159: 33 | CF159: 33 | CG159: 33 | CH159: 33 | CI159: 33 | CJ159: 33 | CK159: 33 | CL159: 33 | CM159: 33 | CN159: 33 | CO159: 33 | CP159: 33 | CQ159: 33 | CR159: 33 | CS159: 33 | CT159: 33 | CU159: 33 | CV159: 33
F161: Proporción por departamento
K163: =+INDEX(dda.l.emp,K$6) -> Comcel | Q163: =+INDEX(dda.l.emp,Q$6) -> Movistar | W163: =+INDEX(dda.l.emp,W$6) -> Tigo | AC163: =+INDEX(dda.l.emp,AC$6) -> Uff | AI163: =+INDEX(dda.l.emp,AI$6) -> EPM | AO163: =+INDEX(dda.l.emp,AO$6) -> Éxito | AU163: =+INDEX(dda.l.emp,AU$6) -> Avantel | BA163: =+INDEX(dda.l.emp,BA$6) -> Virgin | BG163: =+INDEX(dda.l.emp,BG$6) -> ETB | BM163: =+INDEX(dda.l.emp,BM$6) -> EE | BS163: =+INDEX(dda.l.emp,BS$6) -> libre | BY163: =+INDEX(dda.l.emp,BY$6) -> libre | CE163: =+INDEX(dda.l.emp,CE$6) -> libre | CK163: =+INDEX(dda.l.emp,CK$6) -> libre | CQ163: =+INDEX(dda.l.emp,CQ$6) -> libre
G164: ID | H164: DP | I164: Departamento | K164: =+INDEX(dda.l.año.num,K$5) -> 2015 | L164: 2016 | M164: 2017 | N164: 2018 | O164: 2019 | P164: 2020 | Q164: 2015 | R164: 2016 | S164: 2017 | T164: 2018 | U164: 2019 | V164: 2020 | W164: 2015 | X164: 2016 | Y164: 2017 | Z164: 2018 | AA164: 2019 | AB164: 2020 | AC164: 2015 | AD164: 2016 | AE164: 2017 | AF164: 2018 | AG164: 2019 | AH164: 2020 | AI164: 2015 | AJ164: 2016 | AK164: 2017 | AL164: 2018 | AM164: 2019 | AN164: 2020 | AO164: 2015 | AP164: 2016 | AQ164: =+INDEX(dda.l.año.num,AQ$5) -> 2017 | AR164: 2018 | AS164: 2019 | AT164: 2020 | AU164: 2015 | AV164: 2016 | AW164: 2017 | AX164: 2018 | AY164: 2019 | AZ164: 2020 | BA164: 2015 | BB164: 2016 | BC164: 2017 | BD164: 2018 | BE164: 2019 | BF164: 2020 | BG164: 2015 | BH164: 2016 | BI164: 2017 | BJ164: 2018 | BK164: 2019 | BL164: 2020 | BM164: 2015 | BN164: 2016 | BO164: 2017 | BP164: 2018 | BQ164: 2019 | BR164: 2020 | BS164: 2015 | BT164: 2016 | BU164: 2017 | BV164: 2018 | BW164: =+INDEX(dda.l.año.num,BW$5) -> 2019 | BX164: 2020 | BY164: 2015 | BZ164: 2016 | CA164: 2017 | CB164: 2018 | CC164: 2019 | CD164: 2020 | CE164: 2015 | CF164: 2016 | CG164: 2017 | CH164: 2018 | CI164: 2019 | CJ164: 2020 | CK164: 2015 | CL164: 2016 | CM164: 2017 | CN164: 2018 | CO164: 2019 | CP164: 2020 | CQ164: 2015 | CR164: 2016 | CS164: 2017 | CT164: 2018 | CU164: 2019 | CV164: 2020
G165: 1 | H165: 05 | I165: =+INDEX(dda.l.dpto,G165) -> Antioquia | J165: [%] | K165: =INDEX($K$123:$AW$155,$G165,MATCH(K$164,$K$122:$AW$122,0))/K$159 -> 0.0303030303 | L165: 0.0303030303 | M165: 0.0303030303 | N165: 0.0303030303 | O165: 0.0303030303 | P165: 0.0303030303 | Q165: =+K165 -> 0.0303030303 | R165: =+L165 -> 0.0303030303 | S165: =+M165 -> 0.0303030303 | T165: =+N165 -> 0.0303030303 | U165: =+O165 -> 0.0303030303 | V165: =+P165 -> 0.0303030303 | W165: =+Q165 -> 0.0303030303 | X165: =+R165 -> 0.0303030303 | Y165: =+S165 -> 0.0303030303 | Z165: =+T165 -> 0.0303030303 | AA165: =+U165 -> 0.0303030303 | AB165: =+V165 -> 0.0303030303 | AC165: =+W165 -> 0.0303030303 | AD165: =+X165 -> 0.0303030303 | AE165: =+Y165 -> 0.0303030303 | AF165: =+Z165 -> 0.0303030303 | AG165: =+AA165 -> 0.0303030303 | AH165: =+AB165 -> 0.0303030303 | AI165: =+AC165 -> 0.0303030303 | AJ165: =+AD165 -> 0.0303030303 | AK165: =+AE165 -> 0.0303030303 | AL165: =+AF165 -> 0.0303030303 | AM165: =+AG165 -> 0.0303030303 | AN165: =+AH165 -> 0.0303030303 | AO165: =+AI165 -> 0.0303030303 | AP165: =+AJ165 -> 0.0303030303 | AQ165: =+AK165 -> 0.0303030303 | AR165: =+AL165 -> 0.0303030303 | AS165: =+AM165 -> 0.0303030303 | AT165: =+AN165 -> 0.0303030303 | AU165: =+AO165 -> 0.0303030303 | AV165: =+AP165 -> 0.0303030303 | AW165: =+AQ165 -> 0.0303030303 | AX165: =+AR165 -> 0.0303030303 | AY165: =+AS165 -> 0.0303030303 | AZ165: =+AT165 -> 0.0303030303 | BA165: =+AU165 -> 0.0303030303 | BB165: =+AV165 -> 0.0303030303 | BC165: =+AW165 -> 0.0303030303 | BD165: =+AX165 -> 0.0303030303 | BE165: =+AY165 -> 0.0303030303 | BF165: =+AZ165 -> 0.0303030303 | BG165: =+BA165 -> 0.0303030303 | BH165: =+BB165 -> 0.0303030303 | BI165: =+BC165 -> 0.0303030303 | BJ165: =+BD165 -> 0.0303030303 | BK165: =+BE165 -> 0.0303030303 | BL165: =+BF165 -> 0.0303030303 | BM165: =+BG165 -> 0.0303030303 | BN165: =+BH165 -> 0.0303030303 | BO165: =+BI165 -> 0.0303030303 | BP165: =+BJ165 -> 0.0303030303 | BQ165: =+BK165 -> 0.0303030303 | BR165: =+BL165 -> 0.0303030303 | BS165: =+BM165 -> 0.0303030303 | BT165: =+BN165 -> 0.0303030303 | BU165: =+BO165 -> 0.0303030303 | BV165: =+BP165 -> 0.0303030303 | BW165: =+BQ165 -> 0.0303030303 | BX165: =+BR165 -> 0.0303030303 | BY165: =+BS165 -> 0.0303030303 | BZ165: =+BT165 -> 0.0303030303 | CA165: =+BU165 -> 0.0303030303 | CB165: =+BV165 -> 0.0303030303 | CC165: =+BW165 -> 0.0303030303 | CD165: =+BX165 -> 0.0303030303 | CE165: =+BY165 -> 0.0303030303 | CF165: =+BZ165 -> 0.0303030303 | CG165: =+CA165 -> 0.0303030303 | CH165: =+CB165 -> 0.0303030303 | CI165: =+CC165 -> 0.0303030303 | CJ165: =+CD165 -> 0.0303030303 | CK165: =+CE165 -> 0.0303030303 | CL165: =+CF165 -> 0.0303030303 | CM165: =+CG165 -> 0.0303030303 | CN165: =+CH165 -> 0.0303030303 | CO165: =+CI165 -> 0.0303030303 | CP165: =+CJ165 -> 0.0303030303 | CQ165: =+CK165 -> 0.0303030303 | CR165: =+CL165 -> 0.0303030303 | CS165: =+CM165 -> 0.0303030303 | CT165: =+CN165 -> 0.0303030303 | CU165: =+CO165 -> 0.0303030303 | CV165: =+CP165 -> 0.0303030303
G166: =+G165+1 -> 2 | H166: 08 | I166: Atlántico | J166: [%] | K166: 0.0303030303 | L166: 0.0303030303 | M166: 0.0303030303 | N166: 0.0303030303 | O166: 0.0303030303 | P166: 0.0303030303 | Q166: 0.0303030303 | R166: 0.0303030303 | S166: 0.0303030303 | T166: 0.0303030303 | U166: 0.0303030303 | V166: 0.0303030303 | W166: 0.0303030303 | X166: 0.0303030303 | Y166: 0.0303030303 | Z166: 0.0303030303 | AA166: 0.0303030303 | AB166: 0.0303030303 | AC166: 0.0303030303 | AD166: 0.0303030303 | AE166: 0.0303030303 | AF166: 0.0303030303 | AG166: 0.0303030303 | AH166: 0.0303030303 | AI166: 0.0303030303 | AJ166: 0.0303030303 | AK166: 0.0303030303 | AL166: 0.0303030303 | AM166: 0.0303030303 | AN166: 0.0303030303 | AO166: 0.0303030303 | AP166: 0.0303030303 | AQ166: 0.0303030303 | AR166: 0.0303030303 | AS166: 0.0303030303 | AT166: 0.0303030303 | AU166: 0.0303030303 | AV166: 0.0303030303 | AW166: 0.0303030303 | AX166: 0.0303030303 | AY166: 0.0303030303 | AZ166: 0.0303030303 | BA166: 0.0303030303 | BB166: 0.0303030303 | BC166: 0.0303030303 | BD166: 0.0303030303 | BE166: 0.0303030303 | BF166: 0.0303030303 | BG166: 0.0303030303 | BH166: 0.0303030303 | BI166: 0.0303030303 | BJ166: 0.0303030303 | BK166: 0.0303030303 | BL166: 0.0303030303 | BM166: 0.0303030303 | BN166: 0.0303030303 | BO166: 0.0303030303 | BP166: 0.0303030303 | BQ166: 0.0303030303 | BR166: 0.0303030303 | BS166: 0.0303030303 | BT166: 0.0303030303 | BU166: 0.0303030303 | BV166: 0.0303030303 | BW166: 0.0303030303 | BX166: 0.0303030303 | BY166: 0.0303030303 | BZ166: 0.0303030303 | CA166: 0.0303030303 | CB166: 0.0303030303 | CC166: 0.0303030303 | CD166: 0.0303030303 | CE166: 0.0303030303 | CF166: 0.0303030303 | CG166: 0.0303030303 | CH166: 0.0303030303 | CI166: 0.0303030303 | CJ166: 0.0303030303 | CK166: 0.0303030303 | CL166: 0.0303030303 | CM166: 0.0303030303 | CN166: 0.0303030303 | CO166: 0.0303030303 | CP166: 0.0303030303 | CQ166: 0.0303030303 | CR166: 0.0303030303 | CS166: 0.0303030303 | CT166: 0.0303030303 | CU166: 0.0303030303 | CV166: 0.0303030303
G167: 3 | H167: 11 | I167: Bogotá | J167: [%] | K167: 0.0303030303 | L167: 0.0303030303 | M167: 0.0303030303 | N167: 0.0303030303 | O167: 0.0303030303 | P167: 0.0303030303 | Q167: 0.0303030303 | R167: 0.0303030303 | S167: 0.0303030303 | T167: 0.0303030303 | U167: 0.0303030303 | V167: 0.0303030303 | W167: 0.0303030303 | X167: 0.0303030303 | Y167: 0.0303030303 | Z167: 0.0303030303 | AA167: 0.0303030303 | AB167: 0.0303030303 | AC167: 0.0303030303 | AD167: 0.0303030303 | AE167: 0.0303030303 | AF167: 0.0303030303 | AG167: 0.0303030303 | AH167: 0.0303030303 | AI167: 0.0303030303 | AJ167: 0.0303030303 | AK167: 0.0303030303 | AL167: 0.0303030303 | AM167: 0.0303030303 | AN167: 0.0303030303 | AO167: 0.0303030303 | AP167: 0.0303030303 | AQ167: 0.0303030303 | AR167: 0.0303030303 | AS167: 0.0303030303 | AT167: 0.0303030303 | AU167: 0.0303030303 | AV167: 0.0303030303 | AW167: 0.0303030303 | AX167: 0.0303030303 | AY167: 0.0303030303 | AZ167: 0.0303030303 | BA167: 0.0303030303 | BB167: 0.0303030303 | BC167: 0.0303030303 | BD167: 0.0303030303 | BE167: 0.0303030303 | BF167: 0.0303030303 | BG167: 0.0303030303 | BH167: 0.0303030303 | BI167: 0.0303030303 | BJ167: 0.0303030303 | BK167: 0.0303030303 | BL167: 0.0303030303 | BM167: 0.0303030303 | BN167: 0.0303030303 | BO167: 0.0303030303 | BP167: 0.0303030303 | BQ167: 0.0303030303 | BR167: 0.0303030303 | BS167: 0.0303030303 | BT167: 0.0303030303 | BU167: 0.0303030303 | BV167: 0.0303030303 | BW167: 0.0303030303 | BX167: 0.0303030303 | BY167: 0.0303030303 | BZ167: 0.0303030303 | CA167: 0.0303030303 | CB167: 0.0303030303 | CC167: 0.0303030303 | CD167: 0.0303030303 | CE167: 0.0303030303 | CF167: 0.0303030303 | CG167: 0.0303030303 | CH167: 0.0303030303 | CI167: 0.0303030303 | CJ167: 0.0303030303 | CK167: 0.0303030303 | CL167: 0.0303030303 | CM167: 0.0303030303 | CN167: 0.0303030303 | CO167: 0.0303030303 | CP167: 0.0303030303 | CQ167: 0.0303030303 | CR167: 0.0303030303 | CS167: 0.0303030303 | CT167: 0.0303030303 | CU167: 0.0303030303 | CV167: 0.0303030303
G168: 4 | H168: 13 | I168: Bolívar | J168: [%] | K168: 0.0303030303 | L168: 0.0303030303 | M168: 0.0303030303 | N168: 0.0303030303 | O168: 0.0303030303 | P168: 0.0303030303 | Q168: 0.0303030303 | R168: 0.0303030303 | S168: 0.0303030303 | T168: 0.0303030303 | U168: 0.0303030303 | V168: 0.0303030303 | W168: 0.0303030303 | X168: 0.0303030303 | Y168: 0.0303030303 | Z168: 0.0303030303 | AA168: 0.0303030303 | AB168: 0.0303030303 | AC168: 0.0303030303 | AD168: 0.0303030303 | AE168: 0.0303030303 | AF168: 0.0303030303 | AG168: 0.0303030303 | AH168: 0.0303030303 | AI168: 0.0303030303 | AJ168: 0.0303030303 | AK168: 0.0303030303 | AL168: 0.0303030303 | AM168: 0.0303030303 | AN168: 0.0303030303 | AO168: 0.0303030303 | AP168: 0.0303030303 | AQ168: 0.0303030303 | AR168: 0.0303030303 | AS168: 0.0303030303 | AT168: 0.0303030303 | AU168: 0.0303030303 | AV168: 0.0303030303 | AW168: 0.0303030303 | AX168: 0.0303030303 | AY168: 0.0303030303 | AZ168: 0.0303030303 | BA168: 0.0303030303 | BB168: 0.0303030303 | BC168: 0.0303030303 | BD168: 0.0303030303 | BE168: 0.0303030303 | BF168: 0.0303030303 | BG168: 0.0303030303 | BH168: 0.0303030303 | BI168: 0.0303030303 | BJ168: 0.0303030303 | BK168: 0.0303030303 | BL168: 0.0303030303 | BM168: 0.0303030303 | BN168: 0.0303030303 | BO168: 0.0303030303 | BP168: 0.0303030303 | BQ168: 0.0303030303 | BR168: 0.0303030303 | BS168: 0.0303030303 | BT168: 0.0303030303 | BU168: 0.0303030303 | BV168: 0.0303030303 | BW168: 0.0303030303 | BX168: 0.0303030303 | BY168: 0.0303030303 | BZ168: 0.0303030303 | CA168: 0.0303030303 | CB168: 0.0303030303 | CC168: 0.0303030303 | CD168: 0.0303030303 | CE168: 0.0303030303 | CF168: 0.0303030303 | CG168: 0.0303030303 | CH168: 0.0303030303 | CI168: 0.0303030303 | CJ168: 0.0303030303 | CK168: 0.0303030303 | CL168: 0.0303030303 | CM168: 0.0303030303 | CN168: 0.0303030303 | CO168: 0.0303030303 | CP168: 0.0303030303 | CQ168: 0.0303030303 | CR168: 0.0303030303 | CS168: 0.0303030303 | CT168: 0.0303030303 | CU168: 0.0303030303 | CV168: 0.0303030303
G169: 5 | H169: 15 | I169: Boyacá | J169: [%] | K169: 0.0303030303 | L169: 0.0303030303 | M169: 0.0303030303 | N169: 0.0303030303 | O169: 0.0303030303 | P169: 0.0303030303 | Q169: 0.0303030303 | R169: 0.0303030303 | S169: 0.0303030303 | T169: 0.0303030303 | U169: 0.0303030303 | V169: 0.0303030303 | W169: 0.0303030303 | X169: 0.0303030303 | Y169: 0.0303030303 | Z169: 0.0303030303 | AA169: 0.0303030303 | AB169: 0.0303030303 | AC169: 0.0303030303 | AD169: 0.0303030303 | AE169: 0.0303030303 | AF169: 0.0303030303 | AG169: 0.0303030303 | AH169: 0.0303030303 | AI169: 0.0303030303 | AJ169: 0.0303030303 | AK169: 0.0303030303 | AL169: 0.0303030303 | AM169: 0.0303030303 | AN169: 0.0303030303 | AO169: 0.0303030303 | AP169: 0.0303030303 | AQ169: 0.0303030303 | AR169: 0.0303030303 | AS169: 0.0303030303 | AT169: 0.0303030303 | AU169: 0.0303030303 | AV169: 0.0303030303 | AW169: 0.0303030303 | AX169: 0.0303030303 | AY169: 0.0303030303 | AZ169: 0.0303030303 | BA169: 0.0303030303 | BB169: 0.0303030303 | BC169: 0.0303030303 | BD169: 0.0303030303 | BE169: 0.0303030303 | BF169: 0.0303030303 | BG169: 0.0303030303 | BH169: 0.0303030303 | BI169: 0.0303030303 | BJ169: 0.0303030303 | BK169: 0.0303030303 | BL169: 0.0303030303 | BM169: 0.0303030303 | BN169: 0.0303030303 | BO169: 0.0303030303 | BP169: 0.0303030303 | BQ169: 0.0303030303 | BR169: 0.0303030303 | BS169: 0.0303030303 | BT169: 0.0303030303 | BU169: 0.0303030303 | BV169: 0.0303030303 | BW169: 0.0303030303 | BX169: 0.0303030303 | BY169: 0.0303030303 | BZ169: 0.0303030303 | CA169: 0.0303030303 | CB169: 0.0303030303 | CC169: 0.0303030303 | CD169: 0.0303030303 | CE169: 0.0303030303 | CF169: 0.0303030303 | CG169: 0.0303030303 | CH169: 0.0303030303 | CI169: 0.0303030303 | CJ169: 0.0303030303 | CK169: 0.0303030303 | CL169: 0.0303030303 | CM169: 0.0303030303 | CN169: 0.0303030303 | CO169: 0.0303030303 | CP169: 0.0303030303 | CQ169: 0.0303030303 | CR169: 0.0303030303 | CS169: 0.0303030303 | CT169: 0.0303030303 | CU169: 0.0303030303 | CV169: 0.0303030303
G170: 6 | H170: 17 | I170: Caldas | J170: [%] | K170: 0.0303030303 | L170: 0.0303030303 | M170: 0.0303030303 | N170: 0.0303030303 | O170: 0.0303030303 | P170: 0.0303030303 | Q170: 0.0303030303 | R170: 0.0303030303 | S170: 0.0303030303 | T170: 0.0303030303 | U170: 0.0303030303 | V170: 0.0303030303 | W170: 0.0303030303 | X170: 0.0303030303 | Y170: 0.0303030303 | Z170: 0.0303030303 | AA170: 0.0303030303 | AB170: 0.0303030303 | AC170: 0.0303030303 | AD170: 0.0303030303 | AE170: 0.0303030303 | AF170: 0.0303030303 | AG170: 0.0303030303 | AH170: 0.0303030303 | AI170: 0.0303030303 | AJ170: 0.0303030303 | AK170: 0.0303030303 | AL170: 0.0303030303 | AM170: 0.0303030303 | AN170: 0.0303030303 | AO170: 0.0303030303 | AP170: 0.0303030303 | AQ170: 0.0303030303 | AR170: 0.0303030303 | AS170: 0.0303030303 | AT170: 0.0303030303 | AU170: 0.0303030303 | AV170: 0.0303030303 | AW170: 0.0303030303 | AX170: 0.0303030303 | AY170: 0.0303030303 | AZ170: 0.0303030303 | BA170: 0.0303030303 | BB170: 0.0303030303 | BC170: 0.0303030303 | BD170: 0.0303030303 | BE170: 0.0303030303 | BF170: 0.0303030303 | BG170: 0.0303030303 | BH170: 0.0303030303 | BI170: 0.0303030303 | BJ170: 0.0303030303 | BK170: 0.0303030303 | BL170: 0.0303030303 | BM170: 0.0303030303 | BN170: 0.0303030303 | BO170: 0.0303030303 | BP170: 0.0303030303 | BQ170: 0.0303030303 | BR170: 0.0303030303 | BS170: 0.0303030303 | BT170: 0.0303030303 | BU170: 0.0303030303 | BV170: 0.0303030303 | BW170: 0.0303030303 | BX170: 0.0303030303 | BY170: 0.0303030303 | BZ170: 0.0303030303 | CA170: 0.0303030303 | CB170: 0.0303030303 | CC170: 0.0303030303 | CD170: 0.0303030303 | CE170: 0.0303030303 | CF170: 0.0303030303 | CG170: 0.0303030303 | CH170: 0.0303030303 | CI170: 0.0303030303 | CJ170: 0.0303030303 | CK170: 0.0303030303 | CL170: 0.0303030303 | CM170: 0.0303030303 | CN170: 0.0303030303 | CO170: 0.0303030303 | CP170: 0.0303030303 | CQ170: 0.0303030303 | CR170: 0.0303030303 | CS170: 0.0303030303 | CT170: 0.0303030303 | CU170: 0.0303030303 | CV170: 0.0303030303
G171: 7 | H171: 18 | I171: Caquetá | J171: [%] | K171: 0.0303030303 | L171: 0.0303030303 | M171: 0.0303030303 | N171: 0.0303030303 | O171: 0.0303030303 | P171: 0.0303030303 | Q171: 0.0303030303 | R171: 0.0303030303 | S171: 0.0303030303 | T171: 0.0303030303 | U171: 0.0303030303 | V171: 0.0303030303 | W171: 0.0303030303 | X171: 0.0303030303 | Y171: 0.0303030303 | Z171: 0.0303030303 | AA171: 0.0303030303 | AB171: 0.0303030303 | AC171: 0.0303030303 | AD171: 0.0303030303 | AE171: 0.0303030303 | AF171: 0.0303030303 | AG171: 0.0303030303 | AH171: 0.0303030303 | AI171: 0.0303030303 | AJ171: 0.0303030303 | AK171: 0.0303030303 | AL171: 0.0303030303 | AM171: 0.0303030303 | AN171: 0.0303030303 | AO171: 0.0303030303 | AP171: 0.0303030303 | AQ171: 0.0303030303 | AR171: 0.0303030303 | AS171: 0.0303030303 | AT171: 0.0303030303 | AU171: 0.0303030303 | AV171: 0.0303030303 | AW171: 0.0303030303 | AX171: 0.0303030303 | AY171: 0.0303030303 | AZ171: 0.0303030303 | BA171: 0.0303030303 | BB171: 0.0303030303 | BC171: 0.0303030303 | BD171: 0.0303030303 | BE171: 0.0303030303 | BF171: 0.0303030303 | BG171: 0.0303030303 | BH171: 0.0303030303 | BI171: 0.0303030303 | BJ171: 0.0303030303 | BK171: 0.0303030303 | BL171: 0.0303030303 | BM171: 0.0303030303 | BN171: 0.0303030303 | BO171: 0.0303030303 | BP171: 0.0303030303 | BQ171: 0.0303030303 | BR171: 0.0303030303 | BS171: 0.0303030303 | BT171: 0.0303030303 | BU171: 0.0303030303 | BV171: 0.0303030303 | BW171: 0.0303030303 | BX171: 0.0303030303 | BY171: 0.0303030303 | BZ171: 0.0303030303 | CA171: 0.0303030303 | CB171: 0.0303030303 | CC171: 0.0303030303 | CD171: 0.0303030303 | CE171: 0.0303030303 | CF171: 0.0303030303 | CG171: 0.0303030303 | CH171: 0.0303030303 | CI171: 0.0303030303 | CJ171: 0.0303030303 | CK171: 0.0303030303 | CL171: 0.0303030303 | CM171: 0.0303030303 | CN171: 0.0303030303 | CO171: 0.0303030303 | CP171: 0.0303030303 | CQ171: 0.0303030303 | CR171: 0.0303030303 | CS171: 0.0303030303 | CT171: 0.0303030303 | CU171: 0.0303030303 | CV171: 0.0303030303
G172: 8 | H172: 19 | I172: Cauca | J172: [%] | K172: 0.0303030303 | L172: 0.0303030303 | M172: 0.0303030303 | N172: 0.0303030303 | O172: 0.0303030303 | P172: 0.0303030303 | Q172: 0.0303030303 | R172: 0.0303030303 | S172: 0.0303030303 | T172: 0.0303030303 | U172: 0.0303030303 | V172: 0.0303030303 | W172: 0.0303030303 | X172: 0.0303030303 | Y172: 0.0303030303 | Z172: 0.0303030303 | AA172: 0.0303030303 | AB172: 0.0303030303 | AC172: 0.0303030303 | AD172: 0.0303030303 | AE172: 0.0303030303 | AF172: 0.0303030303 | AG172: 0.0303030303 | AH172: 0.0303030303 | AI172: 0.0303030303 | AJ172: 0.0303030303 | AK172: 0.0303030303 | AL172: 0.0303030303 | AM172: 0.0303030303 | AN172: 0.0303030303 | AO172: 0.0303030303 | AP172: 0.0303030303 | AQ172: 0.0303030303 | AR172: 0.0303030303 | AS172: 0.0303030303 | AT172: 0.0303030303 | AU172: 0.0303030303 | AV172: 0.0303030303 | AW172: 0.0303030303 | AX172: 0.0303030303 | AY172: 0.0303030303 | AZ172: 0.0303030303 | BA172: 0.0303030303 | BB172: 0.0303030303 | BC172: 0.0303030303 | BD172: 0.0303030303 | BE172: 0.0303030303 | BF172: 0.0303030303 | BG172: 0.0303030303 | BH172: 0.0303030303 | BI172: 0.0303030303 | BJ172: 0.0303030303 | BK172: 0.0303030303 | BL172: 0.0303030303 | BM172: 0.0303030303 | BN172: 0.0303030303 | BO172: 0.0303030303 | BP172: 0.0303030303 | BQ172: 0.0303030303 | BR172: 0.0303030303 | BS172: 0.0303030303 | BT172: 0.0303030303 | BU172: 0.0303030303 | BV172: 0.0303030303 | BW172: 0.0303030303 | BX172: 0.0303030303 | BY172: 0.0303030303 | BZ172: 0.0303030303 | CA172: 0.0303030303 | CB172: 0.0303030303 | CC172: 0.0303030303 | CD172: 0.0303030303 | CE172: 0.0303030303 | CF172: 0.0303030303 | CG172: 0.0303030303 | CH172: 0.0303030303 | CI172: 0.0303030303 | CJ172: 0.0303030303 | CK172: 0.0303030303 | CL172: 0.0303030303 | CM172: 0.0303030303 | CN172: 0.0303030303 | CO172: 0.0303030303 | CP172: 0.0303030303 | CQ172: 0.0303030303 | CR172: 0.0303030303 | CS172: 0.0303030303 | CT172: 0.0303030303 | CU172: 0.0303030303 | CV172: 0.0303030303
G173: 9 | H173: 20 | I173: Cesar | J173: [%] | K173: 0.0303030303 | L173: 0.0303030303 | M173: 0.0303030303 | N173: 0.0303030303 | O173: 0.0303030303 | P173: 0.0303030303 | Q173: 0.0303030303 | R173: 0.0303030303 | S173: 0.0303030303 | T173: 0.0303030303 | U173: 0.0303030303 | V173: 0.0303030303 | W173: 0.0303030303 | X173: 0.0303030303 | Y173: 0.0303030303 | Z173: 0.0303030303 | AA173: 0.0303030303 | AB173: 0.0303030303 | AC173: 0.0303030303 | AD173: 0.0303030303 | AE173: 0.0303030303 | AF173: 0.0303030303 | AG173: 0.0303030303 | AH173: 0.0303030303 | AI173: 0.0303030303 | AJ173: 0.0303030303 | AK173: 0.0303030303 | AL173: 0.0303030303 | AM173: 0.0303030303 | AN173: 0.0303030303 | AO173: 0.0303030303 | AP173: 0.0303030303 | AQ173: 0.0303030303 | AR173: 0.0303030303 | AS173: 0.0303030303 | AT173: 0.0303030303 | AU173: 0.0303030303 | AV173: 0.0303030303 | AW173: 0.0303030303 | AX173: 0.0303030303 | AY173: 0.0303030303 | AZ173: 0.0303030303 | BA173: 0.0303030303 | BB173: 0.0303030303 | BC173: 0.0303030303 | BD173: 0.0303030303 | BE173: 0.0303030303 | BF173: 0.0303030303 | BG173: 0.0303030303 | BH173: 0.0303030303 | BI173: 0.0303030303 | BJ173: 0.0303030303 | BK173: 0.0303030303 | BL173: 0.0303030303 | BM173: 0.0303030303 | BN173: 0.0303030303 | BO173: 0.0303030303 | BP173: 0.0303030303 | BQ173: 0.0303030303 | BR173: 0.0303030303 | BS173: 0.0303030303 | BT173: 0.0303030303 | BU173: 0.0303030303 | BV173: 0.0303030303 | BW173: 0.0303030303 | BX173: 0.0303030303 | BY173: 0.0303030303 | BZ173: 0.0303030303 | CA173: 0.0303030303 | CB173: 0.0303030303 | CC173: 0.0303030303 | CD173: 0.0303030303 | CE173: 0.0303030303 | CF173: 0.0303030303 | CG173: 0.0303030303 | CH173: 0.0303030303 | CI173: 0.0303030303 | CJ173: 0.0303030303 | CK173: 0.0303030303 | CL173: 0.0303030303 | CM173: 0.0303030303 | CN173: 0.0303030303 | CO173: 0.0303030303 | CP173: 0.0303030303 | CQ173: 0.0303030303 | CR173: 0.0303030303 | CS173: 0.0303030303 | CT173: 0.0303030303 | CU173: 0.0303030303 | CV173: 0.0303030303
G174: 10 | H174: 23 | I174: Córdoba | J174: [%] | K174: 0.0303030303 | L174: 0.0303030303 | M174: 0.0303030303 | N174: 0.0303030303 | O174: 0.0303030303 | P174: 0.0303030303 | Q174: 0.0303030303 | R174: 0.0303030303 | S174: 0.0303030303 | T174: 0.0303030303 | U174: 0.0303030303 | V174: 0.0303030303 | W174: 0.0303030303 | X174: 0.0303030303 | Y174: 0.0303030303 | Z174: 0.0303030303 | AA174: 0.0303030303 | AB174: 0.0303030303 | AC174: 0.0303030303 | AD174: 0.0303030303 | AE174: 0.0303030303 | AF174: 0.0303030303 | AG174: 0.0303030303 | AH174: 0.0303030303 | AI174: 0.0303030303 | AJ174: 0.0303030303 | AK174: 0.0303030303 | AL174: 0.0303030303 | AM174: 0.0303030303 | AN174: 0.0303030303 | AO174: 0.0303030303 | AP174: 0.0303030303 | AQ174: 0.0303030303 | AR174: 0.0303030303 | AS174: 0.0303030303 | AT174: 0.0303030303 | AU174: 0.0303030303 | AV174: 0.0303030303 | AW174: 0.0303030303 | AX174: 0.0303030303 | AY174: 0.0303030303 | AZ174: 0.0303030303 | BA174: 0.0303030303 | BB174: 0.0303030303 | BC174: 0.0303030303 | BD174: 0.0303030303 | BE174: 0.0303030303 | BF174: 0.0303030303 | BG174: 0.0303030303 | BH174: 0.0303030303 | BI174: 0.0303030303 | BJ174: 0.0303030303 | BK174: 0.0303030303 | BL174: 0.0303030303 | BM174: 0.0303030303 | BN174: 0.0303030303 | BO174: 0.0303030303 | BP174: 0.0303030303 | BQ174: 0.0303030303 | BR174: 0.0303030303 | BS174: 0.0303030303 | BT174: 0.0303030303 | BU174: 0.0303030303 | BV174: 0.0303030303 | BW174: 0.0303030303 | BX174: 0.0303030303 | BY174: 0.0303030303 | BZ174: 0.0303030303 | CA174: 0.0303030303 | CB174: 0.0303030303 | CC174: 0.0303030303 | CD174: 0.0303030303 | CE174: 0.0303030303 | CF174: 0.0303030303 | CG174: 0.0303030303 | CH174: 0.0303030303 | CI174: 0.0303030303 | CJ174: 0.0303030303 | CK174: 0.0303030303 | CL174: 0.0303030303 | CM174: 0.0303030303 | CN174: 0.0303030303 | CO174: 0.0303030303 | CP174: 0.0303030303 | CQ174: 0.0303030303 | CR174: 0.0303030303 | CS174: 0.0303030303 | CT174: 0.0303030303 | CU174: 0.0303030303 | CV174: 0.0303030303
G175: 11 | H175: 25 | I175: Cundinamarca | J175: [%] | K175: =INDEX($K$123:$AW$155,$G175,MATCH(K$164,$K$122:$AW$122,0))/K$159 -> 0.0303030303 | L175: 0.0303030303 | M175: 0.0303030303 | N175: 0.0303030303 | O175: 0.0303030303 | P175: 0.0303030303 | Q175: 0.0303030303 | R175: 0.0303030303 | S175: 0.0303030303 | T175: 0.0303030303 | U175: 0.0303030303 | V175: 0.0303030303 | W175: 0.0303030303 | X175: 0.0303030303 | Y175: 0.0303030303 | Z175: 0.0303030303 | AA175: 0.0303030303 | AB175: 0.0303030303 | AC175: 0.0303030303 | AD175: 0.0303030303 | AE175: 0.0303030303 | AF175: 0.0303030303 | AG175: 0.0303030303 | AH175: 0.0303030303 | AI175: 0.0303030303 | AJ175: 0.0303030303 | AK175: 0.0303030303 | AL175: 0.0303030303 | AM175: 0.0303030303 | AN175: 0.0303030303 | AO175: 0.0303030303 | AP175: 0.0303030303 | AQ175: 0.0303030303 | AR175: 0.0303030303 | AS175: 0.0303030303 | AT175: 0.0303030303 | AU175: 0.0303030303 | AV175: 0.0303030303 | AW175: 0.0303030303 | AX175: 0.0303030303 | AY175: 0.0303030303 | AZ175: 0.0303030303 | BA175: 0.0303030303 | BB175: 0.0303030303 | BC175: 0.0303030303 | BD175: 0.0303030303 | BE175: 0.0303030303 | BF175: 0.0303030303 | BG175: 0.0303030303 | BH175: 0.0303030303 | BI175: 0.0303030303 | BJ175: 0.0303030303 | BK175: 0.0303030303 | BL175: 0.0303030303 | BM175: 0.0303030303 | BN175: 0.0303030303 | BO175: 0.0303030303 | BP175: 0.0303030303 | BQ175: 0.0303030303 | BR175: 0.0303030303 | BS175: 0.0303030303 | BT175: 0.0303030303 | BU175: 0.0303030303 | BV175: 0.0303030303 | BW175: 0.0303030303 | BX175: 0.0303030303 | BY175: 0.0303030303 | BZ175: 0.0303030303 | CA175: 0.0303030303 | CB175: 0.0303030303 | CC175: 0.0303030303 | CD175: 0.0303030303 | CE175: 0.0303030303 | CF175: 0.0303030303 | CG175: 0.0303030303 | CH175: 0.0303030303 | CI175: 0.0303030303 | CJ175: 0.0303030303 | CK175: 0.0303030303 | CL175: 0.0303030303 | CM175: 0.0303030303 | CN175: 0.0303030303 | CO175: 0.0303030303 | CP175: 0.0303030303 | CQ175: 0.0303030303 | CR175: 0.0303030303 | CS175: 0.0303030303 | CT175: 0.0303030303 | CU175: 0.0303030303 | CV175: 0.0303030303
G176: 12 | H176: 27 | I176: Chocó | J176: [%] | K176: 0.0303030303 | L176: 0.0303030303 | M176: 0.0303030303 | N176: 0.0303030303 | O176: 0.0303030303 | P176: 0.0303030303 | Q176: 0.0303030303 | R176: 0.0303030303 | S176: 0.0303030303 | T176: 0.0303030303 | U176: 0.0303030303 | V176: 0.0303030303 | W176: 0.0303030303 | X176: 0.0303030303 | Y176: 0.0303030303 | Z176: 0.0303030303 | AA176: 0.0303030303 | AB176: 0.0303030303 | AC176: 0.0303030303 | AD176: 0.0303030303 | AE176: 0.0303030303 | AF176: 0.0303030303 | AG176: 0.0303030303 | AH176: 0.0303030303 | AI176: 0.0303030303 | AJ176: 0.0303030303 | AK176: 0.0303030303 | AL176: 0.0303030303 | AM176: 0.0303030303 | AN176: 0.0303030303 | AO176: 0.0303030303 | AP176: 0.0303030303 | AQ176: 0.0303030303 | AR176: 0.0303030303 | AS176: 0.0303030303 | AT176: 0.0303030303 | AU176: 0.0303030303 | AV176: 0.0303030303 | AW176: 0.0303030303 | AX176: 0.0303030303 | AY176: 0.0303030303 | AZ176: 0.0303030303 | BA176: 0.0303030303 | BB176: 0.0303030303 | BC176: 0.0303030303 | BD176: 0.0303030303 | BE176: 0.0303030303 | BF176: 0.0303030303 | BG176: 0.0303030303 | BH176: 0.0303030303 | BI176: 0.0303030303 | BJ176: 0.0303030303 | BK176: 0.0303030303 | BL176: 0.0303030303 | BM176: 0.0303030303 | BN176: 0.0303030303 | BO176: 0.0303030303 | BP176: 0.0303030303 | BQ176: 0.0303030303 | BR176: 0.0303030303 | BS176: 0.0303030303 | BT176: 0.0303030303 | BU176: 0.0303030303 | BV176: 0.0303030303 | BW176: 0.0303030303 | BX176: 0.0303030303 | BY176: 0.0303030303 | BZ176: 0.0303030303 | CA176: 0.0303030303 | CB176: 0.0303030303 | CC176: 0.0303030303 | CD176: 0.0303030303 | CE176: 0.0303030303 | CF176: 0.0303030303 | CG176: 0.0303030303 | CH176: 0.0303030303 | CI176: 0.0303030303 | CJ176: 0.0303030303 | CK176: 0.0303030303 | CL176: 0.0303030303 | CM176: 0.0303030303 | CN176: 0.0303030303 | CO176: 0.0303030303 | CP176: 0.0303030303 | CQ176: 0.0303030303 | CR176: 0.0303030303 | CS176: 0.0303030303 | CT176: 0.0303030303 | CU176: 0.0303030303 | CV176: 0.0303030303
G177: 13 | H177: 41 | I177: Huila | J177: [%] | K177: 0.0303030303 | L177: 0.0303030303 | M177: 0.0303030303 | N177: 0.0303030303 | O177: 0.0303030303 | P177: 0.0303030303 | Q177: 0.0303030303 | R177: 0.0303030303 | S177: 0.0303030303 | T177: 0.0303030303 | U177: 0.0303030303 | V177: 0.0303030303 | W177: 0.0303030303 | X177: 0.0303030303 | Y177: 0.0303030303 | Z177: 0.0303030303 | AA177: 0.0303030303 | AB177: 0.0303030303 | AC177: 0.0303030303 | AD177: 0.0303030303 | AE177: 0.0303030303 | AF177: 0.0303030303 | AG177: 0.0303030303 | AH177: 0.0303030303 | AI177: 0.0303030303 | AJ177: 0.0303030303 | AK177: 0.0303030303 | AL177: 0.0303030303 | AM177: 0.0303030303 | AN177: 0.0303030303 | AO177: 0.0303030303 | AP177: 0.0303030303 | AQ177: 0.0303030303 | AR177: 0.0303030303 | AS177: 0.0303030303 | AT177: 0.0303030303 | AU177: 0.0303030303 | AV177: 0.0303030303 | AW177: 0.0303030303 | AX177: 0.0303030303 | AY177: 0.0303030303 | AZ177: 0.0303030303 | BA177: 0.0303030303 | BB177: 0.0303030303 | BC177: 0.0303030303 | BD177: 0.0303030303 | BE177: 0.0303030303 | BF177: 0.0303030303 | BG177: 0.0303030303 | BH177: 0.0303030303 | BI177: 0.0303030303 | BJ177: 0.0303030303 | BK177: 0.0303030303 | BL177: 0.0303030303 | BM177: 0.0303030303 | BN177: 0.0303030303 | BO177: 0.0303030303 | BP177: 0.0303030303 | BQ177: 0.0303030303 | BR177: 0.0303030303 | BS177: 0.0303030303 | BT177: 0.0303030303 | BU177: 0.0303030303 | BV177: 0.0303030303 | BW177: 0.0303030303 | BX177: 0.0303030303 | BY177: 0.0303030303 | BZ177: 0.0303030303 | CA177: 0.0303030303 | CB177: 0.0303030303 | CC177: 0.0303030303 | CD177: 0.0303030303 | CE177: 0.0303030303 | CF177: 0.0303030303 | CG177: 0.0303030303 | CH177: 0.0303030303 | CI177: 0.0303030303 | CJ177: 0.0303030303 | CK177: 0.0303030303 | CL177: 0.0303030303 | CM177: 0.0303030303 | CN177: 0.0303030303 | CO177: 0.0303030303 | CP177: 0.0303030303 | CQ177: 0.0303030303 | CR177: 0.0303030303 | CS177: 0.0303030303 | CT177: 0.0303030303 | CU177: 0.0303030303 | CV177: 0.0303030303
G178: 14 | H178: 44 | I178: La Guajira | J178: [%] | K178: 0.0303030303 | L178: 0.0303030303 | M178: 0.0303030303 | N178: 0.0303030303 | O178: 0.0303030303 | P178: 0.0303030303 | Q178: 0.0303030303 | R178: 0.0303030303 | S178: 0.0303030303 | T178: 0.0303030303 | U178: 0.0303030303 | V178: 0.0303030303 | W178: 0.0303030303 | X178: 0.0303030303 | Y178: 0.0303030303 | Z178: 0.0303030303 | AA178: 0.0303030303 | AB178: 0.0303030303 | AC178: 0.0303030303 | AD178: 0.0303030303 | AE178: 0.0303030303 | AF178: 0.0303030303 | AG178: 0.0303030303 | AH178: 0.0303030303 | AI178: 0.0303030303 | AJ178: 0.0303030303 | AK178: 0.0303030303 | AL178: 0.0303030303 | AM178: 0.0303030303 | AN178: 0.0303030303 | AO178: 0.0303030303 | AP178: 0.0303030303 | AQ178: 0.0303030303 | AR178: 0.0303030303 | AS178: 0.0303030303 | AT178: 0.0303030303 | AU178: 0.0303030303 | AV178: 0.0303030303 | AW178: 0.0303030303 | AX178: 0.0303030303 | AY178: 0.0303030303 | AZ178: 0.0303030303 | BA178: 0.0303030303 | BB178: 0.0303030303 | BC178: 0.0303030303 | BD178: 0.0303030303 | BE178: 0.0303030303 | BF178: 0.0303030303 | BG178: 0.0303030303 | BH178: 0.0303030303 | BI178: 0.0303030303 | BJ178: 0.0303030303 | BK178: 0.0303030303 | BL178: 0.0303030303 | BM178: 0.0303030303 | BN178: 0.0303030303 | BO178: 0.0303030303 | BP178: 0.0303030303 | BQ178: 0.0303030303 | BR178: 0.0303030303 | BS178: 0.0303030303 | BT178: 0.0303030303 | BU178: 0.0303030303 | BV178: 0.0303030303 | BW178: 0.0303030303 | BX178: 0.0303030303 | BY178: 0.0303030303 | BZ178: 0.0303030303 | CA178: 0.0303030303 | CB178: 0.0303030303 | CC178: 0.0303030303 | CD178: 0.0303030303 | CE178: 0.0303030303 | CF178: 0.0303030303 | CG178: 0.0303030303 | CH178: 0.0303030303 | CI178: 0.0303030303 | CJ178: 0.0303030303 | CK178: 0.0303030303 | CL178: 0.0303030303 | CM178: 0.0303030303 | CN178: 0.0303030303 | CO178: 0.0303030303 | CP178: 0.0303030303 | CQ178: 0.0303030303 | CR178: 0.0303030303 | CS178: 0.0303030303 | CT178: 0.0303030303 | CU178: 0.0303030303 | CV178: 0.0303030303
G179: 15 | H179: 47 | I179: Magdalena | J179: [%] | K179: 0.0303030303 | L179: 0.0303030303 | M179: 0.0303030303 | N179: 0.0303030303 | O179: 0.0303030303 | P179: 0.0303030303 | Q179: 0.0303030303 | R179: 0.0303030303 | S179: 0.0303030303 | T179: 0.0303030303 | U179: 0.0303030303 | V179: 0.0303030303 | W179: 0.0303030303 | X179: 0.0303030303 | Y179: 0.0303030303 | Z179: 0.0303030303 | AA179: 0.0303030303 | AB179: 0.0303030303 | AC179: 0.0303030303 | AD179: 0.0303030303 | AE179: 0.0303030303 | AF179: 0.0303030303 | AG179: 0.0303030303 | AH179: 0.0303030303 | AI179: 0.0303030303 | AJ179: 0.0303030303 | AK179: 0.0303030303 | AL179: 0.0303030303 | AM179: 0.0303030303 | AN179: 0.0303030303 | AO179: 0.0303030303 | AP179: 0.0303030303 | AQ179: 0.0303030303 | AR179: 0.0303030303 | AS179: 0.0303030303 | AT179: 0.0303030303 | AU179: 0.0303030303 | AV179: 0.0303030303 | AW179: 0.0303030303 | AX179: 0.0303030303 | AY179: 0.0303030303 | AZ179: 0.0303030303 | BA179: 0.0303030303 | BB179: 0.0303030303 | BC179: 0.0303030303 | BD179: 0.0303030303 | BE179: 0.0303030303 | BF179: 0.0303030303 | BG179: 0.0303030303 | BH179: 0.0303030303 | BI179: 0.0303030303 | BJ179: 0.0303030303 | BK179: 0.0303030303 | BL179: 0.0303030303 | BM179: 0.0303030303 | BN179: 0.0303030303 | BO179: 0.0303030303 | BP179: 0.0303030303 | BQ179: 0.0303030303 | BR179: 0.0303030303 | BS179: 0.0303030303 | BT179: 0.0303030303 | BU179: 0.0303030303 | BV179: 0.0303030303 | BW179: 0.0303030303 | BX179: 0.0303030303 | BY179: 0.0303030303 | BZ179: 0.0303030303 | CA179: 0.0303030303 | CB179: 0.0303030303 | CC179: 0.0303030303 | CD179: 0.0303030303 | CE179: 0.0303030303 | CF179: 0.0303030303 | CG179: 0.0303030303 | CH179: 0.0303030303 | CI179: 0.0303030303 | CJ179: 0.0303030303 | CK179: 0.0303030303 | CL179: 0.0303030303 | CM179: 0.0303030303 | CN179: 0.0303030303 | CO179: 0.0303030303 | CP179: 0.0303030303 | CQ179: 0.0303030303 | CR179: 0.0303030303 | CS179: 0.0303030303 | CT179: 0.0303030303 | CU179: 0.0303030303 | CV179: 0.0303030303
G180: 16 | H180: 50 | I180: Meta | J180: [%] | K180: 0.0303030303 | L180: 0.0303030303 | M180: 0.0303030303 | N180: 0.0303030303 | O180: 0.0303030303 | P180: 0.0303030303 | Q180: 0.0303030303 | R180: 0.0303030303 | S180: 0.0303030303 | T180: 0.0303030303 | U180: 0.0303030303 | V180: 0.0303030303 | W180: 0.0303030303 | X180: 0.0303030303 | Y180: 0.0303030303 | Z180: 0.0303030303 | AA180: 0.0303030303 | AB180: 0.0303030303 | AC180: 0.0303030303 | AD180: 0.0303030303 | AE180: 0.0303030303 | AF180: 0.0303030303 | AG180: 0.0303030303 | AH180: 0.0303030303 | AI180: 0.0303030303 | AJ180: 0.0303030303 | AK180: 0.0303030303 | AL180: 0.0303030303 | AM180: 0.0303030303 | AN180: 0.0303030303 | AO180: 0.0303030303 | AP180: 0.0303030303 | AQ180: 0.0303030303 | AR180: 0.0303030303 | AS180: 0.0303030303 | AT180: 0.0303030303 | AU180: 0.0303030303 | AV180: 0.0303030303 | AW180: 0.0303030303 | AX180: 0.0303030303 | AY180: 0.0303030303 | AZ180: 0.0303030303 | BA180: 0.0303030303 | BB180: 0.0303030303 | BC180: 0.0303030303 | BD180: 0.0303030303 | BE180: 0.0303030303 | BF180: 0.0303030303 | BG180: 0.0303030303 | BH180: 0.0303030303 | BI180: 0.0303030303 | BJ180: 0.0303030303 | BK180: 0.0303030303 | BL180: 0.0303030303 | BM180: 0.0303030303 | BN180: 0.0303030303 | BO180: 0.0303030303 | BP180: 0.0303030303 | BQ180: 0.0303030303 | BR180: 0.0303030303 | BS180: 0.0303030303 | BT180: 0.0303030303 | BU180: 0.0303030303 | BV180: 0.0303030303 | BW180: 0.0303030303 | BX180: 0.0303030303 | BY180: 0.0303030303 | BZ180: 0.0303030303 | CA180: 0.0303030303 | CB180: 0.0303030303 | CC180: 0.0303030303 | CD180: 0.0303030303 | CE180: 0.0303030303 | CF180: 0.0303030303 | CG180: 0.0303030303 | CH180: 0.0303030303 | CI180: 0.0303030303 | CJ180: 0.0303030303 | CK180: 0.0303030303 | CL180: 0.0303030303 | CM180: 0.0303030303 | CN180: 0.0303030303 | CO180: 0.0303030303 | CP180: 0.0303030303 | CQ180: 0.0303030303 | CR180: 0.0303030303 | CS180: 0.0303030303 | CT180: 0.0303030303 | CU180: 0.0303030303 | CV180: 0.0303030303
G181: 17 | H181: 52 | I181: Nariño | J181: [%] | K181: 0.0303030303 | L181: 0.0303030303 | M181: 0.0303030303 | N181: 0.0303030303 | O181: 0.0303030303 | P181: 0.0303030303 | Q181: 0.0303030303 | R181: 0.0303030303 | S181: 0.0303030303 | T181: 0.0303030303 | U181: 0.0303030303 | V181: 0.0303030303 | W181: 0.0303030303 | X181: 0.0303030303 | Y181: 0.0303030303 | Z181: 0.0303030303 | AA181: 0.0303030303 | AB181: 0.0303030303 | AC181: 0.0303030303 | AD181: 0.0303030303 | AE181: 0.0303030303 | AF181: 0.0303030303 | AG181: 0.0303030303 | AH181: 0.0303030303 | AI181: 0.0303030303 | AJ181: 0.0303030303 | AK181: 0.0303030303 | AL181: 0.0303030303 | AM181: 0.0303030303 | AN181: 0.0303030303 | AO181: 0.0303030303 | AP181: 0.0303030303 | AQ181: 0.0303030303 | AR181: 0.0303030303 | AS181: 0.0303030303 | AT181: 0.0303030303 | AU181: 0.0303030303 | AV181: 0.0303030303 | AW181: 0.0303030303 | AX181: 0.0303030303 | AY181: 0.0303030303 | AZ181: 0.0303030303 | BA181: 0.0303030303 | BB181: 0.0303030303 | BC181: 0.0303030303 | BD181: 0.0303030303 | BE181: 0.0303030303 | BF181: 0.0303030303 | BG181: 0.0303030303 | BH181: 0.0303030303 | BI181: 0.0303030303 | BJ181: 0.0303030303 | BK181: 0.0303030303 | BL181: 0.0303030303 | BM181: 0.0303030303 | BN181: 0.0303030303 | BO181: 0.0303030303 | BP181: 0.0303030303 | BQ181: 0.0303030303 | BR181: 0.0303030303 | BS181: 0.0303030303 | BT181: 0.0303030303 | BU181: 0.0303030303 | BV181: 0.0303030303 | BW181: 0.0303030303 | BX181: 0.0303030303 | BY181: 0.0303030303 | BZ181: 0.0303030303 | CA181: 0.0303030303 | CB181: 0.0303030303 | CC181: 0.0303030303 | CD181: 0.0303030303 | CE181: 0.0303030303 | CF181: 0.0303030303 | CG181: 0.0303030303 | CH181: 0.0303030303 | CI181: 0.0303030303 | CJ181: 0.0303030303 | CK181: 0.0303030303 | CL181: 0.0303030303 | CM181: 0.0303030303 | CN181: 0.0303030303 | CO181: 0.0303030303 | CP181: 0.0303030303 | CQ181: 0.0303030303 | CR181: 0.0303030303 | CS181: 0.0303030303 | CT181: 0.0303030303 | CU181: 0.0303030303 | CV181: 0.0303030303
G182: 18 | H182: 54 | I182: Norte de Santander | J182: [%] | K182: 0.0303030303 | L182: 0.0303030303 | M182: 0.0303030303 | N182: 0.0303030303 | O182: 0.0303030303 | P182: 0.0303030303 | Q182: 0.0303030303 | R182: 0.0303030303 | S182: 0.0303030303 | T182: 0.0303030303 | U182: 0.0303030303 | V182: 0.0303030303 | W182: 0.0303030303 | X182: 0.0303030303 | Y182: 0.0303030303 | Z182: 0.0303030303 | AA182: 0.0303030303 | AB182: 0.0303030303 | AC182: 0.0303030303 | AD182: 0.0303030303 | AE182: 0.0303030303 | AF182: 0.0303030303 | AG182: 0.0303030303 | AH182: 0.0303030303 | AI182: 0.0303030303 | AJ182: 0.0303030303 | AK182: 0.0303030303 | AL182: 0.0303030303 | AM182: 0.0303030303 | AN182: 0.0303030303 | AO182: 0.0303030303 | AP182: 0.0303030303 | AQ182: 0.0303030303 | AR182: 0.0303030303 | AS182: 0.0303030303 | AT182: 0.0303030303 | AU182: 0.0303030303 | AV182: 0.0303030303 | AW182: 0.0303030303 | AX182: 0.0303030303 | AY182: 0.0303030303 | AZ182: 0.0303030303 | BA182: 0.0303030303 | BB182: 0.0303030303 | BC182: 0.0303030303 | BD182: 0.0303030303 | BE182: 0.0303030303 | BF182: 0.0303030303 | BG182: 0.0303030303 | BH182: 0.0303030303 | BI182: 0.0303030303 | BJ182: 0.0303030303 | BK182: 0.0303030303 | BL182: 0.0303030303 | BM182: 0.0303030303 | BN182: 0.0303030303 | BO182: 0.0303030303 | BP182: 0.0303030303 | BQ182: 0.0303030303 | BR182: 0.0303030303 | BS182: 0.0303030303 | BT182: 0.0303030303 | BU182: 0.0303030303 | BV182: 0.0303030303 | BW182: 0.0303030303 | BX182: 0.0303030303 | BY182: 0.0303030303 | BZ182: 0.0303030303 | CA182: 0.0303030303 | CB182: 0.0303030303 | CC182: 0.0303030303 | CD182: 0.0303030303 | CE182: 0.0303030303 | CF182: 0.0303030303 | CG182: 0.0303030303 | CH182: 0.0303030303 | CI182: 0.0303030303 | CJ182: 0.0303030303 | CK182: 0.0303030303 | CL182: 0.0303030303 | CM182: 0.0303030303 | CN182: 0.0303030303 | CO182: 0.0303030303 | CP182: 0.0303030303 | CQ182: 0.0303030303 | CR182: 0.0303030303 | CS182: 0.0303030303 | CT182: 0.0303030303 | CU182: 0.0303030303 | CV182: 0.0303030303
G183: 19 | H183: 63 | I183: Quindio | J183: [%] | K183: 0.0303030303 | L183: 0.0303030303 | M183: 0.0303030303 | N183: 0.0303030303 | O183: 0.0303030303 | P183: 0.0303030303 | Q183: 0.0303030303 | R183: 0.0303030303 | S183: 0.0303030303 | T183: 0.0303030303 | U183: 0.0303030303 | V183: 0.0303030303 | W183: 0.0303030303 | X183: 0.0303030303 | Y183: 0.0303030303 | Z183: 0.0303030303 | AA183: 0.0303030303 | AB183: 0.0303030303 | AC183: 0.0303030303 | AD183: 0.0303030303 | AE183: 0.0303030303 | AF183: 0.0303030303 | AG183: 0.0303030303 | AH183: 0.0303030303 | AI183: 0.0303030303 | AJ183: 0.0303030303 | AK183: 0.0303030303 | AL183: 0.0303030303 | AM183: 0.0303030303 | AN183: 0.0303030303 | AO183: 0.0303030303 | AP183: 0.0303030303 | AQ183: 0.0303030303 | AR183: 0.0303030303 | AS183: 0.0303030303 | AT183: 0.0303030303 | AU183: 0.0303030303 | AV183: 0.0303030303 | AW183: 0.0303030303 | AX183: 0.0303030303 | AY183: 0.0303030303 | AZ183: 0.0303030303 | BA183: 0.0303030303 | BB183: 0.0303030303 | BC183: 0.0303030303 | BD183: 0.0303030303 | BE183: 0.0303030303 | BF183: 0.0303030303 | BG183: 0.0303030303 | BH183: 0.0303030303 | BI183: 0.0303030303 | BJ183: 0.0303030303 | BK183: 0.0303030303 | BL183: 0.0303030303 | BM183: 0.0303030303 | BN183: 0.0303030303 | BO183: 0.0303030303 | BP183: 0.0303030303 | BQ183: 0.0303030303 | BR183: 0.0303030303 | BS183: 0.0303030303 | BT183: 0.0303030303 | BU183: 0.0303030303 | BV183: 0.0303030303 | BW183: 0.0303030303 | BX183: 0.0303030303 | BY183: 0.0303030303 | BZ183: 0.0303030303 | CA183: 0.0303030303 | CB183: 0.0303030303 | CC183: 0.0303030303 | CD183: 0.0303030303 | CE183: 0.0303030303 | CF183: 0.0303030303 | CG183: 0.0303030303 | CH183: 0.0303030303 | CI183: 0.0303030303 | CJ183: 0.0303030303 | CK183: 0.0303030303 | CL183: 0.0303030303 | CM183: 0.0303030303 | CN183: 0.0303030303 | CO183: 0.0303030303 | CP183: 0.0303030303 | CQ183: 0.0303030303 | CR183: 0.0303030303 | CS183: 0.0303030303 | CT183: 0.0303030303 | CU183: 0.0303030303 | CV183: 0.0303030303
G184: 20 | H184: 66 | I184: Risaralda | J184: [%] | K184: 0.0303030303 | L184: 0.0303030303 | M184: 0.0303030303 | N184: 0.0303030303 | O184: 0.0303030303 | P184: 0.0303030303 | Q184: 0.0303030303 | R184: 0.0303030303 | S184: 0.0303030303 | T184: 0.0303030303 | U184: 0.0303030303 | V184: 0.0303030303 | W184: 0.0303030303 | X184: 0.0303030303 | Y184: 0.0303030303 | Z184: 0.0303030303 | AA184: 0.0303030303 | AB184: 0.0303030303 | AC184: 0.0303030303 | AD184: 0.0303030303 | AE184: 0.0303030303 | AF184: 0.0303030303 | AG184: 0.0303030303 | AH184: 0.0303030303 | AI184: 0.0303030303 | AJ184: 0.0303030303 | AK184: 0.0303030303 | AL184: 0.0303030303 | AM184: 0.0303030303 | AN184: 0.0303030303 | AO184: 0.0303030303 | AP184: 0.0303030303 | AQ184: 0.0303030303 | AR184: 0.0303030303 | AS184: 0.0303030303 | AT184: 0.0303030303 | AU184: 0.0303030303 | AV184: 0.0303030303 | AW184: 0.0303030303 | AX184: 0.0303030303 | AY184: 0.0303030303 | AZ184: 0.0303030303 | BA184: 0.0303030303 | BB184: 0.0303030303 | BC184: 0.0303030303 | BD184: 0.0303030303 | BE184: 0.0303030303 | BF184: 0.0303030303 | BG184: 0.0303030303 | BH184: 0.0303030303 | BI184: 0.0303030303 | BJ184: 0.0303030303 | BK184: 0.0303030303 | BL184: 0.0303030303 | BM184: 0.0303030303 | BN184: 0.0303030303 | BO184: 0.0303030303 | BP184: 0.0303030303 | BQ184: 0.0303030303 | BR184: 0.0303030303 | BS184: 0.0303030303 | BT184: 0.0303030303 | BU184: 0.0303030303 | BV184: 0.0303030303 | BW184: 0.0303030303 | BX184: 0.0303030303 | BY184: 0.0303030303 | BZ184: 0.0303030303 | CA184: 0.0303030303 | CB184: 0.0303030303 | CC184: 0.0303030303 | CD184: 0.0303030303 | CE184: 0.0303030303 | CF184: 0.0303030303 | CG184: 0.0303030303 | CH184: 0.0303030303 | CI184: 0.0303030303 | CJ184: 0.0303030303 | CK184: 0.0303030303 | CL184: 0.0303030303 | CM184: 0.0303030303 | CN184: 0.0303030303 | CO184: 0.0303030303 | CP184: 0.0303030303 | CQ184: 0.0303030303 | CR184: 0.0303030303 | CS184: 0.0303030303 | CT184: 0.0303030303 | CU184: 0.0303030303 | CV184: 0.0303030303
G185: 21 | H185: 68 | I185: Santander | J185: [%] | K185: =INDEX($K$123:$AW$155,$G185,MATCH(K$164,$K$122:$AW$122,0))/K$159 -> 0.0303030303 | L185: 0.0303030303 | M185: 0.0303030303 | N185: 0.0303030303 | O185: 0.0303030303 | P185: 0.0303030303 | Q185: 0.0303030303 | R185: 0.0303030303 | S185: 0.0303030303 | T185: 0.0303030303 | U185: 0.0303030303 | V185: 0.0303030303 | W185: 0.0303030303 | X185: 0.0303030303 | Y185: 0.0303030303 | Z185: 0.0303030303 | AA185: 0.0303030303 | AB185: 0.0303030303 | AC185: 0.0303030303 | AD185: 0.0303030303 | AE185: 0.0303030303 | AF185: 0.0303030303 | AG185: 0.0303030303 | AH185: 0.0303030303 | AI185: 0.0303030303 | AJ185: 0.0303030303 | AK185: 0.0303030303 | AL185: 0.0303030303 | AM185: 0.0303030303 | AN185: 0.0303030303 | AO185: 0.0303030303 | AP185: 0.0303030303 | AQ185: 0.0303030303 | AR185: 0.0303030303 | AS185: 0.0303030303 | AT185: 0.0303030303 | AU185: 0.0303030303 | AV185: 0.0303030303 | AW185: 0.0303030303 | AX185: 0.0303030303 | AY185: 0.0303030303 | AZ185: 0.0303030303 | BA185: 0.0303030303 | BB185: 0.0303030303 | BC185: 0.0303030303 | BD185: 0.0303030303 | BE185: 0.0303030303 | BF185: 0.0303030303 | BG185: 0.0303030303 | BH185: 0.0303030303 | BI185: 0.0303030303 | BJ185: 0.0303030303 | BK185: 0.0303030303 | BL185: 0.0303030303 | BM185: 0.0303030303 | BN185: 0.0303030303 | BO185: 0.0303030303 | BP185: 0.0303030303 | BQ185: 0.0303030303 | BR185: 0.0303030303 | BS185: 0.0303030303 | BT185: 0.0303030303 | BU185: 0.0303030303 | BV185: 0.0303030303 | BW185: 0.0303030303 | BX185: 0.0303030303 | BY185: 0.0303030303 | BZ185: 0.0303030303 | CA185: 0.0303030303 | CB185: 0.0303030303 | CC185: 0.0303030303 | CD185: 0.0303030303 | CE185: 0.0303030303 | CF185: 0.0303030303 | CG185: 0.0303030303 | CH185: 0.0303030303 | CI185: 0.0303030303 | CJ185: 0.0303030303 | CK185: 0.0303030303 | CL185: 0.0303030303 | CM185: 0.0303030303 | CN185: 0.0303030303 | CO185: 0.0303030303 | CP185: 0.0303030303 | CQ185: 0.0303030303 | CR185: 0.0303030303 | CS185: 0.0303030303 | CT185: 0.0303030303 | CU185: 0.0303030303 | CV185: 0.0303030303
G186: 22 | H186: 70 | I186: Sucre | J186: [%] | K186: 0.0303030303 | L186: 0.0303030303 | M186: 0.0303030303 | N186: 0.0303030303 | O186: 0.0303030303 | P186: 0.0303030303 | Q186: 0.0303030303 | R186: 0.0303030303 | S186: 0.0303030303 | T186: 0.0303030303 | U186: 0.0303030303 | V186: 0.0303030303 | W186: 0.0303030303 | X186: 0.0303030303 | Y186: 0.0303030303 | Z186: 0.0303030303 | AA186: 0.0303030303 | AB186: 0.0303030303 | AC186: 0.0303030303 | AD186: 0.0303030303 | AE186: 0.0303030303 | AF186: 0.0303030303 | AG186: 0.0303030303 | AH186: 0.0303030303 | AI186: 0.0303030303 | AJ186: 0.0303030303 | AK186: 0.0303030303 | AL186: 0.0303030303 | AM186: 0.0303030303 | AN186: 0.0303030303 | AO186: 0.0303030303 | AP186: 0.0303030303 | AQ186: 0.0303030303 | AR186: 0.0303030303 | AS186: 0.0303030303 | AT186: 0.0303030303 | AU186: 0.0303030303 | AV186: 0.0303030303 | AW186: 0.0303030303 | AX186: 0.0303030303 | AY186: 0.0303030303 | AZ186: 0.0303030303 | BA186: 0.0303030303 | BB186: 0.0303030303 | BC186: 0.0303030303 | BD186: 0.0303030303 | BE186: 0.0303030303 | BF186: 0.0303030303 | BG186: 0.0303030303 | BH186: 0.0303030303 | BI186: 0.0303030303 | BJ186: 0.0303030303 | BK186: 0.0303030303 | BL186: 0.0303030303 | BM186: 0.0303030303 | BN186: 0.0303030303 | BO186: 0.0303030303 | BP186: 0.0303030303 | BQ186: 0.0303030303 | BR186: 0.0303030303 | BS186: 0.0303030303 | BT186: 0.0303030303 | BU186: 0.0303030303 | BV186: 0.0303030303 | BW186: 0.0303030303 | BX186: 0.0303030303 | BY186: 0.0303030303 | BZ186: 0.0303030303 | CA186: 0.0303030303 | CB186: 0.0303030303 | CC186: 0.0303030303 | CD186: 0.0303030303 | CE186: 0.0303030303 | CF186: 0.0303030303 | CG186: 0.0303030303 | CH186: 0.0303030303 | CI186: 0.0303030303 | CJ186: 0.0303030303 | CK186: 0.0303030303 | CL186: 0.0303030303 | CM186: 0.0303030303 | CN186: 0.0303030303 | CO186: 0.0303030303 | CP186: 0.0303030303 | CQ186: 0.0303030303 | CR186: 0.0303030303 | CS186: 0.0303030303 | CT186: 0.0303030303 | CU186: 0.0303030303 | CV186: 0.0303030303
G187: 23 | H187: 73 | I187: Tolima | J187: [%] | K187: 0.0303030303 | L187: 0.0303030303 | M187: 0.0303030303 | N187: 0.0303030303 | O187: 0.0303030303 | P187: 0.0303030303 | Q187: 0.0303030303 | R187: 0.0303030303 | S187: 0.0303030303 | T187: 0.0303030303 | U187: 0.0303030303 | V187: 0.0303030303 | W187: 0.0303030303 | X187: 0.0303030303 | Y187: 0.0303030303 | Z187: 0.0303030303 | AA187: 0.0303030303 | AB187: 0.0303030303 | AC187: 0.0303030303 | AD187: 0.0303030303 | AE187: 0.0303030303 | AF187: 0.0303030303 | AG187: 0.0303030303 | AH187: 0.0303030303 | AI187: 0.0303030303 | AJ187: 0.0303030303 | AK187: 0.0303030303 | AL187: 0.0303030303 | AM187: 0.0303030303 | AN187: 0.0303030303 | AO187: 0.0303030303 | AP187: 0.0303030303 | AQ187: 0.0303030303 | AR187: 0.0303030303 | AS187: 0.0303030303 | AT187: 0.0303030303 | AU187: 0.0303030303 | AV187: 0.0303030303 | AW187: 0.0303030303 | AX187: 0.0303030303 | AY187: 0.0303030303 | AZ187: 0.0303030303 | BA187: 0.0303030303 | BB187: 0.0303030303 | BC187: 0.0303030303 | BD187: 0.0303030303 | BE187: 0.0303030303 | BF187: 0.0303030303 | BG187: 0.0303030303 | BH187: 0.0303030303 | BI187: 0.0303030303 | BJ187: 0.0303030303 | BK187: 0.0303030303 | BL187: 0.0303030303 | BM187: 0.0303030303 | BN187: 0.0303030303 | BO187: 0.0303030303 | BP187: 0.0303030303 | BQ187: 0.0303030303 | BR187: 0.0303030303 | BS187: 0.0303030303 | BT187: 0.0303030303 | BU187: 0.0303030303 | BV187: 0.0303030303 | BW187: 0.0303030303 | BX187: 0.0303030303 | BY187: 0.0303030303 | BZ187: 0.0303030303 | CA187: 0.0303030303 | CB187: 0.0303030303 | CC187: 0.0303030303 | CD187: 0.0303030303 | CE187: 0.0303030303 | CF187: 0.0303030303 | CG187: 0.0303030303 | CH187: 0.0303030303 | CI187: 0.0303030303 | CJ187: 0.0303030303 | CK187: 0.0303030303 | CL187: 0.0303030303 | CM187: 0.0303030303 | CN187: 0.0303030303 | CO187: 0.0303030303 | CP187: 0.0303030303 | CQ187: 0.0303030303 | CR187: 0.0303030303 | CS187: 0.0303030303 | CT187: 0.0303030303 | CU187: 0.0303030303 | CV187: 0.0303030303
G188: 24 | H188: 76 | I188: Valle del Cauca | J188: [%] | K188: 0.0303030303 | L188: 0.0303030303 | M188: 0.0303030303 | N188: 0.0303030303 | O188: 0.0303030303 | P188: 0.0303030303 | Q188: 0.0303030303 | R188: 0.0303030303 | S188: 0.0303030303 | T188: 0.0303030303 | U188: 0.0303030303 | V188: 0.0303030303 | W188: 0.0303030303 | X188: 0.0303030303 | Y188: 0.0303030303 | Z188: 0.0303030303 | AA188: 0.0303030303 | AB188: 0.0303030303 | AC188: 0.0303030303 | AD188: 0.0303030303 | AE188: 0.0303030303 | AF188: 0.0303030303 | AG188: 0.0303030303 | AH188: 0.0303030303 | AI188: 0.0303030303 | AJ188: 0.0303030303 | AK188: 0.0303030303 | AL188: 0.0303030303 | AM188: 0.0303030303 | AN188: 0.0303030303 | AO188: 0.0303030303 | AP188: 0.0303030303 | AQ188: 0.0303030303 | AR188: 0.0303030303 | AS188: 0.0303030303 | AT188: 0.0303030303 | AU188: 0.0303030303 | AV188: 0.0303030303 | AW188: 0.0303030303 | AX188: 0.0303030303 | AY188: 0.0303030303 | AZ188: 0.0303030303 | BA188: 0.0303030303 | BB188: 0.0303030303 | BC188: 0.0303030303 | BD188: 0.0303030303 | BE188: 0.0303030303 | BF188: 0.0303030303 | BG188: 0.0303030303 | BH188: 0.0303030303 | BI188: 0.0303030303 | BJ188: 0.0303030303 | BK188: 0.0303030303 | BL188: 0.0303030303 | BM188: 0.0303030303 | BN188: 0.0303030303 | BO188: 0.0303030303 | BP188: 0.0303030303 | BQ188: 0.0303030303 | BR188: 0.0303030303 | BS188: 0.0303030303 | BT188: 0.0303030303 | BU188: 0.0303030303 | BV188: 0.0303030303 | BW188: 0.0303030303 | BX188: 0.0303030303 | BY188: 0.0303030303 | BZ188: 0.0303030303 | CA188: 0.0303030303 | CB188: 0.0303030303 | CC188: 0.0303030303 | CD188: 0.0303030303 | CE188: 0.0303030303 | CF188: 0.0303030303 | CG188: 0.0303030303 | CH188: 0.0303030303 | CI188: 0.0303030303 | CJ188: 0.0303030303 | CK188: 0.0303030303 | CL188: 0.0303030303 | CM188: 0.0303030303 | CN188: 0.0303030303 | CO188: 0.0303030303 | CP188: 0.0303030303 | CQ188: 0.0303030303 | CR188: 0.0303030303 | CS188: 0.0303030303 | CT188: 0.0303030303 | CU188: 0.0303030303 | CV188: 0.0303030303
G189: 25 | H189: 81 | I189: Arauca | J189: [%] | K189: 0.0303030303 | L189: 0.0303030303 | M189: 0.0303030303 | N189: 0.0303030303 | O189: 0.0303030303 | P189: 0.0303030303 | Q189: 0.0303030303 | R189: 0.0303030303 | S189: 0.0303030303 | T189: 0.0303030303 | U189: 0.0303030303 | V189: 0.0303030303 | W189: 0.0303030303 | X189: 0.0303030303 | Y189: 0.0303030303 | Z189: 0.0303030303 | AA189: 0.0303030303 | AB189: 0.0303030303 | AC189: 0.0303030303 | AD189: 0.0303030303 | AE189: 0.0303030303 | AF189: 0.0303030303 | AG189: 0.0303030303 | AH189: 0.0303030303 | AI189: 0.0303030303 | AJ189: 0.0303030303 | AK189: 0.0303030303 | AL189: 0.0303030303 | AM189: 0.0303030303 | AN189: 0.0303030303 | AO189: 0.0303030303 | AP189: 0.0303030303 | AQ189: 0.0303030303 | AR189: 0.0303030303 | AS189: 0.0303030303 | AT189: 0.0303030303 | AU189: 0.0303030303 | AV189: 0.0303030303 | AW189: 0.0303030303 | AX189: 0.0303030303 | AY189: 0.0303030303 | AZ189: 0.0303030303 | BA189: 0.0303030303 | BB189: 0.0303030303 | BC189: 0.0303030303 | BD189: 0.0303030303 | BE189: 0.0303030303 | BF189: 0.0303030303 | BG189: 0.0303030303 | BH189: 0.0303030303 | BI189: 0.0303030303 | BJ189: 0.0303030303 | BK189: 0.0303030303 | BL189: 0.0303030303 | BM189: 0.0303030303 | BN189: 0.0303030303 | BO189: 0.0303030303 | BP189: 0.0303030303 | BQ189: 0.0303030303 | BR189: 0.0303030303 | BS189: 0.0303030303 | BT189: 0.0303030303 | BU189: 0.0303030303 | BV189: 0.0303030303 | BW189: 0.0303030303 | BX189: 0.0303030303 | BY189: 0.0303030303 | BZ189: 0.0303030303 | CA189: 0.0303030303 | CB189: 0.0303030303 | CC189: 0.0303030303 | CD189: 0.0303030303 | CE189: 0.0303030303 | CF189: 0.0303030303 | CG189: 0.0303030303 | CH189: 0.0303030303 | CI189: 0.0303030303 | CJ189: 0.0303030303 | CK189: 0.0303030303 | CL189: 0.0303030303 | CM189: 0.0303030303 | CN189: 0.0303030303 | CO189: 0.0303030303 | CP189: 0.0303030303 | CQ189: 0.0303030303 | CR189: 0.0303030303 | CS189: 0.0303030303 | CT189: 0.0303030303 | CU189: 0.0303030303 | CV189: 0.0303030303
G190: 26 | H190: 85 | I190: Casanare | J190: [%] | K190: 0.0303030303 | L190: 0.0303030303 | M190: 0.0303030303 | N190: 0.0303030303 | O190: 0.0303030303 | P190: 0.0303030303 | Q190: 0.0303030303 | R190: 0.0303030303 | S190: 0.0303030303 | T190: 0.0303030303 | U190: 0.0303030303 | V190: 0.0303030303 | W190: 0.0303030303 | X190: 0.0303030303 | Y190: 0.0303030303 | Z190: 0.0303030303 | AA190: 0.0303030303 | AB190: 0.0303030303 | AC190: 0.0303030303 | AD190: 0.0303030303 | AE190: 0.0303030303 | AF190: 0.0303030303 | AG190: 0.0303030303 | AH190: 0.0303030303 | AI190: 0.0303030303 | AJ190: 0.0303030303 | AK190: 0.0303030303 | AL190: 0.0303030303 | AM190: 0.0303030303 | AN190: 0.0303030303 | AO190: 0.0303030303 | AP190: 0.0303030303 | AQ190: 0.0303030303 | AR190: 0.0303030303 | AS190: 0.0303030303 | AT190: 0.0303030303 | AU190: 0.0303030303 | AV190: 0.0303030303 | AW190: 0.0303030303 | AX190: 0.0303030303 | AY190: 0.0303030303 | AZ190: 0.0303030303 | BA190: 0.0303030303 | BB190: 0.0303030303 | BC190: 0.0303030303 | BD190: 0.0303030303 | BE190: 0.0303030303 | BF190: 0.0303030303 | BG190: 0.0303030303 | BH190: 0.0303030303 | BI190: 0.0303030303 | BJ190: 0.0303030303 | BK190: 0.0303030303 | BL190: 0.0303030303 | BM190: 0.0303030303 | BN190: 0.0303030303 | BO190: 0.0303030303 | BP190: 0.0303030303 | BQ190: 0.0303030303 | BR190: 0.0303030303 | BS190: 0.0303030303 | BT190: 0.0303030303 | BU190: 0.0303030303 | BV190: 0.0303030303 | BW190: 0.0303030303 | BX190: 0.0303030303 | BY190: 0.0303030303 | BZ190: 0.0303030303 | CA190: 0.0303030303 | CB190: 0.0303030303 | CC190: 0.0303030303 | CD190: 0.0303030303 | CE190: 0.0303030303 | CF190: 0.0303030303 | CG190: 0.0303030303 | CH190: 0.0303030303 | CI190: 0.0303030303 | CJ190: 0.0303030303 | CK190: 0.0303030303 | CL190: 0.0303030303 | CM190: 0.0303030303 | CN190: 0.0303030303 | CO190: 0.0303030303 | CP190: 0.0303030303 | CQ190: 0.0303030303 | CR190: 0.0303030303 | CS190: 0.0303030303 | CT190: 0.0303030303 | CU190: 0.0303030303 | CV190: 0.0303030303
G191: 27 | H191: 86 | I191: Putumayo | J191: [%] | K191: 0.0303030303 | L191: 0.0303030303 | M191: 0.0303030303 | N191: 0.0303030303 | O191: 0.0303030303 | P191: 0.0303030303 | Q191: 0.0303030303 | R191: 0.0303030303 | S191: 0.0303030303 | T191: 0.0303030303 | U191: 0.0303030303 | V191: 0.0303030303 | W191: 0.0303030303 | X191: 0.0303030303 | Y191: 0.0303030303 | Z191: 0.0303030303 | AA191: 0.0303030303 | AB191: 0.0303030303 | AC191: 0.0303030303 | AD191: 0.0303030303 | AE191: 0.0303030303 | AF191: 0.0303030303 | AG191: 0.0303030303 | AH191: 0.0303030303 | AI191: 0.0303030303 | AJ191: 0.0303030303 | AK191: 0.0303030303 | AL191: 0.0303030303 | AM191: 0.0303030303 | AN191: 0.0303030303 | AO191: 0.0303030303 | AP191: 0.0303030303 | AQ191: 0.0303030303 | AR191: 0.0303030303 | AS191: 0.0303030303 | AT191: 0.0303030303 | AU191: 0.0303030303 | AV191: 0.0303030303 | AW191: 0.0303030303 | AX191: 0.0303030303 | AY191: 0.0303030303 | AZ191: 0.0303030303 | BA191: 0.0303030303 | BB191: 0.0303030303 | BC191: 0.0303030303 | BD191: 0.0303030303 | BE191: 0.0303030303 | BF191: 0.0303030303 | BG191: 0.0303030303 | BH191: 0.0303030303 | BI191: 0.0303030303 | BJ191: 0.0303030303 | BK191: 0.0303030303 | BL191: 0.0303030303 | BM191: 0.0303030303 | BN191: 0.0303030303 | BO191: 0.0303030303 | BP191: 0.0303030303 | BQ191: 0.0303030303 | BR191: 0.0303030303 | BS191: 0.0303030303 | BT191: 0.0303030303 | BU191: 0.0303030303 | BV191: 0.0303030303 | BW191: 0.0303030303 | BX191: 0.0303030303 | BY191: 0.0303030303 | BZ191: 0.0303030303 | CA191: 0.0303030303 | CB191: 0.0303030303 | CC191: 0.0303030303 | CD191: 0.0303030303 | CE191: 0.0303030303 | CF191: 0.0303030303 | CG191: 0.0303030303 | CH191: 0.0303030303 | CI191: 0.0303030303 | CJ191: 0.0303030303 | CK191: 0.0303030303 | CL191: 0.0303030303 | CM191: 0.0303030303 | CN191: 0.0303030303 | CO191: 0.0303030303 | CP191: 0.0303030303 | CQ191: 0.0303030303 | CR191: 0.0303030303 | CS191: 0.0303030303 | CT191: 0.0303030303 | CU191: 0.0303030303 | CV191: 0.0303030303
G192: 28 | H192: 88 | I192: San Andrés | J192: [%] | K192: 0.0303030303 | L192: 0.0303030303 | M192: 0.0303030303 | N192: 0.0303030303 | O192: 0.0303030303 | P192: 0.0303030303 | Q192: 0.0303030303 | R192: 0.0303030303 | S192: 0.0303030303 | T192: 0.0303030303 | U192: 0.0303030303 | V192: 0.0303030303 | W192: 0.0303030303 | X192: 0.0303030303 | Y192: 0.0303030303 | Z192: 0.0303030303 | AA192: 0.0303030303 | AB192: 0.0303030303 | AC192: 0.0303030303 | AD192: 0.0303030303 | AE192: 0.0303030303 | AF192: 0.0303030303 | AG192: 0.0303030303 | AH192: 0.0303030303 | AI192: 0.0303030303 | AJ192: 0.0303030303 | AK192: 0.0303030303 | AL192: 0.0303030303 | AM192: 0.0303030303 | AN192: 0.0303030303 | AO192: 0.0303030303 | AP192: 0.0303030303 | AQ192: 0.0303030303 | AR192: 0.0303030303 | AS192: 0.0303030303 | AT192: 0.0303030303 | AU192: 0.0303030303 | AV192: 0.0303030303 | AW192: 0.0303030303 | AX192: 0.0303030303 | AY192: 0.0303030303 | AZ192: 0.0303030303 | BA192: 0.0303030303 | BB192: 0.0303030303 | BC192: 0.0303030303 | BD192: 0.0303030303 | BE192: 0.0303030303 | BF192: 0.0303030303 | BG192: 0.0303030303 | BH192: 0.0303030303 | BI192: 0.0303030303 | BJ192: 0.0303030303 | BK192: 0.0303030303 | BL192: 0.0303030303 | BM192: 0.0303030303 | BN192: 0.0303030303 | BO192: 0.0303030303 | BP192: 0.0303030303 | BQ192: 0.0303030303 | BR192: 0.0303030303 | BS192: 0.0303030303 | BT192: 0.0303030303 | BU192: 0.0303030303 | BV192: 0.0303030303 | BW192: 0.0303030303 | BX192: 0.0303030303 | BY192: 0.0303030303 | BZ192: 0.0303030303 | CA192: 0.0303030303 | CB192: 0.0303030303 | CC192: 0.0303030303 | CD192: 0.0303030303 | CE192: 0.0303030303 | CF192: 0.0303030303 | CG192: 0.0303030303 | CH192: 0.0303030303 | CI192: 0.0303030303 | CJ192: 0.0303030303 | CK192: 0.0303030303 | CL192: 0.0303030303 | CM192: 0.0303030303 | CN192: 0.0303030303 | CO192: 0.0303030303 | CP192: 0.0303030303 | CQ192: 0.0303030303 | CR192: 0.0303030303 | CS192: 0.0303030303 | CT192: 0.0303030303 | CU192: 0.0303030303 | CV192: 0.0303030303
G193: 29 | H193: 91 | I193: Amazonas | J193: [%] | K193: 0.0303030303 | L193: 0.0303030303 | M193: 0.0303030303 | N193: 0.0303030303 | O193: 0.0303030303 | P193: 0.0303030303 | Q193: 0.0303030303 | R193: 0.0303030303 | S193: 0.0303030303 | T193: 0.0303030303 | U193: 0.0303030303 | V193: 0.0303030303 | W193: 0.0303030303 | X193: 0.0303030303 | Y193: 0.0303030303 | Z193: 0.0303030303 | AA193: 0.0303030303 | AB193: 0.0303030303 | AC193: 0.0303030303 | AD193: 0.0303030303 | AE193: 0.0303030303 | AF193: 0.0303030303 | AG193: 0.0303030303 | AH193: 0.0303030303 | AI193: 0.0303030303 | AJ193: 0.0303030303 | AK193: 0.0303030303 | AL193: 0.0303030303 | AM193: 0.0303030303 | AN193: 0.0303030303 | AO193: 0.0303030303 | AP193: 0.0303030303 | AQ193: 0.0303030303 | AR193: 0.0303030303 | AS193: 0.0303030303 | AT193: 0.0303030303 | AU193: 0.0303030303 | AV193: 0.0303030303 | AW193: 0.0303030303 | AX193: 0.0303030303 | AY193: 0.0303030303 | AZ193: 0.0303030303 | BA193: 0.0303030303 | BB193: 0.0303030303 | BC193: 0.0303030303 | BD193: 0.0303030303 | BE193: 0.0303030303 | BF193: 0.0303030303 | BG193: 0.0303030303 | BH193: 0.0303030303 | BI193: 0.0303030303 | BJ193: 0.0303030303 | BK193: 0.0303030303 | BL193: 0.0303030303 | BM193: 0.0303030303 | BN193: 0.0303030303 | BO193: 0.0303030303 | BP193: 0.0303030303 | BQ193: 0.0303030303 | BR193: 0.0303030303 | BS193: 0.0303030303 | BT193: 0.0303030303 | BU193: 0.0303030303 | BV193: 0.0303030303 | BW193: 0.0303030303 | BX193: 0.0303030303 | BY193: 0.0303030303 | BZ193: 0.0303030303 | CA193: 0.0303030303 | CB193: 0.0303030303 | CC193: 0.0303030303 | CD193: 0.0303030303 | CE193: 0.0303030303 | CF193: 0.0303030303 | CG193: 0.0303030303 | CH193: 0.0303030303 | CI193: 0.0303030303 | CJ193: 0.0303030303 | CK193: 0.0303030303 | CL193: 0.0303030303 | CM193: 0.0303030303 | CN193: 0.0303030303 | CO193: 0.0303030303 | CP193: 0.0303030303 | CQ193: 0.0303030303 | CR193: 0.0303030303 | CS193: 0.0303030303 | CT193: 0.0303030303 | CU193: 0.0303030303 | CV193: 0.0303030303
G194: 30 | H194: 94 | I194: Guainía | J194: [%] | K194: 0.0303030303 | L194: 0.0303030303 | M194: 0.0303030303 | N194: 0.0303030303 | O194: 0.0303030303 | P194: 0.0303030303 | Q194: 0.0303030303 | R194: 0.0303030303 | S194: 0.0303030303 | T194: 0.0303030303 | U194: 0.0303030303 | V194: 0.0303030303 | W194: 0.0303030303 | X194: 0.0303030303 | Y194: 0.0303030303 | Z194: 0.0303030303 | AA194: 0.0303030303 | AB194: 0.0303030303 | AC194: 0.0303030303 | AD194: 0.0303030303 | AE194: 0.0303030303 | AF194: 0.0303030303 | AG194: 0.0303030303 | AH194: 0.0303030303 | AI194: 0.0303030303 | AJ194: 0.0303030303 | AK194: 0.0303030303 | AL194: 0.0303030303 | AM194: 0.0303030303 | AN194: 0.0303030303 | AO194: 0.0303030303 | AP194: 0.0303030303 | AQ194: 0.0303030303 | AR194: 0.0303030303 | AS194: 0.0303030303 | AT194: 0.0303030303 | AU194: 0.0303030303 | AV194: 0.0303030303 | AW194: 0.0303030303 | AX194: 0.0303030303 | AY194: 0.0303030303 | AZ194: 0.0303030303 | BA194: 0.0303030303 | BB194: 0.0303030303 | BC194: 0.0303030303 | BD194: 0.0303030303 | BE194: 0.0303030303 | BF194: 0.0303030303 | BG194: 0.0303030303 | BH194: 0.0303030303 | BI194: 0.0303030303 | BJ194: 0.0303030303 | BK194: 0.0303030303 | BL194: 0.0303030303 | BM194: 0.0303030303 | BN194: 0.0303030303 | BO194: 0.0303030303 | BP194: 0.0303030303 | BQ194: 0.0303030303 | BR194: 0.0303030303 | BS194: 0.0303030303 | BT194: 0.0303030303 | BU194: 0.0303030303 | BV194: 0.0303030303 | BW194: 0.0303030303 | BX194: 0.0303030303 | BY194: 0.0303030303 | BZ194: 0.0303030303 | CA194: 0.0303030303 | CB194: 0.0303030303 | CC194: 0.0303030303 | CD194: 0.0303030303 | CE194: 0.0303030303 | CF194: 0.0303030303 | CG194: 0.0303030303 | CH194: 0.0303030303 | CI194: 0.0303030303 | CJ194: 0.0303030303 | CK194: 0.0303030303 | CL194: 0.0303030303 | CM194: 0.0303030303 | CN194: 0.0303030303 | CO194: 0.0303030303 | CP194: 0.0303030303 | CQ194: 0.0303030303 | CR194: 0.0303030303 | CS194: 0.0303030303 | CT194: 0.0303030303 | CU194: 0.0303030303 | CV194: 0.0303030303
G195: 31 | H195: 95 | I195: Guaviare | J195: [%] | K195: 0.0303030303 | L195: 0.0303030303 | M195: 0.0303030303 | N195: 0.0303030303 | O195: 0.0303030303 | P195: 0.0303030303 | Q195: 0.0303030303 | R195: 0.0303030303 | S195: 0.0303030303 | T195: 0.0303030303 | U195: 0.0303030303 | V195: 0.0303030303 | W195: 0.0303030303 | X195: 0.0303030303 | Y195: 0.0303030303 | Z195: 0.0303030303 | AA195: 0.0303030303 | AB195: 0.0303030303 | AC195: 0.0303030303 | AD195: 0.0303030303 | AE195: 0.0303030303 | AF195: 0.0303030303 | AG195: 0.0303030303 | AH195: 0.0303030303 | AI195: 0.0303030303 | AJ195: 0.0303030303 | AK195: 0.0303030303 | AL195: 0.0303030303 | AM195: 0.0303030303 | AN195: 0.0303030303 | AO195: 0.0303030303 | AP195: 0.0303030303 | AQ195: 0.0303030303 | AR195: 0.0303030303 | AS195: 0.0303030303 | AT195: 0.0303030303 | AU195: 0.0303030303 | AV195: 0.0303030303 | AW195: 0.0303030303 | AX195: 0.0303030303 | AY195: 0.0303030303 | AZ195: 0.0303030303 | BA195: 0.0303030303 | BB195: 0.0303030303 | BC195: 0.0303030303 | BD195: 0.0303030303 | BE195: 0.0303030303 | BF195: 0.0303030303 | BG195: 0.0303030303 | BH195: 0.0303030303 | BI195: 0.0303030303 | BJ195: 0.0303030303 | BK195: 0.0303030303 | BL195: 0.0303030303 | BM195: 0.0303030303 | BN195: 0.0303030303 | BO195: 0.0303030303 | BP195: 0.0303030303 | BQ195: 0.0303030303 | BR195: 0.0303030303 | BS195: 0.0303030303 | BT195: 0.0303030303 | BU195: 0.0303030303 | BV195: 0.0303030303 | BW195: 0.0303030303 | BX195: 0.0303030303 | BY195: 0.0303030303 | BZ195: 0.0303030303 | CA195: 0.0303030303 | CB195: 0.0303030303 | CC195: 0.0303030303 | CD195: 0.0303030303 | CE195: 0.0303030303 | CF195: 0.0303030303 | CG195: 0.0303030303 | CH195: 0.0303030303 | CI195: 0.0303030303 | CJ195: 0.0303030303 | CK195: 0.0303030303 | CL195: 0.0303030303 | CM195: 0.0303030303 | CN195: 0.0303030303 | CO195: 0.0303030303 | CP195: 0.0303030303 | CQ195: 0.0303030303 | CR195: 0.0303030303 | CS195: 0.0303030303 | CT195: 0.0303030303 | CU195: 0.0303030303 | CV195: 0.0303030303
G196: 32 | H196: 97 | I196: Vaupés | J196: [%] | K196: 0.0303030303 | L196: 0.0303030303 | M196: 0.0303030303 | N196: 0.0303030303 | O196: 0.0303030303 | P196: 0.0303030303 | Q196: 0.0303030303 | R196: 0.0303030303 | S196: 0.0303030303 | T196: 0.0303030303 | U196: 0.0303030303 | V196: 0.0303030303 | W196: 0.0303030303 | X196: 0.0303030303 | Y196: 0.0303030303 | Z196: 0.0303030303 | AA196: 0.0303030303 | AB196: 0.0303030303 | AC196: 0.0303030303 | AD196: 0.0303030303 | AE196: 0.0303030303 | AF196: 0.0303030303 | AG196: 0.0303030303 | AH196: 0.0303030303 | AI196: 0.0303030303 | AJ196: 0.0303030303 | AK196: 0.0303030303 | AL196: 0.0303030303 | AM196: 0.0303030303 | AN196: 0.0303030303 | AO196: 0.0303030303 | AP196: 0.0303030303 | AQ196: 0.0303030303 | AR196: 0.0303030303 | AS196: 0.0303030303 | AT196: 0.0303030303 | AU196: 0.0303030303 | AV196: 0.0303030303 | AW196: 0.0303030303 | AX196: 0.0303030303 | AY196: 0.0303030303 | AZ196: 0.0303030303 | BA196: 0.0303030303 | BB196: 0.0303030303 | BC196: 0.0303030303 | BD196: 0.0303030303 | BE196: 0.0303030303 | BF196: 0.0303030303 | BG196: 0.0303030303 | BH196: 0.0303030303 | BI196: 0.0303030303 | BJ196: 0.0303030303 | BK196: 0.0303030303 | BL196: 0.0303030303 | BM196: 0.0303030303 | BN196: 0.0303030303 | BO196: 0.0303030303 | BP196: 0.0303030303 | BQ196: 0.0303030303 | BR196: 0.0303030303 | BS196: 0.0303030303 | BT196: 0.0303030303 | BU196: 0.0303030303 | BV196: 0.0303030303 | BW196: 0.0303030303 | BX196: 0.0303030303 | BY196: 0.0303030303 | BZ196: 0.0303030303 | CA196: 0.0303030303 | CB196: 0.0303030303 | CC196: 0.0303030303 | CD196: 0.0303030303 | CE196: 0.0303030303 | CF196: 0.0303030303 | CG196: 0.0303030303 | CH196: 0.0303030303 | CI196: 0.0303030303 | CJ196: 0.0303030303 | CK196: 0.0303030303 | CL196: 0.0303030303 | CM196: 0.0303030303 | CN196: 0.0303030303 | CO196: 0.0303030303 | CP196: 0.0303030303 | CQ196: 0.0303030303 | CR196: 0.0303030303 | CS196: 0.0303030303 | CT196: 0.0303030303 | CU196: 0.0303030303 | CV196: 0.0303030303
G197: 33 | H197: 99 | I197: Vichada | J197: [%] | K197: 0.0303030303 | L197: 0.0303030303 | M197: 0.0303030303 | N197: 0.0303030303 | O197: 0.0303030303 | P197: 0.0303030303 | Q197: 0.0303030303 | R197: 0.0303030303 | S197: 0.0303030303 | T197: 0.0303030303 | U197: 0.0303030303 | V197: 0.0303030303 | W197: 0.0303030303 | X197: 0.0303030303 | Y197: 0.0303030303 | Z197: 0.0303030303 | AA197: 0.0303030303 | AB197: 0.0303030303 | AC197: 0.0303030303 | AD197: 0.0303030303 | AE197: 0.0303030303 | AF197: 0.0303030303 | AG197: 0.0303030303 | AH197: 0.0303030303 | AI197: 0.0303030303 | AJ197: 0.0303030303 | AK197: 0.0303030303 | AL197: 0.0303030303 | AM197: 0.0303030303 | AN197: 0.0303030303 | AO197: 0.0303030303 | AP197: 0.0303030303 | AQ197: 0.0303030303 | AR197: 0.0303030303 | AS197: 0.0303030303 | AT197: 0.0303030303 | AU197: 0.0303030303 | AV197: 0.0303030303 | AW197: 0.0303030303 | AX197: 0.0303030303 | AY197: 0.0303030303 | AZ197: 0.0303030303 | BA197: 0.0303030303 | BB197: 0.0303030303 | BC197: 0.0303030303 | BD197: 0.0303030303 | BE197: 0.0303030303 | BF197: 0.0303030303 | BG197: 0.0303030303 | BH197: 0.0303030303 | BI197: 0.0303030303 | BJ197: 0.0303030303 | BK197: 0.0303030303 | BL197: 0.0303030303 | BM197: 0.0303030303 | BN197: 0.0303030303 | BO197: 0.0303030303 | BP197: 0.0303030303 | BQ197: 0.0303030303 | BR197: 0.0303030303 | BS197: 0.0303030303 | BT197: 0.0303030303 | BU197: 0.0303030303 | BV197: 0.0303030303 | BW197: 0.0303030303 | BX197: 0.0303030303 | BY197: 0.0303030303 | BZ197: 0.0303030303 | CA197: 0.0303030303 | CB197: 0.0303030303 | CC197: 0.0303030303 | CD197: 0.0303030303 | CE197: 0.0303030303 | CF197: 0.0303030303 | CG197: 0.0303030303 | CH197: 0.0303030303 | CI197: 0.0303030303 | CJ197: 0.0303030303 | CK197: 0.0303030303 | CL197: 0.0303030303 | CM197: 0.0303030303 | CN197: 0.0303030303 | CO197: 0.0303030303 | CP197: 0.0303030303 | CQ197: 0.0303030303 | CR197: 0.0303030303 | CS197: 0.0303030303 | CT197: 0.0303030303 | CU197: 0.0303030303 | CV197: 0.0303030303 | CW197: dda.p.pob.dpto
I199: Total | J199: [%] | K199: =+SUM(K165:K197) -> 1 | L199: 1 | M199: 1 | N199: 1 | O199: 1 | P199: 1 | Q199: 1 | R199: 1 | S199: 1 | T199: 1 | U199: 1 | V199: 1 | W199: 1 | X199: 1 | Y199: 1 | Z199: 1 | AA199: 1 | AB199: 1 | AC199: 1 | AD199: 1 | AE199: 1 | AF199: 1 | AG199: 1 | AH199: 1 | AI199: 1 | AJ199: 1 | AK199: 1 | AL199: 1 | AM199: 1 | AN199: 1 | AO199: 1 | AP199: 1 | AQ199: =+SUM(AQ165:AQ197) -> 1 | AR199: 1 | AS199: 1 | AT199: 1 | AU199: 1 | AV199: 1 | AW199: 1 | AX199: 1 | AY199: 1 | AZ199: 1 | BA199: 1 | BB199: 1 | BC199: 1 | BD199: 1 | BE199: 1 | BF199: 1 | BG199: 1 | BH199: 1 | BI199: 1 | BJ199: 1 | BK199: 1 | BL199: 1 | BM199: 1 | BN199: 1 | BO199: 1 | BP199: 1 | BQ199: 1 | BR199: 1 | BS199: 1 | BT199: 1 | BU199: 1 | BV199: 1 | BW199: =+SUM(BW165:BW197) -> 1 | BX199: 1 | BY199: 1 | BZ199: 1 | CA199: 1 | CB199: 1 | CC199: 1 | CD199: 1 | CE199: 1 | CF199: 1 | CG199: 1 | CH199: 1 | CI199: 1 | CJ199: 1 | CK199: 1 | CL199: 1 | CM199: 1 | CN199: 1 | CO199: 1 | CP199: 1 | CQ199: 1 | CR199: 1 | CS199: 1 | CT199: 1 | CU199: 1 | CV199: 1
B201: Abonados
C203: Resumen global
F205: Total prepago inicio de período
K206: Nota: esta tabla es variable en los valores azules, el usuario puede cambiar a voluntad. No necesariamente un valor real (y por ende confidencial) de alguna empresa
H207: id | I207: empresa | K207: =+INDEX(dda.l.año.num,K$5) -> 2015 | L207: 2016 | M207: 2017 | N207: 2018 | O207: 2019 | P207: 2020
H208: 1 | I208: =+INDEX(dda.l.emp,H208) -> Comcel | J208: [abonado] | K208: 1 | L208: 1 | M208: 1 | N208: 1 | O208: 1 | P208: 1
H209: =+H208+1 -> 2 | I209: Movistar | J209: [abonado] | K209: 1 | L209: 1 | M209: 1 | N209: 1 | O209: 1 | P209: 1
H210: 3 | I210: Tigo | J210: [abonado] | K210: 1 | L210: 1 | M210: 1 | N210: 1 | O210: 1 | P210: 1
H211: 4 | I211: Uff | J211: [abonado] | K211: 1 | L211: 1 | M211: 1 | N211: 1 | O211: 1 | P211: 1
H212: 5 | I212: EPM | J212: [abonado] | K212: 1 | L212: 1 | M212: 1 | N212: 1 | O212: 1 | P212: 1
H213: 6 | I213: Éxito | J213: [abonado] | K213: 1 | L213: 1 | M213: 1 | N213: 1 | O213: 1 | P213: 1
H214: 7 | I214: Avantel | J214: [abonado] | K214: 1 | L214: 1 | M214: 1 | N214: 1 | O214: 1 | P214: 1
H215: 8 | I215: Virgin | J215: [abonado] | K215: 1 | L215: 1 | M215: 1 | N215: 1 | O215: 1 | P215: 1
H216: 9 | I216: ETB | J216: [abonado] | K216: 1 | L216: 1 | M216: 1 | N216: 1 | O216: 1 | P216: 1
H217: 10 | I217: EE | J217: [abonado] | K217: =+AVERAGE(K208,K209,K210) -> 1 | L217: 1 | M217: 1 | N217: 1 | O217: 1 | P217: 1
H218: 11 | I218: libre | J218: [abonado] | K218: 0 | L218: 0 | M218: 0 | N218: 0 | O218: 0 | P218: 0
... 797 more rows

Sheet Parametros.Red
E2: Modelo Empresa Eficiente Móvil
E3: Parámetros para el Diseño de Red
B6: Generales
C8: id | D8: Parámetros
C9: 1 | D9: Horizonte de estudio | F9: 0 | G9: 1 | H9: 2 | I9: 3 | J9: 4 | K9: 5 | L9: años
C10: 2 | D10: Años calendario | F10: 2015 | G10: 2016 | H10: 2017 | I10: 2018 | J10: 2019 | K10: 2020 | L10: años.calendario
C11: 3 | D11: Empresas | F11: 1 | G11: 1 | H11: 1 | I11: 1 | J11: 1 | K11: 1 | L11: 2 | M11: 2 | N11: 2 | O11: 2 | P11: 2 | Q11: 2 | R11: 3 | S11: 3 | T11: 3 | U11: 3 | V11: 3 | W11: 3 | X11: 4 | Y11: 4 | Z11: 4 | AA11: 4 | AB11: 4 | AC11: 4 | AD11: 5 | AE11: 5 | AF11: 5 | AG11: 5 | AH11: 5 | AI11: 5 | AJ11: 6 | AK11: 6 | AL11: 6 | AM11: 6 | AN11: 6 | AO11: 6 | AP11: 7 | AQ11: 7 | AR11: 7 | AS11: 7 | AT11: 7 | AU11: 7 | AV11: 8 | AW11: 8 | AX11: 8 | AY11: 8 | AZ11: 8 | BA11: 8 | BB11: lista.escenarios
C12: 4 | D12: Columnas | F12: 1 | G12: 2 | H12: 3 | I12: 4 | J12: 5 | K12: 6 | L12: 7 | M12: 8 | N12: 9 | O12: 10 | P12: 11 | Q12: 12 | R12: 13 | S12: 14 | T12: 15 | U12: 16 | V12: 17 | W12: 18 | X12: 19 | Y12: 20 | Z12: 21 | AA12: 22 | AB12: 23 | AC12: 24 | AD12: 25 | AE12: 26 | AF12: 27 | AG12: 28 | AH12: 29 | AI12: 30 | AJ12: 31 | AK12: 32 | AL12: 33 | AM12: 34 | AN12: 35 | AO12: 36 | AP12: 37 | AQ12: 38 | AR12: 39 | AS12: 40 | AT12: 41 | AU12: 42 | AV12: 43 | AW12: 44 | AX12: 45 | AY12: 46 | AZ12: 47 | BA12: 48 | BB12: columnas
C13: 5 | D13: Factor de área de las celdas | F13: 2.6 | G13: factor.area
C15: id | D15: Empresas
C16: 1 | D16: Empresa 1
C17: 2 | D17: Empresa 2
C18: 3 | D18: Empresa 3
C19: 4 | D19: Empresa 4
C20: 5 | D20: Empresa 5
C21: 6 | D21: Empresa 6
C22: 7 | D22: Empresa 7
C23: 8 | D23: Empresa 8 | E23: lista.empresas
C25: id | D25: Superficie
C26: 1 | D26: Urbana
C27: =C26+1 -> 2 | D27: Semiurbana
C28: =C27+1 -> 3 | D28: Rural
C29: =C28+1 -> 4 | D29: Carreteras
C30: =C29+1 -> 5 | D30: Indoor | E30: tipo.superficies
C32: id | D32: Geotipo | F32: Aux Geotipo
C33: 1 | D33: Urbana | F33: 1
C34: =C33+1 -> 2 | D34: Semiurbana | F34: =F33+1 -> 2
C35: 3 | D35: Rural | F35: 3
C36: 4 | D36: Carreteras | F36: 4
C37: 5 | D37: Indoor | F37: 5
C38: 6 | D38: Especiales | F38: 6
C39: 7 | D39: Repuestos | F39: 7
C40: 8 | D40: libre | F40: 8
C41: 9 | D41: libre | F41: 9
C42: 10 | D42: libre | E42: geotipos | F42: 10
C44: id | D44: Tipo Celdas
C45: 1 | D45: Macrocelda
C46: =C45+1 -> 2 | D46: Microcelda
C47: =C46+1 -> 3 | D47: Picocelda | E47: tipo.celdas
C49: id | D49: Tecnologías
C50: 1 | D50: 2G GSM
C51: 2 | D51: 3G UMTS
C52: 3 | D52: 4G LTE
C53: 4 | D53: 3G/2G UMTS/GSM
C54: 5 | E54: lista.tecnología
C56: id | D56: Bandas de Espectro
C57: 1 | D57: Banda 850 MHz
C58: 2 | D58: Banda 1.900 MHz
C59: 3 | D59: Banda 1.700 - 2.100 MHz
C60: 4 | D60: Banda 700 MHz
C61: 5 | D61: Banda 2.600 MHz | E61: banda.espectro
C63: id | D63: Propagación
C64: 1 | D64: B.Baja
C65: 2 | D65: B.Alta
C66: 3 | D66: Dual | E66: banda.propagación
C68: id | D68: Sectores
C69: 1 | D69: 1 sector
C70: 2 | D70: 2 sectores
C71: 3 | D71: 3 sectores
C72: 4 | D72: 4 sectores
C73: 5 | D73: 6 sectores | E73: lista.sectores
B75: Población por Departamento y Localización de Elementos de Red
C77: Población por Departamento
C79: id | D79: Departamento | F79: =años.calendario -> 2015 | G79: 2016 | H79: 2017 | I79: 2018 | J79: 2019 | K79: 2020
C80: 1 | D80: Antioquia | F80: 1 | G80: 1 | H80: 1 | I80: 1 | J80: 1 | K80: 1 | L80: [personas] | N80: Nota: Valor reemplazado con un 1
C81: =C80+1 -> 2 | D81: Atlántico | F81: 1 | G81: 1 | H81: 1 | I81: 1 | J81: 1 | K81: 1 | L81: [personas] | N81: Nota: Valor reemplazado con un 1
C82: 3 | D82: Bogotá, D.C. | F82: 1 | G82: 1 | H82: 1 | I82: 1 | J82: 1 | K82: 1 | L82: [personas] | N82: Nota: Valor reemplazado con un 1
C83: 4 | D83: Bolívar | F83: 1 | G83: 1 | H83: 1 | I83: 1 | J83: 1 | K83: 1 | L83: [personas] | N83: Nota: Valor reemplazado con un 1
C84: 5 | D84: Boyacá | F84: 1 | G84: 1 | H84: 1 | I84: 1 | J84: 1 | K84: 1 | L84: [personas] | N84: Nota: Valor reemplazado con un 1
C85: 6 | D85: Caldas | F85: 1 | G85: 1 | H85: 1 | I85: 1 | J85: 1 | K85: 1 | L85: [personas] | N85: Nota: Valor reemplazado con un 1
C86: 7 | D86: Caquetá | F86: 1 | G86: 1 | H86: 1 | I86: 1 | J86: 1 | K86: 1 | L86: [personas] | N86: Nota: Valor reemplazado con un 1
C87: 8 | D87: Cauca | F87: 1 | G87: 1 | H87: 1 | I87: 1 | J87: 1 | K87: 1 | L87: [personas] | N87: Nota: Valor reemplazado con un 1
C88: 9 | D88: Cesar | F88: 1 | G88: 1 | H88: 1 | I88: 1 | J88: 1 | K88: 1 | L88: [personas] | N88: Nota: Valor reemplazado con un 1
C89: 10 | D89: Córdoba | F89: 1 | G89: 1 | H89: 1 | I89: 1 | J89: 1 | K89: 1 | L89: [personas] | N89: Nota: Valor reemplazado con un 1
C90: 11 | D90: Cundinamarca | F90: 1 | G90: 1 | H90: 1 | I90: 1 | J90: 1 | K90: 1 | L90: [personas] | N90: Nota: Valor reemplazado con un 1
C91: 12 | D91: Chocó | F91: 1 | G91: 1 | H91: 1 | I91: 1 | J91: 1 | K91: 1 | L91: [personas] | N91: Nota: Valor reemplazado con un 1
C92: 13 | D92: Huila | F92: 1 | G92: 1 | H92: 1 | I92: 1 | J92: 1 | K92: 1 | L92: [personas] | N92: Nota: Valor reemplazado con un 1
C93: 14 | D93: La Guajira | F93: 1 | G93: 1 | H93: 1 | I93: 1 | J93: 1 | K93: 1 | L93: [personas] | N93: Nota: Valor reemplazado con un 1
C94: 15 | D94: Magdalena | F94: 1 | G94: 1 | H94: 1 | I94: 1 | J94: 1 | K94: 1 | L94: [personas] | N94: Nota: Valor reemplazado con un 1
C95: 16 | D95: Meta | F95: 1 | G95: 1 | H95: 1 | I95: 1 | J95: 1 | K95: 1 | L95: [personas] | N95: Nota: Valor reemplazado con un 1
C96: 17 | D96: Nariño | F96: 1 | G96: 1 | H96: 1 | I96: 1 | J96: 1 | K96: 1 | L96: [personas] | N96: Nota: Valor reemplazado con un 1
C97: 18 | D97: Norte de Santander | F97: 1 | G97: 1 | H97: 1 | I97: 1 | J97: 1 | K97: 1 | L97: [personas] | N97: Nota: Valor reemplazado con un 1
C98: 19 | D98: Quindio | F98: 1 | G98: 1 | H98: 1 | I98: 1 | J98: 1 | K98: 1 | L98: [personas] | N98: Nota: Valor reemplazado con un 1
C99: 20 | D99: Risaralda | F99: 1 | G99: 1 | H99: 1 | I99: 1 | J99: 1 | K99: 1 | L99: [personas] | N99: Nota: Valor reemplazado con un 1
C100: 21 | D100: Santander | F100: 1 | G100: 1 | H100: 1 | I100: 1 | J100: 1 | K100: 1 | L100: [personas] | N100: Nota: Valor reemplazado con un 1
C101: 22 | D101: Sucre | F101: 1 | G101: 1 | H101: 1 | I101: 1 | J101: 1 | K101: 1 | L101: [personas] | N101: Nota: Valor reemplazado con un 1
C102: 23 | D102: Tolima | F102: 1 | G102: 1 | H102: 1 | I102: 1 | J102: 1 | K102: 1 | L102: [personas] | N102: Nota: Valor reemplazado con un 1
C103: 24 | D103: Valle del Cauca | F103: 1 | G103: 1 | H103: 1 | I103: 1 | J103: 1 | K103: 1 | L103: [personas] | N103: Nota: Valor reemplazado con un 1
C104: 25 | D104: Arauca | F104: 1 | G104: 1 | H104: 1 | I104: 1 | J104: 1 | K104: 1 | L104: [personas] | N104: Nota: Valor reemplazado con un 1
C105: 26 | D105: Casanare | F105: 1 | G105: 1 | H105: 1 | I105: 1 | J105: 1 | K105: 1 | L105: [personas] | N105: Nota: Valor reemplazado con un 1
C106: 27 | D106: Putumayo | F106: 1 | G106: 1 | H106: 1 | I106: 1 | J106: 1 | K106: 1 | L106: [personas] | N106: Nota: Valor reemplazado con un 1
C107: 28 | D107: Archipiélago de San Andrés | F107: 1 | G107: 1 | H107: 1 | I107: 1 | J107: 1 | K107: 1 | L107: [personas] | N107: Nota: Valor reemplazado con un 1
C108: 29 | D108: Amazonas | F108: 1 | G108: 1 | H108: 1 | I108: 1 | J108: 1 | K108: 1 | L108: [personas] | N108: Nota: Valor reemplazado con un 1
C109: 30 | D109: Guainía | F109: 1 | G109: 1 | H109: 1 | I109: 1 | J109: 1 | K109: 1 | L109: [personas] | N109: Nota: Valor reemplazado con un 1
C110: 31 | D110: Guaviare | F110: 1 | G110: 1 | H110: 1 | I110: 1 | J110: 1 | K110: 1 | L110: [personas] | N110: Nota: Valor reemplazado con un 1
C111: 32 | D111: Vaupés | F111: 1 | G111: 1 | H111: 1 | I111: 1 | J111: 1 | K111: 1 | L111: [personas] | N111: Nota: Valor reemplazado con un 1
C112: 33 | D112: Vichada | F112: 1 | G112: 1 | H112: 1 | I112: 1 | J112: 1 | K112: 1 | L112: [personas] | N112: Nota: Valor reemplazado con un 1
C113: 34 | D113: libre
C114: 35 | D114: libre
C115: 36 | D115: libre
C116: 37 | D116: libre
C117: 38 | D117: libre
C118: 39 | D118: libre
C119: 40 | D119: libre | L119: Fuente: DANE. | M119: p.pobla
D120: lista.departamentos
D121: Total | F121: =SUM(F80:F119) -> 33 | G121: 33 | H121: 33 | I121: 33 | J121: 33 | K121: 33 | L121: [personas]
C123: Distribución de Población por Departamento
C125: id | D125: Departamento | F125: =años -> 0 | G125: 1 | H125: 2 | I125: 3 | J125: 4 | K125: 5
C126: 1 | D126: =lista.departamentos -> Antioquia | F126: =F80/F$121 -> 0.0303030303 | G126: 0.0303030303 | H126: 0.0303030303 | I126: 0.0303030303 | J126: 0.0303030303 | K126: 0.0303030303 | L126: [%]
C127: =C126+1 -> 2 | D127: Atlántico | F127: 0.0303030303 | G127: 0.0303030303 | H127: 0.0303030303 | I127: 0.0303030303 | J127: 0.0303030303 | K127: 0.0303030303 | L127: [%]
C128: 3 | D128: Bogotá, D.C. | F128: 0.0303030303 | G128: 0.0303030303 | H128: 0.0303030303 | I128: 0.0303030303 | J128: 0.0303030303 | K128: 0.0303030303 | L128: [%]
C129: 4 | D129: Bolívar | F129: 0.0303030303 | G129: 0.0303030303 | H129: 0.0303030303 | I129: 0.0303030303 | J129: 0.0303030303 | K129: 0.0303030303 | L129: [%]
C130: 5 | D130: Boyacá | F130: 0.0303030303 | G130: 0.0303030303 | H130: 0.0303030303 | I130: 0.0303030303 | J130: 0.0303030303 | K130: 0.0303030303 | L130: [%]
C131: 6 | D131: Caldas | F131: 0.0303030303 | G131: 0.0303030303 | H131: 0.0303030303 | I131: 0.0303030303 | J131: 0.0303030303 | K131: 0.0303030303 | L131: [%]
C132: 7 | D132: Caquetá | F132: 0.0303030303 | G132: 0.0303030303 | H132: 0.0303030303 | I132: 0.0303030303 | J132: 0.0303030303 | K132: 0.0303030303 | L132: [%]
C133: 8 | D133: Cauca | F133: 0.0303030303 | G133: 0.0303030303 | H133: 0.0303030303 | I133: 0.0303030303 | J133: 0.0303030303 | K133: 0.0303030303 | L133: [%]
C134: 9 | D134: Cesar | F134: 0.0303030303 | G134: 0.0303030303 | H134: 0.0303030303 | I134: 0.0303030303 | J134: 0.0303030303 | K134: 0.0303030303 | L134: [%]
C135: 10 | D135: Córdoba | F135: 0.0303030303 | G135: 0.0303030303 | H135: 0.0303030303 | I135: 0.0303030303 | J135: 0.0303030303 | K135: 0.0303030303 | L135: [%]
C136: 11 | D136: Cundinamarca | F136: =F90/F$121 -> 0.0303030303 | G136: 0.0303030303 | H136: 0.0303030303 | I136: 0.0303030303 | J136: 0.0303030303 | K136: 0.0303030303 | L136: [%]
C137: 12 | D137: Chocó | F137: 0.0303030303 | G137: 0.0303030303 | H137: 0.0303030303 | I137: 0.0303030303 | J137: 0.0303030303 | K137: 0.0303030303 | L137: [%]
C138: 13 | D138: Huila | F138: 0.0303030303 | G138: 0.0303030303 | H138: 0.0303030303 | I138: 0.0303030303 | J138: 0.0303030303 | K138: 0.0303030303 | L138: [%]
C139: 14 | D139: La Guajira | F139: 0.0303030303 | G139: 0.0303030303 | H139: 0.0303030303 | I139: 0.0303030303 | J139: 0.0303030303 | K139: 0.0303030303 | L139: [%]
C140: 15 | D140: Magdalena | F140: 0.0303030303 | G140: 0.0303030303 | H140: 0.0303030303 | I140: 0.0303030303 | J140: 0.0303030303 | K140: 0.0303030303 | L140: [%]
C141: 16 | D141: Meta | F141: 0.0303030303 | G141: 0.0303030303 | H141: 0.0303030303 | I141: 0.0303030303 | J141: 0.0303030303 | K141: 0.0303030303 | L141: [%]
C142: 17 | D142: Nariño | F142: 0.0303030303 | G142: 0.0303030303 | H142: 0.0303030303 | I142: 0.0303030303 | J142: 0.0303030303 | K142: 0.0303030303 | L142: [%]
C143: 18 | D143: Norte de Santander | F143: 0.0303030303 | G143: 0.0303030303 | H143: 0.0303030303 | I143: 0.0303030303 | J143: 0.0303030303 | K143: 0.0303030303 | L143: [%]
C144: 19 | D144: Quindio | F144: 0.0303030303 | G144: 0.0303030303 | H144: 0.0303030303 | I144: 0.0303030303 | J144: 0.0303030303 | K144: 0.0303030303 | L144: [%]
C145: 20 | D145: Risaralda | F145: 0.0303030303 | G145: 0.0303030303 | H145: 0.0303030303 | I145: 0.0303030303 | J145: 0.0303030303 | K145: 0.0303030303 | L145: [%]
C146: 21 | D146: Santander | F146: =F100/F$121 -> 0.0303030303 | G146: 0.0303030303 | H146: 0.0303030303 | I146: 0.0303030303 | J146: 0.0303030303 | K146: 0.0303030303 | L146: [%]
C147: 22 | D147: Sucre | F147: 0.0303030303 | G147: 0.0303030303 | H147: 0.0303030303 | I147: 0.0303030303 | J147: 0.0303030303 | K147: 0.0303030303 | L147: [%]
C148: 23 | D148: Tolima | F148: 0.0303030303 | G148: 0.0303030303 | H148: 0.0303030303 | I148: 0.0303030303 | J148: 0.0303030303 | K148: 0.0303030303 | L148: [%]
C149: 24 | D149: Valle del Cauca | F149: 0.0303030303 | G149: 0.0303030303 | H149: 0.0303030303 | I149: 0.0303030303 | J149: 0.0303030303 | K149: 0.0303030303 | L149: [%]
C150: 25 | D150: Arauca | F150: 0.0303030303 | G150: 0.0303030303 | H150: 0.0303030303 | I150: 0.0303030303 | J150: 0.0303030303 | K150: 0.0303030303 | L150: [%]
C151: 26 | D151: Casanare | F151: 0.0303030303 | G151: 0.0303030303 | H151: 0.0303030303 | I151: 0.0303030303 | J151: 0.0303030303 | K151: 0.0303030303 | L151: [%]
C152: 27 | D152: Putumayo | F152: 0.0303030303 | G152: 0.0303030303 | H152: 0.0303030303 | I152: 0.0303030303 | J152: 0.0303030303 | K152: 0.0303030303 | L152: [%]
C153: 28 | D153: Archipiélago de San Andrés | F153: 0.0303030303 | G153: 0.0303030303 | H153: 0.0303030303 | I153: 0.0303030303 | J153: 0.0303030303 | K153: 0.0303030303 | L153: [%]
C154: 29 | D154: Amazonas | F154: 0.0303030303 | G154: 0.0303030303 | H154: 0.0303030303 | I154: 0.0303030303 | J154: 0.0303030303 | K154: 0.0303030303 | L154: [%]
C155: 30 | D155: Guainía | F155: 0.0303030303 | G155: 0.0303030303 | H155: 0.0303030303 | I155: 0.0303030303 | J155: 0.0303030303 | K155: 0.0303030303 | L155: [%]
C156: 31 | D156: Guaviare | F156: =F110/F$121 -> 0.0303030303 | G156: 0.0303030303 | H156: 0.0303030303 | I156: 0.0303030303 | J156: 0.0303030303 | K156: 0.0303030303 | L156: [%]
C157: 32 | D157: Vaupés | F157: 0.0303030303 | G157: 0.0303030303 | H157: 0.0303030303 | I157: 0.0303030303 | J157: 0.0303030303 | K157: 0.0303030303 | L157: [%]
C158: 33 | D158: Vichada | F158: 0.0303030303 | G158: 0.0303030303 | H158: 0.0303030303 | I158: 0.0303030303 | J158: 0.0303030303 | K158: 0.0303030303 | L158: [%]
C159: 34 | D159: libre | F159: 0 | G159: 0 | H159: 0 | I159: 0 | J159: 0 | K159: 0 | L159: [%]
C160: 35 | D160: libre | F160: 0 | G160: 0 | H160: 0 | I160: 0 | J160: 0 | K160: 0 | L160: [%]
C161: 36 | D161: libre | F161: 0 | G161: 0 | H161: 0 | I161: 0 | J161: 0 | K161: 0 | L161: [%]
C162: 37 | D162: libre | F162: 0 | G162: 0 | H162: 0 | I162: 0 | J162: 0 | K162: 0 | L162: [%]
C163: 38 | D163: libre | F163: 0 | G163: 0 | H163: 0 | I163: 0 | J163: 0 | K163: 0 | L163: [%]
C164: 39 | D164: libre | F164: 0 | G164: 0 | H164: 0 | I164: 0 | J164: 0 | K164: 0 | L164: [%]
C165: 40 | D165: libre | F165: 0 | G165: 0 | H165: 0 | I165: 0 | J165: 0 | K165: 0 | L165: [%]
D167: Total | F167: =SUM(F126:F165) -> 1 | G167: 1 | H167: 1 | I167: 1 | J167: 1 | K167: 1 | L167: [%]
C169: Nodos de Red que atiende cada Departamento
C171: id | D171: Departamento | F171: Capital | G171: BSC | H171: MGW | I171: MSCS | J171: PTR | K171: HLR
C172: 1 | D172: =lista.departamentos -> Antioquia | F172: Medellín | G172: =lista.dpto.a.bsc -> Bogotá | H172: =lista.bsc.a.mgw -> Bogotá | I172: =lista.mgw.a.msc -> Bogotá | J172: =lista.mscs.a.ptr -> Bogotá | K172: =lista.mscs.a.ptr -> Bogotá
C173: =C172+1 -> 2 | D173: Atlántico | F173: Barranquilla | G173: Bogotá | H173: Bogotá | I173: Bogotá | J173: Bogotá | K173: Bogotá
C174: 3 | D174: Bogotá, D.C. | F174: Bogotá | G174: Bogotá | H174: Bogotá | I174: Bogotá | J174: Bogotá | K174: Bogotá
C175: 4 | D175: Bolívar | F175: Cartagena (Turbaco) | G175: Bogotá | H175: Bogotá | I175: Bogotá | J175: Bogotá | K175: Bogotá
C176: 5 | D176: Boyacá | F176: Tunja | G176: Bogotá | H176: Bogotá | I176: Bogotá | J176: Bogotá | K176: Bogotá
C177: 6 | D177: Caldas | F177: Manizales | G177: Bogotá | H177: Bogotá | I177: Bogotá | J177: Bogotá | K177: Bogotá
C178: 7 | D178: Caquetá | F178: Florencia | G178: Bogotá | H178: Bogotá | I178: Bogotá | J178: Bogotá | K178: Bogotá
C179: 8 | D179: Cauca | F179: Popayán | G179: Bogotá | H179: Bogotá | I179: Bogotá | J179: Bogotá | K179: Bogotá
C180: 9 | D180: Cesar | F180: Valledupar | G180: Bogotá | H180: Bogotá | I180: Bogotá | J180: Bogotá | K180: Bogotá
C181: 10 | D181: Córdoba | F181: Montería | G181: Bogotá | H181: Bogotá | I181: Bogotá | J181: Bogotá | K181: Bogotá
C182: 11 | D182: Cundinamarca | F182: Bogotá | G182: Bogotá | H182: Bogotá | I182: Bogotá | J182: Bogotá | K182: Bogotá
C183: 12 | D183: Chocó | F183: Quibdó | G183: Bogotá | H183: Bogotá | I183: Bogotá | J183: Bogotá | K183: Bogotá
C184: 13 | D184: Huila | F184: Neiva | G184: Bogotá | H184: Bogotá | I184: Bogotá | J184: Bogotá | K184: Bogotá
C185: 14 | D185: La Guajira | F185: Riohacha | G185: Bogotá | H185: Bogotá | I185: Bogotá | J185: Bogotá | K185: Bogotá
C186: 15 | D186: Magdalena | F186: Santa Marta | G186: Bogotá | H186: Bogotá | I186: Bogotá | J186: Bogotá | K186: Bogotá
C187: 16 | D187: Meta | F187: Villavicencio | G187: Bogotá | H187: Bogotá | I187: Bogotá | J187: Bogotá | K187: Bogotá
C188: 17 | D188: Nariño | F188: San Juan de Pasto | G188: Bogotá | H188: Bogotá | I188: Bogotá | J188: Bogotá | K188: Bogotá
C189: 18 | D189: Norte de Santander | F189: Cúcuta | G189: Bogotá | H189: Bogotá | I189: Bogotá | J189: Bogotá | K189: Bogotá
C190: 19 | D190: Quindio | F190: Armenia | G190: Bogotá | H190: Bogotá | I190: Bogotá | J190: Bogotá | K190: Bogotá
C191: 20 | D191: Risaralda | F191: Pereira | G191: Bogotá | H191: Bogotá | I191: Bogotá | J191: Bogotá | K191: Bogotá
C192: 21 | D192: Santander | F192: Bucaramanga | G192: Bogotá | H192: Bogotá | I192: Bogotá | J192: Bogotá | K192: Bogotá
C193: 22 | D193: Sucre | F193: Sincelejo | G193: Bogotá | H193: Bogotá | I193: Bogotá | J193: Bogotá | K193: Bogotá
C194: 23 | D194: Tolima | F194: Ibagué | G194: Bogotá | H194: Bogotá | I194: Bogotá | J194: Bogotá | K194: Bogotá
C195: 24 | D195: Valle del Cauca | F195: Cali | G195: Bogotá | H195: Bogotá | I195: Bogotá | J195: Bogotá | K195: Bogotá
C196: 25 | D196: Arauca | F196: Arauca | G196: Bogotá | H196: Bogotá | I196: Bogotá | J196: Bogotá | K196: Bogotá
C197: 26 | D197: Casanare | F197: Yopal | G197: Bogotá | H197: Bogotá | I197: Bogotá | J197: Bogotá | K197: Bogotá
C198: 27 | D198: Putumayo | F198: Mocoa | G198: Bogotá | H198: Bogotá | I198: Bogotá | J198: Bogotá | K198: Bogotá
C199: 28 | D199: Archipiélago de San Andrés | F199: San Andrés | G199: Bogotá | H199: Bogotá | I199: Bogotá | J199: Bogotá | K199: Bogotá
C200: 29 | D200: Amazonas | F200: Leticia | G200: Bogotá | H200: Bogotá | I200: Bogotá | J200: Bogotá | K200: Bogotá
C201: 30 | D201: Guainía | F201: Puerto Inírida | G201: Bogotá | H201: Bogotá | I201: Bogotá | J201: Bogotá | K201: Bogotá
C202: 31 | D202: Guaviare | F202: San José del Guaviare | G202: Bogotá | H202: Bogotá | I202: Bogotá | J202: Bogotá | K202: Bogotá
C203: 32 | D203: Vaupés | F203: Mitú | G203: Bogotá | H203: Bogotá | I203: Bogotá | J203: Bogotá | K203: Bogotá
C204: 33 | D204: Vichada | F204: Puerto Carreño | G204: Bogotá | H204: Bogotá | I204: Bogotá | J204: Bogotá | K204: Bogotá
C205: 34 | D205: libre | F205: libre | G205: libre | H205: libre | I205: libre | J205: 0 | K205: 0
C206: 35 | D206: libre | F206: libre | G206: libre | H206: libre | I206: libre | J206: 0 | K206: 0
C207: 36 | D207: libre | F207: libre | G207: libre | H207: libre | I207: libre | J207: 0 | K207: 0
C208: 37 | D208: libre | F208: libre | G208: libre | H208: libre | I208: libre | J208: 0 | K208: 0
C209: 38 | D209: libre | F209: libre | G209: libre | H209: libre | I209: libre | J209: 0 | K209: 0
C210: 39 | D210: libre | F210: libre | G210: libre | H210: libre | I210: libre | J210: 0 | K210: 0
C211: 40 | D211: libre | F211: libre | G211: libre | H211: libre | I211: libre | J211: 0 | K211: 0
F212: lista.capitales
C214: Locaciones de diseño para BSC y población asociada
C216: id | D216: Capitales | F216: =años -> 0 | G216: 1 | H216: 2 | I216: 3 | J216: 4 | K216: 5 | M216: BSC
C217: 1 | D217: =lista.capitales -> Medellín | F217: =SUMIF(lista.dpto.a.bsc,$D217,F$126:F$165) -> 0 | G217: 0 | H217: 0 | I217: 0 | J217: 0 | K217: 0 | L217: [%] | M217: Bogotá | O217: Nota: Valor reemplazado por capital
C218: =C217+1 -> 2 | D218: Barranquilla | F218: 0 | G218: 0 | H218: 0 | I218: 0 | J218: 0 | K218: 0 | L218: [%] | M218: Bogotá | O218: Nota: Valor reemplazado por capital
C219: 3 | D219: Bogotá | F219: 1 | G219: 1 | H219: 1 | I219: 1 | J219: 1 | K219: 1 | L219: [%] | M219: Bogotá | O219: Nota: Valor reemplazado por capital
C220: 4 | D220: Cartagena (Turbaco) | F220: 0 | G220: 0 | H220: 0 | I220: 0 | J220: 0 | K220: 0 | L220: [%] | M220: Bogotá | O220: Nota: Valor reemplazado por capital
C221: 5 | D221: Tunja | F221: 0 | G221: 0 | H221: 0 | I221: 0 | J221: 0 | K221: 0 | L221: [%] | M221: Bogotá | O221: Nota: Valor reemplazado por capital
C222: 6 | D222: Manizales | F222: 0 | G222: 0 | H222: 0 | I222: 0 | J222: 0 | K222: 0 | L222: [%] | M222: Bogotá | O222: Nota: Valor reemplazado por capital
... 1948 more rows

Sheet Cobertura.Móvil
E2: Modelo Empresa Eficiente Móvil
E3: Cobertura de Servicios Móviles 2G/3G/4G
B6: Cobertura Red de Acceso
C8: Superficie Cubierta por Tipo y Tecnología
C10: Superficie total con cobertura
C12: id | D12: Tipo tecnología | F12: =TRANSPOSE(lista.empresas) -> Empresa 1 | G12: Empresa 2 | H12: Empresa 3 | I12: Empresa 4 | J12: Empresa 5 | K12: Empresa 6 | L12: Empresa 7 | M12: Empresa 8
C13: 1 | D13: Superficie total con cobertura 2G | E13: [km2] | F13: 0 | G13: 0 | H13: 0 | K13: =MAX(F13:J13) -> 0 | Q13: Nota: Valor Empresa Real reemplazado con un 0
C14: 2 | D14: Superficie total con cobertura 3G | E14: [km2] | F14: 0 | G14: 0 | H14: 0 | K14: =MAX(F14:J14) -> 0 | Q14: Nota: Valor Empresa Real reemplazado con un 0
C15: 3 | D15: Superficie total con cobertura 4G | E15: [km2] | F15: 0 | G15: 0 | H15: 0 | I15: =J15 -> 0 | J15: 0 | K15: =MAX(F15:J15) -> 0 | Q15: Nota: Valor Empresa Real reemplazado con un 0
C16: 4 | D16: Superficie total con cobertura 2G con 3G/2G | E16: [km2] | F16: =F13*F17 -> 0 | G16: =G13*G17 -> 0 | H16: =H13*H17 -> 0 | I16: =I13*I17 -> 0 | J16: =J13*J17 -> 0 | K16: =MAX(F16:J16) -> 0
C17: 5 | D17: % cobertura 2G con 3G/2G | E17: [%] | F17: 0 | G17: 0 | H17: 0 | I17: 0 | J17: 0 | K17: =MAX(F17:J17) -> 0
C19: Superficie con cobertura 2G
C21: id | D21: % Tipo superficie 2G GSM | F21: =TRANSPOSE(lista.empresas) -> Empresa 1 | G21: Empresa 2 | H21: Empresa 3 | I21: Empresa 4 | J21: Empresa 5 | K21: Empresa 6 | L21: Empresa 7 | M21: Empresa 8
C22: 1 | D22: =tipo.superficies -> Urbana | E22: [%] | F22: 0 | G22: 0 | H22: 0 | I22: 0 | J22: 0 | K22: =AVERAGE(F22:H22) -> 0 | Q22: Nota: Valor Empresa Real reemplazado con un 0
C23: =C22+1 -> 2 | D23: Semiurbana | E23: [%] | F23: 0 | G23: 0 | H23: 0 | I23: 0 | J23: 0 | K23: =AVERAGE(F23:H23) -> 0 | Q23: Nota: Valor Empresa Real reemplazado con un 0
C24: =C23+1 -> 3 | D24: Rural | E24: [%] | F24: 0 | G24: 0 | H24: 0 | I24: 0 | J24: 0 | K24: =AVERAGE(F24:H24) -> 0 | Q24: Nota: Valor Empresa Real reemplazado con un 0
C25: =C24+1 -> 4 | D25: Carreteras | E25: [%]
C26: =C25+1 -> 5 | D26: Indoor | E26: [%] | F26: 0 | G26: 0 | H26: 0 | I26: 0 | J26: 0 | K26: =AVERAGE(F26:H26) -> 0 | Q26: Nota: Valor Empresa Real reemplazado con un 0
C28: id | D28: Superficie Cobertura 2G GSM | F28: =TRANSPOSE(lista.empresas) -> Empresa 1 | G28: Empresa 2 | H28: Empresa 3 | I28: Empresa 4 | J28: Empresa 5 | K28: Empresa 6 | L28: Empresa 7 | M28: Empresa 8
C29: 1 | D29: =tipo.superficies -> Urbana | E29: [km2] | F29: =F22*(F$13-F$16) -> 0 | G29: 0 | H29: 0 | I29: 0 | J29: 0 | K29: 0 | L29: =L22*L$13 -> 0 | M29: 0 | O29: superficie.urbana.2g
C30: =C29+1 -> 2 | D30: Semiurbana | E30: [km2] | F30: 0 | G30: 0 | H30: 0 | I30: 0 | J30: 0 | K30: 0 | L30: 0 | M30: 0 | O30: superficie.semiurbana.2g
C31: =C30+1 -> 3 | D31: Rural | E31: [km2] | F31: 0 | G31: 0 | H31: 0 | I31: 0 | J31: 0 | K31: 0 | L31: 0 | M31: 0 | O31: superficie.rural.2g
C32: =C31+1 -> 4 | D32: Carreteras | E32: [km] | F32: 0 | G32: 0 | H32: 0 | I32: 0 | J32: 0 | K32: =MAX(F32:J32) -> 0 | O32: largo.carreteras.2g | Q32: Nota: Valor Empresa Real reemplazado con un 0
C33: =C32+1 -> 5 | D33: Indoor | E33: [km2] | F33: =F26*(F$13-F$16) -> 0 | G33: 0 | H33: 0 | I33: 0 | J33: 0 | K33: 0 | L33: =L26*L$13 -> 0 | M33: =M26*M$13 -> 0 | O33: superficie.indoor.2g
F34: superficie.cobertura.2g
C36: Superficie con cobertura 3G
C38: id | D38: % Tipo superficie 3G UMTS | F38: =TRANSPOSE(lista.empresas) -> Empresa 1 | G38: Empresa 2 | H38: Empresa 3 | I38: Empresa 4 | J38: Empresa 5 | K38: Empresa 6 | L38: Empresa 7 | M38: Empresa 8
C39: 1 | D39: =tipo.superficies -> Urbana | E39: [%] | F39: 0 | G39: 0 | H39: 0 | I39: 0 | J39: 0 | K39: =AVERAGE(F39:H39) -> 0 | Q39: Nota: Valor Empresa Real reemplazado con un 0%
C40: =C39+1 -> 2 | D40: Semiurbana | E40: [%] | F40: 0 | G40: 0 | H40: 0 | I40: 0 | J40: 0 | K40: =AVERAGE(F40:H40) -> 0 | Q40: Nota: Valor Empresa Real reemplazado con un 0%
C41: =C40+1 -> 3 | D41: Rural | E41: [%] | F41: 0 | G41: 0 | H41: 0 | I41: 0 | J41: 0 | K41: =AVERAGE(F41:H41) -> 0 | Q41: Nota: Valor Empresa Real reemplazado con un 0%
C42: =C41+1 -> 4 | D42: Carreteras | E42: [%]
C43: =C42+1 -> 5 | D43: Indoor | E43: [%] | F43: 0 | G43: 0 | H43: 0 | I43: 0 | J43: 0 | K43: =AVERAGE(F43:H43) -> 0
C45: id | D45: Superficie Cobertura 3G UMTS | F45: =TRANSPOSE(lista.empresas) -> Empresa 1 | G45: Empresa 2 | H45: Empresa 3 | I45: Empresa 4 | J45: Empresa 5 | K45: Empresa 6 | L45: Empresa 7 | M45: Empresa 8
C46: 1 | D46: =tipo.superficies -> Urbana | E46: [km2] | F46: =F39*F$14 -> 0 | G46: 0 | H46: 0 | I46: 0 | J46: 0 | K46: 0 | L46: 0 | M46: 0 | O46: superficie.urbana.3g
C47: =C46+1 -> 2 | D47: Semiurbana | E47: [km2] | F47: 0 | G47: 0 | H47: 0 | I47: 0 | J47: 0 | K47: 0 | L47: 0 | M47: 0 | O47: superficie.semiurbana.3g
C48: =C47+1 -> 3 | D48: Rural | E48: [km2] | F48: 0 | G48: 0 | H48: 0 | I48: 0 | J48: 0 | K48: 0 | L48: 0 | M48: 0 | O48: superficie.rural.3g
C49: =C48+1 -> 4 | D49: Carreteras | E49: [km] | F49: 0 | G49: 0 | H49: 0 | I49: 0 | J49: 0 | K49: =MAX(F49:J49) -> 0 | O49: largo.carreteras.3g | Q49: Nota: Valor Empresa Real reemplazado con un 0
C50: =C49+1 -> 5 | D50: Indoor | E50: [km2] | F50: =F43*F$14 -> 0 | G50: 0 | H50: 0 | I50: 0 | J50: 0 | K50: 0 | L50: 0 | M50: 0 | O50: superficie.indoor.3g
F51: superficie.cobertura.3g
C53: Superficie con cobertura 4G
C55: id | D55: % Tipo superficie 4G LTE | F55: =TRANSPOSE(lista.empresas) -> Empresa 1 | G55: Empresa 2 | H55: Empresa 3 | I55: Empresa 4 | J55: Empresa 5 | K55: Empresa 6 | L55: Empresa 7 | M55: Empresa 8
C56: 1 | D56: =tipo.superficies -> Urbana | E56: [%] | F56: 0 | G56: 0 | H56: 0 | I56: =J56 -> 0 | J56: 0 | K56: =AVERAGE(F56:H56,J56) -> 0 | Q56: Nota: Valor Empresa Real reemplazado con un 0%
C57: =C56+1 -> 2 | D57: Semiurbana | E57: [%] | F57: 0 | G57: 0 | H57: 0 | I57: =J57 -> 0 | J57: 0 | K57: =AVERAGE(F57:H57,J57) -> 0 | Q57: Nota: Valor Empresa Real reemplazado con un 0%
C58: =C57+1 -> 3 | D58: Rural | E58: [%] | F58: 0 | G58: 0 | H58: 0 | I58: =J58 -> 0 | J58: 0 | K58: =AVERAGE(F58:H58,J58) -> 0 | Q58: Nota: Valor Empresa Real reemplazado con un 0%
C59: =C58+1 -> 4 | D59: Carreteras | E59: [%] | Q59: Nota: Valor Empresa Real reemplazado con un 0%
C60: =C59+1 -> 5 | D60: Indoor | E60: [%] | F60: 0 | G60: 0 | H60: 0 | I60: =J60 -> 0 | J60: 0 | K60: =AVERAGE(F60:H60,J60) -> 0 | Q60: Nota: Valor Empresa Real reemplazado con un 0%
C62: id | D62: Superficie Cobertura 4G LTE | F62: =TRANSPOSE(lista.empresas) -> Empresa 1 | G62: Empresa 2 | H62: Empresa 3 | I62: Empresa 4 | J62: Empresa 5 | K62: Empresa 6 | L62: Empresa 7 | M62: Empresa 8
C63: 1 | D63: =tipo.superficies -> Urbana | E63: [km2] | F63: =F56*F$15 -> 0 | G63: 0 | H63: 0 | I63: 0 | J63: 0 | K63: 0 | L63: 0 | M63: 0 | O63: superficie.urbana.4g
C64: =C63+1 -> 2 | D64: Semiurbana | E64: [km2] | F64: 0 | G64: 0 | H64: 0 | I64: 0 | J64: 0 | K64: 0 | L64: 0 | M64: 0 | O64: superficie.semiurbana.4g
C65: =C64+1 -> 3 | D65: Rural | E65: [km2] | F65: 0 | G65: 0 | H65: 0 | I65: 0 | J65: 0 | K65: 0 | L65: 0 | M65: 0 | O65: superficie.rural.4g
C66: =C65+1 -> 4 | D66: Carreteras | E66: [km] | F66: 0 | G66: 0 | H66: 0 | I66: 0 | J66: 0 | K66: =MAX(F66:J66) -> 0 | O66: largo.carreteras.4g | Q66: Nota: Valor Empresa Real reemplazado con un 0
C67: =C66+1 -> 5 | D67: Indoor | E67: [km2] | F67: =F60*F$14 -> 0 | G67: =G60*G$14 -> 0 | H67: =H60*H$14 -> 0 | I67: =I60*I$14 -> 0 | J67: =J60*J$14 -> 0 | K67: =K60*K$15 -> 0 | L67: =L60*L$15 -> 0 | M67: =M60*M$15 -> 0 | O67: superficie.indoor.4g
F68: superficie.cobertura.4g
C71: Superficie Cubierta por Operador
C73: Sitios Utilizados para Cobertura
F75: =INDEX(lista.empresas,Parametros.Red!F$11) -> Empresa 1 | G75: =INDEX(lista.empresas,Parametros.Red!G$11) -> Empresa 1 | H75: =INDEX(lista.empresas,Parametros.Red!H$11) -> Empresa 1 | I75: =INDEX(lista.empresas,Parametros.Red!I$11) -> Empresa 1 | J75: =INDEX(lista.empresas,Parametros.Red!J$11) -> Empresa 1 | K75: =INDEX(lista.empresas,Parametros.Red!K$11) -> Empresa 1 | L75: =INDEX(lista.empresas,Parametros.Red!L$11) -> Empresa 2 | M75: =INDEX(lista.empresas,Parametros.Red!M$11) -> Empresa 2 | N75: =INDEX(lista.empresas,Parametros.Red!N$11) -> Empresa 2 | O75: =INDEX(lista.empresas,Parametros.Red!O$11) -> Empresa 2 | P75: =INDEX(lista.empresas,Parametros.Red!P$11) -> Empresa 2 | Q75: =INDEX(lista.empresas,Parametros.Red!Q$11) -> Empresa 2 | R75: =INDEX(lista.empresas,Parametros.Red!R$11) -> Empresa 3 | S75: =INDEX(lista.empresas,Parametros.Red!S$11) -> Empresa 3 | T75: =INDEX(lista.empresas,Parametros.Red!T$11) -> Empresa 3 | U75: =INDEX(lista.empresas,Parametros.Red!U$11) -> Empresa 3 | V75: =INDEX(lista.empresas,Parametros.Red!V$11) -> Empresa 3 | W75: =INDEX(lista.empresas,Parametros.Red!W$11) -> Empresa 3 | X75: =INDEX(lista.empresas,Parametros.Red!X$11) -> Empresa 4 | Y75: =INDEX(lista.empresas,Parametros.Red!Y$11) -> Empresa 4 | Z75: =INDEX(lista.empresas,Parametros.Red!Z$11) -> Empresa 4 | AA75: =INDEX(lista.empresas,Parametros.Red!AA$11) -> Empresa 4 | AB75: =INDEX(lista.empresas,Parametros.Red!AB$11) -> Empresa 4 | AC75: =INDEX(lista.empresas,Parametros.Red!AC$11) -> Empresa 4 | AD75: =INDEX(lista.empresas,Parametros.Red!AD$11) -> Empresa 5 | AE75: =INDEX(lista.empresas,Parametros.Red!AE$11) -> Empresa 5 | AF75: =INDEX(lista.empresas,Parametros.Red!AF$11) -> Empresa 5 | AG75: =INDEX(lista.empresas,Parametros.Red!AG$11) -> Empresa 5 | AH75: =INDEX(lista.empresas,Parametros.Red!AH$11) -> Empresa 5 | AI75: =INDEX(lista.empresas,Parametros.Red!AI$11) -> Empresa 5 | AJ75: =INDEX(lista.empresas,Parametros.Red!AJ$11) -> Empresa 6 | AK75: =INDEX(lista.empresas,Parametros.Red!AK$11) -> Empresa 6 | AL75: =INDEX(lista.empresas,Parametros.Red!AL$11) -> Empresa 6 | AM75: =INDEX(lista.empresas,Parametros.Red!AM$11) -> Empresa 6 | AN75: =INDEX(lista.empresas,Parametros.Red!AN$11) -> Empresa 6 | AO75: =INDEX(lista.empresas,Parametros.Red!AO$11) -> Empresa 6 | AP75: =INDEX(lista.empresas,Parametros.Red!AP$11) -> Empresa 7 | AQ75: =INDEX(lista.empresas,Parametros.Red!AQ$11) -> Empresa 7 | AR75: =INDEX(lista.empresas,Parametros.Red!AR$11) -> Empresa 7 | AS75: =INDEX(lista.empresas,Parametros.Red!AS$11) -> Empresa 7 | AT75: =INDEX(lista.empresas,Parametros.Red!AT$11) -> Empresa 7 | AU75: =INDEX(lista.empresas,Parametros.Red!AU$11) -> Empresa 7 | AV75: =INDEX(lista.empresas,Parametros.Red!AV$11) -> Empresa 8 | AW75: =INDEX(lista.empresas,Parametros.Red!AW$11) -> Empresa 8 | AX75: =INDEX(lista.empresas,Parametros.Red!AX$11) -> Empresa 8 | AY75: =INDEX(lista.empresas,Parametros.Red!AY$11) -> Empresa 8 | AZ75: =INDEX(lista.empresas,Parametros.Red!AZ$11) -> Empresa 8 | BA75: =INDEX(lista.empresas,Parametros.Red!BA$11) -> Empresa 8 | BC75: aux.tipo.sup | BD75: aux
C76: id | D76: Geotipo & Tipo Celdas | F76: =años -> 0 | G76: 1 | H76: 2 | I76: 3 | J76: 4 | K76: 5 | L76: =años -> 0 | M76: 1 | N76: 2 | O76: 3 | P76: 4 | Q76: 5 | R76: =años -> 0 | S76: 1 | T76: 2 | U76: 3 | V76: 4 | W76: 5 | X76: =años -> 0 | Y76: 1 | Z76: 2 | AA76: 3 | AB76: 4 | AC76: 5 | AD76: =años -> 0 | AE76: 1 | AF76: 2 | AG76: 3 | AH76: 4 | AI76: 5 | AJ76: =años -> 0 | AK76: 1 | AL76: 2 | AM76: 3 | AN76: 4 | AO76: 5 | AP76: =años -> 0 | AQ76: 1 | AR76: 2 | AS76: 3 | AT76: 4 | AU76: 5 | AV76: =años -> 0 | AW76: 1 | AX76: 2 | AY76: 3 | AZ76: 4 | BA76: 5
C77: 1 | D77: =lista.tipo.sitios ->  | E77: [%] | F77: 1 | G77: =F77 -> 1 | H77: =G77 -> 1 | I77: 1 | J77: 1 | K77: 1 | L77: 1 | M77: =L77 -> 1 | N77: =M77 -> 1 | O77: =N77 -> 1 | P77: =O77 -> 1 | Q77: =P77 -> 1 | R77: 0 | S77: =R77 -> 0 | T77: =S77 -> 0 | U77: =T77 -> 0 | V77: =U77 -> 0 | W77: =V77 -> 0 | X77: 0 | Y77: =X77 -> 0 | Z77: =Y77 -> 0 | AA77: =Z77 -> 0 | AB77: =AA77 -> 0 | AC77: =AB77 -> 0 | AD77: 0 | AE77: =AD77 -> 0 | AF77: =AE77 -> 0 | AG77: =AF77 -> 0 | AH77: =AG77 -> 0 | AI77: =AH77 -> 0 | AJ77: 1 | AK77: =AJ77 -> 1 | AL77: =AK77 -> 1 | AM77: =AL77 -> 1 | AN77: =AM77 -> 1 | AO77: =AN77 -> 1 | AP77: 0 | AQ77: =AP77 -> 0 | AR77: =AQ77 -> 0 | AS77: =AR77 -> 0 | AT77: =AS77 -> 0 | AU77: =AT77 -> 0 | AV77: 0 | AW77: =AV77 -> 0 | AX77: =AW77 -> 0 | AY77: =AX77 -> 0 | AZ77: =AY77 -> 0 | BA77: =AZ77 -> 0 | BC77: =Parametros.Red!M495 -> Urbana | BD77: =aux.superficie -> 1
C78: =C77+1 -> 2 | E78: [%] | F78: 0 | G78: =F78 -> 0 | H78: 0 | I78: 0 | J78: 0 | K78: 0 | L78: 0 | M78: =L78 -> 0 | N78: 0 | O78: 0 | P78: 0 | Q78: 0 | R78: 0 | S78: =R78 -> 0 | T78: 0 | U78: 0 | V78: 0 | W78: 0 | X78: 0 | Y78: =X78 -> 0 | Z78: 0 | AA78: 0 | AB78: 0 | AC78: 0 | AD78: 0 | AE78: =AD78 -> 0 | AF78: 0 | AG78: 0 | AH78: 0 | AI78: 0 | AJ78: 0 | AK78: =AJ78 -> 0 | AL78: 0 | AM78: 0 | AN78: 0 | AO78: 0 | AP78: 0 | AQ78: =AP78 -> 0 | AR78: 0 | AS78: 0 | AT78: 0 | AU78: 0 | AV78: 0 | AW78: =AV78 -> 0 | AX78: 0 | AY78: 0 | AZ78: 0 | BA78: 0 | BC78: =Parametros.Red!M496 -> Urbana | BD78: 1
C79: =C78+1 -> 3 | E79: [%] | F79: 0 | G79: =F79 -> 0 | H79: 0 | I79: 0 | J79: 0 | K79: 0 | L79: 0 | M79: 0 | N79: 0 | O79: 0 | P79: 0 | Q79: 0 | R79: 1 | S79: 1 | T79: 1 | U79: 1 | V79: 1 | W79: =V79 -> 1 | X79: 0 | Y79: 0 | Z79: 0 | AA79: 0 | AB79: 0 | AC79: 0 | AD79: 0 | AE79: 0 | AF79: 0 | AG79: 0 | AH79: 0 | AI79: 0 | AJ79: 0 | AK79: 0 | AL79: 0 | AM79: 0 | AN79: 0 | AO79: 0 | AP79: 0 | AQ79: 0 | AR79: 0 | AS79: 0 | AT79: 0 | AU79: 0 | AV79: 0 | AW79: 0 | AX79: 0 | AY79: 0 | AZ79: 0 | BA79: 0 | BC79: =Parametros.Red!M497 -> Urbana | BD79: 1
C80: 4 | E80: [%] | F80: 0 | G80: =F80 -> 0 | H80: 0 | I80: 0 | J80: 0 | K80: 0 | L80: 0 | M80: 0 | N80: 0 | O80: 0 | P80: 0 | Q80: 0 | R80: 0 | S80: 0 | T80: 0 | U80: 0 | V80: 0 | W80: 0 | X80: 0 | Y80: 0 | Z80: 0 | AA80: 0 | AB80: 0 | AC80: 0 | AD80: 0 | AE80: 0 | AF80: 0 | AG80: 0 | AH80: 0 | AI80: 0 | AJ80: 0 | AK80: 0 | AL80: 0 | AM80: 0 | AN80: 0 | AO80: 0 | AP80: 0 | AQ80: 0 | AR80: 0 | AS80: 0 | AT80: 0 | AU80: 0 | AV80: 0 | AW80: 0 | AX80: 0 | AY80: 0 | AZ80: 0 | BA80: 0 | BC80: =Parametros.Red!M498 -> Urbana | BD80: 1
C81: 5 | E81: [%] | F81: 0 | G81: =F81 -> 0 | H81: 0 | I81: 0 | J81: 0 | K81: 0 | L81: 0 | M81: 0 | N81: 0 | O81: 0 | P81: 0 | Q81: 0 | R81: 0 | S81: 0 | T81: 0 | U81: 0 | V81: 0 | W81: 0 | X81: 0 | Y81: 0 | Z81: 0 | AA81: 0 | AB81: 0 | AC81: 0 | AD81: 0 | AE81: 0 | AF81: 0 | AG81: 0 | AH81: 0 | AI81: 0 | AJ81: 0 | AK81: 0 | AL81: 0 | AM81: 0 | AN81: 0 | AO81: 0 | AP81: 0 | AQ81: 0 | AR81: 0 | AS81: 0 | AT81: 0 | AU81: 0 | AV81: 0 | AW81: 0 | AX81: 0 | AY81: 0 | AZ81: 0 | BA81: 0 | BC81: =Parametros.Red!M499 -> Urbana | BD81: 1
C82: 6 | E82: [%] | F82: 0 | G82: =F82 -> 0 | H82: 0 | I82: 0 | J82: 0 | K82: 0 | L82: 0 | M82: 0 | N82: 0 | O82: 0 | P82: 0 | Q82: 0 | R82: 0 | S82: 0 | T82: 0 | U82: 0 | V82: 0 | W82: 0 | X82: 0 | Y82: 0 | Z82: 0 | AA82: 0 | AB82: 0 | AC82: 0 | AD82: 0 | AE82: 0 | AF82: 0 | AG82: 0 | AH82: 0 | AI82: 0 | AJ82: 0 | AK82: 0 | AL82: 0 | AM82: 0 | AN82: 0 | AO82: 0 | AP82: 0 | AQ82: 0 | AR82: 0 | AS82: 0 | AT82: 0 | AU82: 0 | AV82: 0 | AW82: 0 | AX82: 0 | AY82: 0 | AZ82: 0 | BA82: 0 | BC82: =Parametros.Red!M500 -> Urbana | BD82: 1
C83: 7 | E83: [%] | F83: 0 | G83: =F83 -> 0 | H83: 0 | I83: 0 | J83: 0 | K83: 0 | L83: 0 | M83: 0 | N83: 0 | O83: 0 | P83: 0 | Q83: 0 | R83: 0 | S83: 0 | T83: 0 | U83: 0 | V83: 0 | W83: 0 | X83: 0 | Y83: 0 | Z83: 0 | AA83: 0 | AB83: 0 | AC83: 0 | AD83: 0 | AE83: 0 | AF83: 0 | AG83: 0 | AH83: 0 | AI83: 0 | AJ83: 0 | AK83: 0 | AL83: 0 | AM83: 0 | AN83: 0 | AO83: 0 | AP83: 0 | AQ83: 0 | AR83: 0 | AS83: 0 | AT83: 0 | AU83: 0 | AV83: 0 | AW83: 0 | AX83: 0 | AY83: 0 | AZ83: 0 | BA83: 0 | BC83: =Parametros.Red!M501 -> Indoor | BD83: 5
C84: 8 | E84: [%] | F84: 1 | G84: =F84 -> 1 | H84: 1 | I84: 1 | J84: 1 | K84: 1 | L84: 1 | M84: 1 | N84: 1 | O84: 1 | P84: 1 | Q84: 1 | R84: 0 | S84: 0 | T84: 0 | U84: 0 | V84: 0 | W84: 0 | X84: 0 | Y84: 0 | Z84: 0 | AA84: 0 | AB84: 0 | AC84: 0 | AD84: 0 | AE84: 0 | AF84: 0 | AG84: 0 | AH84: 0 | AI84: 0 | AJ84: 1 | AK84: 1 | AL84: 1 | AM84: 1 | AN84: 1 | AO84: 1 | AP84: 0 | AQ84: 0 | AR84: 0 | AS84: 0 | AT84: 0 | AU84: 0 | AV84: 0 | AW84: 0 | AX84: 0 | AY84: 0 | AZ84: 0 | BA84: 0 | BC84: =Parametros.Red!M502 -> Semiurbana | BD84: 2
C85: 9 | E85: [%] | F85: 0 | G85: =F85 -> 0 | H85: 0 | I85: 0 | J85: 0 | K85: 0 | L85: 0 | M85: 0 | N85: 0 | O85: 0 | P85: 0 | Q85: 0 | R85: 0 | S85: 0 | T85: 0 | U85: 0 | V85: 0 | W85: 0 | X85: 0 | Y85: 0 | Z85: 0 | AA85: 0 | AB85: 0 | AC85: 0 | AD85: 0 | AE85: 0 | AF85: 0 | AG85: 0 | AH85: 0 | AI85: 0 | AJ85: 0 | AK85: 0 | AL85: 0 | AM85: 0 | AN85: 0 | AO85: 0 | AP85: 0 | AQ85: 0 | AR85: 0 | AS85: 0 | AT85: 0 | AU85: 0 | AV85: 0 | AW85: 0 | AX85: 0 | AY85: 0 | AZ85: 0 | BA85: 0 | BC85: =Parametros.Red!M503 -> Semiurbana | BD85: 2
C86: 10 | E86: [%] | F86: 0 | G86: =F86 -> 0 | H86: 0 | I86: 0 | J86: 0 | K86: 0 | L86: 0 | M86: 0 | N86: 0 | O86: 0 | P86: 0 | Q86: 0 | R86: 1 | S86: 1 | T86: 1 | U86: 1 | V86: 1 | W86: 1 | X86: 0 | Y86: 0 | Z86: 0 | AA86: 0 | AB86: 0 | AC86: 0 | AD86: 0 | AE86: 0 | AF86: 0 | AG86: 0 | AH86: 0 | AI86: 0 | AJ86: 0 | AK86: 0 | AL86: 0 | AM86: 0 | AN86: 0 | AO86: 0 | AP86: 0 | AQ86: 0 | AR86: 0 | AS86: 0 | AT86: 0 | AU86: 0 | AV86: 0 | AW86: 0 | AX86: 0 | AY86: 0 | AZ86: 0 | BA86: 0 | BC86: =Parametros.Red!M504 -> Semiurbana | BD86: 2
C87: 11 | E87: [%] | F87: 0 | G87: =F87 -> 0 | H87: 0 | I87: 0 | J87: 0 | K87: 0 | L87: 0 | M87: 0 | N87: 0 | O87: 0 | P87: 0 | Q87: 0 | R87: 0 | S87: 0 | T87: 0 | U87: 0 | V87: 0 | W87: 0 | X87: 0 | Y87: 0 | Z87: 0 | AA87: 0 | AB87: 0 | AC87: 0 | AD87: 0 | AE87: 0 | AF87: 0 | AG87: 0 | AH87: 0 | AI87: 0 | AJ87: 0 | AK87: 0 | AL87: 0 | AM87: 0 | AN87: 0 | AO87: 0 | AP87: 0 | AQ87: 0 | AR87: 0 | AS87: 0 | AT87: 0 | AU87: 0 | AV87: 0 | AW87: 0 | AX87: 0 | AY87: 0 | AZ87: 0 | BA87: 0 | BC87: =Parametros.Red!M505 -> Semiurbana | BD87: 2
C88: 12 | E88: [%] | F88: 0 | G88: =F88 -> 0 | H88: 0 | I88: 0 | J88: 0 | K88: 0 | L88: 0 | M88: 0 | N88: 0 | O88: 0 | P88: 0 | Q88: 0 | R88: 0 | S88: 0 | T88: 0 | U88: 0 | V88: 0 | W88: 0 | X88: 0 | Y88: 0 | Z88: 0 | AA88: 0 | AB88: 0 | AC88: 0 | AD88: 0 | AE88: 0 | AF88: 0 | AG88: 0 | AH88: 0 | AI88: 0 | AJ88: 0 | AK88: 0 | AL88: 0 | AM88: 0 | AN88: 0 | AO88: 0 | AP88: 0 | AQ88: 0 | AR88: 0 | AS88: 0 | AT88: 0 | AU88: 0 | AV88: 0 | AW88: 0 | AX88: 0 | AY88: 0 | AZ88: 0 | BA88: 0 | BC88: =Parametros.Red!M506 -> Semiurbana | BD88: 2
C89: 13 | E89: [%] | F89: 0 | G89: =F89 -> 0 | H89: 0 | I89: 0 | J89: 0 | K89: 0 | L89: 0 | M89: 0 | N89: 0 | O89: 0 | P89: 0 | Q89: 0 | R89: 0 | S89: 0 | T89: 0 | U89: 0 | V89: 0 | W89: 0 | X89: 0 | Y89: 0 | Z89: 0 | AA89: 0 | AB89: 0 | AC89: 0 | AD89: 0 | AE89: 0 | AF89: 0 | AG89: 0 | AH89: 0 | AI89: 0 | AJ89: 0 | AK89: 0 | AL89: 0 | AM89: 0 | AN89: 0 | AO89: 0 | AP89: 0 | AQ89: 0 | AR89: 0 | AS89: 0 | AT89: 0 | AU89: 0 | AV89: 0 | AW89: 0 | AX89: 0 | AY89: 0 | AZ89: 0 | BA89: 0 | BC89: =Parametros.Red!M507 -> Semiurbana | BD89: 2
C90: 14 | E90: [%] | F90: 1 | G90: =F90 -> 1 | H90: 1 | I90: 1 | J90: 1 | K90: 1 | L90: 1 | M90: 1 | N90: 1 | O90: 1 | P90: 1 | Q90: 1 | R90: 0 | S90: 0 | T90: 0 | U90: 0 | V90: 0 | W90: 0 | X90: 0 | Y90: 0 | Z90: 0 | AA90: 0 | AB90: 0 | AC90: 0 | AD90: 0 | AE90: 0 | AF90: 0 | AG90: 0 | AH90: 0 | AI90: 0 | AJ90: 1 | AK90: 1 | AL90: 1 | AM90: 1 | AN90: 1 | AO90: 1 | AP90: 0 | AQ90: 0 | AR90: 0 | AS90: 0 | AT90: 0 | AU90: 0 | AV90: 0 | AW90: 0 | AX90: 0 | AY90: 0 | AZ90: 0 | BA90: 0 | BC90: =Parametros.Red!M508 -> Rural | BD90: 3
C91: 15 | E91: [%] | F91: 0 | G91: =F91 -> 0 | H91: 0 | I91: 0 | J91: 0 | K91: 0 | L91: 0 | M91: 0 | N91: 0 | O91: 0 | P91: 0 | Q91: 0 | R91: 0 | S91: 0 | T91: 0 | U91: 0 | V91: 0 | W91: 0 | X91: 0 | Y91: 0 | Z91: 0 | AA91: 0 | AB91: 0 | AC91: 0 | AD91: 0 | AE91: 0 | AF91: 0 | AG91: 0 | AH91: 0 | AI91: 0 | AJ91: 0 | AK91: 0 | AL91: 0 | AM91: 0 | AN91: 0 | AO91: 0 | AP91: 0 | AQ91: 0 | AR91: 0 | AS91: 0 | AT91: 0 | AU91: 0 | AV91: 0 | AW91: 0 | AX91: 0 | AY91: 0 | AZ91: 0 | BA91: 0 | BC91: =Parametros.Red!M509 -> Rural | BD91: 3
C92: 16 | E92: [%] | F92: 0 | G92: =F92 -> 0 | H92: 0 | I92: 0 | J92: 0 | K92: 0 | L92: 0 | M92: 0 | N92: 0 | O92: 0 | P92: 0 | Q92: 0 | R92: 1 | S92: 1 | T92: 1 | U92: 1 | V92: 1 | W92: 1 | X92: 0 | Y92: 0 | Z92: 0 | AA92: 0 | AB92: 0 | AC92: 0 | AD92: 0 | AE92: 0 | AF92: 0 | AG92: 0 | AH92: 0 | AI92: 0 | AJ92: 0 | AK92: 0 | AL92: 0 | AM92: 0 | AN92: 0 | AO92: 0 | AP92: 0 | AQ92: 0 | AR92: 0 | AS92: 0 | AT92: 0 | AU92: 0 | AV92: 0 | AW92: 0 | AX92: 0 | AY92: 0 | AZ92: 0 | BA92: 0 | BC92: =Parametros.Red!M510 -> Rural | BD92: 3
C93: 17 | E93: [%] | F93: 0 | G93: =F93 -> 0 | H93: 0 | I93: 0 | J93: 0 | K93: 0 | L93: 0 | M93: 0 | N93: 0 | O93: 0 | P93: 0 | Q93: 0 | R93: 0 | S93: 0 | T93: 0 | U93: 0 | V93: 0 | W93: 0 | X93: 0 | Y93: 0 | Z93: 0 | AA93: 0 | AB93: 0 | AC93: 0 | AD93: 0 | AE93: 0 | AF93: 0 | AG93: 0 | AH93: 0 | AI93: 0 | AJ93: 0 | AK93: 0 | AL93: 0 | AM93: 0 | AN93: 0 | AO93: 0 | AP93: 0 | AQ93: 0 | AR93: 0 | AS93: 0 | AT93: 0 | AU93: 0 | AV93: 0 | AW93: 0 | AX93: 0 | AY93: 0 | AZ93: 0 | BA93: 0 | BC93: =Parametros.Red!M511 -> Rural | BD93: 3
C94: 18 | E94: [%] | F94: 0 | G94: =F94 -> 0 | H94: 0 | I94: 0 | J94: 0 | K94: 0 | L94: 0 | M94: 0 | N94: 0 | O94: 0 | P94: 0 | Q94: 0 | R94: 0 | S94: 0 | T94: 0 | U94: 0 | V94: 0 | W94: 0 | X94: 0 | Y94: 0 | Z94: 0 | AA94: 0 | AB94: 0 | AC94: 0 | AD94: 0 | AE94: 0 | AF94: 0 | AG94: 0 | AH94: 0 | AI94: 0 | AJ94: 0 | AK94: 0 | AL94: 0 | AM94: 0 | AN94: 0 | AO94: 0 | AP94: 0 | AQ94: 0 | AR94: 0 | AS94: 0 | AT94: 0 | AU94: 0 | AV94: 0 | AW94: 0 | AX94: 0 | AY94: 0 | AZ94: 0 | BA94: 0 | BC94: =Parametros.Red!M512 -> Rural | BD94: 3
C95: 19 | E95: [%] | F95: 0 | G95: =F95 -> 0 | H95: 0 | I95: 0 | J95: 0 | K95: 0 | L95: 0 | M95: 0 | N95: 0 | O95: 0 | P95: 0 | Q95: 0 | R95: 0 | S95: 0 | T95: 0 | U95: 0 | V95: 0 | W95: 0 | X95: 0 | Y95: 0 | Z95: 0 | AA95: 0 | AB95: 0 | AC95: 0 | AD95: 0 | AE95: 0 | AF95: 0 | AG95: 0 | AH95: 0 | AI95: 0 | AJ95: 0 | AK95: 0 | AL95: 0 | AM95: 0 | AN95: 0 | AO95: 0 | AP95: 0 | AQ95: 0 | AR95: 0 | AS95: 0 | AT95: 0 | AU95: 0 | AV95: 0 | AW95: 0 | AX95: 0 | AY95: 0 | AZ95: 0 | BA95: 0 | BC95: =Parametros.Red!M513 -> Rural | BD95: 3
C96: 20 | E96: [%] | F96: 1 | G96: =F96 -> 1 | H96: 1 | I96: 1 | J96: 1 | K96: 1 | L96: 1 | M96: 1 | N96: 1 | O96: 1 | P96: 1 | Q96: 1 | R96: 0 | S96: 0 | T96: 0 | U96: 0 | V96: 0 | W96: 0 | X96: 0 | Y96: 0 | Z96: 0 | AA96: 0 | AB96: 0 | AC96: 0 | AD96: 0 | AE96: 0 | AF96: 0 | AG96: 0 | AH96: 0 | AI96: 0 | AJ96: 1 | AK96: 1 | AL96: 1 | AM96: 1 | AN96: 1 | AO96: 1 | AP96: 0 | AQ96: 0 | AR96: 0 | AS96: 0 | AT96: 0 | AU96: 0 | AV96: 0 | AW96: 0 | AX96: 0 | AY96: 0 | AZ96: 0 | BA96: 0 | BC96: =Parametros.Red!M514 -> Carreteras | BD96: 4
C97: 21 | E97: [%] | F97: 0 | G97: =F97 -> 0 | H97: 0 | I97: 0 | J97: 0 | K97: 0 | L97: 0 | M97: 0 | N97: 0 | O97: 0 | P97: 0 | Q97: 0 | R97: 1 | S97: 1 | T97: 1 | U97: 1 | V97: 1 | W97: 1 | X97: 0 | Y97: 0 | Z97: 0 | AA97: 0 | AB97: 0 | AC97: 0 | AD97: 0 | AE97: 0 | AF97: 0 | AG97: 0 | AH97: 0 | AI97: 0 | AJ97: 0 | AK97: 0 | AL97: 0 | AM97: 0 | AN97: 0 | AO97: 0 | AP97: 0 | AQ97: 0 | AR97: 0 | AS97: 0 | AT97: 0 | AU97: 0 | AV97: 0 | AW97: 0 | AX97: 0 | AY97: 0 | AZ97: 0 | BA97: 0 | BC97: =Parametros.Red!M515 -> Carreteras | BD97: 4
C98: 22 | E98: [%] | F98: 0 | G98: =F98 -> 0 | H98: 0 | I98: 0 | J98: 0 | K98: 0 | L98: 0 | M98: 0 | N98: 0 | O98: 0 | P98: 0 | Q98: 0 | R98: 0 | S98: 0 | T98: 0 | U98: 0 | V98: 0 | W98: 0 | X98: 0 | Y98: 0 | Z98: 0 | AA98: 0 | AB98: 0 | AC98: 0 | AD98: 0 | AE98: 0 | AF98: 0 | AG98: 0 | AH98: 0 | AI98: 0 | AJ98: 0 | AK98: 0 | AL98: 0 | AM98: 0 | AN98: 0 | AO98: 0 | AP98: 0 | AQ98: 0 | AR98: 0 | AS98: 0 | AT98: 0 | AU98: 0 | AV98: 0 | AW98: 0 | AX98: 0 | AY98: 0 | AZ98: 0 | BA98: 0 | BC98: =Parametros.Red!M516 -> Carreteras | BD98: 4
C99: 23 | E99: [%] | F99: 0 | G99: =F99 -> 0 | H99: 0 | I99: 0 | J99: 0 | K99: 0 | L99: 0 | M99: 0 | N99: 0 | O99: 0 | P99: 0 | Q99: 0 | R99: 0 | S99: 0 | T99: 0 | U99: 0 | V99: 0 | W99: 0 | X99: 0 | Y99: 0 | Z99: 0 | AA99: 0 | AB99: 0 | AC99: 0 | AD99: 0 | AE99: 0 | AF99: 0 | AG99: 0 | AH99: 0 | AI99: 0 | AJ99: 0 | AK99: 0 | AL99: 0 | AM99: 0 | AN99: 0 | AO99: 0 | AP99: 0 | AQ99: 0 | AR99: 0 | AS99: 0 | AT99: 0 | AU99: 0 | AV99: 0 | AW99: 0 | AX99: 0 | AY99: 0 | AZ99: 0 | BA99: 0 | BC99: =Parametros.Red!M517 -> Carreteras | BD99: 4
C100: 24 | E100: [%] | F100: 0 | G100: =F100 -> 0 | H100: 0 | I100: 0 | J100: 0 | K100: 0 | L100: 0 | M100: 0 | N100: 0 | O100: 0 | P100: 0 | Q100: 0 | R100: 0 | S100: 0 | T100: 0 | U100: 0 | V100: 0 | W100: 0 | X100: 0 | Y100: 0 | Z100: 0 | AA100: 0 | AB100: 0 | AC100: 0 | AD100: 0 | AE100: 0 | AF100: 0 | AG100: 0 | AH100: 0 | AI100: 0 | AJ100: 0 | AK100: 0 | AL100: 0 | AM100: 0 | AN100: 0 | AO100: 0 | AP100: 0 | AQ100: 0 | AR100: 0 | AS100: 0 | AT100: 0 | AU100: 0 | AV100: 0 | AW100: 0 | AX100: 0 | AY100: 0 | AZ100: 0 | BA100: 0 | BC100: =Parametros.Red!M518 -> Carreteras | BD100: 4
C101: 25 | E101: [%] | F101: 0 | G101: =F101 -> 0 | H101: 0 | I101: 0 | J101: 0 | K101: 0 | L101: 0 | M101: 0 | N101: 0 | O101: 0 | P101: 0 | Q101: 0 | R101: 0 | S101: 0 | T101: 0 | U101: 0 | V101: 0 | W101: 0 | X101: 0 | Y101: 0 | Z101: 0 | AA101: 0 | AB101: 0 | AC101: 0 | AD101: 0 | AE101: 0 | AF101: 0 | AG101: 0 | AH101: 0 | AI101: 0 | AJ101: 0 | AK101: 0 | AL101: 0 | AM101: 0 | AN101: 0 | AO101: 0 | AP101: 0 | AQ101: 0 | AR101: 0 | AS101: 0 | AT101: 0 | AU101: 0 | AV101: 0 | AW101: 0 | AX101: 0 | AY101: 0 | AZ101: 0 | BA101: 0 | BC101: =Parametros.Red!M519 -> Urbana | BD101: 1
C102: 26 | E102: [%] | F102: 0 | G102: =F102 -> 0 | H102: 0 | I102: 0 | J102: 0 | K102: 0 | L102: 0 | M102: 0 | N102: 0 | O102: 0 | P102: 0 | Q102: 0 | R102: 0 | S102: 0 | T102: 0 | U102: 0 | V102: 0 | W102: 0 | X102: 0 | Y102: 0 | Z102: 0 | AA102: 0 | AB102: 0 | AC102: 0 | AD102: 0 | AE102: 0 | AF102: 0 | AG102: 0 | AH102: 0 | AI102: 0 | AJ102: 0 | AK102: 0 | AL102: 0 | AM102: 0 | AN102: 0 | AO102: 0 | AP102: 0 | AQ102: 0 | AR102: 0 | AS102: 0 | AT102: 0 | AU102: 0 | AV102: 0 | AW102: 0 | AX102: 0 | AY102: 0 | AZ102: 0 | BA102: 0 | BC102: =Parametros.Red!M520 -> Urbana | BD102: 1
C103: 27 | E103: [%] | F103: 0 | G103: =F103 -> 0 | H103: 0 | I103: 0 | J103: 0 | K103: 0 | L103: 0 | M103: 0 | N103: 0 | O103: 0 | P103: 0 | Q103: 0 | R103: 0 | S103: 0 | T103: 0 | U103: 0 | V103: 0 | W103: 0 | X103: 0 | Y103: 0 | Z103: 0 | AA103: 0 | AB103: 0 | AC103: 0 | AD103: 0 | AE103: 0 | AF103: 0 | AG103: 0 | AH103: 0 | AI103: 0 | AJ103: 0 | AK103: 0 | AL103: 0 | AM103: 0 | AN103: 0 | AO103: 0 | AP103: 0 | AQ103: 0 | AR103: 0 | AS103: 0 | AT103: 0 | AU103: 0 | AV103: 0 | AW103: 0 | AX103: 0 | AY103: 0 | AZ103: 0 | BA103: 0 | BC103: =Parametros.Red!M521 -> Semiurbana | BD103: 2
C104: 28 | E104: [%] | F104: 0 | G104: =F104 -> 0 | H104: 0 | I104: 0 | J104: 0 | K104: 0 | L104: 0 | M104: 0 | N104: 0 | O104: 0 | P104: 0 | Q104: 0 | R104: 0 | S104: 0 | T104: 0 | U104: 0 | V104: 0 | W104: 0 | X104: 0 | Y104: 0 | Z104: 0 | AA104: 0 | AB104: 0 | AC104: 0 | AD104: 0 | AE104: 0 | AF104: 0 | AG104: 0 | AH104: 0 | AI104: 0 | AJ104: 0 | AK104: 0 | AL104: 0 | AM104: 0 | AN104: 0 | AO104: 0 | AP104: 0 | AQ104: 0 | AR104: 0 | AS104: 0 | AT104: 0 | AU104: 0 | AV104: 0 | AW104: 0 | AX104: 0 | AY104: 0 | AZ104: 0 | BA104: 0 | BC104: =Parametros.Red!M522 -> Semiurbana | BD104: 2
C105: 29 | E105: [%] | F105: 0 | G105: =F105 -> 0 | H105: 0 | I105: 0 | J105: 0 | K105: 0 | L105: 0 | M105: 0 | N105: 0 | O105: 0 | P105: 0 | Q105: 0 | R105: 0 | S105: 0 | T105: 0 | U105: 0 | V105: 0 | W105: 0 | X105: 0 | Y105: 0 | Z105: 0 | AA105: 0 | AB105: 0 | AC105: 0 | AD105: 0 | AE105: 0 | AF105: 0 | AG105: 0 | AH105: 0 | AI105: 0 | AJ105: 0 | AK105: 0 | AL105: 0 | AM105: 0 | AN105: 0 | AO105: 0 | AP105: 0 | AQ105: 0 | AR105: 0 | AS105: 0 | AT105: 0 | AU105: 0 | AV105: 0 | AW105: 0 | AX105: 0 | AY105: 0 | AZ105: 0 | BA105: 0 | BC105: =Parametros.Red!M523 -> Rural | BD105: 3
C106: 30 | E106: [%] | F106: 0 | G106: =F106 -> 0 | H106: 0 | I106: 0 | J106: 0 | K106: 0 | L106: 0 | M106: 0 | N106: 0 | O106: 0 | P106: 0 | Q106: 0 | R106: 0 | S106: 0 | T106: 0 | U106: 0 | V106: 0 | W106: 0 | X106: 0 | Y106: 0 | Z106: 0 | AA106: 0 | AB106: 0 | AC106: 0 | AD106: 0 | AE106: 0 | AF106: 0 | AG106: 0 | AH106: 0 | AI106: 0 | AJ106: 0 | AK106: 0 | AL106: 0 | AM106: 0 | AN106: 0 | AO106: 0 | AP106: 0 | AQ106: 0 | AR106: 0 | AS106: 0 | AT106: 0 | AU106: 0 | AV106: 0 | AW106: 0 | AX106: 0 | AY106: 0 | AZ106: 0 | BA106: 0 | BC106: =Parametros.Red!M524 -> Rural | BD106: 3
C107: 31 | E107: [%] | F107: 0 | G107: =F107 -> 0 | H107: 0 | I107: 0 | J107: 0 | K107: 0 | L107: 0 | M107: 0 | N107: 0 | O107: 0 | P107: 0 | Q107: 0 | R107: 0 | S107: 0 | T107: 0 | U107: 0 | V107: 0 | W107: 0 | X107: 0 | Y107: 0 | Z107: 0 | AA107: 0 | AB107: 0 | AC107: 0 | AD107: 0 | AE107: 0 | AF107: 0 | AG107: 0 | AH107: 0 | AI107: 0 | AJ107: 0 | AK107: 0 | AL107: 0 | AM107: 0 | AN107: 0 | AO107: 0 | AP107: 0 | AQ107: 0 | AR107: 0 | AS107: 0 | AT107: 0 | AU107: 0 | AV107: 0 | AW107: 0 | AX107: 0 | AY107: 0 | AZ107: 0 | BA107: 0 | BC107: =Parametros.Red!M525 -> Carreteras | BD107: 4
C108: 32 | E108: [%] | F108: 0 | G108: =F108 -> 0 | H108: 0 | I108: 0 | J108: 0 | K108: 0 | L108: 0 | M108: 0 | N108: 0 | O108: 0 | P108: 0 | Q108: 0 | R108: 0 | S108: 0 | T108: 0 | U108: 0 | V108: 0 | W108: 0 | X108: 0 | Y108: 0 | Z108: 0 | AA108: 0 | AB108: 0 | AC108: 0 | AD108: 0 | AE108: 0 | AF108: 0 | AG108: 0 | AH108: 0 | AI108: 0 | AJ108: 0 | AK108: 0 | AL108: 0 | AM108: 0 | AN108: 0 | AO108: 0 | AP108: 0 | AQ108: 0 | AR108: 0 | AS108: 0 | AT108: 0 | AU108: 0 | AV108: 0 | AW108: 0 | AX108: 0 | AY108: 0 | AZ108: 0 | BA108: 0 | BC108: =Parametros.Red!M526 -> Carreteras | BD108: 4
C109: 33 | E109: [%] | F109: 0 | G109: =F109 -> 0 | H109: 0 | I109: 0 | J109: 0 | K109: 0 | L109: 0 | M109: 0 | N109: 0 | O109: 0 | P109: 0 | Q109: 0 | R109: 0 | S109: 0 | T109: 0 | U109: 0 | V109: 0 | W109: 0 | X109: 0 | Y109: 0 | Z109: 0 | AA109: 0 | AB109: 0 | AC109: 0 | AD109: 0 | AE109: 0 | AF109: 0 | AG109: 0 | AH109: 0 | AI109: 0 | AJ109: 0 | AK109: 0 | AL109: 0 | AM109: 0 | AN109: 0 | AO109: 0 | AP109: 0 | AQ109: 0 | AR109: 0 | AS109: 0 | AT109: 0 | AU109: 0 | AV109: 0 | AW109: 0 | AX109: 0 | AY109: 0 | AZ109: 0 | BA109: 0 | BC109: =Parametros.Red!M527 -> Carreteras | BD109: 4
C110: 34 | E110: [%] | F110: 1 | G110: =F110 -> 1 | H110: =G110 -> 1 | I110: 1 | J110: 1 | K110: 1 | L110: 1 | M110: 1 | N110: 1 | O110: 1 | P110: 1 | Q110: 1 | R110: 1 | S110: 1 | T110: 1 | U110: 1 | V110: 1 | W110: 1 | X110: 0 | Y110: 0 | Z110: 0 | AA110: 0 | AB110: 0 | AC110: 0 | AD110: 0 | AE110: 0 | AF110: 0 | AG110: 0 | AH110: 0 | AI110: 0 | AJ110: 1 | AK110: 1 | AL110: 1 | AM110: 1 | AN110: 1 | AO110: 1 | AP110: 0 | AQ110: 0 | AR110: 0 | AS110: 0 | AT110: 0 | AU110: 0 | AV110: 0 | AW110: 0 | AX110: 0 | AY110: 0 | AZ110: 0 | BA110: 0 | BC110: =Parametros.Red!M528 -> Urbana | BD110: 1
C111: 35 | E111: [%] | F111: 0 | G111: =F111 -> 0 | H111: 0 | I111: 0 | J111: 0 | K111: 0 | L111: 0 | M111: 0 | N111: 0 | O111: 0 | P111: 0 | Q111: 0 | R111: 0 | S111: 0 | T111: 0 | U111: 0 | V111: 0 | W111: 0 | X111: 0 | Y111: 0 | Z111: 0 | AA111: 0 | AB111: 0 | AC111: 0 | AD111: 0 | AE111: 0 | AF111: 0 | AG111: 0 | AH111: 0 | AI111: 0 | AJ111: 0 | AK111: 0 | AL111: 0 | AM111: 0 | AN111: 0 | AO111: 0 | AP111: 0 | AQ111: 0 | AR111: 0 | AS111: 0 | AT111: 0 | AU111: 0 | AV111: 0 | AW111: 0 | AX111: 0 | AY111: 0 | AZ111: 0 | BA111: 0 | BC111: =Parametros.Red!M529 -> Urbana | BD111: 1
C112: 36 | E112: [%] | F112: 0 | G112: =F112 -> 0 | H112: 0 | I112: 0 | J112: 0 | K112: 0 | L112: 0 | M112: 0 | N112: 0 | O112: 0 | P112: 0 | Q112: 0 | R112: 0 | S112: 0 | T112: 0 | U112: 0 | V112: 0 | W112: 0 | X112: 0 | Y112: 0 | Z112: 0 | AA112: 0 | AB112: 0 | AC112: 0 | AD112: 0 | AE112: 0 | AF112: 0 | AG112: 0 | AH112: 0 | AI112: 0 | AJ112: 0 | AK112: 0 | AL112: 0 | AM112: 0 | AN112: 0 | AO112: 0 | AP112: 0 | AQ112: 0 | AR112: 0 | AS112: 0 | AT112: 0 | AU112: 0 | AV112: 0 | AW112: 0 | AX112: 0 | AY112: 0 | AZ112: 0 | BA112: 0 | BC112: =Parametros.Red!M530 -> Indoor | BD112: 5
C113: 37 | E113: [%] | F113: 1 | G113: =F113 -> 1 | H113: 1 | I113: 1 | J113: 1 | K113: 1 | L113: 1 | M113: 1 | N113: 1 | O113: 1 | P113: 1 | Q113: 1 | R113: 1 | S113: 1 | T113: 1 | U113: 1 | V113: 1 | W113: 1 | X113: 0 | Y113: 0 | Z113: 0 | AA113: 0 | AB113: 0 | AC113: 0 | AD113: 0 | AE113: 0 | AF113: 0 | AG113: 0 | AH113: 0 | AI113: 0 | AJ113: 1 | AK113: 1 | AL113: 1 | AM113: 1 | AN113: 1 | AO113: 1 | AP113: 0 | AQ113: 0 | AR113: 0 | AS113: 0 | AT113: 0 | AU113: 0 | AV113: 0 | AW113: 0 | AX113: 0 | AY113: 0 | AZ113: 0 | BA113: 0 | BC113: =Parametros.Red!M531 -> Semiurbana | BD113: 2
C114: 38 | E114: [%] | F114: 0 | G114: =F114 -> 0 | H114: 0 | I114: 0 | J114: 0 | K114: 0 | L114: 0 | M114: 0 | N114: 0 | O114: 0 | P114: 0 | Q114: 0 | R114: 0 | S114: 0 | T114: 0 | U114: 0 | V114: 0 | W114: 0 | X114: 0 | Y114: 0 | Z114: 0 | AA114: 0 | AB114: 0 | AC114: 0 | AD114: 0 | AE114: 0 | AF114: 0 | AG114: 0 | AH114: 0 | AI114: 0 | AJ114: 0 | AK114: 0 | AL114: 0 | AM114: 0 | AN114: 0 | AO114: 0 | AP114: 0 | AQ114: 0 | AR114: 0 | AS114: 0 | AT114: 0 | AU114: 0 | AV114: 0 | AW114: 0 | AX114: 0 | AY114: 0 | AZ114: 0 | BA114: 0 | BC114: =Parametros.Red!M532 -> Semiurbana | BD114: 2
C115: 39 | E115: [%] | F115: 1 | G115: =F115 -> 1 | H115: 1 | I115: 1 | J115: 1 | K115: 1 | L115: 1 | M115: 1 | N115: 1 | O115: 1 | P115: 1 | Q115: 1 | R115: 1 | S115: 1 | T115: 1 | U115: 1 | V115: 1 | W115: 1 | X115: 0 | Y115: 0 | Z115: 0 | AA115: 0 | AB115: 0 | AC115: 0 | AD115: 0 | AE115: 0 | AF115: 0 | AG115: 0 | AH115: 0 | AI115: 0 | AJ115: 1 | AK115: 1 | AL115: 1 | AM115: 1 | AN115: 1 | AO115: 1 | AP115: 0 | AQ115: 0 | AR115: 0 | AS115: 0 | AT115: 0 | AU115: 0 | AV115: 0 | AW115: 0 | AX115: 0 | AY115: 0 | AZ115: 0 | BA115: 0 | BC115: =Parametros.Red!M533 -> Rural | BD115: 3
C116: 40 | E116: [%] | F116: 0 | G116: =F116 -> 0 | H116: 0 | I116: 0 | J116: 0 | K116: 0 | L116: 0 | M116: 0 | N116: 0 | O116: 0 | P116: 0 | Q116: 0 | R116: 0 | S116: 0 | T116: 0 | U116: 0 | V116: 0 | W116: 0 | X116: 0 | Y116: 0 | Z116: 0 | AA116: 0 | AB116: 0 | AC116: 0 | AD116: 0 | AE116: 0 | AF116: 0 | AG116: 0 | AH116: 0 | AI116: 0 | AJ116: 0 | AK116: 0 | AL116: 0 | AM116: 0 | AN116: 0 | AO116: 0 | AP116: 0 | AQ116: 0 | AR116: 0 | AS116: 0 | AT116: 0 | AU116: 0 | AV116: 0 | AW116: 0 | AX116: 0 | AY116: 0 | AZ116: 0 | BA116: 0 | BC116: =Parametros.Red!M534 -> Rural | BD116: 3
C117: 41 | E117: [%] | F117: 1 | G117: =F117 -> 1 | H117: 1 | I117: 1 | J117: 1 | K117: 1 | L117: 1 | M117: 1 | N117: 1 | O117: 1 | P117: 1 | Q117: 1 | R117: 1 | S117: 1 | T117: 1 | U117: 1 | V117: 1 | W117: 1 | X117: 0 | Y117: 0 | Z117: 0 | AA117: 0 | AB117: 0 | AC117: 0 | AD117: 0 | AE117: 0 | AF117: 0 | AG117: 0 | AH117: 0 | AI117: 0 | AJ117: 1 | AK117: 1 | AL117: 1 | AM117: 1 | AN117: 1 | AO117: 1 | AP117: 0 | AQ117: 0 | AR117: 0 | AS117: 0 | AT117: 0 | AU117: 0 | AV117: 0 | AW117: 0 | AX117: 0 | AY117: 0 | AZ117: 0 | BA117: 0 | BC117: =Parametros.Red!M535 -> Carreteras | BD117: 4
C118: 42 | E118: [%] | F118: 0 | G118: =F118 -> 0 | H118: 0 | I118: 0 | J118: 0 | K118: 0 | L118: 0 | M118: 0 | N118: 0 | O118: 0 | P118: 0 | Q118: 0 | R118: 0 | S118: 0 | T118: 0 | U118: 0 | V118: 0 | W118: 0 | X118: 0 | Y118: 0 | Z118: 0 | AA118: 0 | AB118: 0 | AC118: 0 | AD118: 0 | AE118: 0 | AF118: 0 | AG118: 0 | AH118: 0 | AI118: 0 | AJ118: 0 | AK118: 0 | AL118: 0 | AM118: 0 | AN118: 0 | AO118: 0 | AP118: 0 | AQ118: 0 | AR118: 0 | AS118: 0 | AT118: 0 | AU118: 0 | AV118: 0 | AW118: 0 | AX118: 0 | AY118: 0 | AZ118: 0 | BA118: 0 | BC118: =Parametros.Red!M536 -> Carreteras | BD118: 4
C119: 43 | E119: [%] | F119: 0 | G119: =F119 -> 0 | H119: 0 | I119: 0 | J119: 0 | K119: 0 | L119: 0 | M119: 0 | N119: 0 | O119: 0 | P119: 0 | Q119: 0 | R119: 0 | S119: 0 | T119: 0 | U119: 0 | V119: 0 | W119: 0 | X119: 0 | Y119: 0 | Z119: 0 | AA119: 0 | AB119: 0 | AC119: 0 | AD119: 0 | AE119: 0 | AF119: 0 | AG119: 0 | AH119: 0 | AI119: 0 | AJ119: 0 | AK119: 0 | AL119: 0 | AM119: 0 | AN119: 0 | AO119: 0 | AP119: 0 | AQ119: 0 | AR119: 0 | AS119: 0 | AT119: 0 | AU119: 0 | AV119: 0 | AW119: 0 | AX119: 0 | AY119: 0 | AZ119: 0 | BA119: 0 | BC119: =Parametros.Red!M537 -> Carreteras | BD119: 4
C120: 44 | E120: [%] | F120: 1 | G120: =F120 -> 1 | H120: 1 | I120: 1 | J120: 1 | K120: 1 | L120: 1 | M120: 1 | N120: 1 | O120: 1 | P120: 1 | Q120: 1 | R120: 1 | S120: 1 | T120: 1 | U120: 1 | V120: 1 | W120: 1 | X120: 1 | Y120: 1 | Z120: 1 | AA120: 1 | AB120: 1 | AC120: 1 | AD120: 1 | AE120: 1 | AF120: 1 | AG120: 1 | AH120: 1 | AI120: 1 | AJ120: 1 | AK120: 1 | AL120: 1 | AM120: 1 | AN120: 1 | AO120: 1 | AP120: 0 | AQ120: 0 | AR120: 0 | AS120: 0 | AT120: 0 | AU120: 0 | AV120: 0 | AW120: 0 | AX120: 0 | AY120: 0 | AZ120: 0 | BA120: 0 | BC120: =Parametros.Red!M538 -> Urbana | BD120: 1
C121: 45 | E121: [%] | F121: 0 | G121: =F121 -> 0 | H121: 0 | I121: 0 | J121: 0 | K121: 0 | L121: 0 | M121: 0 | N121: 0 | O121: 0 | P121: 0 | Q121: 0 | R121: 0 | S121: 0 | T121: 0 | U121: 0 | V121: 0 | W121: 0 | X121: 0 | Y121: 0 | Z121: 0 | AA121: 0 | AB121: 0 | AC121: 0 | AD121: 0 | AE121: 0 | AF121: 0 | AG121: 0 | AH121: 0 | AI121: 0 | AJ121: 0 | AK121: 0 | AL121: 0 | AM121: 0 | AN121: 0 | AO121: 0 | AP121: 0 | AQ121: 0 | AR121: 0 | AS121: 0 | AT121: 0 | AU121: 0 | AV121: 0 | AW121: 0 | AX121: 0 | AY121: 0 | AZ121: 0 | BA121: 0 | BC121: =Parametros.Red!M539 -> Semiurbana | BD121: 2
C122: 46 | E122: [%] | F122: 1 | G122: =F122 -> 1 | H122: 1 | I122: 1 | J122: 1 | K122: 1 | L122: 1 | M122: 1 | N122: 1 | O122: 1 | P122: 1 | Q122: 1 | R122: 1 | S122: 1 | T122: 1 | U122: 1 | V122: 1 | W122: 1 | X122: 1 | Y122: 1 | Z122: 1 | AA122: 1 | AB122: 1 | AC122: 1 | AD122: 1 | AE122: 1 | AF122: 1 | AG122: 1 | AH122: 1 | AI122: 1 | AJ122: 1 | AK122: 1 | AL122: 1 | AM122: 1 | AN122: 1 | AO122: 1 | AP122: 0 | AQ122: 0 | AR122: 0 | AS122: 0 | AT122: 0 | AU122: 0 | AV122: 0 | AW122: 0 | AX122: 0 | AY122: 0 | AZ122: 0 | BA122: 0 | BC122: =Parametros.Red!M540 -> Semiurbana | BD122: 2
C123: 47 | E123: [%] | F123: 1 | G123: =F123 -> 1 | H123: 1 | I123: 1 | J123: 1 | K123: 1 | L123: 1 | M123: 1 | N123: 1 | O123: 1 | P123: 1 | Q123: 1 | R123: 1 | S123: 1 | T123: 1 | U123: 1 | V123: 1 | W123: 1 | X123: 1 | Y123: 1 | Z123: 1 | AA123: 1 | AB123: 1 | AC123: 1 | AD123: 1 | AE123: 1 | AF123: 1 | AG123: 1 | AH123: 1 | AI123: 1 | AJ123: 1 | AK123: 1 | AL123: 1 | AM123: 1 | AN123: 1 | AO123: 1 | AP123: 0 | AQ123: 0 | AR123: 0 | AS123: 0 | AT123: 0 | AU123: 0 | AV123: 0 | AW123: 0 | AX123: 0 | AY123: 0 | AZ123: 0 | BA123: 0 | BC123: =Parametros.Red!M541 -> Rural | BD123: 3
C124: 48 | E124: [%] | F124: 0 | G124: =F124 -> 0 | H124: 0 | I124: 0 | J124: 0 | K124: 0 | L124: 0 | M124: 0 | N124: 0 | O124: 0 | P124: 0 | Q124: 0 | R124: 0 | S124: 0 | T124: 0 | U124: 0 | V124: 0 | W124: 0 | X124: 0 | Y124: 0 | Z124: 0 | AA124: 0 | AB124: 0 | AC124: 0 | AD124: 0 | AE124: 0 | AF124: 0 | AG124: 0 | AH124: 0 | AI124: 0 | AJ124: 0 | AK124: 0 | AL124: 0 | AM124: 0 | AN124: 0 | AO124: 0 | AP124: 0 | AQ124: 0 | AR124: 0 | AS124: 0 | AT124: 0 | AU124: 0 | AV124: 0 | AW124: 0 | AX124: 0 | AY124: 0 | AZ124: 0 | BA124: 0 | BC124: =Parametros.Red!M542 -> Indoor | BD124: 5
C125: 49 | D125: libre | E125: [%] | F125: 0 | G125: 0 | H125: =G125 -> 0 | I125: 0 | J125: 0 | K125: 0 | L125: 0 | M125: 0 | N125: 0 | O125: 0 | P125: 0 | Q125: 0 | R125: 0 | S125: 0 | T125: 0 | U125: 0 | V125: 0 | W125: 0 | X125: 0 | Y125: 0 | Z125: 0 | AA125: 0 | AB125: 0 | AC125: 0 | AD125: 0 | AE125: 0 | AF125: 0 | AG125: 0 | AH125: 0 | AI125: 0 | AJ125: 0 | AK125: 0 | AL125: 0 | AM125: 0 | AN125: 0 | AO125: 0 | AP125: 0 | AQ125: 0 | AR125: 0 | AS125: 0 | AT125: 0 | AU125: 0 | AV125: 0 | AW125: 0 | AX125: 0 | AY125: 0 | AZ125: 0 | BA125: 0 | BC125: =Parametros.Red!M543 -> 0 | BD125: 0
C126: 50 | E126: [%] | F126: 1 | G126: 1 | H126: =G126 -> 1 | I126: 1 | J126: 1 | K126: 1 | L126: 1 | M126: 1 | N126: 1 | O126: 1 | P126: 1 | Q126: 1 | R126: 1 | S126: 1 | T126: 1 | U126: 1 | V126: 1 | W126: 1 | X126: 1 | Y126: 1 | Z126: 1 | AA126: 1 | AB126: 1 | AC126: 1 | AD126: 1 | AE126: 1 | AF126: 1 | AG126: 1 | AH126: 1 | AI126: 1 | AJ126: 1 | AK126: 1 | AL126: 1 | AM126: 1 | AN126: 1 | AO126: 1 | AP126: 0 | AQ126: 0 | AR126: 0 | AS126: 0 | AT126: 0 | AU126: 0 | AV126: 0 | AW126: 0 | AX126: 0 | AY126: 0 | AZ126: 0 | BA126: 0 | BC126: =Parametros.Red!M544 -> Carreteras | BD126: 4
C127: 51 | D127: libre | E127: [%] | F127: 0 | G127: 0 | H127: =G127 -> 0 | I127: 0 | J127: 0 | K127: 0 | L127: 0 | M127: 0 | N127: 0 | O127: 0 | P127: 0 | Q127: 0 | R127: 0 | S127: 0 | T127: 0 | U127: 0 | V127: 0 | W127: 0 | X127: 0 | Y127: 0 | Z127: 0 | AA127: 0 | AB127: 0 | AC127: 0 | AD127: 0 | AE127: 0 | AF127: 0 | AG127: 0 | AH127: 0 | AI127: 0 | AJ127: 0 | AK127: 0 | AL127: 0 | AM127: 0 | AN127: 0 | AO127: 0 | AP127: 0 | AQ127: 0 | AR127: 0 | AS127: 0 | AT127: 0 | AU127: 0 | AV127: 0 | AW127: 0 | AX127: 0 | AY127: 0 | AZ127: 0 | BA127: 0 | BC127: =Parametros.Red!M545 -> 0 | BD127: 0
C128: 52 | D128: libre | E128: [%] | F128: 0 | G128: 0 | H128: =G128 -> 0 | I128: 0 | J128: 0 | K128: 0 | L128: 0 | M128: 0 | N128: 0 | O128: 0 | P128: 0 | Q128: 0 | R128: 0 | S128: 0 | T128: 0 | U128: 0 | V128: 0 | W128: 0 | X128: 0 | Y128: 0 | Z128: 0 | AA128: 0 | AB128: 0 | AC128: 0 | AD128: 0 | AE128: 0 | AF128: 0 | AG128: 0 | AH128: 0 | AI128: 0 | AJ128: 0 | AK128: 0 | AL128: 0 | AM128: 0 | AN128: 0 | AO128: 0 | AP128: 0 | AQ128: 0 | AR128: 0 | AS128: 0 | AT128: 0 | AU128: 0 | AV128: 0 | AW128: 0 | AX128: 0 | AY128: 0 | AZ128: 0 | BA128: 0 | BC128: =Parametros.Red!M546 -> 0 | BD128: 0
C129: 53 | D129: libre | E129: [%] | F129: 0 | G129: =F129 -> 0 | H129: 0 | I129: 0 | J129: 0 | K129: 0 | L129: 0 | M129: 0 | N129: 0 | O129: 0 | P129: 0 | Q129: 0 | R129: 0 | S129: 0 | T129: 0 | U129: 0 | V129: 0 | W129: 0 | X129: 0 | Y129: 0 | Z129: 0 | AA129: 0 | AB129: 0 | AC129: 0 | AD129: 0 | AE129: 0 | AF129: 0 | AG129: 0 | AH129: 0 | AI129: 0 | AJ129: 0 | AK129: 0 | AL129: 0 | AM129: 0 | AN129: 0 | AO129: 0 | AP129: 0 | AQ129: 0 | AR129: 0 | AS129: 0 | AT129: 0 | AU129: 0 | AV129: 0 | AW129: 0 | AX129: 0 | AY129: 0 | AZ129: 0 | BA129: 0 | BC129: =Parametros.Red!M547 -> 0 | BD129: 0
C130: 54 | D130: libre | E130: [%] | F130: 0 | G130: =F130 -> 0 | H130: 0 | I130: 0 | J130: 0 | K130: 0 | L130: 0 | M130: 0 | N130: 0 | O130: 0 | P130: 0 | Q130: 0 | R130: 0 | S130: 0 | T130: 0 | U130: 0 | V130: 0 | W130: 0 | X130: 0 | Y130: 0 | Z130: 0 | AA130: 0 | AB130: 0 | AC130: 0 | AD130: 0 | AE130: 0 | AF130: 0 | AG130: 0 | AH130: 0 | AI130: 0 | AJ130: 0 | AK130: 0 | AL130: 0 | AM130: 0 | AN130: 0 | AO130: 0 | AP130: 0 | AQ130: 0 | AR130: 0 | AS130: 0 | AT130: 0 | AU130: 0 | AV130: 0 | AW130: 0 | AX130: 0 | AY130: 0 | AZ130: 0 | BA130: 0 | BC130: =Parametros.Red!M548 -> 0 | BD130: 0
C131: 55 | D131: libre | E131: [%] | F131: 0 | G131: =F131 -> 0 | H131: 0 | I131: 0 | J131: 0 | K131: 0 | L131: 0 | M131: 0 | N131: 0 | O131: 0 | P131: 0 | Q131: 0 | R131: 0 | S131: 0 | T131: 0 | U131: 0 | V131: 0 | W131: 0 | X131: 0 | Y131: 0 | Z131: 0 | AA131: 0 | AB131: 0 | AC131: 0 | AD131: 0 | AE131: 0 | AF131: 0 | AG131: 0 | AH131: 0 | AI131: 0 | AJ131: 0 | AK131: 0 | AL131: 0 | AM131: 0 | AN131: 0 | AO131: 0 | AP131: 0 | AQ131: 0 | AR131: 0 | AS131: 0 | AT131: 0 | AU131: 0 | AV131: 0 | AW131: 0 | AX131: 0 | AY131: 0 | AZ131: 0 | BA131: 0 | BC131: =Parametros.Red!M549 -> 0 | BD131: 0
C132: 56 | D132: libre | E132: [%] | F132: 0 | G132: =F132 -> 0 | H132: 0 | I132: 0 | J132: 0 | K132: 0 | L132: 0 | M132: 0 | N132: 0 | O132: 0 | P132: 0 | Q132: 0 | R132: 0 | S132: 0 | T132: 0 | U132: 0 | V132: 0 | W132: 0 | X132: 0 | Y132: 0 | Z132: 0 | AA132: 0 | AB132: 0 | AC132: 0 | AD132: 0 | AE132: 0 | AF132: 0 | AG132: 0 | AH132: 0 | AI132: 0 | AJ132: 0 | AK132: 0 | AL132: 0 | AM132: 0 | AN132: 0 | AO132: 0 | AP132: 0 | AQ132: 0 | AR132: 0 | AS132: 0 | AT132: 0 | AU132: 0 | AV132: 0 | AW132: 0 | AX132: 0 | AY132: 0 | AZ132: 0 | BA132: 0 | BC132: =Parametros.Red!M550 -> 0 | BD132: 0
C133: 57 | D133: libre | E133: [%] | F133: 0 | G133: =F133 -> 0 | H133: 0 | I133: 0 | J133: 0 | K133: 0 | L133: 0 | M133: 0 | N133: 0 | O133: 0 | P133: 0 | Q133: 0 | R133: 0 | S133: 0 | T133: 0 | U133: 0 | V133: 0 | W133: 0 | X133: 0 | Y133: 0 | Z133: 0 | AA133: 0 | AB133: 0 | AC133: 0 | AD133: 0 | AE133: 0 | AF133: 0 | AG133: 0 | AH133: 0 | AI133: 0 | AJ133: 0 | AK133: 0 | AL133: 0 | AM133: 0 | AN133: 0 | AO133: 0 | AP133: 0 | AQ133: 0 | AR133: 0 | AS133: 0 | AT133: 0 | AU133: 0 | AV133: 0 | AW133: 0 | AX133: 0 | AY133: 0 | AZ133: 0 | BA133: 0 | BC133: =Parametros.Red!M551 -> 0 | BD133: 0
C134: 58 | D134: libre | E134: [%] | F134: 0 | G134: =F134 -> 0 | H134: 0 | I134: 0 | J134: 0 | K134: 0 | L134: 0 | M134: 0 | N134: 0 | O134: 0 | P134: 0 | Q134: 0 | R134: 0 | S134: 0 | T134: 0 | U134: 0 | V134: 0 | W134: 0 | X134: 0 | Y134: 0 | Z134: 0 | AA134: 0 | AB134: 0 | AC134: 0 | AD134: 0 | AE134: 0 | AF134: 0 | AG134: 0 | AH134: 0 | AI134: 0 | AJ134: 0 | AK134: 0 | AL134: 0 | AM134: 0 | AN134: 0 | AO134: 0 | AP134: 0 | AQ134: 0 | AR134: 0 | AS134: 0 | AT134: 0 | AU134: 0 | AV134: 0 | AW134: 0 | AX134: 0 | AY134: 0 | AZ134: 0 | BA134: 0 | BC134: =Parametros.Red!M552 -> 0 | BD134: 0
C135: 59 | D135: libre | E135: [%] | F135: 0 | G135: =F135 -> 0 | H135: 0 | I135: 0 | J135: 0 | K135: 0 | L135: 0 | M135: 0 | N135: 0 | O135: 0 | P135: 0 | Q135: 0 | R135: 0 | S135: 0 | T135: 0 | U135: 0 | V135: 0 | W135: 0 | X135: 0 | Y135: 0 | Z135: 0 | AA135: 0 | AB135: 0 | AC135: 0 | AD135: 0 | AE135: 0 | AF135: 0 | AG135: 0 | AH135: 0 | AI135: 0 | AJ135: 0 | AK135: 0 | AL135: 0 | AM135: 0 | AN135: 0 | AO135: 0 | AP135: 0 | AQ135: 0 | AR135: 0 | AS135: 0 | AT135: 0 | AU135: 0 | AV135: 0 | AW135: 0 | AX135: 0 | AY135: 0 | AZ135: 0 | BA135: 0 | BC135: =Parametros.Red!M553 -> 0 | BD135: 0
C136: 60 | D136: libre | E136: [%] | F136: 0 | G136: =F136 -> 0 | H136: 0 | I136: 0 | J136: 0 | K136: 0 | L136: 0 | M136: 0 | N136: 0 | O136: 0 | P136: 0 | Q136: 0 | R136: 0 | S136: 0 | T136: 0 | U136: 0 | V136: 0 | W136: 0 | X136: 0 | Y136: 0 | Z136: 0 | AA136: 0 | AB136: 0 | AC136: 0 | AD136: 0 | AE136: 0 | AF136: 0 | AG136: 0 | AH136: 0 | AI136: 0 | AJ136: 0 | AK136: 0 | AL136: 0 | AM136: 0 | AN136: 0 | AO136: 0 | AP136: 0 | AQ136: 0 | AR136: 0 | AS136: 0 | AT136: 0 | AU136: 0 | AV136: 0 | AW136: 0 | AX136: 0 | AY136: 0 | AZ136: 0 | BA136: 0 | BB136: porcentaje.sitios.cobertura | BC136: =Parametros.Red!M554 -> 0 | BD136: 0
D138: Urbana 2G | E138: [%] | F138: =SUM(F77:F82) -> 1 | G138: =SUM(G77:G82) -> 1 | H138: 1 | I138: 1 | J138: 1 | K138: 1 | L138: 1 | M138: 1 | N138: 1 | O138: 1 | P138: 1 | Q138: 1 | R138: 1 | S138: 1 | T138: 1 | U138: 1 | V138: 1 | W138: 1 | X138: 0 | Y138: 0 | Z138: 0 | AA138: 0 | AB138: 0 | AC138: 0 | AD138: 0 | AE138: 0 | AF138: 0 | AG138: 0 | AH138: 0 | AI138: 0 | AJ138: 1 | AK138: 1 | AL138: 1 | AM138: 1 | AN138: 1 | AO138: 1 | AP138: 0 | AQ138: 0 | AR138: 0 | AS138: 0 | AT138: 0 | AU138: 0 | AV138: 0 | AW138: 0 | AX138: 0 | AY138: 0 | AZ138: 0 | BA138: 0
D139: Semiurbana 2G | E139: [%] | F139: =SUM(F84:F89) -> 1 | G139: =SUM(G84:G89) -> 1 | H139: 1 | I139: 1 | J139: 1 | K139: 1 | L139: 1 | M139: 1 | N139: 1 | O139: 1 | P139: 1 | Q139: 1 | R139: 1 | S139: 1 | T139: 1 | U139: 1 | V139: 1 | W139: 1 | X139: 0 | Y139: 0 | Z139: 0 | AA139: 0 | AB139: 0 | AC139: 0 | AD139: 0 | AE139: 0 | AF139: 0 | AG139: 0 | AH139: 0 | AI139: 0 | AJ139: 1 | AK139: 1 | AL139: 1 | AM139: 1 | AN139: 1 | AO139: 1 | AP139: 0 | AQ139: 0 | AR139: 0 | AS139: 0 | AT139: 0 | AU139: 0 | AV139: 0 | AW139: 0 | AX139: 0 | AY139: 0 | AZ139: 0 | BA139: 0
D140: Rural 2G | E140: [%] | F140: =SUM(F90:F95) -> 1 | G140: =SUM(G90:G95) -> 1 | H140: 1 | I140: 1 | J140: 1 | K140: 1 | L140: 1 | M140: 1 | N140: 1 | O140: 1 | P140: 1 | Q140: 1 | R140: 1 | S140: 1 | T140: 1 | U140: 1 | V140: 1 | W140: 1 | X140: 0 | Y140: 0 | Z140: 0 | AA140: 0 | AB140: 0 | AC140: 0 | AD140: 0 | AE140: 0 | AF140: 0 | AG140: 0 | AH140: 0 | AI140: 0 | AJ140: 1 | AK140: 1 | AL140: 1 | AM140: 1 | AN140: 1 | AO140: 1 | AP140: 0 | AQ140: 0 | AR140: 0 | AS140: 0 | AT140: 0 | AU140: 0 | AV140: 0 | AW140: 0 | AX140: 0 | AY140: 0 | AZ140: 0 | BA140: 0
D141: Carretera 2G | E141: [%] | F141: =SUM(F96:F100) -> 1 | G141: =SUM(G96:G100) -> 1 | H141: 1 | I141: 1 | J141: 1 | K141: 1 | L141: 1 | M141: 1 | N141: 1 | O141: 1 | P141: 1 | Q141: 1 | R141: 1 | S141: 1 | T141: 1 | U141: 1 | V141: 1 | W141: 1 | X141: 0 | Y141: 0 | Z141: 0 | AA141: 0 | AB141: 0 | AC141: 0 | AD141: 0 | AE141: 0 | AF141: 0 | AG141: 0 | AH141: 0 | AI141: 0 | AJ141: 1 | AK141: 1 | AL141: 1 | AM141: 1 | AN141: 1 | AO141: 1 | AP141: 0 | AQ141: 0 | AR141: 0 | AS141: 0 | AT141: 0 | AU141: 0 | AV141: 0 | AW141: 0 | AX141: 0 | AY141: 0 | AZ141: 0 | BA141: 0
D142: Indoor 2G | E142: [%] | F142: =SUM(F83) -> 0 | G142: =SUM(G83) -> 0 | H142: 0 | I142: 0 | J142: 0 | K142: 0 | L142: 0 | M142: 0 | N142: 0 | O142: 0 | P142: 0 | Q142: 0 | R142: 0 | S142: 0 | T142: 0 | U142: 0 | V142: 0 | W142: 0 | X142: 0 | Y142: 0 | Z142: 0 | AA142: 0 | AB142: 0 | AC142: 0 | AD142: 0 | AE142: 0 | AF142: 0 | AG142: 0 | AH142: 0 | AI142: 0 | AJ142: 0 | AK142: 0 | AL142: 0 | AM142: 0 | AN142: 0 | AO142: 0 | AP142: 0 | AQ142: 0 | AR142: 0 | AS142: 0 | AT142: 0 | AU142: 0 | AV142: 0 | AW142: 0 | AX142: 0 | AY142: 0 | AZ142: 0 | BA142: 0
D143: Urbana 3G | E143: [%] | F143: =SUM(F101:F102,F110:F111) -> 1 | G143: =SUM(G101:G102,G110:G111) -> 1 | H143: 1 | I143: 1 | J143: 1 | K143: 1 | L143: 1 | M143: 1 | N143: 1 | O143: 1 | P143: 1 | Q143: 1 | R143: 1 | S143: 1 | T143: 1 | U143: 1 | V143: 1 | W143: 1 | X143: 0 | Y143: 0 | Z143: 0 | AA143: 0 | AB143: 0 | AC143: 0 | AD143: 0 | AE143: 0 | AF143: 0 | AG143: 0 | AH143: 0 | AI143: 0 | AJ143: 1 | AK143: 1 | AL143: 1 | AM143: 1 | AN143: 1 | AO143: 1 | AP143: 0 | AQ143: 0 | AR143: 0 | AS143: 0 | AT143: 0 | AU143: 0 | AV143: 0 | AW143: 0 | AX143: 0 | AY143: 0 | AZ143: 0 | BA143: 0
D144: Semiurbana 3G | E144: [%] | F144: =SUM(F103:F104,F113:F114) -> 1 | G144: =SUM(G103:G104,G113:G114) -> 1 | H144: 1 | I144: 1 | J144: 1 | K144: 1 | L144: 1 | M144: 1 | N144: 1 | O144: 1 | P144: 1 | Q144: 1 | R144: 1 | S144: 1 | T144: 1 | U144: 1 | V144: 1 | W144: 1 | X144: 0 | Y144: 0 | Z144: 0 | AA144: 0 | AB144: 0 | AC144: 0 | AD144: 0 | AE144: 0 | AF144: 0 | AG144: 0 | AH144: 0 | AI144: 0 | AJ144: 1 | AK144: 1 | AL144: 1 | AM144: 1 | AN144: 1 | AO144: 1 | AP144: 0 | AQ144: 0 | AR144: 0 | AS144: 0 | AT144: 0 | AU144: 0 | AV144: 0 | AW144: 0 | AX144: 0 | AY144: 0 | AZ144: 0 | BA144: 0
D145: Rural 3G | E145: [%] | F145: =SUM(F105:F106,F115:F116) -> 1 | G145: =SUM(G105:G106,G115:G116) -> 1 | H145: 1 | I145: 1 | J145: 1 | K145: 1 | L145: 1 | M145: 1 | N145: 1 | O145: 1 | P145: 1 | Q145: 1 | R145: 1 | S145: 1 | T145: 1 | U145: 1 | V145: 1 | W145: 1 | X145: 0 | Y145: 0 | Z145: 0 | AA145: 0 | AB145: 0 | AC145: 0 | AD145: 0 | AE145: 0 | AF145: 0 | AG145: 0 | AH145: 0 | AI145: 0 | AJ145: 1 | AK145: 1 | AL145: 1 | AM145: 1 | AN145: 1 | AO145: 1 | AP145: 0 | AQ145: 0 | AR145: 0 | AS145: 0 | AT145: 0 | AU145: 0 | AV145: 0 | AW145: 0 | AX145: 0 | AY145: 0 | AZ145: 0 | BA145: 0
D146: Carretera 3G | E146: [%] | F146: =SUM(F107:F109,F117:F119) -> 1 | G146: =SUM(G107:G109,G117:G119) -> 1 | H146: 1 | I146: 1 | J146: 1 | K146: 1 | L146: 1 | M146: 1 | N146: 1 | O146: 1 | P146: 1 | Q146: 1 | R146: 1 | S146: 1 | T146: 1 | U146: 1 | V146: 1 | W146: 1 | X146: 0 | Y146: 0 | Z146: 0 | AA146: 0 | AB146: 0 | AC146: 0 | AD146: 0 | AE146: 0 | AF146: 0 | AG146: 0 | AH146: 0 | AI146: 0 | AJ146: 1 | AK146: 1 | AL146: 1 | AM146: 1 | AN146: 1 | AO146: 1 | AP146: 0 | AQ146: 0 | AR146: 0 | AS146: 0 | AT146: 0 | AU146: 0 | AV146: 0 | AW146: 0 | AX146: 0 | AY146: 0 | AZ146: 0 | BA146: 0
D147: Indoor 3G | E147: [%] | F147: =SUM(F112) -> 0 | G147: =SUM(G112) -> 0 | H147: 0 | I147: 0 | J147: 0 | K147: 0 | L147: 0 | M147: 0 | N147: 0 | O147: 0 | P147: 0 | Q147: 0 | R147: 0 | S147: 0 | T147: 0 | U147: 0 | V147: 0 | W147: 0 | X147: 0 | Y147: 0 | Z147: 0 | AA147: 0 | AB147: 0 | AC147: 0 | AD147: 0 | AE147: 0 | AF147: 0 | AG147: 0 | AH147: 0 | AI147: 0 | AJ147: 0 | AK147: 0 | AL147: 0 | AM147: 0 | AN147: 0 | AO147: 0 | AP147: 0 | AQ147: 0 | AR147: 0 | AS147: 0 | AT147: 0 | AU147: 0 | AV147: 0 | AW147: 0 | AX147: 0 | AY147: 0 | AZ147: 0 | BA147: 0
D148: Urbana 4G | E148: [%] | F148: =SUM(F120:F121) -> 1 | G148: =SUM(G120:G121) -> 1 | H148: 1 | I148: 1 | J148: 1 | K148: 1 | L148: 1 | M148: 1 | N148: 1 | O148: 1 | P148: 1 | Q148: 1 | R148: 1 | S148: 1 | T148: 1 | U148: 1 | V148: 1 | W148: 1 | X148: 1 | Y148: 1 | Z148: 1 | AA148: 1 | AB148: 1 | AC148: 1 | AD148: 1 | AE148: 1 | AF148: 1 | AG148: 1 | AH148: 1 | AI148: 1 | AJ148: 1 | AK148: 1 | AL148: 1 | AM148: 1 | AN148: 1 | AO148: 1 | AP148: 0 | AQ148: 0 | AR148: 0 | AS148: 0 | AT148: 0 | AU148: 0 | AV148: 0 | AW148: 0 | AX148: 0 | AY148: 0 | AZ148: 0 | BA148: 0
D149: Semiurbana 4G | E149: [%] | F149: =SUM(F122) -> 1 | G149: =SUM(G122) -> 1 | H149: 1 | I149: 1 | J149: 1 | K149: 1 | L149: 1 | M149: 1 | N149: 1 | O149: 1 | P149: 1 | Q149: 1 | R149: 1 | S149: 1 | T149: 1 | U149: 1 | V149: 1 | W149: 1 | X149: 1 | Y149: 1 | Z149: 1 | AA149: 1 | AB149: 1 | AC149: 1 | AD149: 1 | AE149: 1 | AF149: 1 | AG149: 1 | AH149: 1 | AI149: 1 | AJ149: 1 | AK149: 1 | AL149: 1 | AM149: 1 | AN149: 1 | AO149: 1 | AP149: 0 | AQ149: 0 | AR149: 0 | AS149: 0 | AT149: 0 | AU149: 0 | AV149: 0 | AW149: 0 | AX149: 0 | AY149: 0 | AZ149: 0 | BA149: 0
D150: Rural 4G | E150: [%] | F150: =SUM(F123) -> 1 | G150: =SUM(G123) -> 1 | H150: 1 | I150: 1 | J150: 1 | K150: 1 | L150: 1 | M150: 1 | N150: 1 | O150: 1 | P150: 1 | Q150: 1 | R150: 1 | S150: 1 | T150: 1 | U150: 1 | V150: 1 | W150: 1 | X150: 1 | Y150: 1 | Z150: 1 | AA150: 1 | AB150: 1 | AC150: 1 | AD150: 1 | AE150: 1 | AF150: 1 | AG150: 1 | AH150: 1 | AI150: 1 | AJ150: 1 | AK150: 1 | AL150: 1 | AM150: 1 | AN150: 1 | AO150: 1 | AP150: 0 | AQ150: 0 | AR150: 0 | AS150: 0 | AT150: 0 | AU150: 0 | AV150: 0 | AW150: 0 | AX150: 0 | AY150: 0 | AZ150: 0 | BA150: 0
D151: Carretera 4G | E151: [%] | F151: =SUM(F126) -> 1 | G151: =SUM(G126) -> 1 | H151: 1 | I151: 1 | J151: 1 | K151: 1 | L151: 1 | M151: 1 | N151: 1 | O151: 1 | P151: 1 | Q151: 1 | R151: 1 | S151: 1 | T151: 1 | U151: 1 | V151: 1 | W151: 1 | X151: 1 | Y151: 1 | Z151: 1 | AA151: 1 | AB151: 1 | AC151: 1 | AD151: 1 | AE151: 1 | AF151: 1 | AG151: 1 | AH151: 1 | AI151: 1 | AJ151: 1 | AK151: 1 | AL151: 1 | AM151: 1 | AN151: 1 | AO151: 1 | AP151: 0 | AQ151: 0 | AR151: 0 | AS151: 0 | AT151: 0 | AU151: 0 | AV151: 0 | AW151: 0 | AX151: 0 | AY151: 0 | AZ151: 0 | BA151: 0
D152: Indoor 4G | E152: [%] | F152: =SUM(F124) -> 0 | G152: =SUM(G124) -> 0 | H152: 0 | I152: 0 | J152: 0 | K152: 0 | L152: 0 | M152: 0 | N152: 0 | O152: 0 | P152: 0 | Q152: 0 | R152: 0 | S152: 0 | T152: 0 | U152: 0 | V152: 0 | W152: 0 | X152: 0 | Y152: 0 | Z152: 0 | AA152: 0 | AB152: 0 | AC152: 0 | AD152: 0 | AE152: 0 | AF152: 0 | AG152: 0 | AH152: 0 | AI152: 0 | AJ152: 0 | AK152: 0 | AL152: 0 | AM152: 0 | AN152: 0 | AO152: 0 | AP152: 0 | AQ152: 0 | AR152: 0 | AS152: 0 | AT152: 0 | AU152: 0 | AV152: 0 | AW152: 0 | AX152: 0 | AY152: 0 | AZ152: 0 | BA152: 0
C154: Superficie a cubrir por Tipo Sitio
F156: =INDEX(lista.empresas,lista.escenarios) -> Empresa 1 | G156: Empresa 1 | H156: Empresa 1 | I156: Empresa 1 | J156: Empresa 1 | K156: Empresa 1 | L156: Empresa 2 | M156: Empresa 2 | N156: Empresa 2 | O156: Empresa 2 | P156: Empresa 2 | Q156: Empresa 2 | R156: Empresa 3 | S156: Empresa 3 | T156: Empresa 3 | U156: Empresa 3 | V156: Empresa 3 | W156: Empresa 3 | X156: Empresa 4 | Y156: Empresa 4 | Z156: Empresa 4 | AA156: Empresa 4 | AB156: Empresa 4 | AC156: Empresa 4 | AD156: Empresa 5 | AE156: Empresa 5 | AF156: Empresa 5 | AG156: Empresa 5 | AH156: Empresa 5 | AI156: Empresa 5 | AJ156: Empresa 6 | AK156: Empresa 6 | AL156: Empresa 6 | AM156: Empresa 6 | AN156: Empresa 6 | AO156: Empresa 6 | AP156: Empresa 7 | AQ156: Empresa 7 | AR156: Empresa 7 | AS156: Empresa 7 | AT156: Empresa 7 | AU156: Empresa 7 | AV156: Empresa 8 | AW156: Empresa 8 | AX156: Empresa 8 | AY156: Empresa 8 | AZ156: Empresa 8 | BA156: Empresa 8
C157: id | D157: Geotipo & Tipo Celdas | F157: =años -> 0 | G157: 1 | H157: 2 | I157: 3 | J157: 4 | K157: 5 | L157: =años -> 0 | M157: 1 | N157: 2 | O157: 3 | P157: 4 | Q157: 5 | R157: =años -> 0 | S157: 1 | T157: 2 | U157: 3 | V157: 4 | W157: 5 | X157: =años -> 0 | Y157: 1 | Z157: 2 | AA157: 3 | AB157: 4 | AC157: 5 | AD157: =años -> 0 | AE157: 1 | AF157: 2 | AG157: 3 | AH157: 4 | AI157: 5 | AJ157: =años -> 0 | AK157: 1 | AL157: 2 | AM157: 3 | AN157: 4 | AO157: 5 | AP157: =años -> 0 | AQ157: 1 | AR157: 2 | AS157: 3 | AT157: 4 | AU157: 5 | AV157: =años -> 0 | AW157: 1 | AX157: 2 | AY157: 3 | AZ157: 4 | BA157: 5
C158: 1 | D158: =lista.tipo.sitios ->  | E158: [km2] | F158: =IFERROR(Parametros.Red!F626*INDEX(porcentaje.sitios.cobertura,$C158,Parametros.Red!F$12)*INDEX(superficie.cobertura.2g,Parametros.Red!$N495,Parametros.Red!F$11),0) -> 0 | G158: =IFERROR(Parametros.Red!G626*INDEX(porcentaje.sitios.cobertura,$C158,Parametros.Red!G$12)*INDEX(superficie.cobertura.2g,Parametros.Red!$N495,Parametros.Red!G$11),0) -> 0 | H158: =IFERROR(Parametros.Red!H626*INDEX(porcentaje.sitios.cobertura,$C158,Parametros.Red!H$12)*INDEX(superficie.cobertura.2g,Parametros.Red!$N495,Parametros.Red!H$11),0) -> 0 | I158: =IFERROR(Parametros.Red!I626*INDEX(porcentaje.sitios.cobertura,$C158,Parametros.Red!I$12)*INDEX(superficie.cobertura.2g,Parametros.Red!$N495,Parametros.Red!I$11),0) -> 0 | J158: =IFERROR(Parametros.Red!J626*INDEX(porcentaje.sitios.cobertura,$C158,Parametros.Red!J$12)*INDEX(superficie.cobertura.2g,Parametros.Red!$N495,Parametros.Red!J$11),0) -> 0 | K158: =IFERROR(Parametros.Red!K626*INDEX(porcentaje.sitios.cobertura,$C158,Parametros.Red!K$12)*INDEX(superficie.cobertura.2g,Parametros.Red!$N495,Parametros.Red!K$11),0) -> 0 | L158: =IFERROR(Parametros.Red!L626*INDEX(porcentaje.sitios.cobertura,$C158,Parametros.Red!L$12)*INDEX(superficie.cobertura.2g,Parametros.Red!$N495,Parametros.Red!L$11),0) -> 0 | M158: =IFERROR(Parametros.Red!M626*INDEX(porcentaje.sitios.cobertura,$C158,Parametros.Red!M$12)*INDEX(superficie.cobertura.2g,Parametros.Red!$N495,Parametros.Red!M$11),0) -> 0 | N158: =IFERROR(Parametros.Red!N626*INDEX(porcentaje.sitios.cobertura,$C158,Parametros.Red!N$12)*INDEX(superficie.cobertura.2g,Parametros.Red!$N495,Parametros.Red!N$11),0) -> 0 | O158: =IFERROR(Parametros.Red!O626*INDEX(porcentaje.sitios.cobertura,$C158,Parametros.Red!O$12)*INDEX(superficie.cobertura.2g,Parametros.Red!$N495,Parametros.Red!O$11),0) -> 0 | P158: =IFERROR(Parametros.Red!P626*INDEX(porcentaje.sitios.cobertura,$C158,Parametros.Red!P$12)*INDEX(superficie.cobertura.2g,Parametros.Red!$N495,Parametros.Red!P$11),0) -> 0 | Q158: =IFERROR(Parametros.Red!Q626*INDEX(porcentaje.sitios.cobertura,$C158,Parametros.Red!Q$12)*INDEX(superficie.cobertura.2g,Parametros.Red!$N495,Parametros.Red!Q$11),0) -> 0 | R158: =IFERROR(Parametros.Red!R626*INDEX(porcentaje.sitios.cobertura,$C158,Parametros.Red!R$12)*INDEX(superficie.cobertura.2g,Parametros.Red!$N495,Parametros.Red!R$11),0) -> 0 | S158: =IFERROR(Parametros.Red!S626*INDEX(porcentaje.sitios.cobertura,$C158,Parametros.Red!S$12)*INDEX(superficie.cobertura.2g,Parametros.Red!$N495,Parametros.Red!S$11),0) -> 0 | T158: =IFERROR(Parametros.Red!T626*INDEX(porcentaje.sitios.cobertura,$C158,Parametros.Red!T$12)*INDEX(superficie.cobertura.2g,Parametros.Red!$N495,Parametros.Red!T$11),0) -> 0 | U158: =IFERROR(Parametros.Red!U626*INDEX(porcentaje.sitios.cobertura,$C158,Parametros.Red!U$12)*INDEX(superficie.cobertura.2g,Parametros.Red!$N495,Parametros.Red!U$11),0) -> 0 | V158: =IFERROR(Parametros.Red!V626*INDEX(porcentaje.sitios.cobertura,$C158,Parametros.Red!V$12)*INDEX(superficie.cobertura.2g,Parametros.Red!$N495,Parametros.Red!V$11),0) -> 0 | W158: =IFERROR(Parametros.Red!W626*INDEX(porcentaje.sitios.cobertura,$C158,Parametros.Red!W$12)*INDEX(superficie.cobertura.2g,Parametros.Red!$N495,Parametros.Red!W$11),0) -> 0 | X158: =IFERROR(Parametros.Red!X626*INDEX(porcentaje.sitios.cobertura,$C158,Parametros.Red!X$12)*INDEX(superficie.cobertura.2g,Parametros.Red!$N495,Parametros.Red!X$11),0) -> 0 | Y158: =IFERROR(Parametros.Red!Y626*INDEX(porcentaje.sitios.cobertura,$C158,Parametros.Red!Y$12)*INDEX(superficie.cobertura.2g,Parametros.Red!$N495,Parametros.Red!Y$11),0) -> 0 | Z158: =IFERROR(Parametros.Red!Z626*INDEX(porcentaje.sitios.cobertura,$C158,Parametros.Red!Z$12)*INDEX(superficie.cobertura.2g,Parametros.Red!$N495,Parametros.Red!Z$11),0) -> 0 | AA158: =IFERROR(Parametros.Red!AA626*INDEX(porcentaje.sitios.cobertura,$C158,Parametros.Red!AA$12)*INDEX(superficie.cobertura.2g,Parametros.Red!$N495,Parametros.Red!AA$11),0) -> 0 | AB158: =IFERROR(Parametros.Red!AB626*INDEX(porcentaje.sitios.cobertura,$C158,Parametros.Red!AB$12)*INDEX(superficie.cobertura.2g,Parametros.Red!$N495,Parametros.Red!AB$11),0) -> 0 | AC158: =IFERROR(Parametros.Red!AC626*INDEX(porcentaje.sitios.cobertura,$C158,Parametros.Red!AC$12)*INDEX(superficie.cobertura.2g,Parametros.Red!$N495,Parametros.Red!AC$11),0) -> 0 | AD158: =IFERROR(Parametros.Red!AD626*INDEX(porcentaje.sitios.cobertura,$C158,Parametros.Red!AD$12)*INDEX(superficie.cobertura.2g,Parametros.Red!$N495,Parametros.Red!AD$11),0) -> 0 | AE158: =IFERROR(Parametros.Red!AE626*INDEX(porcentaje.sitios.cobertura,$C158,Parametros.Red!AE$12)*INDEX(superficie.cobertura.2g,Parametros.Red!$N495,Parametros.Red!AE$11),0) -> 0 | AF158: =IFERROR(Parametros.Red!AF626*INDEX(porcentaje.sitios.cobertura,$C158,Parametros.Red!AF$12)*INDEX(superficie.cobertura.2g,Parametros.Red!$N495,Parametros.Red!AF$11),0) -> 0 | AG158: =IFERROR(Parametros.Red!AG626*INDEX(porcentaje.sitios.cobertura,$C158,Parametros.Red!AG$12)*INDEX(superficie.cobertura.2g,Parametros.Red!$N495,Parametros.Red!AG$11),0) -> 0 | AH158: =IFERROR(Parametros.Red!AH626*INDEX(porcentaje.sitios.cobertura,$C158,Parametros.Red!AH$12)*INDEX(superficie.cobertura.2g,Parametros.Red!$N495,Parametros.Red!AH$11),0) -> 0 | AI158: =IFERROR(Parametros.Red!AI626*INDEX(porcentaje.sitios.cobertura,$C158,Parametros.Red!AI$12)*INDEX(superficie.cobertura.2g,Parametros.Red!$N495,Parametros.Red!AI$11),0) -> 0 | AJ158: =IFERROR(Parametros.Red!AJ626*INDEX(porcentaje.sitios.cobertura,$C158,Parametros.Red!AJ$12)*INDEX(superficie.cobertura.2g,Parametros.Red!$N495,Parametros.Red!AJ$11),0) -> 0 | AK158: =IFERROR(Parametros.Red!AK626*INDEX(porcentaje.sitios.cobertura,$C158,Parametros.Red!AK$12)*INDEX(superficie.cobertura.2g,Parametros.Red!$N495,Parametros.Red!AK$11),0) -> 0 | AL158: =IFERROR(Parametros.Red!AL626*INDEX(porcentaje.sitios.cobertura,$C158,Parametros.Red!AL$12)*INDEX(superficie.cobertura.2g,Parametros.Red!$N495,Parametros.Red!AL$11),0) -> 0 | AM158: =IFERROR(Parametros.Red!AM626*INDEX(porcentaje.sitios.cobertura,$C158,Parametros.Red!AM$12)*INDEX(superficie.cobertura.2g,Parametros.Red!$N495,Parametros.Red!AM$11),0) -> 0 | AN158: =IFERROR(Parametros.Red!AN626*INDEX(porcentaje.sitios.cobertura,$C158,Parametros.Red!AN$12)*INDEX(superficie.cobertura.2g,Parametros.Red!$N495,Parametros.Red!AN$11),0) -> 0 | AO158: =IFERROR(Parametros.Red!AO626*INDEX(porcentaje.sitios.cobertura,$C158,Parametros.Red!AO$12)*INDEX(superficie.cobertura.2g,Parametros.Red!$N495,Parametros.Red!AO$11),0) -> 0 | AP158: =IFERROR(Parametros.Red!AP626*INDEX(porcentaje.sitios.cobertura,$C158,Parametros.Red!AP$12)*INDEX(superficie.cobertura.2g,Parametros.Red!$N495,Parametros.Red!AP$11),0) -> 0 | AQ158: =IFERROR(Parametros.Red!AQ626*INDEX(porcentaje.sitios.cobertura,$C158,Parametros.Red!AQ$12)*INDEX(superficie.cobertura.2g,Parametros.Red!$N495,Parametros.Red!AQ$11),0) -> 0 | AR158: =IFERROR(Parametros.Red!AR626*INDEX(porcentaje.sitios.cobertura,$C158,Parametros.Red!AR$12)*INDEX(superficie.cobertura.2g,Parametros.Red!$N495,Parametros.Red!AR$11),0) -> 0 | AS158: =IFERROR(Parametros.Red!AS626*INDEX(porcentaje.sitios.cobertura,$C158,Parametros.Red!AS$12)*INDEX(superficie.cobertura.2g,Parametros.Red!$N495,Parametros.Red!AS$11),0) -> 0 | AT158: =IFERROR(Parametros.Red!AT626*INDEX(porcentaje.sitios.cobertura,$C158,Parametros.Red!AT$12)*INDEX(superficie.cobertura.2g,Parametros.Red!$N495,Parametros.Red!AT$11),0) -> 0 | AU158: =IFERROR(Parametros.Red!AU626*INDEX(porcentaje.sitios.cobertura,$C158,Parametros.Red!AU$12)*INDEX(superficie.cobertura.2g,Parametros.Red!$N495,Parametros.Red!AU$11),0) -> 0 | AV158: =IFERROR(Parametros.Red!AV626*INDEX(porcentaje.sitios.cobertura,$C158,Parametros.Red!AV$12)*INDEX(superficie.cobertura.2g,Parametros.Red!$N495,Parametros.Red!AV$11),0) -> 0 | AW158: =IFERROR(Parametros.Red!AW626*INDEX(porcentaje.sitios.cobertura,$C158,Parametros.Red!AW$12)*INDEX(superficie.cobertura.2g,Parametros.Red!$N495,Parametros.Red!AW$11),0) -> 0 | AX158: =IFERROR(Parametros.Red!AX626*INDEX(porcentaje.sitios.cobertura,$C158,Parametros.Red!AX$12)*INDEX(superficie.cobertura.2g,Parametros.Red!$N495,Parametros.Red!AX$11),0) -> 0 | AY158: =IFERROR(Parametros.Red!AY626*INDEX(porcentaje.sitios.cobertura,$C158,Parametros.Red!AY$12)*INDEX(superficie.cobertura.2g,Parametros.Red!$N495,Parametros.Red!AY$11),0) -> 0 | AZ158: =IFERROR(Parametros.Red!AZ626*INDEX(porcentaje.sitios.cobertura,$C158,Parametros.Red!AZ$12)*INDEX(superficie.cobertura.2g,Parametros.Red!$N495,Parametros.Red!AZ$11),0) -> 0 | BA158: =IFERROR(Parametros.Red!BA626*INDEX(porcentaje.sitios.cobertura,$C158,Parametros.Red!BA$12)*INDEX(superficie.cobertura.2g,Parametros.Red!$N495,Parametros.Red!BA$11),0) -> 0
C159: =C158+1 -> 2 | E159: [km2] | F159: =IFERROR(Parametros.Red!F627*INDEX(porcentaje.sitios.cobertura,$C159,Parametros.Red!F$12)*INDEX(superficie.cobertura.2g,Parametros.Red!$N496,Parametros.Red!F$11),0) -> 0 | G159: =IFERROR(Parametros.Red!G627*INDEX(porcentaje.sitios.cobertura,$C159,Parametros.Red!G$12)*INDEX(superficie.cobertura.2g,Parametros.Red!$N496,Parametros.Red!G$11),0) -> 0 | H159: =IFERROR(Parametros.Red!H627*INDEX(porcentaje.sitios.cobertura,$C159,Parametros.Red!H$12)*INDEX(superficie.cobertura.2g,Parametros.Red!$N496,Parametros.Red!H$11),0) -> 0 | I159: =IFERROR(Parametros.Red!I627*INDEX(porcentaje.sitios.cobertura,$C159,Parametros.Red!I$12)*INDEX(superficie.cobertura.2g,Parametros.Red!$N496,Parametros.Red!I$11),0) -> 0 | J159: =IFERROR(Parametros.Red!J627*INDEX(porcentaje.sitios.cobertura,$C159,Parametros.Red!J$12)*INDEX(superficie.cobertura.2g,Parametros.Red!$N496,Parametros.Red!J$11),0) -> 0 | K159: =IFERROR(Parametros.Red!K627*INDEX(porcentaje.sitios.cobertura,$C159,Parametros.Red!K$12)*INDEX(superficie.cobertura.2g,Parametros.Red!$N496,Parametros.Red!K$11),0) -> 0 | L159: =IFERROR(Parametros.Red!L627*INDEX(porcentaje.sitios.cobertura,$C159,Parametros.Red!L$12)*INDEX(superficie.cobertura.2g,Parametros.Red!$N496,Parametros.Red!L$11),0) -> 0 | M159: =IFERROR(Parametros.Red!M627*INDEX(porcentaje.sitios.cobertura,$C159,Parametros.Red!M$12)*INDEX(superficie.cobertura.2g,Parametros.Red!$N496,Parametros.Red!M$11),0) -> 0 | N159: =IFERROR(Parametros.Red!N627*INDEX(porcentaje.sitios.cobertura,$C159,Parametros.Red!N$12)*INDEX(superficie.cobertura.2g,Parametros.Red!$N496,Parametros.Red!N$11),0) -> 0 | O159: =IFERROR(Parametros.Red!O627*INDEX(porcentaje.sitios.cobertura,$C159,Parametros.Red!O$12)*INDEX(superficie.cobertura.2g,Parametros.Red!$N496,Parametros.Red!O$11),0) -> 0 | P159: =IFERROR(Parametros.Red!P627*INDEX(porcentaje.sitios.cobertura,$C159,Parametros.Red!P$12)*INDEX(superficie.cobertura.2g,Parametros.Red!$N496,Parametros.Red!P$11),0) -> 0 | Q159: =IFERROR(Parametros.Red!Q627*INDEX(porcentaje.sitios.cobertura,$C159,Parametros.Red!Q$12)*INDEX(superficie.cobertura.2g,Parametros.Red!$N496,Parametros.Red!Q$11),0) -> 0 | R159: =IFERROR(Parametros.Red!R627*INDEX(porcentaje.sitios.cobertura,$C159,Parametros.Red!R$12)*INDEX(superficie.cobertura.2g,Parametros.Red!$N496,Parametros.Red!R$11),0) -> 0 | S159: =IFERROR(Parametros.Red!S627*INDEX(porcentaje.sitios.cobertura,$C159,Parametros.Red!S$12)*INDEX(superficie.cobertura.2g,Parametros.Red!$N496,Parametros.Red!S$11),0) -> 0 | T159: =IFERROR(Parametros.Red!T627*INDEX(porcentaje.sitios.cobertura,$C159,Parametros.Red!T$12)*INDEX(superficie.cobertura.2g,Parametros.Red!$N496,Parametros.Red!T$11),0) -> 0 | U159: =IFERROR(Parametros.Red!U627*INDEX(porcentaje.sitios.cobertura,$C159,Parametros.Red!U$12)*INDEX(superficie.cobertura.2g,Parametros.Red!$N496,Parametros.Red!U$11),0) -> 0 | V159: =IFERROR(Parametros.Red!V627*INDEX(porcentaje.sitios.cobertura,$C159,Parametros.Red!V$12)*INDEX(superficie.cobertura.2g,Parametros.Red!$N496,Parametros.Red!V$11),0) -> 0 | W159: =IFERROR(Parametros.Red!W627*INDEX(porcentaje.sitios.cobertura,$C159,Parametros.Red!W$12)*INDEX(superficie.cobertura.2g,Parametros.Red!$N496,Parametros.Red!W$11),0) -> 0 | X159: =IFERROR(Parametros.Red!X627*INDEX(porcentaje.sitios.cobertura,$C159,Parametros.Red!X$12)*INDEX(superficie.cobertura.2g,Parametros.Red!$N496,Parametros.Red!X$11),0) -> 0 | Y159: =IFERROR(Parametros.Red!Y627*INDEX(porcentaje.sitios.cobertura,$C159,Parametros.Red!Y$12)*INDEX(superficie.cobertura.2g,Parametros.Red!$N496,Parametros.Red!Y$11),0) -> 0 | Z159: =IFERROR(Parametros.Red!Z627*INDEX(porcentaje.sitios.cobertura,$C159,Parametros.Red!Z$12)*INDEX(superficie.cobertura.2g,Parametros.Red!$N496,Parametros.Red!Z$11),0) -> 0 | AA159: =IFERROR(Parametros.Red!AA627*INDEX(porcentaje.sitios.cobertura,$C159,Parametros.Red!AA$12)*INDEX(superficie.cobertura.2g,Parametros.Red!$N496,Parametros.Red!AA$11),0) -> 0 | AB159: =IFERROR(Parametros.Red!AB627*INDEX(porcentaje.sitios.cobertura,$C159,Parametros.Red!AB$12)*INDEX(superficie.cobertura.2g,Parametros.Red!$N496,Parametros.Red!AB$11),0) -> 0 | AC159: =IFERROR(Parametros.Red!AC627*INDEX(porcentaje.sitios.cobertura,$C159,Parametros.Red!AC$12)*INDEX(superficie.cobertura.2g,Parametros.Red!$N496,Parametros.Red!AC$11),0) -> 0 | AD159: =IFERROR(Parametros.Red!AD627*INDEX(porcentaje.sitios.cobertura,$C159,Parametros.Red!AD$12)*INDEX(superficie.cobertura.2g,Parametros.Red!$N496,Parametros.Red!AD$11),0) -> 0 | AE159: =IFERROR(Parametros.Red!AE627*INDEX(porcentaje.sitios.cobertura,$C159,Parametros.Red!AE$12)*INDEX(superficie.cobertura.2g,Parametros.Red!$N496,Parametros.Red!AE$11),0) -> 0 | AF159: =IFERROR(Parametros.Red!AF627*INDEX(porcentaje.sitios.cobertura,$C159,Parametros.Red!AF$12)*INDEX(superficie.cobertura.2g,Parametros.Red!$N496,Parametros.Red!AF$11),0) -> 0 | AG159: =IFERROR(Parametros.Red!AG627*INDEX(porcentaje.sitios.cobertura,$C159,Parametros.Red!AG$12)*INDEX(superficie.cobertura.2g,Parametros.Red!$N496,Parametros.Red!AG$11),0) -> 0 | AH159: =IFERROR(Parametros.Red!AH627*INDEX(porcentaje.sitios.cobertura,$C159,Parametros.Red!AH$12)*INDEX(superficie.cobertura.2g,Parametros.Red!$N496,Parametros.Red!AH$11),0) -> 0 | AI159: =IFERROR(Parametros.Red!AI627*INDEX(porcentaje.sitios.cobertura,$C159,Parametros.Red!AI$12)*INDEX(superficie.cobertura.2g,Parametros.Red!$N496,Parametros.Red!AI$11),0) -> 0 | AJ159: =IFERROR(Parametros.Red!AJ627*INDEX(porcentaje.sitios.cobertura,$C159,Parametros.Red!AJ$12)*INDEX(superficie.cobertura.2g,Parametros.Red!$N496,Parametros.Red!AJ$11),0) -> 0 | AK159: =IFERROR(Parametros.Red!AK627*INDEX(porcentaje.sitios.cobertura,$C159,Parametros.Red!AK$12)*INDEX(superficie.cobertura.2g,Parametros.Red!$N496,Parametros.Red!AK$11),0) -> 0 | AL159: =IFERROR(Parametros.Red!AL627*INDEX(porcentaje.sitios.cobertura,$C159,Parametros.Red!AL$12)*INDEX(superficie.cobertura.2g,Parametros.Red!$N496,Parametros.Red!AL$11),0) -> 0 | AM159: =IFERROR(Parametros.Red!AM627*INDEX(porcentaje.sitios.cobertura,$C159,Parametros.Red!AM$12)*INDEX(superficie.cobertura.2g,Parametros.Red!$N496,Parametros.Red!AM$11),0) -> 0 | AN159: =IFERROR(Parametros.Red!AN627*INDEX(porcentaje.sitios.cobertura,$C159,Parametros.Red!AN$12)*INDEX(superficie.cobertura.2g,Parametros.Red!$N496,Parametros.Red!AN$11),0) -> 0 | AO159: =IFERROR(Parametros.Red!AO627*INDEX(porcentaje.sitios.cobertura,$C159,Parametros.Red!AO$12)*INDEX(superficie.cobertura.2g,Parametros.Red!$N496,Parametros.Red!AO$11),0) -> 0 | AP159: =IFERROR(Parametros.Red!AP627*INDEX(porcentaje.sitios.cobertura,$C159,Parametros.Red!AP$12)*INDEX(superficie.cobertura.2g,Parametros.Red!$N496,Parametros.Red!AP$11),0) -> 0 | AQ159: =IFERROR(Parametros.Red!AQ627*INDEX(porcentaje.sitios.cobertura,$C159,Parametros.Red!AQ$12)*INDEX(superficie.cobertura.2g,Parametros.Red!$N496,Parametros.Red!AQ$11),0) -> 0 | AR159: =IFERROR(Parametros.Red!AR627*INDEX(porcentaje.sitios.cobertura,$C159,Parametros.Red!AR$12)*INDEX(superficie.cobertura.2g,Parametros.Red!$N496,Parametros.Red!AR$11),0) -> 0 | AS159: =IFERROR(Parametros.Red!AS627*INDEX(porcentaje.sitios.cobertura,$C159,Parametros.Red!AS$12)*INDEX(superficie.cobertura.2g,Parametros.Red!$N496,Parametros.Red!AS$11),0) -> 0 | AT159: =IFERROR(Parametros.Red!AT627*INDEX(porcentaje.sitios.cobertura,$C159,Parametros.Red!AT$12)*INDEX(superficie.cobertura.2g,Parametros.Red!$N496,Parametros.Red!AT$11),0) -> 0 | AU159: =IFERROR(Parametros.Red!AU627*INDEX(porcentaje.sitios.cobertura,$C159,Parametros.Red!AU$12)*INDEX(superficie.cobertura.2g,Parametros.Red!$N496,Parametros.Red!AU$11),0) -> 0 | AV159: =IFERROR(Parametros.Red!AV627*INDEX(porcentaje.sitios.cobertura,$C159,Parametros.Red!AV$12)*INDEX(superficie.cobertura.2g,Parametros.Red!$N496,Parametros.Red!AV$11),0) -> 0 | AW159: =IFERROR(Parametros.Red!AW627*INDEX(porcentaje.sitios.cobertura,$C159,Parametros.Red!AW$12)*INDEX(superficie.cobertura.2g,Parametros.Red!$N496,Parametros.Red!AW$11),0) -> 0 | AX159: =IFERROR(Parametros.Red!AX627*INDEX(porcentaje.sitios.cobertura,$C159,Parametros.Red!AX$12)*INDEX(superficie.cobertura.2g,Parametros.Red!$N496,Parametros.Red!AX$11),0) -> 0 | AY159: =IFERROR(Parametros.Red!AY627*INDEX(porcentaje.sitios.cobertura,$C159,Parametros.Red!AY$12)*INDEX(superficie.cobertura.2g,Parametros.Red!$N496,Parametros.Red!AY$11),0) -> 0 | AZ159: =IFERROR(Parametros.Red!AZ627*INDEX(porcentaje.sitios.cobertura,$C159,Parametros.Red!AZ$12)*INDEX(superficie.cobertura.2g,Parametros.Red!$N496,Parametros.Red!AZ$11),0) -> 0 | BA159: =IFERROR(Parametros.Red!BA627*INDEX(porcentaje.sitios.cobertura,$C159,Parametros.Red!BA$12)*INDEX(superficie.cobertura.2g,Parametros.Red!$N496,Parametros.Red!BA$11),0) -> 0
C160: =C159+1 -> 3 | E160: [km2] | F160: =IFERROR(Parametros.Red!F628*INDEX(porcentaje.sitios.cobertura,$C160,Parametros.Red!F$12)*INDEX(superficie.cobertura.2g,Parametros.Red!$N497,Parametros.Red!F$11),0) -> 0 | G160: =IFERROR(Parametros.Red!G628*INDEX(porcentaje.sitios.cobertura,$C160,Parametros.Red!G$12)*INDEX(superficie.cobertura.2g,Parametros.Red!$N497,Parametros.Red!G$11),0) -> 0 | H160: =IFERROR(Parametros.Red!H628*INDEX(porcentaje.sitios.cobertura,$C160,Parametros.Red!H$12)*INDEX(superficie.cobertura.2g,Parametros.Red!$N497,Parametros.Red!H$11),0) -> 0 | I160: =IFERROR(Parametros.Red!I628*INDEX(porcentaje.sitios.cobertura,$C160,Parametros.Red!I$12)*INDEX(superficie.cobertura.2g,Parametros.Red!$N497,Parametros.Red!I$11),0) -> 0 | J160: =IFERROR(Parametros.Red!J628*INDEX(porcentaje.sitios.cobertura,$C160,Parametros.Red!J$12)*INDEX(superficie.cobertura.2g,Parametros.Red!$N497,Parametros.Red!J$11),0) -> 0 | K160: =IFERROR(Parametros.Red!K628*INDEX(porcentaje.sitios.cobertura,$C160,Parametros.Red!K$12)*INDEX(superficie.cobertura.2g,Parametros.Red!$N497,Parametros.Red!K$11),0) -> 0 | L160: =IFERROR(Parametros.Red!L628*INDEX(porcentaje.sitios.cobertura,$C160,Parametros.Red!L$12)*INDEX(superficie.cobertura.2g,Parametros.Red!$N497,Parametros.Red!L$11),0) -> 0 | M160: =IFERROR(Parametros.Red!M628*INDEX(porcentaje.sitios.cobertura,$C160,Parametros.Red!M$12)*INDEX(superficie.cobertura.2g,Parametros.Red!$N497,Parametros.Red!M$11),0) -> 0 | N160: =IFERROR(Parametros.Red!N628*INDEX(porcentaje.sitios.cobertura,$C160,Parametros.Red!N$12)*INDEX(superficie.cobertura.2g,Parametros.Red!$N497,Parametros.Red!N$11),0) -> 0 | O160: =IFERROR(Parametros.Red!O628*INDEX(porcentaje.sitios.cobertura,$C160,Parametros.Red!O$12)*INDEX(superficie.cobertura.2g,Parametros.Red!$N497,Parametros.Red!O$11),0) -> 0 | P160: =IFERROR(Parametros.Red!P628*INDEX(porcentaje.sitios.cobertura,$C160,Parametros.Red!P$12)*INDEX(superficie.cobertura.2g,Parametros.Red!$N497,Parametros.Red!P$11),0) -> 0 | Q160: =IFERROR(Parametros.Red!Q628*INDEX(porcentaje.sitios.cobertura,$C160,Parametros.Red!Q$12)*INDEX(superficie.cobertura.2g,Parametros.Red!$N497,Parametros.Red!Q$11),0) -> 0 | R160: =IFERROR(Parametros.Red!R628*INDEX(porcentaje.sitios.cobertura,$C160,Parametros.Red!R$12)*INDEX(superficie.cobertura.2g,Parametros.Red!$N497,Parametros.Red!R$11),0) -> 0 | S160: =IFERROR(Parametros.Red!S628*INDEX(porcentaje.sitios.cobertura,$C160,Parametros.Red!S$12)*INDEX(superficie.cobertura.2g,Parametros.Red!$N497,Parametros.Red!S$11),0) -> 0 | T160: =IFERROR(Parametros.Red!T628*INDEX(porcentaje.sitios.cobertura,$C160,Parametros.Red!T$12)*INDEX(superficie.cobertura.2g,Parametros.Red!$N497,Parametros.Red!T$11),0) -> 0 | U160: =IFERROR(Parametros.Red!U628*INDEX(porcentaje.sitios.cobertura,$C160,Parametros.Red!U$12)*INDEX(superficie.cobertura.2g,Parametros.Red!$N497,Parametros.Red!U$11),0) -> 0 | V160: =IFERROR(Parametros.Red!V628*INDEX(porcentaje.sitios.cobertura,$C160,Parametros.Red!V$12)*INDEX(superficie.cobertura.2g,Parametros.Red!$N497,Parametros.Red!V$11),0) -> 0 | W160: =IFERROR(Parametros.Red!W628*INDEX(porcentaje.sitios.cobertura,$C160,Parametros.Red!W$12)*INDEX(superficie.cobertura.2g,Parametros.Red!$N497,Parametros.Red!W$11),0) -> 0 | X160: =IFERROR(Parametros.Red!X628*INDEX(porcentaje.sitios.cobertura,$C160,Parametros.Red!X$12)*INDEX(superficie.cobertura.2g,Parametros.Red!$N497,Parametros.Red!X$11),0) -> 0 | Y160: =IFERROR(Parametros.Red!Y628*INDEX(porcentaje.sitios.cobertura,$C160,Parametros.Red!Y$12)*INDEX(superficie.cobertura.2g,Parametros.Red!$N497,Parametros.Red!Y$11),0) -> 0 | Z160: =IFERROR(Parametros.Red!Z628*INDEX(porcentaje.sitios.cobertura,$C160,Parametros.Red!Z$12)*INDEX(superficie.cobertura.2g,Parametros.Red!$N497,Parametros.Red!Z$11),0) -> 0 | AA160: =IFERROR(Parametros.Red!AA628*INDEX(porcentaje.sitios.cobertura,$C160,Parametros.Red!AA$12)*INDEX(superficie.cobertura.2g,Parametros.Red!$N497,Parametros.Red!AA$11),0) -> 0 | AB160: =IFERROR(Parametros.Red!AB628*INDEX(porcentaje.sitios.cobertura,$C160,Parametros.Red!AB$12)*INDEX(superficie.cobertura.2g,Parametros.Red!$N497,Parametros.Red!AB$11),0) -> 0 | AC160: =IFERROR(Parametros.Red!AC628*INDEX(porcentaje.sitios.cobertura,$C160,Parametros.Red!AC$12)*INDEX(superficie.cobertura.2g,Parametros.Red!$N497,Parametros.Red!AC$11),0) -> 0 | AD160: =IFERROR(Parametros.Red!AD628*INDEX(porcentaje.sitios.cobertura,$C160,Parametros.Red!AD$12)*INDEX(superficie.cobertura.2g,Parametros.Red!$N497,Parametros.Red!AD$11),0) -> 0 | AE160: =IFERROR(Parametros.Red!AE628*INDEX(porcentaje.sitios.cobertura,$C160,Parametros.Red!AE$12)*INDEX(superficie.cobertura.2g,Parametros.Red!$N497,Parametros.Red!AE$11),0) -> 0 | AF160: =IFERROR(Parametros.Red!AF628*INDEX(porcentaje.sitios.cobertura,$C160,Parametros.Red!AF$12)*INDEX(superficie.cobertura.2g,Parametros.Red!$N497,Parametros.Red!AF$11),0) -> 0 | AG160: =IFERROR(Parametros.Red!AG628*INDEX(porcentaje.sitios.cobertura,$C160,Parametros.Red!AG$12)*INDEX(superficie.cobertura.2g,Parametros.Red!$N497,Parametros.Red!AG$11),0) -> 0 | AH160: =IFERROR(Parametros.Red!AH628*INDEX(porcentaje.sitios.cobertura,$C160,Parametros.Red!AH$12)*INDEX(superficie.cobertura.2g,Parametros.Red!$N497,Parametros.Red!AH$11),0) -> 0 | AI160: =IFERROR(Parametros.Red!AI628*INDEX(porcentaje.sitios.cobertura,$C160,Parametros.Red!AI$12)*INDEX(superficie.cobertura.2g,Parametros.Red!$N497,Parametros.Red!AI$11),0) -> 0 | AJ160: =IFERROR(Parametros.Red!AJ628*INDEX(porcentaje.sitios.cobertura,$C160,Parametros.Red!AJ$12)*INDEX(superficie.cobertura.2g,Parametros.Red!$N497,Parametros.Red!AJ$11),0) -> 0 | AK160: =IFERROR(Parametros.Red!AK628*INDEX(porcentaje.sitios.cobertura,$C160,Parametros.Red!AK$12)*INDEX(superficie.cobertura.2g,Parametros.Red!$N497,Parametros.Red!AK$11),0) -> 0 | AL160: =IFERROR(Parametros.Red!AL628*INDEX(porcentaje.sitios.cobertura,$C160,Parametros.Red!AL$12)*INDEX(superficie.cobertura.2g,Parametros.Red!$N497,Parametros.Red!AL$11),0) -> 0 | AM160: =IFERROR(Parametros.Red!AM628*INDEX(porcentaje.sitios.cobertura,$C160,Parametros.Red!AM$12)*INDEX(superficie.cobertura.2g,Parametros.Red!$N497,Parametros.Red!AM$11),0) -> 0 | AN160: =IFERROR(Parametros.Red!AN628*INDEX(porcentaje.sitios.cobertura,$C160,Parametros.Red!AN$12)*INDEX(superficie.cobertura.2g,Parametros.Red!$N497,Parametros.Red!AN$11),0) -> 0 | AO160: =IFERROR(Parametros.Red!AO628*INDEX(porcentaje.sitios.cobertura,$C160,Parametros.Red!AO$12)*INDEX(superficie.cobertura.2g,Parametros.Red!$N497,Parametros.Red!AO$11),0) -> 0 | AP160: =IFERROR(Parametros.Red!AP628*INDEX(porcentaje.sitios.cobertura,$C160,Parametros.Red!AP$12)*INDEX(superficie.cobertura.2g,Parametros.Red!$N497,Parametros.Red!AP$11),0) -> 0 | AQ160: =IFERROR(Parametros.Red!AQ628*INDEX(porcentaje.sitios.cobertura,$C160,Parametros.Red!AQ$12)*INDEX(superficie.cobertura.2g,Parametros.Red!$N497,Parametros.Red!AQ$11),0) -> 0 | AR160: =IFERROR(Parametros.Red!AR628*INDEX(porcentaje.sitios.cobertura,$C160,Parametros.Red!AR$12)*INDEX(superficie.cobertura.2g,Parametros.Red!$N497,Parametros.Red!AR$11),0) -> 0 | AS160: =IFERROR(Parametros.Red!AS628*INDEX(porcentaje.sitios.cobertura,$C160,Parametros.Red!AS$12)*INDEX(superficie.cobertura.2g,Parametros.Red!$N497,Parametros.Red!AS$11),0) -> 0 | AT160: =IFERROR(Parametros.Red!AT628*INDEX(porcentaje.sitios.cobertura,$C160,Parametros.Red!AT$12)*INDEX(superficie.cobertura.2g,Parametros.Red!$N497,Parametros.Red!AT$11),0) -> 0 | AU160: =IFERROR(Parametros.Red!AU628*INDEX(porcentaje.sitios.cobertura,$C160,Parametros.Red!AU$12)*INDEX(superficie.cobertura.2g,Parametros.Red!$N497,Parametros.Red!AU$11),0) -> 0 | AV160: =IFERROR(Parametros.Red!AV628*INDEX(porcentaje.sitios.cobertura,$C160,Parametros.Red!AV$12)*INDEX(superficie.cobertura.2g,Parametros.Red!$N497,Parametros.Red!AV$11),0) -> 0 | AW160: =IFERROR(Parametros.Red!AW628*INDEX(porcentaje.sitios.cobertura,$C160,Parametros.Red!AW$12)*INDEX(superficie.cobertura.2g,Parametros.Red!$N497,Parametros.Red!AW$11),0) -> 0 | AX160: =IFERROR(Parametros.Red!AX628*INDEX(porcentaje.sitios.cobertura,$C160,Parametros.Red!AX$12)*INDEX(superficie.cobertura.2g,Parametros.Red!$N497,Parametros.Red!AX$11),0) -> 0 | AY160: =IFERROR(Parametros.Red!AY628*INDEX(porcentaje.sitios.cobertura,$C160,Parametros.Red!AY$12)*INDEX(superficie.cobertura.2g,Parametros.Red!$N497,Parametros.Red!AY$11),0) -> 0 | AZ160: =IFERROR(Parametros.Red!AZ628*INDEX(porcentaje.sitios.cobertura,$C160,Parametros.Red!AZ$12)*INDEX(superficie.cobertura.2g,Parametros.Red!$N497,Parametros.Red!AZ$11),0) -> 0 | BA160: =IFERROR(Parametros.Red!BA628*INDEX(porcentaje.sitios.cobertura,$C160,Parametros.Red!BA$12)*INDEX(superficie.cobertura.2g,Parametros.Red!$N497,Parametros.Red!BA$11),0) -> 0
C161: 4 | E161: [km2] | F161: =IFERROR(Parametros.Red!F629*INDEX(porcentaje.sitios.cobertura,$C161,Parametros.Red!F$12)*INDEX(superficie.cobertura.2g,Parametros.Red!$N498,Parametros.Red!F$11),0) -> 0 | G161: =IFERROR(Parametros.Red!G629*INDEX(porcentaje.sitios.cobertura,$C161,Parametros.Red!G$12)*INDEX(superficie.cobertura.2g,Parametros.Red!$N498,Parametros.Red!G$11),0) -> 0 | H161: =IFERROR(Parametros.Red!H629*INDEX(porcentaje.sitios.cobertura,$C161,Parametros.Red!H$12)*INDEX(superficie.cobertura.2g,Parametros.Red!$N498,Parametros.Red!H$11),0) -> 0 | I161: =IFERROR(Parametros.Red!I629*INDEX(porcentaje.sitios.cobertura,$C161,Parametros.Red!I$12)*INDEX(superficie.cobertura.2g,Parametros.Red!$N498,Parametros.Red!I$11),0) -> 0 | J161: =IFERROR(Parametros.Red!J629*INDEX(porcentaje.sitios.cobertura,$C161,Parametros.Red!J$12)*INDEX(superficie.cobertura.2g,Parametros.Red!$N498,Parametros.Red!J$11),0) -> 0 | K161: =IFERROR(Parametros.Red!K629*INDEX(porcentaje.sitios.cobertura,$C161,Parametros.Red!K$12)*INDEX(superficie.cobertura.2g,Parametros.Red!$N498,Parametros.Red!K$11),0) -> 0 | L161: =IFERROR(Parametros.Red!L629*INDEX(porcentaje.sitios.cobertura,$C161,Parametros.Red!L$12)*INDEX(superficie.cobertura.2g,Parametros.Red!$N498,Parametros.Red!L$11),0) -> 0 | M161: =IFERROR(Parametros.Red!M629*INDEX(porcentaje.sitios.cobertura,$C161,Parametros.Red!M$12)*INDEX(superficie.cobertura.2g,Parametros.Red!$N498,Parametros.Red!M$11),0) -> 0 | N161: =IFERROR(Parametros.Red!N629*INDEX(porcentaje.sitios.cobertura,$C161,Parametros.Red!N$12)*INDEX(superficie.cobertura.2g,Parametros.Red!$N498,Parametros.Red!N$11),0) -> 0 | O161: =IFERROR(Parametros.Red!O629*INDEX(porcentaje.sitios.cobertura,$C161,Parametros.Red!O$12)*INDEX(superficie.cobertura.2g,Parametros.Red!$N498,Parametros.Red!O$11),0) -> 0 | P161: =IFERROR(Parametros.Red!P629*INDEX(porcentaje.sitios.cobertura,$C161,Parametros.Red!P$12)*INDEX(superficie.cobertura.2g,Parametros.Red!$N498,Parametros.Red!P$11),0) -> 0 | Q161: =IFERROR(Parametros.Red!Q629*INDEX(porcentaje.sitios.cobertura,$C161,Parametros.Red!Q$12)*INDEX(superficie.cobertura.2g,Parametros.Red!$N498,Parametros.Red!Q$11),0) -> 0 | R161: =IFERROR(Parametros.Red!R629*INDEX(porcentaje.sitios.cobertura,$C161,Parametros.Red!R$12)*INDEX(superficie.cobertura.2g,Parametros.Red!$N498,Parametros.Red!R$11),0) -> 0 | S161: =IFERROR(Parametros.Red!S629*INDEX(porcentaje.sitios.cobertura,$C161,Parametros.Red!S$12)*INDEX(superficie.cobertura.2g,Parametros.Red!$N498,Parametros.Red!S$11),0) -> 0 | T161: =IFERROR(Parametros.Red!T629*INDEX(porcentaje.sitios.cobertura,$C161,Parametros.Red!T$12)*INDEX(superficie.cobertura.2g,Parametros.Red!$N498,Parametros.Red!T$11),0) -> 0 | U161: =IFERROR(Parametros.Red!U629*INDEX(porcentaje.sitios.cobertura,$C161,Parametros.Red!U$12)*INDEX(superficie.cobertura.2g,Parametros.Red!$N498,Parametros.Red!U$11),0) -> 0 | V161: =IFERROR(Parametros.Red!V629*INDEX(porcentaje.sitios.cobertura,$C161,Parametros.Red!V$12)*INDEX(superficie.cobertura.2g,Parametros.Red!$N498,Parametros.Red!V$11),0) -> 0 | W161: =IFERROR(Parametros.Red!W629*INDEX(porcentaje.sitios.cobertura,$C161,Parametros.Red!W$12)*INDEX(superficie.cobertura.2g,Parametros.Red!$N498,Parametros.Red!W$11),0) -> 0 | X161: =IFERROR(Parametros.Red!X629*INDEX(porcentaje.sitios.cobertura,$C161,Parametros.Red!X$12)*INDEX(superficie.cobertura.2g,Parametros.Red!$N498,Parametros.Red!X$11),0) -> 0 | Y161: =IFERROR(Parametros.Red!Y629*INDEX(porcentaje.sitios.cobertura,$C161,Parametros.Red!Y$12)*INDEX(superficie.cobertura.2g,Parametros.Red!$N498,Parametros.Red!Y$11),0) -> 0 | Z161: =IFERROR(Parametros.Red!Z629*INDEX(porcentaje.sitios.cobertura,$C161,Parametros.Red!Z$12)*INDEX(superficie.cobertura.2g,Parametros.Red!$N498,Parametros.Red!Z$11),0) -> 0 | AA161: =IFERROR(Parametros.Red!AA629*INDEX(porcentaje.sitios.cobertura,$C161,Parametros.Red!AA$12)*INDEX(superficie.cobertura.2g,Parametros.Red!$N498,Parametros.Red!AA$11),0) -> 0 | AB161: =IFERROR(Parametros.Red!AB629*INDEX(porcentaje.sitios.cobertura,$C161,Parametros.Red!AB$12)*INDEX(superficie.cobertura.2g,Parametros.Red!$N498,Parametros.Red!AB$11),0) -> 0 | AC161: =IFERROR(Parametros.Red!AC629*INDEX(porcentaje.sitios.cobertura,$C161,Parametros.Red!AC$12)*INDEX(superficie.cobertura.2g,Parametros.Red!$N498,Parametros.Red!AC$11),0) -> 0 | AD161: =IFERROR(Parametros.Red!AD629*INDEX(porcentaje.sitios.cobertura,$C161,Parametros.Red!AD$12)*INDEX(superficie.cobertura.2g,Parametros.Red!$N498,Parametros.Red!AD$11),0) -> 0 | AE161: =IFERROR(Parametros.Red!AE629*INDEX(porcentaje.sitios.cobertura,$C161,Parametros.Red!AE$12)*INDEX(superficie.cobertura.2g,Parametros.Red!$N498,Parametros.Red!AE$11),0) -> 0 | AF161: =IFERROR(Parametros.Red!AF629*INDEX(porcentaje.sitios.cobertura,$C161,Parametros.Red!AF$12)*INDEX(superficie.cobertura.2g,Parametros.Red!$N498,Parametros.Red!AF$11),0) -> 0 | AG161: =IFERROR(Parametros.Red!AG629*INDEX(porcentaje.sitios.cobertura,$C161,Parametros.Red!AG$12)*INDEX(superficie.cobertura.2g,Parametros.Red!$N498,Parametros.Red!AG$11),0) -> 0 | AH161: =IFERROR(Parametros.Red!AH629*INDEX(porcentaje.sitios.cobertura,$C161,Parametros.Red!AH$12)*INDEX(superficie.cobertura.2g,Parametros.Red!$N498,Parametros.Red!AH$11),0) -> 0 | AI161: =IFERROR(Parametros.Red!AI629*INDEX(porcentaje.sitios.cobertura,$C161,Parametros.Red!AI$12)*INDEX(superficie.cobertura.2g,Parametros.Red!$N498,Parametros.Red!AI$11),0) -> 0 | AJ161: =IFERROR(Parametros.Red!AJ629*INDEX(porcentaje.sitios.cobertura,$C161,Parametros.Red!AJ$12)*INDEX(superficie.cobertura.2g,Parametros.Red!$N498,Parametros.Red!AJ$11),0) -> 0 | AK161: =IFERROR(Parametros.Red!AK629*INDEX(porcentaje.sitios.cobertura,$C161,Parametros.Red!AK$12)*INDEX(superficie.cobertura.2g,Parametros.Red!$N498,Parametros.Red!AK$11),0) -> 0 | AL161: =IFERROR(Parametros.Red!AL629*INDEX(porcentaje.sitios.cobertura,$C161,Parametros.Red!AL$12)*INDEX(superficie.cobertura.2g,Parametros.Red!$N498,Parametros.Red!AL$11),0) -> 0 | AM161: =IFERROR(Parametros.Red!AM629*INDEX(porcentaje.sitios.cobertura,$C161,Parametros.Red!AM$12)*INDEX(superficie.cobertura.2g,Parametros.Red!$N498,Parametros.Red!AM$11),0) -> 0 | AN161: =IFERROR(Parametros.Red!AN629*INDEX(porcentaje.sitios.cobertura,$C161,Parametros.Red!AN$12)*INDEX(superficie.cobertura.2g,Parametros.Red!$N498,Parametros.Red!AN$11),0) -> 0 | AO161: =IFERROR(Parametros.Red!AO629*INDEX(porcentaje.sitios.cobertura,$C161,Parametros.Red!AO$12)*INDEX(superficie.cobertura.2g,Parametros.Red!$N498,Parametros.Red!AO$11),0) -> 0 | AP161: =IFERROR(Parametros.Red!AP629*INDEX(porcentaje.sitios.cobertura,$C161,Parametros.Red!AP$12)*INDEX(superficie.cobertura.2g,Parametros.Red!$N498,Parametros.Red!AP$11),0) -> 0 | AQ161: =IFERROR(Parametros.Red!AQ629*INDEX(porcentaje.sitios.cobertura,$C161,Parametros.Red!AQ$12)*INDEX(superficie.cobertura.2g,Parametros.Red!$N498,Parametros.Red!AQ$11),0) -> 0 | AR161: =IFERROR(Parametros.Red!AR629*INDEX(porcentaje.sitios.cobertura,$C161,Parametros.Red!AR$12)*INDEX(superficie.cobertura.2g,Parametros.Red!$N498,Parametros.Red!AR$11),0) -> 0 | AS161: =IFERROR(Parametros.Red!AS629*INDEX(porcentaje.sitios.cobertura,$C161,Parametros.Red!AS$12)*INDEX(superficie.cobertura.2g,Parametros.Red!$N498,Parametros.Red!AS$11),0) -> 0 | AT161: =IFERROR(Parametros.Red!AT629*INDEX(porcentaje.sitios.cobertura,$C161,Parametros.Red!AT$12)*INDEX(superficie.cobertura.2g,Parametros.Red!$N498,Parametros.Red!AT$11),0) -> 0 | AU161: =IFERROR(Parametros.Red!AU629*INDEX(porcentaje.sitios.cobertura,$C161,Parametros.Red!AU$12)*INDEX(superficie.cobertura.2g,Parametros.Red!$N498,Parametros.Red!AU$11),0) -> 0 | AV161: =IFERROR(Parametros.Red!AV629*INDEX(porcentaje.sitios.cobertura,$C161,Parametros.Red!AV$12)*INDEX(superficie.cobertura.2g,Parametros.Red!$N498,Parametros.Red!AV$11),0) -> 0 | AW161: =IFERROR(Parametros.Red!AW629*INDEX(porcentaje.sitios.cobertura,$C161,Parametros.Red!AW$12)*INDEX(superficie.cobertura.2g,Parametros.Red!$N498,Parametros.Red!AW$11),0) -> 0 | AX161: =IFERROR(Parametros.Red!AX629*INDEX(porcentaje.sitios.cobertura,$C161,Parametros.Red!AX$12)*INDEX(superficie.cobertura.2g,Parametros.Red!$N498,Parametros.Red!AX$11),0) -> 0 | AY161: =IFERROR(Parametros.Red!AY629*INDEX(porcentaje.sitios.cobertura,$C161,Parametros.Red!AY$12)*INDEX(superficie.cobertura.2g,Parametros.Red!$N498,Parametros.Red!AY$11),0) -> 0 | AZ161: =IFERROR(Parametros.Red!AZ629*INDEX(porcentaje.sitios.cobertura,$C161,Parametros.Red!AZ$12)*INDEX(superficie.cobertura.2g,Parametros.Red!$N498,Parametros.Red!AZ$11),0) -> 0 | BA161: =IFERROR(Parametros.Red!BA629*INDEX(porcentaje.sitios.cobertura,$C161,Parametros.Red!BA$12)*INDEX(superficie.cobertura.2g,Parametros.Red!$N498,Parametros.Red!BA$11),0) -> 0
C162: 5 | E162: [km2] | F162: =IFERROR(Parametros.Red!F630*INDEX(porcentaje.sitios.cobertura,$C162,Parametros.Red!F$12)*INDEX(superficie.cobertura.2g,Parametros.Red!$N499,Parametros.Red!F$11),0) -> 0 | G162: =IFERROR(Parametros.Red!G630*INDEX(porcentaje.sitios.cobertura,$C162,Parametros.Red!G$12)*INDEX(superficie.cobertura.2g,Parametros.Red!$N499,Parametros.Red!G$11),0) -> 0 | H162: =IFERROR(Parametros.Red!H630*INDEX(porcentaje.sitios.cobertura,$C162,Parametros.Red!H$12)*INDEX(superficie.cobertura.2g,Parametros.Red!$N499,Parametros.Red!H$11),0) -> 0 | I162: =IFERROR(Parametros.Red!I630*INDEX(porcentaje.sitios.cobertura,$C162,Parametros.Red!I$12)*INDEX(superficie.cobertura.2g,Parametros.Red!$N499,Parametros.Red!I$11),0) -> 0 | J162: =IFERROR(Parametros.Red!J630*INDEX(porcentaje.sitios.cobertura,$C162,Parametros.Red!J$12)*INDEX(superficie.cobertura.2g,Parametros.Red!$N499,Parametros.Red!J$11),0) -> 0 | K162: =IFERROR(Parametros.Red!K630*INDEX(porcentaje.sitios.cobertura,$C162,Parametros.Red!K$12)*INDEX(superficie.cobertura.2g,Parametros.Red!$N499,Parametros.Red!K$11),0) -> 0 | L162: =IFERROR(Parametros.Red!L630*INDEX(porcentaje.sitios.cobertura,$C162,Parametros.Red!L$12)*INDEX(superficie.cobertura.2g,Parametros.Red!$N499,Parametros.Red!L$11),0) -> 0 | M162: =IFERROR(Parametros.Red!M630*INDEX(porcentaje.sitios.cobertura,$C162,Parametros.Red!M$12)*INDEX(superficie.cobertura.2g,Parametros.Red!$N499,Parametros.Red!M$11),0) -> 0 | N162: =IFERROR(Parametros.Red!N630*INDEX(porcentaje.sitios.cobertura,$C162,Parametros.Red!N$12)*INDEX(superficie.cobertura.2g,Parametros.Red!$N499,Parametros.Red!N$11),0) -> 0 | O162: =IFERROR(Parametros.Red!O630*INDEX(porcentaje.sitios.cobertura,$C162,Parametros.Red!O$12)*INDEX(superficie.cobertura.2g,Parametros.Red!$N499,Parametros.Red!O$11),0) -> 0 | P162: =IFERROR(Parametros.Red!P630*INDEX(porcentaje.sitios.cobertura,$C162,Parametros.Red!P$12)*INDEX(superficie.cobertura.2g,Parametros.Red!$N499,Parametros.Red!P$11),0) -> 0 | Q162: =IFERROR(Parametros.Red!Q630*INDEX(porcentaje.sitios.cobertura,$C162,Parametros.Red!Q$12)*INDEX(superficie.cobertura.2g,Parametros.Red!$N499,Parametros.Red!Q$11),0) -> 0 | R162: =IFERROR(Parametros.Red!R630*INDEX(porcentaje.sitios.cobertura,$C162,Parametros.Red!R$12)*INDEX(superficie.cobertura.2g,Parametros.Red!$N499,Parametros.Red!R$11),0) -> 0 | S162: =IFERROR(Parametros.Red!S630*INDEX(porcentaje.sitios.cobertura,$C162,Parametros.Red!S$12)*INDEX(superficie.cobertura.2g,Parametros.Red!$N499,Parametros.Red!S$11),0) -> 0 | T162: =IFERROR(Parametros.Red!T630*INDEX(porcentaje.sitios.cobertura,$C162,Parametros.Red!T$12)*INDEX(superficie.cobertura.2g,Parametros.Red!$N499,Parametros.Red!T$11),0) -> 0 | U162: =IFERROR(Parametros.Red!U630*INDEX(porcentaje.sitios.cobertura,$C162,Parametros.Red!U$12)*INDEX(superficie.cobertura.2g,Parametros.Red!$N499,Parametros.Red!U$11),0) -> 0 | V162: =IFERROR(Parametros.Red!V630*INDEX(porcentaje.sitios.cobertura,$C162,Parametros.Red!V$12)*INDEX(superficie.cobertura.2g,Parametros.Red!$N499,Parametros.Red!V$11),0) -> 0 | W162: =IFERROR(Parametros.Red!W630*INDEX(porcentaje.sitios.cobertura,$C162,Parametros.Red!W$12)*INDEX(superficie.cobertura.2g,Parametros.Red!$N499,Parametros.Red!W$11),0) -> 0 | X162: =IFERROR(Parametros.Red!X630*INDEX(porcentaje.sitios.cobertura,$C162,Parametros.Red!X$12)*INDEX(superficie.cobertura.2g,Parametros.Red!$N499,Parametros.Red!X$11),0) -> 0 | Y162: =IFERROR(Parametros.Red!Y630*INDEX(porcentaje.sitios.cobertura,$C162,Parametros.Red!Y$12)*INDEX(superficie.cobertura.2g,Parametros.Red!$N499,Parametros.Red!Y$11),0) -> 0 | Z162: =IFERROR(Parametros.Red!Z630*INDEX(porcentaje.sitios.cobertura,$C162,Parametros.Red!Z$12)*INDEX(superficie.cobertura.2g,Parametros.Red!$N499,Parametros.Red!Z$11),0) -> 0 | AA162: =IFERROR(Parametros.Red!AA630*INDEX(porcentaje.sitios.cobertura,$C162,Parametros.Red!AA$12)*INDEX(superficie.cobertura.2g,Parametros.Red!$N499,Parametros.Red!AA$11),0) -> 0 | AB162: =IFERROR(Parametros.Red!AB630*INDEX(porcentaje.sitios.cobertura,$C162,Parametros.Red!AB$12)*INDEX(superficie.cobertura.2g,Parametros.Red!$N499,Parametros.Red!AB$11),0) -> 0 | AC162: =IFERROR(Parametros.Red!AC630*INDEX(porcentaje.sitios.cobertura,$C162,Parametros.Red!AC$12)*INDEX(superficie.cobertura.2g,Parametros.Red!$N499,Parametros.Red!AC$11),0) -> 0 | AD162: =IFERROR(Parametros.Red!AD630*INDEX(porcentaje.sitios.cobertura,$C162,Parametros.Red!AD$12)*INDEX(superficie.cobertura.2g,Parametros.Red!$N499,Parametros.Red!AD$11),0) -> 0 | AE162: =IFERROR(Parametros.Red!AE630*INDEX(porcentaje.sitios.cobertura,$C162,Parametros.Red!AE$12)*INDEX(superficie.cobertura.2g,Parametros.Red!$N499,Parametros.Red!AE$11),0) -> 0 | AF162: =IFERROR(Parametros.Red!AF630*INDEX(porcentaje.sitios.cobertura,$C162,Parametros.Red!AF$12)*INDEX(superficie.cobertura.2g,Parametros.Red!$N499,Parametros.Red!AF$11),0) -> 0 | AG162: =IFERROR(Parametros.Red!AG630*INDEX(porcentaje.sitios.cobertura,$C162,Parametros.Red!AG$12)*INDEX(superficie.cobertura.2g,Parametros.Red!$N499,Parametros.Red!AG$11),0) -> 0 | AH162: =IFERROR(Parametros.Red!AH630*INDEX(porcentaje.sitios.cobertura,$C162,Parametros.Red!AH$12)*INDEX(superficie.cobertura.2g,Parametros.Red!$N499,Parametros.Red!AH$11),0) -> 0 | AI162: =IFERROR(Parametros.Red!AI630*INDEX(porcentaje.sitios.cobertura,$C162,Parametros.Red!AI$12)*INDEX(superficie.cobertura.2g,Parametros.Red!$N499,Parametros.Red!AI$11),0) -> 0 | AJ162: =IFERROR(Parametros.Red!AJ630*INDEX(porcentaje.sitios.cobertura,$C162,Parametros.Red!AJ$12)*INDEX(superficie.cobertura.2g,Parametros.Red!$N499,Parametros.Red!AJ$11),0) -> 0 | AK162: =IFERROR(Parametros.Red!AK630*INDEX(porcentaje.sitios.cobertura,$C162,Parametros.Red!AK$12)*INDEX(superficie.cobertura.2g,Parametros.Red!$N499,Parametros.Red!AK$11),0) -> 0 | AL162: =IFERROR(Parametros.Red!AL630*INDEX(porcentaje.sitios.cobertura,$C162,Parametros.Red!AL$12)*INDEX(superficie.cobertura.2g,Parametros.Red!$N499,Parametros.Red!AL$11),0) -> 0 | AM162: =IFERROR(Parametros.Red!AM630*INDEX(porcentaje.sitios.cobertura,$C162,Parametros.Red!AM$12)*INDEX(superficie.cobertura.2g,Parametros.Red!$N499,Parametros.Red!AM$11),0) -> 0 | AN162: =IFERROR(Parametros.Red!AN630*INDEX(porcentaje.sitios.cobertura,$C162,Parametros.Red!AN$12)*INDEX(superficie.cobertura.2g,Parametros.Red!$N499,Parametros.Red!AN$11),0) -> 0 | AO162: =IFERROR(Parametros.Red!AO630*INDEX(porcentaje.sitios.cobertura,$C162,Parametros.Red!AO$12)*INDEX(superficie.cobertura.2g,Parametros.Red!$N499,Parametros.Red!AO$11),0) -> 0 | AP162: =IFERROR(Parametros.Red!AP630*INDEX(porcentaje.sitios.cobertura,$C162,Parametros.Red!AP$12)*INDEX(superficie.cobertura.2g,Parametros.Red!$N499,Parametros.Red!AP$11),0) -> 0 | AQ162: =IFERROR(Parametros.Red!AQ630*INDEX(porcentaje.sitios.cobertura,$C162,Parametros.Red!AQ$12)*INDEX(superficie.cobertura.2g,Parametros.Red!$N499,Parametros.Red!AQ$11),0) -> 0 | AR162: =IFERROR(Parametros.Red!AR630*INDEX(porcentaje.sitios.cobertura,$C162,Parametros.Red!AR$12)*INDEX(superficie.cobertura.2g,Parametros.Red!$N499,Parametros.Red!AR$11),0) -> 0 | AS162: =IFERROR(Parametros.Red!AS630*INDEX(porcentaje.sitios.cobertura,$C162,Parametros.Red!AS$12)*INDEX(superficie.cobertura.2g,Parametros.Red!$N499,Parametros.Red!AS$11),0) -> 0 | AT162: =IFERROR(Parametros.Red!AT630*INDEX(porcentaje.sitios.cobertura,$C162,Parametros.Red!AT$12)*INDEX(superficie.cobertura.2g,Parametros.Red!$N499,Parametros.Red!AT$11),0) -> 0 | AU162: =IFERROR(Parametros.Red!AU630*INDEX(porcentaje.sitios.cobertura,$C162,Parametros.Red!AU$12)*INDEX(superficie.cobertura.2g,Parametros.Red!$N499,Parametros.Red!AU$11),0) -> 0 | AV162: =IFERROR(Parametros.Red!AV630*INDEX(porcentaje.sitios.cobertura,$C162,Parametros.Red!AV$12)*INDEX(superficie.cobertura.2g,Parametros.Red!$N499,Parametros.Red!AV$11),0) -> 0 | AW162: =IFERROR(Parametros.Red!AW630*INDEX(porcentaje.sitios.cobertura,$C162,Parametros.Red!AW$12)*INDEX(superficie.cobertura.2g,Parametros.Red!$N499,Parametros.Red!AW$11),0) -> 0 | AX162: =IFERROR(Parametros.Red!AX630*INDEX(porcentaje.sitios.cobertura,$C162,Parametros.Red!AX$12)*INDEX(superficie.cobertura.2g,Parametros.Red!$N499,Parametros.Red!AX$11),0) -> 0 | AY162: =IFERROR(Parametros.Red!AY630*INDEX(porcentaje.sitios.cobertura,$C162,Parametros.Red!AY$12)*INDEX(superficie.cobertura.2g,Parametros.Red!$N499,Parametros.Red!AY$11),0) -> 0 | AZ162: =IFERROR(Parametros.Red!AZ630*INDEX(porcentaje.sitios.cobertura,$C162,Parametros.Red!AZ$12)*INDEX(superficie.cobertura.2g,Parametros.Red!$N499,Parametros.Red!AZ$11),0) -> 0 | BA162: =IFERROR(Parametros.Red!BA630*INDEX(porcentaje.sitios.cobertura,$C162,Parametros.Red!BA$12)*INDEX(superficie.cobertura.2g,Parametros.Red!$N499,Parametros.Red!BA$11),0) -> 0
C163: 6 | E163: [km2] | F163: =IFERROR(Parametros.Red!F631*INDEX(porcentaje.sitios.cobertura,$C163,Parametros.Red!F$12)*INDEX(superficie.cobertura.2g,Parametros.Red!$N500,Parametros.Red!F$11),0) -> 0 | G163: =IFERROR(Parametros.Red!G631*INDEX(porcentaje.sitios.cobertura,$C163,Parametros.Red!G$12)*INDEX(superficie.cobertura.2g,Parametros.Red!$N500,Parametros.Red!G$11),0) -> 0 | H163: =IFERROR(Parametros.Red!H631*INDEX(porcentaje.sitios.cobertura,$C163,Parametros.Red!H$12)*INDEX(superficie.cobertura.2g,Parametros.Red!$N500,Parametros.Red!H$11),0) -> 0 | I163: =IFERROR(Parametros.Red!I631*INDEX(porcentaje.sitios.cobertura,$C163,Parametros.Red!I$12)*INDEX(superficie.cobertura.2g,Parametros.Red!$N500,Parametros.Red!I$11),0) -> 0 | J163: =IFERROR(Parametros.Red!J631*INDEX(porcentaje.sitios.cobertura,$C163,Parametros.Red!J$12)*INDEX(superficie.cobertura.2g,Parametros.Red!$N500,Parametros.Red!J$11),0) -> 0 | K163: =IFERROR(Parametros.Red!K631*INDEX(porcentaje.sitios.cobertura,$C163,Parametros.Red!K$12)*INDEX(superficie.cobertura.2g,Parametros.Red!$N500,Parametros.Red!K$11),0) -> 0 | L163: =IFERROR(Parametros.Red!L631*INDEX(porcentaje.sitios.cobertura,$C163,Parametros.Red!L$12)*INDEX(superficie.cobertura.2g,Parametros.Red!$N500,Parametros.Red!L$11),0) -> 0 | M163: =IFERROR(Parametros.Red!M631*INDEX(porcentaje.sitios.cobertura,$C163,Parametros.Red!M$12)*INDEX(superficie.cobertura.2g,Parametros.Red!$N500,Parametros.Red!M$11),0) -> 0 | N163: =IFERROR(Parametros.Red!N631*INDEX(porcentaje.sitios.cobertura,$C163,Parametros.Red!N$12)*INDEX(superficie.cobertura.2g,Parametros.Red!$N500,Parametros.Red!N$11),0) -> 0 | O163: =IFERROR(Parametros.Red!O631*INDEX(porcentaje.sitios.cobertura,$C163,Parametros.Red!O$12)*INDEX(superficie.cobertura.2g,Parametros.Red!$N500,Parametros.Red!O$11),0) -> 0 | P163: =IFERROR(Parametros.Red!P631*INDEX(porcentaje.sitios.cobertura,$C163,Parametros.Red!P$12)*INDEX(superficie.cobertura.2g,Parametros.Red!$N500,Parametros.Red!P$11),0) -> 0 | Q163: =IFERROR(Parametros.Red!Q631*INDEX(porcentaje.sitios.cobertura,$C163,Parametros.Red!Q$12)*INDEX(superficie.cobertura.2g,Parametros.Red!$N500,Parametros.Red!Q$11),0) -> 0 | R163: =IFERROR(Parametros.Red!R631*INDEX(porcentaje.sitios.cobertura,$C163,Parametros.Red!R$12)*INDEX(superficie.cobertura.2g,Parametros.Red!$N500,Parametros.Red!R$11),0) -> 0 | S163: =IFERROR(Parametros.Red!S631*INDEX(porcentaje.sitios.cobertura,$C163,Parametros.Red!S$12)*INDEX(superficie.cobertura.2g,Parametros.Red!$N500,Parametros.Red!S$11),0) -> 0 | T163: =IFERROR(Parametros.Red!T631*INDEX(porcentaje.sitios.cobertura,$C163,Parametros.Red!T$12)*INDEX(superficie.cobertura.2g,Parametros.Red!$N500,Parametros.Red!T$11),0) -> 0 | U163: =IFERROR(Parametros.Red!U631*INDEX(porcentaje.sitios.cobertura,$C163,Parametros.Red!U$12)*INDEX(superficie.cobertura.2g,Parametros.Red!$N500,Parametros.Red!U$11),0) -> 0 | V163: =IFERROR(Parametros.Red!V631*INDEX(porcentaje.sitios.cobertura,$C163,Parametros.Red!V$12)*INDEX(superficie.cobertura.2g,Parametros.Red!$N500,Parametros.Red!V$11),0) -> 0 | W163: =IFERROR(Parametros.Red!W631*INDEX(porcentaje.sitios.cobertura,$C163,Parametros.Red!W$12)*INDEX(superficie.cobertura.2g,Parametros.Red!$N500,Parametros.Red!W$11),0) -> 0 | X163: =IFERROR(Parametros.Red!X631*INDEX(porcentaje.sitios.cobertura,$C163,Parametros.Red!X$12)*INDEX(superficie.cobertura.2g,Parametros.Red!$N500,Parametros.Red!X$11),0) -> 0 | Y163: =IFERROR(Parametros.Red!Y631*INDEX(porcentaje.sitios.cobertura,$C163,Parametros.Red!Y$12)*INDEX(superficie.cobertura.2g,Parametros.Red!$N500,Parametros.Red!Y$11),0) -> 0 | Z163: =IFERROR(Parametros.Red!Z631*INDEX(porcentaje.sitios.cobertura,$C163,Parametros.Red!Z$12)*INDEX(superficie.cobertura.2g,Parametros.Red!$N500,Parametros.Red!Z$11),0) -> 0 | AA163: =IFERROR(Parametros.Red!AA631*INDEX(porcentaje.sitios.cobertura,$C163,Parametros.Red!AA$12)*INDEX(superficie.cobertura.2g,Parametros.Red!$N500,Parametros.Red!AA$11),0) -> 0 | AB163: =IFERROR(Parametros.Red!AB631*INDEX(porcentaje.sitios.cobertura,$C163,Parametros.Red!AB$12)*INDEX(superficie.cobertura.2g,Parametros.Red!$N500,Parametros.Red!AB$11),0) -> 0 | AC163: =IFERROR(Parametros.Red!AC631*INDEX(porcentaje.sitios.cobertura,$C163,Parametros.Red!AC$12)*INDEX(superficie.cobertura.2g,Parametros.Red!$N500,Parametros.Red!AC$11),0) -> 0 | AD163: =IFERROR(Parametros.Red!AD631*INDEX(porcentaje.sitios.cobertura,$C163,Parametros.Red!AD$12)*INDEX(superficie.cobertura.2g,Parametros.Red!$N500,Parametros.Red!AD$11),0) -> 0 | AE163: =IFERROR(Parametros.Red!AE631*INDEX(porcentaje.sitios.cobertura,$C163,Parametros.Red!AE$12)*INDEX(superficie.cobertura.2g,Parametros.Red!$N500,Parametros.Red!AE$11),0) -> 0 | AF163: =IFERROR(Parametros.Red!AF631*INDEX(porcentaje.sitios.cobertura,$C163,Parametros.Red!AF$12)*INDEX(superficie.cobertura.2g,Parametros.Red!$N500,Parametros.Red!AF$11),0) -> 0 | AG163: =IFERROR(Parametros.Red!AG631*INDEX(porcentaje.sitios.cobertura,$C163,Parametros.Red!AG$12)*INDEX(superficie.cobertura.2g,Parametros.Red!$N500,Parametros.Red!AG$11),0) -> 0 | AH163: =IFERROR(Parametros.Red!AH631*INDEX(porcentaje.sitios.cobertura,$C163,Parametros.Red!AH$12)*INDEX(superficie.cobertura.2g,Parametros.Red!$N500,Parametros.Red!AH$11),0) -> 0 | AI163: =IFERROR(Parametros.Red!AI631*INDEX(porcentaje.sitios.cobertura,$C163,Parametros.Red!AI$12)*INDEX(superficie.cobertura.2g,Parametros.Red!$N500,Parametros.Red!AI$11),0) -> 0 | AJ163: =IFERROR(Parametros.Red!AJ631*INDEX(porcentaje.sitios.cobertura,$C163,Parametros.Red!AJ$12)*INDEX(superficie.cobertura.2g,Parametros.Red!$N500,Parametros.Red!AJ$11),0) -> 0 | AK163: =IFERROR(Parametros.Red!AK631*INDEX(porcentaje.sitios.cobertura,$C163,Parametros.Red!AK$12)*INDEX(superficie.cobertura.2g,Parametros.Red!$N500,Parametros.Red!AK$11),0) -> 0 | AL163: =IFERROR(Parametros.Red!AL631*INDEX(porcentaje.sitios.cobertura,$C163,Parametros.Red!AL$12)*INDEX(superficie.cobertura.2g,Parametros.Red!$N500,Parametros.Red!AL$11),0) -> 0 | AM163: =IFERROR(Parametros.Red!AM631*INDEX(porcentaje.sitios.cobertura,$C163,Parametros.Red!AM$12)*INDEX(superficie.cobertura.2g,Parametros.Red!$N500,Parametros.Red!AM$11),0) -> 0 | AN163: =IFERROR(Parametros.Red!AN631*INDEX(porcentaje.sitios.cobertura,$C163,Parametros.Red!AN$12)*INDEX(superficie.cobertura.2g,Parametros.Red!$N500,Parametros.Red!AN$11),0) -> 0 | AO163: =IFERROR(Parametros.Red!AO631*INDEX(porcentaje.sitios.cobertura,$C163,Parametros.Red!AO$12)*INDEX(superficie.cobertura.2g,Parametros.Red!$N500,Parametros.Red!AO$11),0) -> 0 | AP163: =IFERROR(Parametros.Red!AP631*INDEX(porcentaje.sitios.cobertura,$C163,Parametros.Red!AP$12)*INDEX(superficie.cobertura.2g,Parametros.Red!$N500,Parametros.Red!AP$11),0) -> 0 | AQ163: =IFERROR(Parametros.Red!AQ631*INDEX(porcentaje.sitios.cobertura,$C163,Parametros.Red!AQ$12)*INDEX(superficie.cobertura.2g,Parametros.Red!$N500,Parametros.Red!AQ$11),0) -> 0 | AR163: =IFERROR(Parametros.Red!AR631*INDEX(porcentaje.sitios.cobertura,$C163,Parametros.Red!AR$12)*INDEX(superficie.cobertura.2g,Parametros.Red!$N500,Parametros.Red!AR$11),0) -> 0 | AS163: =IFERROR(Parametros.Red!AS631*INDEX(porcentaje.sitios.cobertura,$C163,Parametros.Red!AS$12)*INDEX(superficie.cobertura.2g,Parametros.Red!$N500,Parametros.Red!AS$11),0) -> 0 | AT163: =IFERROR(Parametros.Red!AT631*INDEX(porcentaje.sitios.cobertura,$C163,Parametros.Red!AT$12)*INDEX(superficie.cobertura.2g,Parametros.Red!$N500,Parametros.Red!AT$11),0) -> 0 | AU163: =IFERROR(Parametros.Red!AU631*INDEX(porcentaje.sitios.cobertura,$C163,Parametros.Red!AU$12)*INDEX(superficie.cobertura.2g,Parametros.Red!$N500,Parametros.Red!AU$11),0) -> 0 | AV163: =IFERROR(Parametros.Red!AV631*INDEX(porcentaje.sitios.cobertura,$C163,Parametros.Red!AV$12)*INDEX(superficie.cobertura.2g,Parametros.Red!$N500,Parametros.Red!AV$11),0) -> 0 | AW163: =IFERROR(Parametros.Red!AW631*INDEX(porcentaje.sitios.cobertura,$C163,Parametros.Red!AW$12)*INDEX(superficie.cobertura.2g,Parametros.Red!$N500,Parametros.Red!AW$11),0) -> 0 | AX163: =IFERROR(Parametros.Red!AX631*INDEX(porcentaje.sitios.cobertura,$C163,Parametros.Red!AX$12)*INDEX(superficie.cobertura.2g,Parametros.Red!$N500,Parametros.Red!AX$11),0) -> 0 | AY163: =IFERROR(Parametros.Red!AY631*INDEX(porcentaje.sitios.cobertura,$C163,Parametros.Red!AY$12)*INDEX(superficie.cobertura.2g,Parametros.Red!$N500,Parametros.Red!AY$11),0) -> 0 | AZ163: =IFERROR(Parametros.Red!AZ631*INDEX(porcentaje.sitios.cobertura,$C163,Parametros.Red!AZ$12)*INDEX(superficie.cobertura.2g,Parametros.Red!$N500,Parametros.Red!AZ$11),0) -> 0 | BA163: =IFERROR(Parametros.Red!BA631*INDEX(porcentaje.sitios.cobertura,$C163,Parametros.Red!BA$12)*INDEX(superficie.cobertura.2g,Parametros.Red!$N500,Parametros.Red!BA$11),0) -> 0
C164: 7 | E164: [km2] | F164: =IFERROR(Parametros.Red!F632*INDEX(porcentaje.sitios.cobertura,$C164,Parametros.Red!F$12)*INDEX(superficie.cobertura.2g,Parametros.Red!$N501,Parametros.Red!F$11),0) -> 0 | G164: =IFERROR(Parametros.Red!G632*INDEX(porcentaje.sitios.cobertura,$C164,Parametros.Red!G$12)*INDEX(superficie.cobertura.2g,Parametros.Red!$N501,Parametros.Red!G$11),0) -> 0 | H164: =IFERROR(Parametros.Red!H632*INDEX(porcentaje.sitios.cobertura,$C164,Parametros.Red!H$12)*INDEX(superficie.cobertura.2g,Parametros.Red!$N501,Parametros.Red!H$11),0) -> 0 | I164: =IFERROR(Parametros.Red!I632*INDEX(porcentaje.sitios.cobertura,$C164,Parametros.Red!I$12)*INDEX(superficie.cobertura.2g,Parametros.Red!$N501,Parametros.Red!I$11),0) -> 0 | J164: =IFERROR(Parametros.Red!J632*INDEX(porcentaje.sitios.cobertura,$C164,Parametros.Red!J$12)*INDEX(superficie.cobertura.2g,Parametros.Red!$N501,Parametros.Red!J$11),0) -> 0 | K164: =IFERROR(Parametros.Red!K632*INDEX(porcentaje.sitios.cobertura,$C164,Parametros.Red!K$12)*INDEX(superficie.cobertura.2g,Parametros.Red!$N501,Parametros.Red!K$11),0) -> 0 | L164: =IFERROR(Parametros.Red!L632*INDEX(porcentaje.sitios.cobertura,$C164,Parametros.Red!L$12)*INDEX(superficie.cobertura.2g,Parametros.Red!$N501,Parametros.Red!L$11),0) -> 0 | M164: =IFERROR(Parametros.Red!M632*INDEX(porcentaje.sitios.cobertura,$C164,Parametros.Red!M$12)*INDEX(superficie.cobertura.2g,Parametros.Red!$N501,Parametros.Red!M$11),0) -> 0 | N164: =IFERROR(Parametros.Red!N632*INDEX(porcentaje.sitios.cobertura,$C164,Parametros.Red!N$12)*INDEX(superficie.cobertura.2g,Parametros.Red!$N501,Parametros.Red!N$11),0) -> 0 | O164: =IFERROR(Parametros.Red!O632*INDEX(porcentaje.sitios.cobertura,$C164,Parametros.Red!O$12)*INDEX(superficie.cobertura.2g,Parametros.Red!$N501,Parametros.Red!O$11),0) -> 0 | P164: =IFERROR(Parametros.Red!P632*INDEX(porcentaje.sitios.cobertura,$C164,Parametros.Red!P$12)*INDEX(superficie.cobertura.2g,Parametros.Red!$N501,Parametros.Red!P$11),0) -> 0 | Q164: =IFERROR(Parametros.Red!Q632*INDEX(porcentaje.sitios.cobertura,$C164,Parametros.Red!Q$12)*INDEX(superficie.cobertura.2g,Parametros.Red!$N501,Parametros.Red!Q$11),0) -> 0 | R164: =IFERROR(Parametros.Red!R632*INDEX(porcentaje.sitios.cobertura,$C164,Parametros.Red!R$12)*INDEX(superficie.cobertura.2g,Parametros.Red!$N501,Parametros.Red!R$11),0) -> 0 | S164: =IFERROR(Parametros.Red!S632*INDEX(porcentaje.sitios.cobertura,$C164,Parametros.Red!S$12)*INDEX(superficie.cobertura.2g,Parametros.Red!$N501,Parametros.Red!S$11),0) -> 0 | T164: =IFERROR(Parametros.Red!T632*INDEX(porcentaje.sitios.cobertura,$C164,Parametros.Red!T$12)*INDEX(superficie.cobertura.2g,Parametros.Red!$N501,Parametros.Red!T$11),0) -> 0 | U164: =IFERROR(Parametros.Red!U632*INDEX(porcentaje.sitios.cobertura,$C164,Parametros.Red!U$12)*INDEX(superficie.cobertura.2g,Parametros.Red!$N501,Parametros.Red!U$11),0) -> 0 | V164: =IFERROR(Parametros.Red!V632*INDEX(porcentaje.sitios.cobertura,$C164,Parametros.Red!V$12)*INDEX(superficie.cobertura.2g,Parametros.Red!$N501,Parametros.Red!V$11),0) -> 0 | W164: =IFERROR(Parametros.Red!W632*INDEX(porcentaje.sitios.cobertura,$C164,Parametros.Red!W$12)*INDEX(superficie.cobertura.2g,Parametros.Red!$N501,Parametros.Red!W$11),0) -> 0 | X164: =IFERROR(Parametros.Red!X632*INDEX(porcentaje.sitios.cobertura,$C164,Parametros.Red!X$12)*INDEX(superficie.cobertura.2g,Parametros.Red!$N501,Parametros.Red!X$11),0) -> 0 | Y164: =IFERROR(Parametros.Red!Y632*INDEX(porcentaje.sitios.cobertura,$C164,Parametros.Red!Y$12)*INDEX(superficie.cobertura.2g,Parametros.Red!$N501,Parametros.Red!Y$11),0) -> 0 | Z164: =IFERROR(Parametros.Red!Z632*INDEX(porcentaje.sitios.cobertura,$C164,Parametros.Red!Z$12)*INDEX(superficie.cobertura.2g,Parametros.Red!$N501,Parametros.Red!Z$11),0) -> 0 | AA164: =IFERROR(Parametros.Red!AA632*INDEX(porcentaje.sitios.cobertura,$C164,Parametros.Red!AA$12)*INDEX(superficie.cobertura.2g,Parametros.Red!$N501,Parametros.Red!AA$11),0) -> 0 | AB164: =IFERROR(Parametros.Red!AB632*INDEX(porcentaje.sitios.cobertura,$C164,Parametros.Red!AB$12)*INDEX(superficie.cobertura.2g,Parametros.Red!$N501,Parametros.Red!AB$11),0) -> 0 | AC164: =IFERROR(Parametros.Red!AC632*INDEX(porcentaje.sitios.cobertura,$C164,Parametros.Red!AC$12)*INDEX(superficie.cobertura.2g,Parametros.Red!$N501,Parametros.Red!AC$11),0) -> 0 | AD164: =IFERROR(Parametros.Red!AD632*INDEX(porcentaje.sitios.cobertura,$C164,Parametros.Red!AD$12)*INDEX(superficie.cobertura.2g,Parametros.Red!$N501,Parametros.Red!AD$11),0) -> 0 | AE164: =IFERROR(Parametros.Red!AE632*INDEX(porcentaje.sitios.cobertura,$C164,Parametros.Red!AE$12)*INDEX(superficie.cobertura.2g,Parametros.Red!$N501,Parametros.Red!AE$11),0) -> 0 | AF164: =IFERROR(Parametros.Red!AF632*INDEX(porcentaje.sitios.cobertura,$C164,Parametros.Red!AF$12)*INDEX(superficie.cobertura.2g,Parametros.Red!$N501,Parametros.Red!AF$11),0) -> 0 | AG164: =IFERROR(Parametros.Red!AG632*INDEX(porcentaje.sitios.cobertura,$C164,Parametros.Red!AG$12)*INDEX(superficie.cobertura.2g,Parametros.Red!$N501,Parametros.Red!AG$11),0) -> 0 | AH164: =IFERROR(Parametros.Red!AH632*INDEX(porcentaje.sitios.cobertura,$C164,Parametros.Red!AH$12)*INDEX(superficie.cobertura.2g,Parametros.Red!$N501,Parametros.Red!AH$11),0) -> 0 | AI164: =IFERROR(Parametros.Red!AI632*INDEX(porcentaje.sitios.cobertura,$C164,Parametros.Red!AI$12)*INDEX(superficie.cobertura.2g,Parametros.Red!$N501,Parametros.Red!AI$11),0) -> 0 | AJ164: =IFERROR(Parametros.Red!AJ632*INDEX(porcentaje.sitios.cobertura,$C164,Parametros.Red!AJ$12)*INDEX(superficie.cobertura.2g,Parametros.Red!$N501,Parametros.Red!AJ$11),0) -> 0 | AK164: =IFERROR(Parametros.Red!AK632*INDEX(porcentaje.sitios.cobertura,$C164,Parametros.Red!AK$12)*INDEX(superficie.cobertura.2g,Parametros.Red!$N501,Parametros.Red!AK$11),0) -> 0 | AL164: =IFERROR(Parametros.Red!AL632*INDEX(porcentaje.sitios.cobertura,$C164,Parametros.Red!AL$12)*INDEX(superficie.cobertura.2g,Parametros.Red!$N501,Parametros.Red!AL$11),0) -> 0 | AM164: =IFERROR(Parametros.Red!AM632*INDEX(porcentaje.sitios.cobertura,$C164,Parametros.Red!AM$12)*INDEX(superficie.cobertura.2g,Parametros.Red!$N501,Parametros.Red!AM$11),0) -> 0 | AN164: =IFERROR(Parametros.Red!AN632*INDEX(porcentaje.sitios.cobertura,$C164,Parametros.Red!AN$12)*INDEX(superficie.cobertura.2g,Parametros.Red!$N501,Parametros.Red!AN$11),0) -> 0 | AO164: =IFERROR(Parametros.Red!AO632*INDEX(porcentaje.sitios.cobertura,$C164,Parametros.Red!AO$12)*INDEX(superficie.cobertura.2g,Parametros.Red!$N501,Parametros.Red!AO$11),0) -> 0 | AP164: =IFERROR(Parametros.Red!AP632*INDEX(porcentaje.sitios.cobertura,$C164,Parametros.Red!AP$12)*INDEX(superficie.cobertura.2g,Parametros.Red!$N501,Parametros.Red!AP$11),0) -> 0 | AQ164: =IFERROR(Parametros.Red!AQ632*INDEX(porcentaje.sitios.cobertura,$C164,Parametros.Red!AQ$12)*INDEX(superficie.cobertura.2g,Parametros.Red!$N501,Parametros.Red!AQ$11),0) -> 0 | AR164: =IFERROR(Parametros.Red!AR632*INDEX(porcentaje.sitios.cobertura,$C164,Parametros.Red!AR$12)*INDEX(superficie.cobertura.2g,Parametros.Red!$N501,Parametros.Red!AR$11),0) -> 0 | AS164: =IFERROR(Parametros.Red!AS632*INDEX(porcentaje.sitios.cobertura,$C164,Parametros.Red!AS$12)*INDEX(superficie.cobertura.2g,Parametros.Red!$N501,Parametros.Red!AS$11),0) -> 0 | AT164: =IFERROR(Parametros.Red!AT632*INDEX(porcentaje.sitios.cobertura,$C164,Parametros.Red!AT$12)*INDEX(superficie.cobertura.2g,Parametros.Red!$N501,Parametros.Red!AT$11),0) -> 0 | AU164: =IFERROR(Parametros.Red!AU632*INDEX(porcentaje.sitios.cobertura,$C164,Parametros.Red!AU$12)*INDEX(superficie.cobertura.2g,Parametros.Red!$N501,Parametros.Red!AU$11),0) -> 0 | AV164: =IFERROR(Parametros.Red!AV632*INDEX(porcentaje.sitios.cobertura,$C164,Parametros.Red!AV$12)*INDEX(superficie.cobertura.2g,Parametros.Red!$N501,Parametros.Red!AV$11),0) -> 0 | AW164: =IFERROR(Parametros.Red!AW632*INDEX(porcentaje.sitios.cobertura,$C164,Parametros.Red!AW$12)*INDEX(superficie.cobertura.2g,Parametros.Red!$N501,Parametros.Red!AW$11),0) -> 0 | AX164: =IFERROR(Parametros.Red!AX632*INDEX(porcentaje.sitios.cobertura,$C164,Parametros.Red!AX$12)*INDEX(superficie.cobertura.2g,Parametros.Red!$N501,Parametros.Red!AX$11),0) -> 0 | AY164: =IFERROR(Parametros.Red!AY632*INDEX(porcentaje.sitios.cobertura,$C164,Parametros.Red!AY$12)*INDEX(superficie.cobertura.2g,Parametros.Red!$N501,Parametros.Red!AY$11),0) -> 0 | AZ164: =IFERROR(Parametros.Red!AZ632*INDEX(porcentaje.sitios.cobertura,$C164,Parametros.Red!AZ$12)*INDEX(superficie.cobertura.2g,Parametros.Red!$N501,Parametros.Red!AZ$11),0) -> 0 | BA164: =IFERROR(Parametros.Red!BA632*INDEX(porcentaje.sitios.cobertura,$C164,Parametros.Red!BA$12)*INDEX(superficie.cobertura.2g,Parametros.Red!$N501,Parametros.Red!BA$11),0) -> 0
C165: 8 | E165: [km2] | F165: =IFERROR(Parametros.Red!F633*INDEX(porcentaje.sitios.cobertura,$C165,Parametros.Red!F$12)*INDEX(superficie.cobertura.2g,Parametros.Red!$N502,Parametros.Red!F$11),0) -> 0 | G165: =IFERROR(Parametros.Red!G633*INDEX(porcentaje.sitios.cobertura,$C165,Parametros.Red!G$12)*INDEX(superficie.cobertura.2g,Parametros.Red!$N502,Parametros.Red!G$11),0) -> 0 | H165: =IFERROR(Parametros.Red!H633*INDEX(porcentaje.sitios.cobertura,$C165,Parametros.Red!H$12)*INDEX(superficie.cobertura.2g,Parametros.Red!$N502,Parametros.Red!H$11),0) -> 0 | I165: =IFERROR(Parametros.Red!I633*INDEX(porcentaje.sitios.cobertura,$C165,Parametros.Red!I$12)*INDEX(superficie.cobertura.2g,Parametros.Red!$N502,Parametros.Red!I$11),0) -> 0 | J165: =IFERROR(Parametros.Red!J633*INDEX(porcentaje.sitios.cobertura,$C165,Parametros.Red!J$12)*INDEX(superficie.cobertura.2g,Parametros.Red!$N502,Parametros.Red!J$11),0) -> 0 | K165: =IFERROR(Parametros.Red!K633*INDEX(porcentaje.sitios.cobertura,$C165,Parametros.Red!K$12)*INDEX(superficie.cobertura.2g,Parametros.Red!$N502,Parametros.Red!K$11),0) -> 0 | L165: =IFERROR(Parametros.Red!L633*INDEX(porcentaje.sitios.cobertura,$C165,Parametros.Red!L$12)*INDEX(superficie.cobertura.2g,Parametros.Red!$N502,Parametros.Red!L$11),0) -> 0 | M165: =IFERROR(Parametros.Red!M633*INDEX(porcentaje.sitios.cobertura,$C165,Parametros.Red!M$12)*INDEX(superficie.cobertura.2g,Parametros.Red!$N502,Parametros.Red!M$11),0) -> 0 | N165: =IFERROR(Parametros.Red!N633*INDEX(porcentaje.sitios.cobertura,$C165,Parametros.Red!N$12)*INDEX(superficie.cobertura.2g,Parametros.Red!$N502,Parametros.Red!N$11),0) -> 0 | O165: =IFERROR(Parametros.Red!O633*INDEX(porcentaje.sitios.cobertura,$C165,Parametros.Red!O$12)*INDEX(superficie.cobertura.2g,Parametros.Red!$N502,Parametros.Red!O$11),0) -> 0 | P165: =IFERROR(Parametros.Red!P633*INDEX(porcentaje.sitios.cobertura,$C165,Parametros.Red!P$12)*INDEX(superficie.cobertura.2g,Parametros.Red!$N502,Parametros.Red!P$11),0) -> 0 | Q165: =IFERROR(Parametros.Red!Q633*INDEX(porcentaje.sitios.cobertura,$C165,Parametros.Red!Q$12)*INDEX(superficie.cobertura.2g,Parametros.Red!$N502,Parametros.Red!Q$11),0) -> 0 | R165: =IFERROR(Parametros.Red!R633*INDEX(porcentaje.sitios.cobertura,$C165,Parametros.Red!R$12)*INDEX(superficie.cobertura.2g,Parametros.Red!$N502,Parametros.Red!R$11),0) -> 0 | S165: =IFERROR(Parametros.Red!S633*INDEX(porcentaje.sitios.cobertura,$C165,Parametros.Red!S$12)*INDEX(superficie.cobertura.2g,Parametros.Red!$N502,Parametros.Red!S$11),0) -> 0 | T165: =IFERROR(Parametros.Red!T633*INDEX(porcentaje.sitios.cobertura,$C165,Parametros.Red!T$12)*INDEX(superficie.cobertura.2g,Parametros.Red!$N502,Parametros.Red!T$11),0) -> 0 | U165: =IFERROR(Parametros.Red!U633*INDEX(porcentaje.sitios.cobertura,$C165,Parametros.Red!U$12)*INDEX(superficie.cobertura.2g,Parametros.Red!$N502,Parametros.Red!U$11),0) -> 0 | V165: =IFERROR(Parametros.Red!V633*INDEX(porcentaje.sitios.cobertura,$C165,Parametros.Red!V$12)*INDEX(superficie.cobertura.2g,Parametros.Red!$N502,Parametros.Red!V$11),0) -> 0 | W165: =IFERROR(Parametros.Red!W633*INDEX(porcentaje.sitios.cobertura,$C165,Parametros.Red!W$12)*INDEX(superficie.cobertura.2g,Parametros.Red!$N502,Parametros.Red!W$11),0) -> 0 | X165: =IFERROR(Parametros.Red!X633*INDEX(porcentaje.sitios.cobertura,$C165,Parametros.Red!X$12)*INDEX(superficie.cobertura.2g,Parametros.Red!$N502,Parametros.Red!X$11),0) -> 0 | Y165: =IFERROR(Parametros.Red!Y633*INDEX(porcentaje.sitios.cobertura,$C165,Parametros.Red!Y$12)*INDEX(superficie.cobertura.2g,Parametros.Red!$N502,Parametros.Red!Y$11),0) -> 0 | Z165: =IFERROR(Parametros.Red!Z633*INDEX(porcentaje.sitios.cobertura,$C165,Parametros.Red!Z$12)*INDEX(superficie.cobertura.2g,Parametros.Red!$N502,Parametros.Red!Z$11),0) -> 0 | AA165: =IFERROR(Parametros.Red!AA633*INDEX(porcentaje.sitios.cobertura,$C165,Parametros.Red!AA$12)*INDEX(superficie.cobertura.2g,Parametros.Red!$N502,Parametros.Red!AA$11),0) -> 0 | AB165: =IFERROR(Parametros.Red!AB633*INDEX(porcentaje.sitios.cobertura,$C165,Parametros.Red!AB$12)*INDEX(superficie.cobertura.2g,Parametros.Red!$N502,Parametros.Red!AB$11),0) -> 0 | AC165: =IFERROR(Parametros.Red!AC633*INDEX(porcentaje.sitios.cobertura,$C165,Parametros.Red!AC$12)*INDEX(superficie.cobertura.2g,Parametros.Red!$N502,Parametros.Red!AC$11),0) -> 0 | AD165: =IFERROR(Parametros.Red!AD633*INDEX(porcentaje.sitios.cobertura,$C165,Parametros.Red!AD$12)*INDEX(superficie.cobertura.2g,Parametros.Red!$N502,Parametros.Red!AD$11),0) -> 0 | AE165: =IFERROR(Parametros.Red!AE633*INDEX(porcentaje.sitios.cobertura,$C165,Parametros.Red!AE$12)*INDEX(superficie.cobertura.2g,Parametros.Red!$N502,Parametros.Red!AE$11),0) -> 0 | AF165: =IFERROR(Parametros.Red!AF633*INDEX(porcentaje.sitios.cobertura,$C165,Parametros.Red!AF$12)*INDEX(superficie.cobertura.2g,Parametros.Red!$N502,Parametros.Red!AF$11),0) -> 0 | AG165: =IFERROR(Parametros.Red!AG633*INDEX(porcentaje.sitios.cobertura,$C165,Parametros.Red!AG$12)*INDEX(superficie.cobertura.2g,Parametros.Red!$N502,Parametros.Red!AG$11),0) -> 0 | AH165: =IFERROR(Parametros.Red!AH633*INDEX(porcentaje.sitios.cobertura,$C165,Parametros.Red!AH$12)*INDEX(superficie.cobertura.2g,Parametros.Red!$N502,Parametros.Red!AH$11),0) -> 0 | AI165: =IFERROR(Parametros.Red!AI633*INDEX(porcentaje.sitios.cobertura,$C165,Parametros.Red!AI$12)*INDEX(superficie.cobertura.2g,Parametros.Red!$N502,Parametros.Red!AI$11),0) -> 0 | AJ165: =IFERROR(Parametros.Red!AJ633*INDEX(porcentaje.sitios.cobertura,$C165,Parametros.Red!AJ$12)*INDEX(superficie.cobertura.2g,Parametros.Red!$N502,Parametros.Red!AJ$11),0) -> 0 | AK165: =IFERROR(Parametros.Red!AK633*INDEX(porcentaje.sitios.cobertura,$C165,Parametros.Red!AK$12)*INDEX(superficie.cobertura.2g,Parametros.Red!$N502,Parametros.Red!AK$11),0) -> 0 | AL165: =IFERROR(Parametros.Red!AL633*INDEX(porcentaje.sitios.cobertura,$C165,Parametros.Red!AL$12)*INDEX(superficie.cobertura.2g,Parametros.Red!$N502,Parametros.Red!AL$11),0) -> 0 | AM165: =IFERROR(Parametros.Red!AM633*INDEX(porcentaje.sitios.cobertura,$C165,Parametros.Red!AM$12)*INDEX(superficie.cobertura.2g,Parametros.Red!$N502,Parametros.Red!AM$11),0) -> 0 | AN165: =IFERROR(Parametros.Red!AN633*INDEX(porcentaje.sitios.cobertura,$C165,Parametros.Red!AN$12)*INDEX(superficie.cobertura.2g,Parametros.Red!$N502,Parametros.Red!AN$11),0) -> 0 | AO165: =IFERROR(Parametros.Red!AO633*INDEX(porcentaje.sitios.cobertura,$C165,Parametros.Red!AO$12)*INDEX(superficie.cobertura.2g,Parametros.Red!$N502,Parametros.Red!AO$11),0) -> 0 | AP165: =IFERROR(Parametros.Red!AP633*INDEX(porcentaje.sitios.cobertura,$C165,Parametros.Red!AP$12)*INDEX(superficie.cobertura.2g,Parametros.Red!$N502,Parametros.Red!AP$11),0) -> 0 | AQ165: =IFERROR(Parametros.Red!AQ633*INDEX(porcentaje.sitios.cobertura,$C165,Parametros.Red!AQ$12)*INDEX(superficie.cobertura.2g,Parametros.Red!$N502,Parametros.Red!AQ$11),0) -> 0 | AR165: =IFERROR(Parametros.Red!AR633*INDEX(porcentaje.sitios.cobertura,$C165,Parametros.Red!AR$12)*INDEX(superficie.cobertura.2g,Parametros.Red!$N502,Parametros.Red!AR$11),0) -> 0 | AS165: =IFERROR(Parametros.Red!AS633*INDEX(porcentaje.sitios.cobertura,$C165,Parametros.Red!AS$12)*INDEX(superficie.cobertura.2g,Parametros.Red!$N502,Parametros.Red!AS$11),0) -> 0 | AT165: =IFERROR(Parametros.Red!AT633*INDEX(porcentaje.sitios.cobertura,$C165,Parametros.Red!AT$12)*INDEX(superficie.cobertura.2g,Parametros.Red!$N502,Parametros.Red!AT$11),0) -> 0 | AU165: =IFERROR(Parametros.Red!AU633*INDEX(porcentaje.sitios.cobertura,$C165,Parametros.Red!AU$12)*INDEX(superficie.cobertura.2g,Parametros.Red!$N502,Parametros.Red!AU$11),0) -> 0 | AV165: =IFERROR(Parametros.Red!AV633*INDEX(porcentaje.sitios.cobertura,$C165,Parametros.Red!AV$12)*INDEX(superficie.cobertura.2g,Parametros.Red!$N502,Parametros.Red!AV$11),0) -> 0 | AW165: =IFERROR(Parametros.Red!AW633*INDEX(porcentaje.sitios.cobertura,$C165,Parametros.Red!AW$12)*INDEX(superficie.cobertura.2g,Parametros.Red!$N502,Parametros.Red!AW$11),0) -> 0 | AX165: =IFERROR(Parametros.Red!AX633*INDEX(porcentaje.sitios.cobertura,$C165,Parametros.Red!AX$12)*INDEX(superficie.cobertura.2g,Parametros.Red!$N502,Parametros.Red!AX$11),0) -> 0 | AY165: =IFERROR(Parametros.Red!AY633*INDEX(porcentaje.sitios.cobertura,$C165,Parametros.Red!AY$12)*INDEX(superficie.cobertura.2g,Parametros.Red!$N502,Parametros.Red!AY$11),0) -> 0 | AZ165: =IFERROR(Parametros.Red!AZ633*INDEX(porcentaje.sitios.cobertura,$C165,Parametros.Red!AZ$12)*INDEX(superficie.cobertura.2g,Parametros.Red!$N502,Parametros.Red!AZ$11),0) -> 0 | BA165: =IFERROR(Parametros.Red!BA633*INDEX(porcentaje.sitios.cobertura,$C165,Parametros.Red!BA$12)*INDEX(superficie.cobertura.2g,Parametros.Red!$N502,Parametros.Red!BA$11),0) -> 0
C166: 9 | E166: [km2] | F166: =IFERROR(Parametros.Red!F634*INDEX(porcentaje.sitios.cobertura,$C166,Parametros.Red!F$12)*INDEX(superficie.cobertura.2g,Parametros.Red!$N503,Parametros.Red!F$11),0) -> 0 | G166: =IFERROR(Parametros.Red!G634*INDEX(porcentaje.sitios.cobertura,$C166,Parametros.Red!G$12)*INDEX(superficie.cobertura.2g,Parametros.Red!$N503,Parametros.Red!G$11),0) -> 0 | H166: =IFERROR(Parametros.Red!H634*INDEX(porcentaje.sitios.cobertura,$C166,Parametros.Red!H$12)*INDEX(superficie.cobertura.2g,Parametros.Red!$N503,Parametros.Red!H$11),0) -> 0 | I166: =IFERROR(Parametros.Red!I634*INDEX(porcentaje.sitios.cobertura,$C166,Parametros.Red!I$12)*INDEX(superficie.cobertura.2g,Parametros.Red!$N503,Parametros.Red!I$11),0) -> 0 | J166: =IFERROR(Parametros.Red!J634*INDEX(porcentaje.sitios.cobertura,$C166,Parametros.Red!J$12)*INDEX(superficie.cobertura.2g,Parametros.Red!$N503,Parametros.Red!J$11),0) -> 0 | K166: =IFERROR(Parametros.Red!K634*INDEX(porcentaje.sitios.cobertura,$C166,Parametros.Red!K$12)*INDEX(superficie.cobertura.2g,Parametros.Red!$N503,Parametros.Red!K$11),0) -> 0 | L166: =IFERROR(Parametros.Red!L634*INDEX(porcentaje.sitios.cobertura,$C166,Parametros.Red!L$12)*INDEX(superficie.cobertura.2g,Parametros.Red!$N503,Parametros.Red!L$11),0) -> 0 | M166: =IFERROR(Parametros.Red!M634*INDEX(porcentaje.sitios.cobertura,$C166,Parametros.Red!M$12)*INDEX(superficie.cobertura.2g,Parametros.Red!$N503,Parametros.Red!M$11),0) -> 0 | N166: =IFERROR(Parametros.Red!N634*INDEX(porcentaje.sitios.cobertura,$C166,Parametros.Red!N$12)*INDEX(superficie.cobertura.2g,Parametros.Red!$N503,Parametros.Red!N$11),0) -> 0 | O166: =IFERROR(Parametros.Red!O634*INDEX(porcentaje.sitios.cobertura,$C166,Parametros.Red!O$12)*INDEX(superficie.cobertura.2g,Parametros.Red!$N503,Parametros.Red!O$11),0) -> 0 | P166: =IFERROR(Parametros.Red!P634*INDEX(porcentaje.sitios.cobertura,$C166,Parametros.Red!P$12)*INDEX(superficie.cobertura.2g,Parametros.Red!$N503,Parametros.Red!P$11),0) -> 0 | Q166: =IFERROR(Parametros.Red!Q634*INDEX(porcentaje.sitios.cobertura,$C166,Parametros.Red!Q$12)*INDEX(superficie.cobertura.2g,Parametros.Red!$N503,Parametros.Red!Q$11),0) -> 0 | R166: =IFERROR(Parametros.Red!R634*INDEX(porcentaje.sitios.cobertura,$C166,Parametros.Red!R$12)*INDEX(superficie.cobertura.2g,Parametros.Red!$N503,Parametros.Red!R$11),0) -> 0 | S166: =IFERROR(Parametros.Red!S634*INDEX(porcentaje.sitios.cobertura,$C166,Parametros.Red!S$12)*INDEX(superficie.cobertura.2g,Parametros.Red!$N503,Parametros.Red!S$11),0) -> 0 | T166: =IFERROR(Parametros.Red!T634*INDEX(porcentaje.sitios.cobertura,$C166,Parametros.Red!T$12)*INDEX(superficie.cobertura.2g,Parametros.Red!$N503,Parametros.Red!T$11),0) -> 0 | U166: =IFERROR(Parametros.Red!U634*INDEX(porcentaje.sitios.cobertura,$C166,Parametros.Red!U$12)*INDEX(superficie.cobertura.2g,Parametros.Red!$N503,Parametros.Red!U$11),0) -> 0 | V166: =IFERROR(Parametros.Red!V634*INDEX(porcentaje.sitios.cobertura,$C166,Parametros.Red!V$12)*INDEX(superficie.cobertura.2g,Parametros.Red!$N503,Parametros.Red!V$11),0) -> 0 | W166: =IFERROR(Parametros.Red!W634*INDEX(porcentaje.sitios.cobertura,$C166,Parametros.Red!W$12)*INDEX(superficie.cobertura.2g,Parametros.Red!$N503,Parametros.Red!W$11),0) -> 0 | X166: =IFERROR(Parametros.Red!X634*INDEX(porcentaje.sitios.cobertura,$C166,Parametros.Red!X$12)*INDEX(superficie.cobertura.2g,Parametros.Red!$N503,Parametros.Red!X$11),0) -> 0 | Y166: =IFERROR(Parametros.Red!Y634*INDEX(porcentaje.sitios.cobertura,$C166,Parametros.Red!Y$12)*INDEX(superficie.cobertura.2g,Parametros.Red!$N503,Parametros.Red!Y$11),0) -> 0 | Z166: =IFERROR(Parametros.Red!Z634*INDEX(porcentaje.sitios.cobertura,$C166,Parametros.Red!Z$12)*INDEX(superficie.cobertura.2g,Parametros.Red!$N503,Parametros.Red!Z$11),0) -> 0 | AA166: =IFERROR(Parametros.Red!AA634*INDEX(porcentaje.sitios.cobertura,$C166,Parametros.Red!AA$12)*INDEX(superficie.cobertura.2g,Parametros.Red!$N503,Parametros.Red!AA$11),0) -> 0 | AB166: =IFERROR(Parametros.Red!AB634*INDEX(porcentaje.sitios.cobertura,$C166,Parametros.Red!AB$12)*INDEX(superficie.cobertura.2g,Parametros.Red!$N503,Parametros.Red!AB$11),0) -> 0 | AC166: =IFERROR(Parametros.Red!AC634*INDEX(porcentaje.sitios.cobertura,$C166,Parametros.Red!AC$12)*INDEX(superficie.cobertura.2g,Parametros.Red!$N503,Parametros.Red!AC$11),0) -> 0 | AD166: =IFERROR(Parametros.Red!AD634*INDEX(porcentaje.sitios.cobertura,$C166,Parametros.Red!AD$12)*INDEX(superficie.cobertura.2g,Parametros.Red!$N503,Parametros.Red!AD$11),0) -> 0 | AE166: =IFERROR(Parametros.Red!AE634*INDEX(porcentaje.sitios.cobertura,$C166,Parametros.Red!AE$12)*INDEX(superficie.cobertura.2g,Parametros.Red!$N503,Parametros.Red!AE$11),0) -> 0 | AF166: =IFERROR(Parametros.Red!AF634*INDEX(porcentaje.sitios.cobertura,$C166,Parametros.Red!AF$12)*INDEX(superficie.cobertura.2g,Parametros.Red!$N503,Parametros.Red!AF$11),0) -> 0 | AG166: =IFERROR(Parametros.Red!AG634*INDEX(porcentaje.sitios.cobertura,$C166,Parametros.Red!AG$12)*INDEX(superficie.cobertura.2g,Parametros.Red!$N503,Parametros.Red!AG$11),0) -> 0 | AH166: =IFERROR(Parametros.Red!AH634*INDEX(porcentaje.sitios.cobertura,$C166,Parametros.Red!AH$12)*INDEX(superficie.cobertura.2g,Parametros.Red!$N503,Parametros.Red!AH$11),0) -> 0 | AI166: =IFERROR(Parametros.Red!AI634*INDEX(porcentaje.sitios.cobertura,$C166,Parametros.Red!AI$12)*INDEX(superficie.cobertura.2g,Parametros.Red!$N503,Parametros.Red!AI$11),0) -> 0 | AJ166: =IFERROR(Parametros.Red!AJ634*INDEX(porcentaje.sitios.cobertura,$C166,Parametros.Red!AJ$12)*INDEX(superficie.cobertura.2g,Parametros.Red!$N503,Parametros.Red!AJ$11),0) -> 0 | AK166: =IFERROR(Parametros.Red!AK634*INDEX(porcentaje.sitios.cobertura,$C166,Parametros.Red!AK$12)*INDEX(superficie.cobertura.2g,Parametros.Red!$N503,Parametros.Red!AK$11),0) -> 0 | AL166: =IFERROR(Parametros.Red!AL634*INDEX(porcentaje.sitios.cobertura,$C166,Parametros.Red!AL$12)*INDEX(superficie.cobertura.2g,Parametros.Red!$N503,Parametros.Red!AL$11),0) -> 0 | AM166: =IFERROR(Parametros.Red!AM634*INDEX(porcentaje.sitios.cobertura,$C166,Parametros.Red!AM$12)*INDEX(superficie.cobertura.2g,Parametros.Red!$N503,Parametros.Red!AM$11),0) -> 0 | AN166: =IFERROR(Parametros.Red!AN634*INDEX(porcentaje.sitios.cobertura,$C166,Parametros.Red!AN$12)*INDEX(superficie.cobertura.2g,Parametros.Red!$N503,Parametros.Red!AN$11),0) -> 0 | AO166: =IFERROR(Parametros.Red!AO634*INDEX(porcentaje.sitios.cobertura,$C166,Parametros.Red!AO$12)*INDEX(superficie.cobertura.2g,Parametros.Red!$N503,Parametros.Red!AO$11),0) -> 0 | AP166: =IFERROR(Parametros.Red!AP634*INDEX(porcentaje.sitios.cobertura,$C166,Parametros.Red!AP$12)*INDEX(superficie.cobertura.2g,Parametros.Red!$N503,Parametros.Red!AP$11),0) -> 0 | AQ166: =IFERROR(Parametros.Red!AQ634*INDEX(porcentaje.sitios.cobertura,$C166,Parametros.Red!AQ$12)*INDEX(superficie.cobertura.2g,Parametros.Red!$N503,Parametros.Red!AQ$11),0) -> 0 | AR166: =IFERROR(Parametros.Red!AR634*INDEX(porcentaje.sitios.cobertura,$C166,Parametros.Red!AR$12)*INDEX(superficie.cobertura.2g,Parametros.Red!$N503,Parametros.Red!AR$11),0) -> 0 | AS166: =IFERROR(Parametros.Red!AS634*INDEX(porcentaje.sitios.cobertura,$C166,Parametros.Red!AS$12)*INDEX(superficie.cobertura.2g,Parametros.Red!$N503,Parametros.Red!AS$11),0) -> 0 | AT166: =IFERROR(Parametros.Red!AT634*INDEX(porcentaje.sitios.cobertura,$C166,Parametros.Red!AT$12)*INDEX(superficie.cobertura.2g,Parametros.Red!$N503,Parametros.Red!AT$11),0) -> 0 | AU166: =IFERROR(Parametros.Red!AU634*INDEX(porcentaje.sitios.cobertura,$C166,Parametros.Red!AU$12)*INDEX(superficie.cobertura.2g,Parametros.Red!$N503,Parametros.Red!AU$11),0) -> 0 | AV166: =IFERROR(Parametros.Red!AV634*INDEX(porcentaje.sitios.cobertura,$C166,Parametros.Red!AV$12)*INDEX(superficie.cobertura.2g,Parametros.Red!$N503,Parametros.Red!AV$11),0) -> 0 | AW166: =IFERROR(Parametros.Red!AW634*INDEX(porcentaje.sitios.cobertura,$C166,Parametros.Red!AW$12)*INDEX(superficie.cobertura.2g,Parametros.Red!$N503,Parametros.Red!AW$11),0) -> 0 | AX166: =IFERROR(Parametros.Red!AX634*INDEX(porcentaje.sitios.cobertura,$C166,Parametros.Red!AX$12)*INDEX(superficie.cobertura.2g,Parametros.Red!$N503,Parametros.Red!AX$11),0) -> 0 | AY166: =IFERROR(Parametros.Red!AY634*INDEX(porcentaje.sitios.cobertura,$C166,Parametros.Red!AY$12)*INDEX(superficie.cobertura.2g,Parametros.Red!$N503,Parametros.Red!AY$11),0) -> 0 | AZ166: =IFERROR(Parametros.Red!AZ634*INDEX(porcentaje.sitios.cobertura,$C166,Parametros.Red!AZ$12)*INDEX(superficie.cobertura.2g,Parametros.Red!$N503,Parametros.Red!AZ$11),0) -> 0 | BA166: =IFERROR(Parametros.Red!BA634*INDEX(porcentaje.sitios.cobertura,$C166,Parametros.Red!BA$12)*INDEX(superficie.cobertura.2g,Parametros.Red!$N503,Parametros.Red!BA$11),0) -> 0
C167: 10 | E167: [km2] | F167: =IFERROR(Parametros.Red!F635*INDEX(porcentaje.sitios.cobertura,$C167,Parametros.Red!F$12)*INDEX(superficie.cobertura.2g,Parametros.Red!$N504,Parametros.Red!F$11),0) -> 0 | G167: =IFERROR(Parametros.Red!G635*INDEX(porcentaje.sitios.cobertura,$C167,Parametros.Red!G$12)*INDEX(superficie.cobertura.2g,Parametros.Red!$N504,Parametros.Red!G$11),0) -> 0 | H167: =IFERROR(Parametros.Red!H635*INDEX(porcentaje.sitios.cobertura,$C167,Parametros.Red!H$12)*INDEX(superficie.cobertura.2g,Parametros.Red!$N504,Parametros.Red!H$11),0) -> 0 | I167: =IFERROR(Parametros.Red!I635*INDEX(porcentaje.sitios.cobertura,$C167,Parametros.Red!I$12)*INDEX(superficie.cobertura.2g,Parametros.Red!$N504,Parametros.Red!I$11),0) -> 0 | J167: =IFERROR(Parametros.Red!J635*INDEX(porcentaje.sitios.cobertura,$C167,Parametros.Red!J$12)*INDEX(superficie.cobertura.2g,Parametros.Red!$N504,Parametros.Red!J$11),0) -> 0 | K167: =IFERROR(Parametros.Red!K635*INDEX(porcentaje.sitios.cobertura,$C167,Parametros.Red!K$12)*INDEX(superficie.cobertura.2g,Parametros.Red!$N504,Parametros.Red!K$11),0) -> 0 | L167: =IFERROR(Parametros.Red!L635*INDEX(porcentaje.sitios.cobertura,$C167,Parametros.Red!L$12)*INDEX(superficie.cobertura.2g,Parametros.Red!$N504,Parametros.Red!L$11),0) -> 0 | M167: =IFERROR(Parametros.Red!M635*INDEX(porcentaje.sitios.cobertura,$C167,Parametros.Red!M$12)*INDEX(superficie.cobertura.2g,Parametros.Red!$N504,Parametros.Red!M$11),0) -> 0 | N167: =IFERROR(Parametros.Red!N635*INDEX(porcentaje.sitios.cobertura,$C167,Parametros.Red!N$12)*INDEX(superficie.cobertura.2g,Parametros.Red!$N504,Parametros.Red!N$11),0) -> 0 | O167: =IFERROR(Parametros.Red!O635*INDEX(porcentaje.sitios.cobertura,$C167,Parametros.Red!O$12)*INDEX(superficie.cobertura.2g,Parametros.Red!$N504,Parametros.Red!O$11),0) -> 0 | P167: =IFERROR(Parametros.Red!P635*INDEX(porcentaje.sitios.cobertura,$C167,Parametros.Red!P$12)*INDEX(superficie.cobertura.2g,Parametros.Red!$N504,Parametros.Red!P$11),0) -> 0 | Q167: =IFERROR(Parametros.Red!Q635*INDEX(porcentaje.sitios.cobertura,$C167,Parametros.Red!Q$12)*INDEX(superficie.cobertura.2g,Parametros.Red!$N504,Parametros.Red!Q$11),0) -> 0 | R167: =IFERROR(Parametros.Red!R635*INDEX(porcentaje.sitios.cobertura,$C167,Parametros.Red!R$12)*INDEX(superficie.cobertura.2g,Parametros.Red!$N504,Parametros.Red!R$11),0) -> 0 | S167: =IFERROR(Parametros.Red!S635*INDEX(porcentaje.sitios.cobertura,$C167,Parametros.Red!S$12)*INDEX(superficie.cobertura.2g,Parametros.Red!$N504,Parametros.Red!S$11),0) -> 0 | T167: =IFERROR(Parametros.Red!T635*INDEX(porcentaje.sitios.cobertura,$C167,Parametros.Red!T$12)*INDEX(superficie.cobertura.2g,Parametros.Red!$N504,Parametros.Red!T$11),0) -> 0 | U167: =IFERROR(Parametros.Red!U635*INDEX(porcentaje.sitios.cobertura,$C167,Parametros.Red!U$12)*INDEX(superficie.cobertura.2g,Parametros.Red!$N504,Parametros.Red!U$11),0) -> 0 | V167: =IFERROR(Parametros.Red!V635*INDEX(porcentaje.sitios.cobertura,$C167,Parametros.Red!V$12)*INDEX(superficie.cobertura.2g,Parametros.Red!$N504,Parametros.Red!V$11),0) -> 0 | W167: =IFERROR(Parametros.Red!W635*INDEX(porcentaje.sitios.cobertura,$C167,Parametros.Red!W$12)*INDEX(superficie.cobertura.2g,Parametros.Red!$N504,Parametros.Red!W$11),0) -> 0 | X167: =IFERROR(Parametros.Red!X635*INDEX(porcentaje.sitios.cobertura,$C167,Parametros.Red!X$12)*INDEX(superficie.cobertura.2g,Parametros.Red!$N504,Parametros.Red!X$11),0) -> 0 | Y167: =IFERROR(Parametros.Red!Y635*INDEX(porcentaje.sitios.cobertura,$C167,Parametros.Red!Y$12)*INDEX(superficie.cobertura.2g,Parametros.Red!$N504,Parametros.Red!Y$11),0) -> 0 | Z167: =IFERROR(Parametros.Red!Z635*INDEX(porcentaje.sitios.cobertura,$C167,Parametros.Red!Z$12)*INDEX(superficie.cobertura.2g,Parametros.Red!$N504,Parametros.Red!Z$11),0) -> 0 | AA167: =IFERROR(Parametros.Red!AA635*INDEX(porcentaje.sitios.cobertura,$C167,Parametros.Red!AA$12)*INDEX(superficie.cobertura.2g,Parametros.Red!$N504,Parametros.Red!AA$11),0) -> 0 | AB167: =IFERROR(Parametros.Red!AB635*INDEX(porcentaje.sitios.cobertura,$C167,Parametros.Red!AB$12)*INDEX(superficie.cobertura.2g,Parametros.Red!$N504,Parametros.Red!AB$11),0) -> 0 | AC167: =IFERROR(Parametros.Red!AC635*INDEX(porcentaje.sitios.cobertura,$C167,Parametros.Red!AC$12)*INDEX(superficie.cobertura.2g,Parametros.Red!$N504,Parametros.Red!AC$11),0) -> 0 | AD167: =IFERROR(Parametros.Red!AD635*INDEX(porcentaje.sitios.cobertura,$C167,Parametros.Red!AD$12)*INDEX(superficie.cobertura.2g,Parametros.Red!$N504,Parametros.Red!AD$11),0) -> 0 | AE167: =IFERROR(Parametros.Red!AE635*INDEX(porcentaje.sitios.cobertura,$C167,Parametros.Red!AE$12)*INDEX(superficie.cobertura.2g,Parametros.Red!$N504,Parametros.Red!AE$11),0) -> 0 | AF167: =IFERROR(Parametros.Red!AF635*INDEX(porcentaje.sitios.cobertura,$C167,Parametros.Red!AF$12)*INDEX(superficie.cobertura.2g,Parametros.Red!$N504,Parametros.Red!AF$11),0) -> 0 | AG167: =IFERROR(Parametros.Red!AG635*INDEX(porcentaje.sitios.cobertura,$C167,Parametros.Red!AG$12)*INDEX(superficie.cobertura.2g,Parametros.Red!$N504,Parametros.Red!AG$11),0) -> 0 | AH167: =IFERROR(Parametros.Red!AH635*INDEX(porcentaje.sitios.cobertura,$C167,Parametros.Red!AH$12)*INDEX(superficie.cobertura.2g,Parametros.Red!$N504,Parametros.Red!AH$11),0) -> 0 | AI167: =IFERROR(Parametros.Red!AI635*INDEX(porcentaje.sitios.cobertura,$C167,Parametros.Red!AI$12)*INDEX(superficie.cobertura.2g,Parametros.Red!$N504,Parametros.Red!AI$11),0) -> 0 | AJ167: =IFERROR(Parametros.Red!AJ635*INDEX(porcentaje.sitios.cobertura,$C167,Parametros.Red!AJ$12)*INDEX(superficie.cobertura.2g,Parametros.Red!$N504,Parametros.Red!AJ$11),0) -> 0 | AK167: =IFERROR(Parametros.Red!AK635*INDEX(porcentaje.sitios.cobertura,$C167,Parametros.Red!AK$12)*INDEX(superficie.cobertura.2g,Parametros.Red!$N504,Parametros.Red!AK$11),0) -> 0 | AL167: =IFERROR(Parametros.Red!AL635*INDEX(porcentaje.sitios.cobertura,$C167,Parametros.Red!AL$12)*INDEX(superficie.cobertura.2g,Parametros.Red!$N504,Parametros.Red!AL$11),0) -> 0 | AM167: =IFERROR(Parametros.Red!AM635*INDEX(porcentaje.sitios.cobertura,$C167,Parametros.Red!AM$12)*INDEX(superficie.cobertura.2g,Parametros.Red!$N504,Parametros.Red!AM$11),0) -> 0 | AN167: =IFERROR(Parametros.Red!AN635*INDEX(porcentaje.sitios.cobertura,$C167,Parametros.Red!AN$12)*INDEX(superficie.cobertura.2g,Parametros.Red!$N504,Parametros.Red!AN$11),0) -> 0 | AO167: =IFERROR(Parametros.Red!AO635*INDEX(porcentaje.sitios.cobertura,$C167,Parametros.Red!AO$12)*INDEX(superficie.cobertura.2g,Parametros.Red!$N504,Parametros.Red!AO$11),0) -> 0 | AP167: =IFERROR(Parametros.Red!AP635*INDEX(porcentaje.sitios.cobertura,$C167,Parametros.Red!AP$12)*INDEX(superficie.cobertura.2g,Parametros.Red!$N504,Parametros.Red!AP$11),0) -> 0 | AQ167: =IFERROR(Parametros.Red!AQ635*INDEX(porcentaje.sitios.cobertura,$C167,Parametros.Red!AQ$12)*INDEX(superficie.cobertura.2g,Parametros.Red!$N504,Parametros.Red!AQ$11),0) -> 0 | AR167: =IFERROR(Parametros.Red!AR635*INDEX(porcentaje.sitios.cobertura,$C167,Parametros.Red!AR$12)*INDEX(superficie.cobertura.2g,Parametros.Red!$N504,Parametros.Red!AR$11),0) -> 0 | AS167: =IFERROR(Parametros.Red!AS635*INDEX(porcentaje.sitios.cobertura,$C167,Parametros.Red!AS$12)*INDEX(superficie.cobertura.2g,Parametros.Red!$N504,Parametros.Red!AS$11),0) -> 0 | AT167: =IFERROR(Parametros.Red!AT635*INDEX(porcentaje.sitios.cobertura,$C167,Parametros.Red!AT$12)*INDEX(superficie.cobertura.2g,Parametros.Red!$N504,Parametros.Red!AT$11),0) -> 0 | AU167: =IFERROR(Parametros.Red!AU635*INDEX(porcentaje.sitios.cobertura,$C167,Parametros.Red!AU$12)*INDEX(superficie.cobertura.2g,Parametros.Red!$N504,Parametros.Red!AU$11),0) -> 0 | AV167: =IFERROR(Parametros.Red!AV635*INDEX(porcentaje.sitios.cobertura,$C167,Parametros.Red!AV$12)*INDEX(superficie.cobertura.2g,Parametros.Red!$N504,Parametros.Red!AV$11),0) -> 0 | AW167: =IFERROR(Parametros.Red!AW635*INDEX(porcentaje.sitios.cobertura,$C167,Parametros.Red!AW$12)*INDEX(superficie.cobertura.2g,Parametros.Red!$N504,Parametros.Red!AW$11),0) -> 0 | AX167: =IFERROR(Parametros.Red!AX635*INDEX(porcentaje.sitios.cobertura,$C167,Parametros.Red!AX$12)*INDEX(superficie.cobertura.2g,Parametros.Red!$N504,Parametros.Red!AX$11),0) -> 0 | AY167: =IFERROR(Parametros.Red!AY635*INDEX(porcentaje.sitios.cobertura,$C167,Parametros.Red!AY$12)*INDEX(superficie.cobertura.2g,Parametros.Red!$N504,Parametros.Red!AY$11),0) -> 0 | AZ167: =IFERROR(Parametros.Red!AZ635*INDEX(porcentaje.sitios.cobertura,$C167,Parametros.Red!AZ$12)*INDEX(superficie.cobertura.2g,Parametros.Red!$N504,Parametros.Red!AZ$11),0) -> 0 | BA167: =IFERROR(Parametros.Red!BA635*INDEX(porcentaje.sitios.cobertura,$C167,Parametros.Red!BA$12)*INDEX(superficie.cobertura.2g,Parametros.Red!$N504,Parametros.Red!BA$11),0) -> 0
C168: 11 | E168: [km2] | F168: =IFERROR(Parametros.Red!F636*INDEX(porcentaje.sitios.cobertura,$C168,Parametros.Red!F$12)*INDEX(superficie.cobertura.2g,Parametros.Red!$N505,Parametros.Red!F$11),0) -> 0 | G168: =IFERROR(Parametros.Red!G636*INDEX(porcentaje.sitios.cobertura,$C168,Parametros.Red!G$12)*INDEX(superficie.cobertura.2g,Parametros.Red!$N505,Parametros.Red!G$11),0) -> 0 | H168: =IFERROR(Parametros.Red!H636*INDEX(porcentaje.sitios.cobertura,$C168,Parametros.Red!H$12)*INDEX(superficie.cobertura.2g,Parametros.Red!$N505,Parametros.Red!H$11),0) -> 0 | I168: =IFERROR(Parametros.Red!I636*INDEX(porcentaje.sitios.cobertura,$C168,Parametros.Red!I$12)*INDEX(superficie.cobertura.2g,Parametros.Red!$N505,Parametros.Red!I$11),0) -> 0 | J168: =IFERROR(Parametros.Red!J636*INDEX(porcentaje.sitios.cobertura,$C168,Parametros.Red!J$12)*INDEX(superficie.cobertura.2g,Parametros.Red!$N505,Parametros.Red!J$11),0) -> 0 | K168: =IFERROR(Parametros.Red!K636*INDEX(porcentaje.sitios.cobertura,$C168,Parametros.Red!K$12)*INDEX(superficie.cobertura.2g,Parametros.Red!$N505,Parametros.Red!K$11),0) -> 0 | L168: =IFERROR(Parametros.Red!L636*INDEX(porcentaje.sitios.cobertura,$C168,Parametros.Red!L$12)*INDEX(superficie.cobertura.2g,Parametros.Red!$N505,Parametros.Red!L$11),0) -> 0 | M168: =IFERROR(Parametros.Red!M636*INDEX(porcentaje.sitios.cobertura,$C168,Parametros.Red!M$12)*INDEX(superficie.cobertura.2g,Parametros.Red!$N505,Parametros.Red!M$11),0) -> 0 | N168: =IFERROR(Parametros.Red!N636*INDEX(porcentaje.sitios.cobertura,$C168,Parametros.Red!N$12)*INDEX(superficie.cobertura.2g,Parametros.Red!$N505,Parametros.Red!N$11),0) -> 0 | O168: =IFERROR(Parametros.Red!O636*INDEX(porcentaje.sitios.cobertura,$C168,Parametros.Red!O$12)*INDEX(superficie.cobertura.2g,Parametros.Red!$N505,Parametros.Red!O$11),0) -> 0 | P168: =IFERROR(Parametros.Red!P636*INDEX(porcentaje.sitios.cobertura,$C168,Parametros.Red!P$12)*INDEX(superficie.cobertura.2g,Parametros.Red!$N505,Parametros.Red!P$11),0) -> 0 | Q168: =IFERROR(Parametros.Red!Q636*INDEX(porcentaje.sitios.cobertura,$C168,Parametros.Red!Q$12)*INDEX(superficie.cobertura.2g,Parametros.Red!$N505,Parametros.Red!Q$11),0) -> 0 | R168: =IFERROR(Parametros.Red!R636*INDEX(porcentaje.sitios.cobertura,$C168,Parametros.Red!R$12)*INDEX(superficie.cobertura.2g,Parametros.Red!$N505,Parametros.Red!R$11),0) -> 0 | S168: =IFERROR(Parametros.Red!S636*INDEX(porcentaje.sitios.cobertura,$C168,Parametros.Red!S$12)*INDEX(superficie.cobertura.2g,Parametros.Red!$N505,Parametros.Red!S$11),0) -> 0 | T168: =IFERROR(Parametros.Red!T636*INDEX(porcentaje.sitios.cobertura,$C168,Parametros.Red!T$12)*INDEX(superficie.cobertura.2g,Parametros.Red!$N505,Parametros.Red!T$11),0) -> 0 | U168: =IFERROR(Parametros.Red!U636*INDEX(porcentaje.sitios.cobertura,$C168,Parametros.Red!U$12)*INDEX(superficie.cobertura.2g,Parametros.Red!$N505,Parametros.Red!U$11),0) -> 0 | V168: =IFERROR(Parametros.Red!V636*INDEX(porcentaje.sitios.cobertura,$C168,Parametros.Red!V$12)*INDEX(superficie.cobertura.2g,Parametros.Red!$N505,Parametros.Red!V$11),0) -> 0 | W168: =IFERROR(Parametros.Red!W636*INDEX(porcentaje.sitios.cobertura,$C168,Parametros.Red!W$12)*INDEX(superficie.cobertura.2g,Parametros.Red!$N505,Parametros.Red!W$11),0) -> 0 | X168: =IFERROR(Parametros.Red!X636*INDEX(porcentaje.sitios.cobertura,$C168,Parametros.Red!X$12)*INDEX(superficie.cobertura.2g,Parametros.Red!$N505,Parametros.Red!X$11),0) -> 0 | Y168: =IFERROR(Parametros.Red!Y636*INDEX(porcentaje.sitios.cobertura,$C168,Parametros.Red!Y$12)*INDEX(superficie.cobertura.2g,Parametros.Red!$N505,Parametros.Red!Y$11),0) -> 0 | Z168: =IFERROR(Parametros.Red!Z636*INDEX(porcentaje.sitios.cobertura,$C168,Parametros.Red!Z$12)*INDEX(superficie.cobertura.2g,Parametros.Red!$N505,Parametros.Red!Z$11),0) -> 0 | AA168: =IFERROR(Parametros.Red!AA636*INDEX(porcentaje.sitios.cobertura,$C168,Parametros.Red!AA$12)*INDEX(superficie.cobertura.2g,Parametros.Red!$N505,Parametros.Red!AA$11),0) -> 0 | AB168: =IFERROR(Parametros.Red!AB636*INDEX(porcentaje.sitios.cobertura,$C168,Parametros.Red!AB$12)*INDEX(superficie.cobertura.2g,Parametros.Red!$N505,Parametros.Red!AB$11),0) -> 0 | AC168: =IFERROR(Parametros.Red!AC636*INDEX(porcentaje.sitios.cobertura,$C168,Parametros.Red!AC$12)*INDEX(superficie.cobertura.2g,Parametros.Red!$N505,Parametros.Red!AC$11),0) -> 0 | AD168: =IFERROR(Parametros.Red!AD636*INDEX(porcentaje.sitios.cobertura,$C168,Parametros.Red!AD$12)*INDEX(superficie.cobertura.2g,Parametros.Red!$N505,Parametros.Red!AD$11),0) -> 0 | AE168: =IFERROR(Parametros.Red!AE636*INDEX(porcentaje.sitios.cobertura,$C168,Parametros.Red!AE$12)*INDEX(superficie.cobertura.2g,Parametros.Red!$N505,Parametros.Red!AE$11),0) -> 0 | AF168: =IFERROR(Parametros.Red!AF636*INDEX(porcentaje.sitios.cobertura,$C168,Parametros.Red!AF$12)*INDEX(superficie.cobertura.2g,Parametros.Red!$N505,Parametros.Red!AF$11),0) -> 0 | AG168: =IFERROR(Parametros.Red!AG636*INDEX(porcentaje.sitios.cobertura,$C168,Parametros.Red!AG$12)*INDEX(superficie.cobertura.2g,Parametros.Red!$N505,Parametros.Red!AG$11),0) -> 0 | AH168: =IFERROR(Parametros.Red!AH636*INDEX(porcentaje.sitios.cobertura,$C168,Parametros.Red!AH$12)*INDEX(superficie.cobertura.2g,Parametros.Red!$N505,Parametros.Red!AH$11),0) -> 0 | AI168: =IFERROR(Parametros.Red!AI636*INDEX(porcentaje.sitios.cobertura,$C168,Parametros.Red!AI$12)*INDEX(superficie.cobertura.2g,Parametros.Red!$N505,Parametros.Red!AI$11),0) -> 0 | AJ168: =IFERROR(Parametros.Red!AJ636*INDEX(porcentaje.sitios.cobertura,$C168,Parametros.Red!AJ$12)*INDEX(superficie.cobertura.2g,Parametros.Red!$N505,Parametros.Red!AJ$11),0) -> 0 | AK168: =IFERROR(Parametros.Red!AK636*INDEX(porcentaje.sitios.cobertura,$C168,Parametros.Red!AK$12)*INDEX(superficie.cobertura.2g,Parametros.Red!$N505,Parametros.Red!AK$11),0) -> 0 | AL168: =IFERROR(Parametros.Red!AL636*INDEX(porcentaje.sitios.cobertura,$C168,Parametros.Red!AL$12)*INDEX(superficie.cobertura.2g,Parametros.Red!$N505,Parametros.Red!AL$11),0) -> 0 | AM168: =IFERROR(Parametros.Red!AM636*INDEX(porcentaje.sitios.cobertura,$C168,Parametros.Red!AM$12)*INDEX(superficie.cobertura.2g,Parametros.Red!$N505,Parametros.Red!AM$11),0) -> 0 | AN168: =IFERROR(Parametros.Red!AN636*INDEX(porcentaje.sitios.cobertura,$C168,Parametros.Red!AN$12)*INDEX(superficie.cobertura.2g,Parametros.Red!$N505,Parametros.Red!AN$11),0) -> 0 | AO168: =IFERROR(Parametros.Red!AO636*INDEX(porcentaje.sitios.cobertura,$C168,Parametros.Red!AO$12)*INDEX(superficie.cobertura.2g,Parametros.Red!$N505,Parametros.Red!AO$11),0) -> 0 | AP168: =IFERROR(Parametros.Red!AP636*INDEX(porcentaje.sitios.cobertura,$C168,Parametros.Red!AP$12)*INDEX(superficie.cobertura.2g,Parametros.Red!$N505,Parametros.Red!AP$11),0) -> 0 | AQ168: =IFERROR(Parametros.Red!AQ636*INDEX(porcentaje.sitios.cobertura,$C168,Parametros.Red!AQ$12)*INDEX(superficie.cobertura.2g,Parametros.Red!$N505,Parametros.Red!AQ$11),0) -> 0 | AR168: =IFERROR(Parametros.Red!AR636*INDEX(porcentaje.sitios.cobertura,$C168,Parametros.Red!AR$12)*INDEX(superficie.cobertura.2g,Parametros.Red!$N505,Parametros.Red!AR$11),0) -> 0 | AS168: =IFERROR(Parametros.Red!AS636*INDEX(porcentaje.sitios.cobertura,$C168,Parametros.Red!AS$12)*INDEX(superficie.cobertura.2g,Parametros.Red!$N505,Parametros.Red!AS$11),0) -> 0 | AT168: =IFERROR(Parametros.Red!AT636*INDEX(porcentaje.sitios.cobertura,$C168,Parametros.Red!AT$12)*INDEX(superficie.cobertura.2g,Parametros.Red!$N505,Parametros.Red!AT$11),0) -> 0 | AU168: =IFERROR(Parametros.Red!AU636*INDEX(porcentaje.sitios.cobertura,$C168,Parametros.Red!AU$12)*INDEX(superficie.cobertura.2g,Parametros.Red!$N505,Parametros.Red!AU$11),0) -> 0 | AV168: =IFERROR(Parametros.Red!AV636*INDEX(porcentaje.sitios.cobertura,$C168,Parametros.Red!AV$12)*INDEX(superficie.cobertura.2g,Parametros.Red!$N505,Parametros.Red!AV$11),0) -> 0 | AW168: =IFERROR(Parametros.Red!AW636*INDEX(porcentaje.sitios.cobertura,$C168,Parametros.Red!AW$12)*INDEX(superficie.cobertura.2g,Parametros.Red!$N505,Parametros.Red!AW$11),0) -> 0 | AX168: =IFERROR(Parametros.Red!AX636*INDEX(porcentaje.sitios.cobertura,$C168,Parametros.Red!AX$12)*INDEX(superficie.cobertura.2g,Parametros.Red!$N505,Parametros.Red!AX$11),0) -> 0 | AY168: =IFERROR(Parametros.Red!AY636*INDEX(porcentaje.sitios.cobertura,$C168,Parametros.Red!AY$12)*INDEX(superficie.cobertura.2g,Parametros.Red!$N505,Parametros.Red!AY$11),0) -> 0 | AZ168: =IFERROR(Parametros.Red!AZ636*INDEX(porcentaje.sitios.cobertura,$C168,Parametros.Red!AZ$12)*INDEX(superficie.cobertura.2g,Parametros.Red!$N505,Parametros.Red!AZ$11),0) -> 0 | BA168: =IFERROR(Parametros.Red!BA636*INDEX(porcentaje.sitios.cobertura,$C168,Parametros.Red!BA$12)*INDEX(superficie.cobertura.2g,Parametros.Red!$N505,Parametros.Red!BA$11),0) -> 0
C169: 12 | E169: [km2] | F169: =IFERROR(Parametros.Red!F637*INDEX(porcentaje.sitios.cobertura,$C169,Parametros.Red!F$12)*INDEX(superficie.cobertura.2g,Parametros.Red!$N506,Parametros.Red!F$11),0) -> 0 | G169: =IFERROR(Parametros.Red!G637*INDEX(porcentaje.sitios.cobertura,$C169,Parametros.Red!G$12)*INDEX(superficie.cobertura.2g,Parametros.Red!$N506,Parametros.Red!G$11),0) -> 0 | H169: =IFERROR(Parametros.Red!H637*INDEX(porcentaje.sitios.cobertura,$C169,Parametros.Red!H$12)*INDEX(superficie.cobertura.2g,Parametros.Red!$N506,Parametros.Red!H$11),0) -> 0 | I169: =IFERROR(Parametros.Red!I637*INDEX(porcentaje.sitios.cobertura,$C169,Parametros.Red!I$12)*INDEX(superficie.cobertura.2g,Parametros.Red!$N506,Parametros.Red!I$11),0) -> 0 | J169: =IFERROR(Parametros.Red!J637*INDEX(porcentaje.sitios.cobertura,$C169,Parametros.Red!J$12)*INDEX(superficie.cobertura.2g,Parametros.Red!$N506,Parametros.Red!J$11),0) -> 0 | K169: =IFERROR(Parametros.Red!K637*INDEX(porcentaje.sitios.cobertura,$C169,Parametros.Red!K$12)*INDEX(superficie.cobertura.2g,Parametros.Red!$N506,Parametros.Red!K$11),0) -> 0 | L169: =IFERROR(Parametros.Red!L637*INDEX(porcentaje.sitios.cobertura,$C169,Parametros.Red!L$12)*INDEX(superficie.cobertura.2g,Parametros.Red!$N506,Parametros.Red!L$11),0) -> 0 | M169: =IFERROR(Parametros.Red!M637*INDEX(porcentaje.sitios.cobertura,$C169,Parametros.Red!M$12)*INDEX(superficie.cobertura.2g,Parametros.Red!$N506,Parametros.Red!M$11),0) -> 0 | N169: =IFERROR(Parametros.Red!N637*INDEX(porcentaje.sitios.cobertura,$C169,Parametros.Red!N$12)*INDEX(superficie.cobertura.2g,Parametros.Red!$N506,Parametros.Red!N$11),0) -> 0 | O169: =IFERROR(Parametros.Red!O637*INDEX(porcentaje.sitios.cobertura,$C169,Parametros.Red!O$12)*INDEX(superficie.cobertura.2g,Parametros.Red!$N506,Parametros.Red!O$11),0) -> 0 | P169: =IFERROR(Parametros.Red!P637*INDEX(porcentaje.sitios.cobertura,$C169,Parametros.Red!P$12)*INDEX(superficie.cobertura.2g,Parametros.Red!$N506,Parametros.Red!P$11),0) -> 0 | Q169: =IFERROR(Parametros.Red!Q637*INDEX(porcentaje.sitios.cobertura,$C169,Parametros.Red!Q$12)*INDEX(superficie.cobertura.2g,Parametros.Red!$N506,Parametros.Red!Q$11),0) -> 0 | R169: =IFERROR(Parametros.Red!R637*INDEX(porcentaje.sitios.cobertura,$C169,Parametros.Red!R$12)*INDEX(superficie.cobertura.2g,Parametros.Red!$N506,Parametros.Red!R$11),0) -> 0 | S169: =IFERROR(Parametros.Red!S637*INDEX(porcentaje.sitios.cobertura,$C169,Parametros.Red!S$12)*INDEX(superficie.cobertura.2g,Parametros.Red!$N506,Parametros.Red!S$11),0) -> 0 | T169: =IFERROR(Parametros.Red!T637*INDEX(porcentaje.sitios.cobertura,$C169,Parametros.Red!T$12)*INDEX(superficie.cobertura.2g,Parametros.Red!$N506,Parametros.Red!T$11),0) -> 0 | U169: =IFERROR(Parametros.Red!U637*INDEX(porcentaje.sitios.cobertura,$C169,Parametros.Red!U$12)*INDEX(superficie.cobertura.2g,Parametros.Red!$N506,Parametros.Red!U$11),0) -> 0 | V169: =IFERROR(Parametros.Red!V637*INDEX(porcentaje.sitios.cobertura,$C169,Parametros.Red!V$12)*INDEX(superficie.cobertura.2g,Parametros.Red!$N506,Parametros.Red!V$11),0) -> 0 | W169: =IFERROR(Parametros.Red!W637*INDEX(porcentaje.sitios.cobertura,$C169,Parametros.Red!W$12)*INDEX(superficie.cobertura.2g,Parametros.Red!$N506,Parametros.Red!W$11),0) -> 0 | X169: =IFERROR(Parametros.Red!X637*INDEX(porcentaje.sitios.cobertura,$C169,Parametros.Red!X$12)*INDEX(superficie.cobertura.2g,Parametros.Red!$N506,Parametros.Red!X$11),0) -> 0 | Y169: =IFERROR(Parametros.Red!Y637*INDEX(porcentaje.sitios.cobertura,$C169,Parametros.Red!Y$12)*INDEX(superficie.cobertura.2g,Parametros.Red!$N506,Parametros.Red!Y$11),0) -> 0 | Z169: =IFERROR(Parametros.Red!Z637*INDEX(porcentaje.sitios.cobertura,$C169,Parametros.Red!Z$12)*INDEX(superficie.cobertura.2g,Parametros.Red!$N506,Parametros.Red!Z$11),0) -> 0 | AA169: =IFERROR(Parametros.Red!AA637*INDEX(porcentaje.sitios.cobertura,$C169,Parametros.Red!AA$12)*INDEX(superficie.cobertura.2g,Parametros.Red!$N506,Parametros.Red!AA$11),0) -> 0 | AB169: =IFERROR(Parametros.Red!AB637*INDEX(porcentaje.sitios.cobertura,$C169,Parametros.Red!AB$12)*INDEX(superficie.cobertura.2g,Parametros.Red!$N506,Parametros.Red!AB$11),0) -> 0 | AC169: =IFERROR(Parametros.Red!AC637*INDEX(porcentaje.sitios.cobertura,$C169,Parametros.Red!AC$12)*INDEX(superficie.cobertura.2g,Parametros.Red!$N506,Parametros.Red!AC$11),0) -> 0 | AD169: =IFERROR(Parametros.Red!AD637*INDEX(porcentaje.sitios.cobertura,$C169,Parametros.Red!AD$12)*INDEX(superficie.cobertura.2g,Parametros.Red!$N506,Parametros.Red!AD$11),0) -> 0 | AE169: =IFERROR(Parametros.Red!AE637*INDEX(porcentaje.sitios.cobertura,$C169,Parametros.Red!AE$12)*INDEX(superficie.cobertura.2g,Parametros.Red!$N506,Parametros.Red!AE$11),0) -> 0 | AF169: =IFERROR(Parametros.Red!AF637*INDEX(porcentaje.sitios.cobertura,$C169,Parametros.Red!AF$12)*INDEX(superficie.cobertura.2g,Parametros.Red!$N506,Parametros.Red!AF$11),0) -> 0 | AG169: =IFERROR(Parametros.Red!AG637*INDEX(porcentaje.sitios.cobertura,$C169,Parametros.Red!AG$12)*INDEX(superficie.cobertura.2g,Parametros.Red!$N506,Parametros.Red!AG$11),0) -> 0 | AH169: =IFERROR(Parametros.Red!AH637*INDEX(porcentaje.sitios.cobertura,$C169,Parametros.Red!AH$12)*INDEX(superficie.cobertura.2g,Parametros.Red!$N506,Parametros.Red!AH$11),0) -> 0 | AI169: =IFERROR(Parametros.Red!AI637*INDEX(porcentaje.sitios.cobertura,$C169,Parametros.Red!AI$12)*INDEX(superficie.cobertura.2g,Parametros.Red!$N506,Parametros.Red!AI$11),0) -> 0 | AJ169: =IFERROR(Parametros.Red!AJ637*INDEX(porcentaje.sitios.cobertura,$C169,Parametros.Red!AJ$12)*INDEX(superficie.cobertura.2g,Parametros.Red!$N506,Parametros.Red!AJ$11),0) -> 0 | AK169: =IFERROR(Parametros.Red!AK637*INDEX(porcentaje.sitios.cobertura,$C169,Parametros.Red!AK$12)*INDEX(superficie.cobertura.2g,Parametros.Red!$N506,Parametros.Red!AK$11),0) -> 0 | AL169: =IFERROR(Parametros.Red!AL637*INDEX(porcentaje.sitios.cobertura,$C169,Parametros.Red!AL$12)*INDEX(superficie.cobertura.2g,Parametros.Red!$N506,Parametros.Red!AL$11),0) -> 0 | AM169: =IFERROR(Parametros.Red!AM637*INDEX(porcentaje.sitios.cobertura,$C169,Parametros.Red!AM$12)*INDEX(superficie.cobertura.2g,Parametros.Red!$N506,Parametros.Red!AM$11),0) -> 0 | AN169: =IFERROR(Parametros.Red!AN637*INDEX(porcentaje.sitios.cobertura,$C169,Parametros.Red!AN$12)*INDEX(superficie.cobertura.2g,Parametros.Red!$N506,Parametros.Red!AN$11),0) -> 0 | AO169: =IFERROR(Parametros.Red!AO637*INDEX(porcentaje.sitios.cobertura,$C169,Parametros.Red!AO$12)*INDEX(superficie.cobertura.2g,Parametros.Red!$N506,Parametros.Red!AO$11),0) -> 0 | AP169: =IFERROR(Parametros.Red!AP637*INDEX(porcentaje.sitios.cobertura,$C169,Parametros.Red!AP$12)*INDEX(superficie.cobertura.2g,Parametros.Red!$N506,Parametros.Red!AP$11),0) -> 0 | AQ169: =IFERROR(Parametros.Red!AQ637*INDEX(porcentaje.sitios.cobertura,$C169,Parametros.Red!AQ$12)*INDEX(superficie.cobertura.2g,Parametros.Red!$N506,Parametros.Red!AQ$11),0) -> 0 | AR169: =IFERROR(Parametros.Red!AR637*INDEX(porcentaje.sitios.cobertura,$C169,Parametros.Red!AR$12)*INDEX(superficie.cobertura.2g,Parametros.Red!$N506,Parametros.Red!AR$11),0) -> 0 | AS169: =IFERROR(Parametros.Red!AS637*INDEX(porcentaje.sitios.cobertura,$C169,Parametros.Red!AS$12)*INDEX(superficie.cobertura.2g,Parametros.Red!$N506,Parametros.Red!AS$11),0) -> 0 | AT169: =IFERROR(Parametros.Red!AT637*INDEX(porcentaje.sitios.cobertura,$C169,Parametros.Red!AT$12)*INDEX(superficie.cobertura.2g,Parametros.Red!$N506,Parametros.Red!AT$11),0) -> 0 | AU169: =IFERROR(Parametros.Red!AU637*INDEX(porcentaje.sitios.cobertura,$C169,Parametros.Red!AU$12)*INDEX(superficie.cobertura.2g,Parametros.Red!$N506,Parametros.Red!AU$11),0) -> 0 | AV169: =IFERROR(Parametros.Red!AV637*INDEX(porcentaje.sitios.cobertura,$C169,Parametros.Red!AV$12)*INDEX(superficie.cobertura.2g,Parametros.Red!$N506,Parametros.Red!AV$11),0) -> 0 | AW169: =IFERROR(Parametros.Red!AW637*INDEX(porcentaje.sitios.cobertura,$C169,Parametros.Red!AW$12)*INDEX(superficie.cobertura.2g,Parametros.Red!$N506,Parametros.Red!AW$11),0) -> 0 | AX169: =IFERROR(Parametros.Red!AX637*INDEX(porcentaje.sitios.cobertura,$C169,Parametros.Red!AX$12)*INDEX(superficie.cobertura.2g,Parametros.Red!$N506,Parametros.Red!AX$11),0) -> 0 | AY169: =IFERROR(Parametros.Red!AY637*INDEX(porcentaje.sitios.cobertura,$C169,Parametros.Red!AY$12)*INDEX(superficie.cobertura.2g,Parametros.Red!$N506,Parametros.Red!AY$11),0) -> 0 | AZ169: =IFERROR(Parametros.Red!AZ637*INDEX(porcentaje.sitios.cobertura,$C169,Parametros.Red!AZ$12)*INDEX(superficie.cobertura.2g,Parametros.Red!$N506,Parametros.Red!AZ$11),0) -> 0 | BA169: =IFERROR(Parametros.Red!BA637*INDEX(porcentaje.sitios.cobertura,$C169,Parametros.Red!BA$12)*INDEX(superficie.cobertura.2g,Parametros.Red!$N506,Parametros.Red!BA$11),0) -> 0
C170: 13 | E170: [km2] | F170: =IFERROR(Parametros.Red!F638*INDEX(porcentaje.sitios.cobertura,$C170,Parametros.Red!F$12)*INDEX(superficie.cobertura.2g,Parametros.Red!$N507,Parametros.Red!F$11),0) -> 0 | G170: =IFERROR(Parametros.Red!G638*INDEX(porcentaje.sitios.cobertura,$C170,Parametros.Red!G$12)*INDEX(superficie.cobertura.2g,Parametros.Red!$N507,Parametros.Red!G$11),0) -> 0 | H170: =IFERROR(Parametros.Red!H638*INDEX(porcentaje.sitios.cobertura,$C170,Parametros.Red!H$12)*INDEX(superficie.cobertura.2g,Parametros.Red!$N507,Parametros.Red!H$11),0) -> 0 | I170: =IFERROR(Parametros.Red!I638*INDEX(porcentaje.sitios.cobertura,$C170,Parametros.Red!I$12)*INDEX(superficie.cobertura.2g,Parametros.Red!$N507,Parametros.Red!I$11),0) -> 0 | J170: =IFERROR(Parametros.Red!J638*INDEX(porcentaje.sitios.cobertura,$C170,Parametros.Red!J$12)*INDEX(superficie.cobertura.2g,Parametros.Red!$N507,Parametros.Red!J$11),0) -> 0 | K170: =IFERROR(Parametros.Red!K638*INDEX(porcentaje.sitios.cobertura,$C170,Parametros.Red!K$12)*INDEX(superficie.cobertura.2g,Parametros.Red!$N507,Parametros.Red!K$11),0) -> 0 | L170: =IFERROR(Parametros.Red!L638*INDEX(porcentaje.sitios.cobertura,$C170,Parametros.Red!L$12)*INDEX(superficie.cobertura.2g,Parametros.Red!$N507,Parametros.Red!L$11),0) -> 0 | M170: =IFERROR(Parametros.Red!M638*INDEX(porcentaje.sitios.cobertura,$C170,Parametros.Red!M$12)*INDEX(superficie.cobertura.2g,Parametros.Red!$N507,Parametros.Red!M$11),0) -> 0 | N170: =IFERROR(Parametros.Red!N638*INDEX(porcentaje.sitios.cobertura,$C170,Parametros.Red!N$12)*INDEX(superficie.cobertura.2g,Parametros.Red!$N507,Parametros.Red!N$11),0) -> 0 | O170: =IFERROR(Parametros.Red!O638*INDEX(porcentaje.sitios.cobertura,$C170,Parametros.Red!O$12)*INDEX(superficie.cobertura.2g,Parametros.Red!$N507,Parametros.Red!O$11),0) -> 0 | P170: =IFERROR(Parametros.Red!P638*INDEX(porcentaje.sitios.cobertura,$C170,Parametros.Red!P$12)*INDEX(superficie.cobertura.2g,Parametros.Red!$N507,Parametros.Red!P$11),0) -> 0 | Q170: =IFERROR(Parametros.Red!Q638*INDEX(porcentaje.sitios.cobertura,$C170,Parametros.Red!Q$12)*INDEX(superficie.cobertura.2g,Parametros.Red!$N507,Parametros.Red!Q$11),0) -> 0 | R170: =IFERROR(Parametros.Red!R638*INDEX(porcentaje.sitios.cobertura,$C170,Parametros.Red!R$12)*INDEX(superficie.cobertura.2g,Parametros.Red!$N507,Parametros.Red!R$11),0) -> 0 | S170: =IFERROR(Parametros.Red!S638*INDEX(porcentaje.sitios.cobertura,$C170,Parametros.Red!S$12)*INDEX(superficie.cobertura.2g,Parametros.Red!$N507,Parametros.Red!S$11),0) -> 0 | T170: =IFERROR(Parametros.Red!T638*INDEX(porcentaje.sitios.cobertura,$C170,Parametros.Red!T$12)*INDEX(superficie.cobertura.2g,Parametros.Red!$N507,Parametros.Red!T$11),0) -> 0 | U170: =IFERROR(Parametros.Red!U638*INDEX(porcentaje.sitios.cobertura,$C170,Parametros.Red!U$12)*INDEX(superficie.cobertura.2g,Parametros.Red!$N507,Parametros.Red!U$11),0) -> 0 | V170: =IFERROR(Parametros.Red!V638*INDEX(porcentaje.sitios.cobertura,$C170,Parametros.Red!V$12)*INDEX(superficie.cobertura.2g,Parametros.Red!$N507,Parametros.Red!V$11),0) -> 0 | W170: =IFERROR(Parametros.Red!W638*INDEX(porcentaje.sitios.cobertura,$C170,Parametros.Red!W$12)*INDEX(superficie.cobertura.2g,Parametros.Red!$N507,Parametros.Red!W$11),0) -> 0 | X170: =IFERROR(Parametros.Red!X638*INDEX(porcentaje.sitios.cobertura,$C170,Parametros.Red!X$12)*INDEX(superficie.cobertura.2g,Parametros.Red!$N507,Parametros.Red!X$11),0) -> 0 | Y170: =IFERROR(Parametros.Red!Y638*INDEX(porcentaje.sitios.cobertura,$C170,Parametros.Red!Y$12)*INDEX(superficie.cobertura.2g,Parametros.Red!$N507,Parametros.Red!Y$11),0) -> 0 | Z170: =IFERROR(Parametros.Red!Z638*INDEX(porcentaje.sitios.cobertura,$C170,Parametros.Red!Z$12)*INDEX(superficie.cobertura.2g,Parametros.Red!$N507,Parametros.Red!Z$11),0) -> 0 | AA170: =IFERROR(Parametros.Red!AA638*INDEX(porcentaje.sitios.cobertura,$C170,Parametros.Red!AA$12)*INDEX(superficie.cobertura.2g,Parametros.Red!$N507,Parametros.Red!AA$11),0) -> 0 | AB170: =IFERROR(Parametros.Red!AB638*INDEX(porcentaje.sitios.cobertura,$C170,Parametros.Red!AB$12)*INDEX(superficie.cobertura.2g,Parametros.Red!$N507,Parametros.Red!AB$11),0) -> 0 | AC170: =IFERROR(Parametros.Red!AC638*INDEX(porcentaje.sitios.cobertura,$C170,Parametros.Red!AC$12)*INDEX(superficie.cobertura.2g,Parametros.Red!$N507,Parametros.Red!AC$11),0) -> 0 | AD170: =IFERROR(Parametros.Red!AD638*INDEX(porcentaje.sitios.cobertura,$C170,Parametros.Red!AD$12)*INDEX(superficie.cobertura.2g,Parametros.Red!$N507,Parametros.Red!AD$11),0) -> 0 | AE170: =IFERROR(Parametros.Red!AE638*INDEX(porcentaje.sitios.cobertura,$C170,Parametros.Red!AE$12)*INDEX(superficie.cobertura.2g,Parametros.Red!$N507,Parametros.Red!AE$11),0) -> 0 | AF170: =IFERROR(Parametros.Red!AF638*INDEX(porcentaje.sitios.cobertura,$C170,Parametros.Red!AF$12)*INDEX(superficie.cobertura.2g,Parametros.Red!$N507,Parametros.Red!AF$11),0) -> 0 | AG170: =IFERROR(Parametros.Red!AG638*INDEX(porcentaje.sitios.cobertura,$C170,Parametros.Red!AG$12)*INDEX(superficie.cobertura.2g,Parametros.Red!$N507,Parametros.Red!AG$11),0) -> 0 | AH170: =IFERROR(Parametros.Red!AH638*INDEX(porcentaje.sitios.cobertura,$C170,Parametros.Red!AH$12)*INDEX(superficie.cobertura.2g,Parametros.Red!$N507,Parametros.Red!AH$11),0) -> 0 | AI170: =IFERROR(Parametros.Red!AI638*INDEX(porcentaje.sitios.cobertura,$C170,Parametros.Red!AI$12)*INDEX(superficie.cobertura.2g,Parametros.Red!$N507,Parametros.Red!AI$11),0) -> 0 | AJ170: =IFERROR(Parametros.Red!AJ638*INDEX(porcentaje.sitios.cobertura,$C170,Parametros.Red!AJ$12)*INDEX(superficie.cobertura.2g,Parametros.Red!$N507,Parametros.Red!AJ$11),0) -> 0 | AK170: =IFERROR(Parametros.Red!AK638*INDEX(porcentaje.sitios.cobertura,$C170,Parametros.Red!AK$12)*INDEX(superficie.cobertura.2g,Parametros.Red!$N507,Parametros.Red!AK$11),0) -> 0 | AL170: =IFERROR(Parametros.Red!AL638*INDEX(porcentaje.sitios.cobertura,$C170,Parametros.Red!AL$12)*INDEX(superficie.cobertura.2g,Parametros.Red!$N507,Parametros.Red!AL$11),0) -> 0 | AM170: =IFERROR(Parametros.Red!AM638*INDEX(porcentaje.sitios.cobertura,$C170,Parametros.Red!AM$12)*INDEX(superficie.cobertura.2g,Parametros.Red!$N507,Parametros.Red!AM$11),0) -> 0 | AN170: =IFERROR(Parametros.Red!AN638*INDEX(porcentaje.sitios.cobertura,$C170,Parametros.Red!AN$12)*INDEX(superficie.cobertura.2g,Parametros.Red!$N507,Parametros.Red!AN$11),0) -> 0 | AO170: =IFERROR(Parametros.Red!AO638*INDEX(porcentaje.sitios.cobertura,$C170,Parametros.Red!AO$12)*INDEX(superficie.cobertura.2g,Parametros.Red!$N507,Parametros.Red!AO$11),0) -> 0 | AP170: =IFERROR(Parametros.Red!AP638*INDEX(porcentaje.sitios.cobertura,$C170,Parametros.Red!AP$12)*INDEX(superficie.cobertura.2g,Parametros.Red!$N507,Parametros.Red!AP$11),0) -> 0 | AQ170: =IFERROR(Parametros.Red!AQ638*INDEX(porcentaje.sitios.cobertura,$C170,Parametros.Red!AQ$12)*INDEX(superficie.cobertura.2g,Parametros.Red!$N507,Parametros.Red!AQ$11),0) -> 0 | AR170: =IFERROR(Parametros.Red!AR638*INDEX(porcentaje.sitios.cobertura,$C170,Parametros.Red!AR$12)*INDEX(superficie.cobertura.2g,Parametros.Red!$N507,Parametros.Red!AR$11),0) -> 0 | AS170: =IFERROR(Parametros.Red!AS638*INDEX(porcentaje.sitios.cobertura,$C170,Parametros.Red!AS$12)*INDEX(superficie.cobertura.2g,Parametros.Red!$N507,Parametros.Red!AS$11),0) -> 0 | AT170: =IFERROR(Parametros.Red!AT638*INDEX(porcentaje.sitios.cobertura,$C170,Parametros.Red!AT$12)*INDEX(superficie.cobertura.2g,Parametros.Red!$N507,Parametros.Red!AT$11),0) -> 0 | AU170: =IFERROR(Parametros.Red!AU638*INDEX(porcentaje.sitios.cobertura,$C170,Parametros.Red!AU$12)*INDEX(superficie.cobertura.2g,Parametros.Red!$N507,Parametros.Red!AU$11),0) -> 0 | AV170: =IFERROR(Parametros.Red!AV638*INDEX(porcentaje.sitios.cobertura,$C170,Parametros.Red!AV$12)*INDEX(superficie.cobertura.2g,Parametros.Red!$N507,Parametros.Red!AV$11),0) -> 0 | AW170: =IFERROR(Parametros.Red!AW638*INDEX(porcentaje.sitios.cobertura,$C170,Parametros.Red!AW$12)*INDEX(superficie.cobertura.2g,Parametros.Red!$N507,Parametros.Red!AW$11),0) -> 0 | AX170: =IFERROR(Parametros.Red!AX638*INDEX(porcentaje.sitios.cobertura,$C170,Parametros.Red!AX$12)*INDEX(superficie.cobertura.2g,Parametros.Red!$N507,Parametros.Red!AX$11),0) -> 0 | AY170: =IFERROR(Parametros.Red!AY638*INDEX(porcentaje.sitios.cobertura,$C170,Parametros.Red!AY$12)*INDEX(superficie.cobertura.2g,Parametros.Red!$N507,Parametros.Red!AY$11),0) -> 0 | AZ170: =IFERROR(Parametros.Red!AZ638*INDEX(porcentaje.sitios.cobertura,$C170,Parametros.Red!AZ$12)*INDEX(superficie.cobertura.2g,Parametros.Red!$N507,Parametros.Red!AZ$11),0) -> 0 | BA170: =IFERROR(Parametros.Red!BA638*INDEX(porcentaje.sitios.cobertura,$C170,Parametros.Red!BA$12)*INDEX(superficie.cobertura.2g,Parametros.Red!$N507,Parametros.Red!BA$11),0) -> 0
